Workbook

Sheet Form
B1: =IF(AND(TIGMODEL>"",TIG=""),"TIG with 4mm glass ONLY (Special order, contact CS)",IF(AND(TIGMODEL>"",TIGBAL=1),"TIG is NOT Available",IF(TIG_NOTE>"",TIG_NOTE,""))) -> 
B2: =IF(AND(WSIZE>0,HSIZE>0),"Only Available At"&" "&WSIZE&" x "&HSIZE&IF(HCONTROL=1," or "&HSIZE2,""),"") ->  | H2: Select a Model | J2: =IF(SHATERROR=1,"Adjust CMR to Increase Egress Height",IF(SHAT_MIN_R=1,SHAT_MESSAGE,"")) -> 
B3: =IF(Model_Select="Select Model","","(Model"&" "&ModelNo&")") ->  | G3: Select Model | J3: ="Min. W:"&" "&MINW -> Min. W: 0 | N3: ="Max W:"&" "&MAXW -> Max W: 0
B4: =Description -> 0 | J4: ="Min. H:"&" "&MINH -> Min. H: 0 | N4: ="Max H:"&" "&MAXH -> Max H: 0 | P4: ="Max UI:"&" "&MAXUI -> Max UI: 0
B5: =IF(AND(W>0,H>0),(IF(ISERROR(VLOOKUP(1,Data!$A:$D,3,FALSE)),"",VLOOKUP(1,Data!$A:$D,3,FALSE))),"") ->  | H5: =IF(AND(W>0,H>0),(IF(ISERROR(VLOOKUP(1,Data!$A:$D,4,FALSE)),"",VLOOKUP(1,Data!$A:$D,4,FALSE))),"") ->  | N5: Exact Size
B6: =IF(AND(W>0,H>0),(IF(ISERROR(VLOOKUP(2,Data!$A:$D,3,FALSE)),"",VLOOKUP(2,Data!$A:$D,3,FALSE))),"") ->  | H6: =IF(AND(W>0,H>0),(IF(ISERROR(VLOOKUP(2,Data!$A:$D,4,FALSE)),"",VLOOKUP(2,Data!$A:$D,4,FALSE))),"") ->  | J6: Width: | N6: =IF(AND(RO=2,W>0),W-WCUTBACK,W) -> 0 | O6: =IF(AND(W>0,WSIZE>0,W<>WSIZE),"<< Width Not Available","") -> 
B7: =IF(AND(W>0,H>0),(IF(ISERROR(VLOOKUP(3,Data!$A:$D,3,FALSE)),"",VLOOKUP(3,Data!$A:$D,3,FALSE))),"") ->  | H7: =IF(AND(W>0,H>0),(IF(ISERROR(VLOOKUP(3,Data!$A:$D,4,FALSE)),"",VLOOKUP(3,Data!$A:$D,4,FALSE))),"") ->  | J7: Height: | N7: =IF(AND(RO=2,H>0),H-HCUTBACK,H) -> 0 | O7: =IF(AND(H>0,HSIZE>0,H<>HSIZE),"<< Height Not Available","") -> 
B8: =IF(AND(W>0,H>0),(IF(ISERROR(VLOOKUP(4,Data!$A:$D,3,FALSE)),"",VLOOKUP(4,Data!$A:$D,3,FALSE))),"") ->  | H8: =IF(AND(W>0,H>0),(IF(ISERROR(VLOOKUP(4,Data!$A:$D,4,FALSE)),"",VLOOKUP(4,Data!$A:$D,4,FALSE))),"") ->  | J8: =IF(OR(ModelNo="S140",ModelNo="S144",ModelNo="S146",ModelNo="S140 (HP)",ModelNo="S144 (HP)",ModelNo="S146 (HP)"),"Leg:","") ->  | N8: =LEG_MESSAGE -> 
B9: =IF(AND(W>0,H>0),(IF(ISERROR(VLOOKUP(5,Data!$A:$D,3,FALSE)),"",VLOOKUP(5,Data!$A:$D,3,FALSE))),"") ->  | H9: =IF(AND(W>0,H>0),(IF(ISERROR(VLOOKUP(5,Data!$A:$D,4,FALSE)),"",VLOOKUP(5,Data!$A:$D,4,FALSE))),"") ->  | J9: =IF(BTYPE="Custom","CMR:","") ->  | N9: =IF(AND(W>0,H>0,BTYPE="Custom",CMR=0),"<< Enter CMR Location","") -> 
B10: =IF(AND(W>0,H>0),(IF(ISERROR(VLOOKUP(6,Data!$A:$D,3,FALSE)),"",VLOOKUP(6,Data!$A:$D,3,FALSE))),"") ->  | H10: =IF(AND(W>0,H>0),(IF(ISERROR(VLOOKUP(6,Data!$A:$D,4,FALSE)),"",VLOOKUP(6,Data!$A:$D,4,FALSE))),"") ->  | J10: =IF(SELECTEXT="Select Extrusion","Ext.",IF(SELECTEXT="Select Reinforcement","Reinforce",IF(SELECTEXT="Standard","HP >>",""))) ->  | N10: =EXT_MESSAGE -> 
B11: =IF(AND(W>0,H>0),(IF(ISERROR(VLOOKUP(7,Data!$A:$D,3,FALSE)),"",VLOOKUP(7,Data!$A:$D,3,FALSE))),"") ->  | H11: =IF(AND(W>0,H>0),(IF(ISERROR(VLOOKUP(7,Data!$A:$D,4,FALSE)),"",VLOOKUP(7,Data!$A:$D,4,FALSE))),"") ->  | J11: Opening: | N11: =RO_OPTION -> 0
B12: =IF(AND(W>0,H>0),(IF(ISERROR(VLOOKUP(8,Data!$A:$D,3,FALSE)),"",VLOOKUP(8,Data!$A:$D,3,FALSE))),"") ->  | H12: =IF(AND(W>0,H>0),(IF(ISERROR(VLOOKUP(8,Data!$A:$D,4,FALSE)),"",VLOOKUP(8,Data!$A:$D,4,FALSE))),"") ->  | J12: Type:
B13: =IF(AND(W>0,H>0),(IF(ISERROR(VLOOKUP(9,Data!$A:$D,3,FALSE)),"",VLOOKUP(9,Data!$A:$D,3,FALSE))),"") ->  | H13: =IF(AND(W>0,H>0),(IF(ISERROR(VLOOKUP(9,Data!$A:$D,4,FALSE)),"",VLOOKUP(9,Data!$A:$D,4,FALSE))),"") ->  | J13: Screen:
B14: =IF(AND(W>0,H>0),(IF(ISERROR(VLOOKUP(10,Data!$A:$D,3,FALSE)),"",VLOOKUP(10,Data!$A:$D,3,FALSE))),"") ->  | H14: =IF(AND(W>0,H>0),(IF(ISERROR(VLOOKUP(10,Data!$A:$D,4,FALSE)),"",VLOOKUP(10,Data!$A:$D,4,FALSE))),"") ->  | J14: Glass: | O14: =IF(AND(EXTTYPE="HP Package",GT="S"),"<< Must Select DS","") -> 
B16: =IF(AND(W>0,H>0),(IF(ISERROR(VLOOKUP(11,Data!$A:$D,3,FALSE)),"",VLOOKUP(11,Data!$A:$D,3,FALSE))),"") ->  | H16: =IF(AND(W>0,H>0),(IF(ISERROR(VLOOKUP(11,Data!$A:$D,4,FALSE)),"",VLOOKUP(11,Data!$A:$D,4,FALSE))),"") -> 
B17: =IF(AND(W>0,H>0),(IF(ISERROR(VLOOKUP(12,Data!$A:$D,3,FALSE)),"",VLOOKUP(12,Data!$A:$D,3,FALSE))),"") ->  | H17: =IF(AND(W>0,H>0),(IF(ISERROR(VLOOKUP(12,Data!$A:$D,4,FALSE)),"",VLOOKUP(12,Data!$A:$D,4,FALSE))),"") -> 
B18: =IF(AND(W>0,H>0),(IF(ISERROR(VLOOKUP(13,Data!$A:$D,3,FALSE)),"",VLOOKUP(13,Data!$A:$D,3,FALSE))),"") ->  | H18: =IF(AND(W>0,H>0),(IF(ISERROR(VLOOKUP(13,Data!$A:$D,4,FALSE)),"",VLOOKUP(13,Data!$A:$D,4,FALSE))),"") ->  | N18: A Designated AC Sash is Used to Replace BOTH Top and Bottom Sashes When AC is in the Window
B19: =IF(AND(W>0,H>0),(IF(ISERROR(VLOOKUP(14,Data!$A:$D,3,FALSE)),"",VLOOKUP(14,Data!$A:$D,3,FALSE))),"") ->  | H19: =IF(AND(W>0,H>0),(IF(ISERROR(VLOOKUP(14,Data!$A:$D,4,FALSE)),"",VLOOKUP(14,Data!$A:$D,4,FALSE))),"") -> 
B20: =IF(AND(W>0,H>0),(IF(ISERROR(VLOOKUP(15,Data!$A:$D,3,FALSE)),"",VLOOKUP(15,Data!$A:$D,3,FALSE))),"") ->  | H20: =IF(AND(W>0,H>0),(IF(ISERROR(VLOOKUP(15,Data!$A:$D,4,FALSE)),"",VLOOKUP(15,Data!$A:$D,4,FALSE))),"") ->  | J20: AC Width:
B21: =IF(AND(W>0,H>0),(IF(ISERROR(VLOOKUP(16,Data!$A:$D,3,FALSE)),"",VLOOKUP(16,Data!$A:$D,3,FALSE))),"") ->  | H21: =IF(AND(W>0,H>0),(IF(ISERROR(VLOOKUP(16,Data!$A:$D,4,FALSE)),"",VLOOKUP(16,Data!$A:$D,4,FALSE))),"") ->  | J21: AC Height: | N21: =IF(AND(W>0,H>0,ACWIDTH>0,ACHEIGHT>0,ACCMR>0,ACLINK=TRUE),ACCMR,IF(AND(W>0,H>0,ACWIDTH>0,ACSASHW>0,ACLINK=TRUE),ACSASHW,"")) ->  | O21: =IF(AND(W>0,H>0,ACWIDTH>0,ACHEIGHT>0,ACCMR>0,ACLINK=TRUE),"<< CMR",IF(AND(W>0,H>0,ACWIDTH>0,ACSASHW>0,ACLINK=TRUE),"<< AC Sash Width","")) -> 
B22: =IF(AND(W>0,H>0),(IF(ISERROR(VLOOKUP(17,Data!$A:$D,3,FALSE)),"",VLOOKUP(17,Data!$A:$D,3,FALSE))),"") ->  | H22: =IF(AND(W>0,H>0),(IF(ISERROR(VLOOKUP(17,Data!$A:$D,4,FALSE)),"",VLOOKUP(17,Data!$A:$D,4,FALSE))),"") ->  | J22: =IF(ISERROR(TSH),"",IF(LIMIT1>"",LIMIT1&IF(LIMIT2>""," & "&LIMIT2,""),"")) ->  | N22: =IF(AND(W>0,H>0,ACHEIGHT>0,ACSASHH>0,ACLINK=TRUE),ACSASHH,"") ->  | O22: =IF(AND(ACCMR>0,ACLINK=TRUE),"",IF(AND(W>0,H>0,ACHEIGHT>0,ACSASHH>0,ACLINK=TRUE),"<< AC Sash Height","")) -> 
B23: =IF(AND(W>0,H>0),(IF(ISERROR(VLOOKUP(18,Data!$A:$D,3,FALSE)),"",VLOOKUP(18,Data!$A:$D,3,FALSE))),"") ->  | H23: =IF(AND(W>0,H>0),(IF(ISERROR(VLOOKUP(18,Data!$A:$D,4,FALSE)),"",VLOOKUP(18,Data!$A:$D,4,FALSE))),"") ->  | L23: =IF(AND(W>0,H>0,ACWIDTH>ACSASHW,ACLINK=TRUE),"AC Width is Larger Than The Sash Width","") -> 
B24: =IF(AND(W>0,H>0),(IF(ISERROR(VLOOKUP(19,Data!$A:$D,3,FALSE)),"",VLOOKUP(19,Data!$A:$D,3,FALSE))),"") ->  | H24: =IF(AND(W>0,H>0),(IF(ISERROR(VLOOKUP(19,Data!$A:$D,4,FALSE)),"",VLOOKUP(19,Data!$A:$D,4,FALSE))),"") -> 

Sheet Balance (hidden)
AP1: BLOCK & TACKLE BALANCE CHART | BD1: V-Series BLOCK & TACKLE BALANCE CHART
B2: CFB | F2: Curve CFB | M2: Glass Strength | O2: Weight Calculation | Y2: Egress Calculation | AC2: * = Deduct 2.25 from 36 x 60 (RO) Frame to adjust for Egress | AN2: TOP SASH | AS2: BOTTOM SASH | BD2: TOP SASH | BI2: BOTTOM SASH
B3: 4 | C3: 3 | D3: BN | F3: 4 | G3: 3 | H3: RD | J3: 1 | K3: =IF(M3>"",VLOOKUP(M3,GLASSLOOKUP,2,FALSE),"") ->  | L3: =IF(M3>"",VLOOKUP(K3,WEIGHTCHART,2,FALSE),"") ->  | M3: =GLASS1 ->  | O3: Model | P3: CDIM | Q3: Bott. Sash Height | R3: Bottom Sash Weight | S3: Top Sash Weight | T3: Bal. Loc. | U3: Head + Sill | V3: Sill | W3: EW | Y3: # of Coils | Z3: =IF(OR(ModelNo="3100",ModelNo="i201"),VLOOKUP(BTM_WGT,CURVE_W,3,FALSE),VLOOKUP(BTM_WGT,CFB_W,3,FALSE)) ->  | AC3: 0100, 0700, 01HP, 07HP | AD3: Length | AE3: Weight/ft | AF3: Weight | AH3: 0901 | AI3: Length | AJ3: Weight/ft | AK3: Weight | AN3: Sash Weight | AO3: Tube Length | AP3: Balance | AQ3: Weight | AS3: Sash Weight | AT3: Tube Length | AU3: Balance | AV3: Weight | BD3: Sash Weight | BE3: Tube Length | BF3: Balance | BG3: Weight | BI3: Sash Weight | BJ3: Tube Length | BK3: Balance | BL3: Weight | BR3: Caldwell Balance Chart
B4: =B3+1 -> 5 | C4: 3 | D4: BN | F4: 5 | G4: 3 | H4: RD | J4: 2 | M4: =GLASS2 ->  | O4: =ModelNo -> Select Model | P4: =VLOOKUP(ModelNo,WEIGHTCALC,2,FALSE) ->  | Q4: =VLOOKUP(ModelNo,WEIGHTCALC,3,FALSE) ->  | R4: =TRUNC(VLOOKUP(ModelNo,WEIGHTCALC,4,FALSE)+GRID) ->  | S4: =TRUNC(VLOOKUP(ModelNo,WEIGHTCALC,5,FALSE)+GRID) ->  | T4: =VLOOKUP(ModelNo,WEIGHTCALC,6,FALSE) ->  | U4: =VLOOKUP(ModelNo,WEIGHTCALC,7,FALSE) ->  | V4: =VLOOKUP(ModelNo,WEIGHTCALC,8,FALSE) ->  | W4: =VLOOKUP(ModelNo,WEIGHTCALC,9,FALSE) ->  | Y4: Displacement | Z4: =IF($Q$4>45,$Q$4-44,0) ->  | AC4: Top Top Rail | AD4: 0 | AE4: 0 | AF4: =AD4*AE4 -> 0 | AH4: Top Top Rail | AI4: =(Frame_Width-3.4375)/12 -> -0.2864583333 | AJ4: 0.352 | AK4: =AI4*AJ4 -> -0.1008333333 | AN4: =TRUNC(TOP_WGT) ->  | AO4: =R59 ->  | AP4: Number | AQ4: Range | AS4: =TRUNC(BTM_WGT) ->  | AT4: =Q59 ->  | AU4: Number | AV4: Range | BD4: =TRUNC(TOP_WGT) ->  | BE4: =TOPTUBELENGTH ->  | BF4: Number | BG4: Range | BI4: =TRUNC(BTM_WGT) ->  | BJ4: =BOTTUBELENGTH ->  | BK4: Number | BL4: Range | BR4: =IF(OR(ModelNo="1700",ModelNo="1720",ModelNo="1730"),1,IF(OR(ModelNo="1900",ModelNo="1920",ModelNo="1930"),2,3)) -> 3 | BS4: =IF(OR(ModelNo="1700",ModelNo="1720",ModelNo="1730"),4,IF(OR(ModelNo="1900",ModelNo="1920",ModelNo="1930"),5,6)) -> 6 | BT4: Bott. | BU4: Top | BW4: 1 | BX4: 4 | BY4: 2 | BZ4: 5 | CA4: 3 | CB4: 6
B5: 6 | C5: 3 | D5: BN | F5: 6 | G5: 3 | H5: RD | J5: 3 | M5: =GLASS3 ->  | O5: 0100 | P5: =CMR!$E$11 -> 0 | Q5: =CMR!$E$11+0.125 -> 0.125 | R5: =$AF$23 -> 0 | S5: =$AF$22 -> 0 | T5: 1.03125 | U5: 3.074 | V5: 1.537 | W5: 3.0625 | Y5: Coil Loc. From CMR | Z5: =$Z$4+$T$4+1.75 ->  | AC5: Top Bottom Rail | AD5: 0 | AE5: 0 | AF5: =AD5*AE5 -> 0 | AH5: Top Bottom Rail | AI5: =(Frame_Width-3.4375)/12 -> -0.2864583333 | AJ5: 0.344 | AK5: -0.09854166667 | AN5: Balance Size | AO5: =IF(AND(AP5>0,AQ5>0),AP5,0) ->  | AP5: =IF($AO$4<=6,6,0) ->  | AQ5: =IF(AND(AP5=6,$AN$4>=2,$AN$4<=5),AP5&"A",0) ->  | AS5: Balance Size | AT5: =IF(AND(AU5>0,AV5>0),AU5,0) ->  | AU5: =IF($AT$4<=6,6,0) ->  | AV5: =IF(AND(AU5=6,$AS$4>=2,$AS$4<=5),AU5&"A",0) ->  | BD5: Balance Size | BE5: =IF(AND(BF5>0,BG5>0),BF5,0) ->  | BF5: =IF($BE$4<=8,8,0) ->  | BG5: =IF(AND(BF5=8,$BD$4>=2,$BD$4<=6),BF5&"A",0) ->  | BI5: Balance Size | BJ5: =IF(AND(BK5>0,BL5>0),BK5,0) ->  | BK5: =IF($BJ$4<=8,8,0) ->  | BL5: =IF(AND(BK5=8,$BI$4>=2,$BI$4<=6),BK5&"A",0) ->  | BR5: =HLOOKUP($BR$4,CALDWELL_LOOKUP,2,FALSE) -> 9 | BS5: =HLOOKUP($BS$4,CALDWELL_LOOKUP,2,FALSE) -> 9.9995 | BT5: 8 | BU5: 7 | BW5: 9.7665 | BX5: 10.766 | BY5: 9.2185 | BZ5: 10.218 | CA5: 9 | CB5: 9.9995
B6: 7 | C6: 4 | D6: RD | F6: 7 | G6: 4 | H6: GR | J6: 4 | M6: =GLASS4 ->  | O6: 01HP | P6: =CMR!$L$11 -> 0 | Q6: =CMR!$L$11+0.125 -> 0.125 | R6: =$AF$23 -> 0 | S6: =$AF$22 -> 0 | T6: 1.03125 | U6: 3.168 | V6: 1.631 | W6: 3.0625 | Y6: Sash H < 37.5 | Z6: =IF(OR(ModelNo="S140",ModelNo="S144",ModelNo="S146",ModelNo="S140 (HP)",ModelNo="S144 (HP)",ModelNo="S146 (HP)"),TRUNC((LEG-$Q$4-$U$4)*16+0.5)/16,TRUNC((Frame_Height-$Q$4-$U$4)*16+0.5)/16) ->  | AC6: Top Stile | AD6: 0 | AE6: 0 | AF6: =(AD6*AE6)/12 -> 0 | AH6: Top Stile | AI6: =(2*(CMR!$E$58-0.8125))/12 -> -0.1354166667 | AJ6: 0.218 | AK6: -0.02952083333 | AN6: =VLOOKUP((MAX(AO5:AO168)),AO5:AQ168,3,FALSE) ->  | AO6: =IF(AND(AP6>0,AQ6>0),AP6,0) ->  | AP6: =IF($AO$4<=6,6,0) ->  | AQ6: =IF(AND(AP6=6,$AN$4>=6,$AN$4<=9),AP6&"B",0) ->  | AS6: =VLOOKUP((MAX(AT5:AT168)),AT5:AV168,3,FALSE) ->  | AT6: =IF(AND(AU6>0,AV6>0),AU6,0) ->  | AU6: =IF($AT$4<=6,6,0) ->  | AV6: =IF(AND(AU6=6,$AS$4>=6,$AS$4<=9),AU6&"B",0) ->  | BD6: =VLOOKUP((MAX(BE5:BE229)),BE5:BG229,3,FALSE) ->  | BF6: =IF($BE$4<=8,8,0) ->  | BG6: =IF(AND(BF6=8,$BD$4>=7,$BD$4<=10),BF6&"B",0) ->  | BI6: =VLOOKUP((MAX(BJ5:BJ149)),BJ5:BL149,3,FALSE) ->  | BK6: =IF($BJ$4<=8,8,0) ->  | BL6: =IF(AND(BK6=8,$BI$4>=7,$BI$4<=10),BK6&"B",0) ->  | BR6: =HLOOKUP($BR$4,CALDWELL_LOOKUP,3,FALSE) -> 10 | BS6: =HLOOKUP($BS$4,CALDWELL_LOOKUP,3,FALSE) -> 10.9995 | BT6: 9 | BU6: 8 | BW6: 10.7665 | BX6: 11.766 | BY6: 10.2185 | BZ6: 11.218 | CA6: 10 | CB6: 10.9995
B7: 8 | C7: 4 | D7: RD | F7: 8 | G7: 4 | H7: GR | J7: 5 | M7: =GLASS5 ->  | O7: 0201 | P7: =CMR!$E$27 -> 0 | Q7: =CMR!$E$27-0.5625 -> -0.5625 | R7: =$AF$45 -> 0 | S7: =$AF$44 -> 0 | T7: 1.3125 | U7: 7.4375 | V7: 1.75 | W7: 4.406 | Y7: Egress Height | Z7: =IF(TYPE=1,TRUNC((Frame_Height-$P$4-$U$4)*16+0.5)/16,IF(CMR>(Frame_Height/2),TRUNC((Frame_Height-CMR-$U$4)*16+0.5)/16,IF(CMR<(Frame_Height/2),TRUNC((Frame_Height-$Q$4-$V$4)*16+0.5)/16))) ->  | AC7: Top Rail Reinf. | AD7: 0 | AE7: 0 | AF7: 0 | AH7: Top Rail Reinf. | AI7: =(FLOOR(Frame_Width-13,2))/12 -> -1.166666667 | AJ7: 0.146 | AK7: -0.1703333333 | AP7: =IF($AO$4<=6,6,0) ->  | AQ7: =IF(AND(AP7=6,$AN$4>=10,$AN$4<=12),AP7&"C",0) ->  | AU7: =IF($AT$4<=6,6,0) ->  | AV7: =IF(AND(AU7=6,$AS$4>=10,$AS$4<=12),AU7&"C",0) ->  | BF7: =IF($BE$4<=8,8,0) ->  | BG7: =IF(AND(BF7=8,$BD$4>=11,$BD$4<=13),BF7&"C",0) ->  | BK7: =IF($BJ$4<=8,8,0) ->  | BL7: =IF(AND(BK7=8,$BI$4>=11,$BI$4<=13),BK7&"C",0) ->  | BR7: =HLOOKUP($BR$4,CALDWELL_LOOKUP,4,FALSE) -> 11 | BS7: =HLOOKUP($BS$4,CALDWELL_LOOKUP,4,FALSE) -> 12.9995 | BT7: 10 | BU7: 9 | BW7: 11.7665 | BX7: 13.766 | BY7: 11.2185 | BZ7: 13.218 | CA7: 11 | CB7: 12.9995
B8: 9 | C8: 5 | D8: BU | F8: 9 | G8: 5 | H8: BR | J8: 6 | M8: =GLASS6 ->  | O8: L201 | P8: =CMR!$E$27 -> 0 | Q8: =CMR!$E$27-0.5625 -> -0.5625 | R8: =$AF$45 -> 0 | S8: =$AF$44 -> 0 | T8: 1.3125 | U8: 4.0625 | V8: 5.0625 | W8: 4.406 | Y8: Egress Width | Z8: =Frame_Width-W4 ->  | AC8: Top Stile Reinf | AD8: 0 | AE8: 0 | AF8: 0 | AH8: Top Stile Reinf | AJ8: 0.146 | AK8: 0 | AP8: =IF($AO$4<=6,6,0) ->  | AQ8: =IF(AND(AP8=6,$AN$4>=13,$AN$4<=15),AP8&"D",0) ->  | AU8: =IF($AT$4<=6,6,0) ->  | AV8: =IF(AND(AU8=6,$AS$4>=13,$AS$4<=15),AU8&"D",0) ->  | BF8: =IF(AND($BE$4<=10,$BE$4>8),10,0) ->  | BG8: =IF(AND(BF8=10,$BD$4>=2,$BD$4<=6),BF8&"A",0) ->  | BK8: =IF(AND($BJ$4<=10,$BJ$4>8),10,0) ->  | BL8: =IF(AND(BK8=10,$BI$4>=2,$BI$4<=6),BK8&"A",0) ->  | BR8: =HLOOKUP($BR$4,CALDWELL_LOOKUP,5,FALSE) -> 13 | BS8: =HLOOKUP($BS$4,CALDWELL_LOOKUP,5,FALSE) -> 14.9995 | BT8: 12 | BU8: 10 | BW8: 13.7665 | BX8: 15.766 | BY8: 13.2185 | BZ8: 15.218 | CA8: 13 | CB8: 14.9995
B9: 10 | C9: 5 | D9: BU | F9: 10 | G9: 5 | H9: BR | J9: 7 | M9: =GLASS7 ->  | O9: 02A0 | P9: =CMR!$L$27 -> 0 | Q9: =CMR!$L$27-0.75 -> -0.75 | R9: =$AF$67 -> 0 | S9: =$AF$66 -> 0 | T9: 1.3125 | U9: 7.4375 | V9: 1.75 | W9: 4.5 | Y9: Egress Area | Z9: =IF(E301EH>0,ROUND(((E301EH*EW)/144),3),ROUND(((EH*EW)/144),3)) ->  | AC9: Top Glass | AD9: 0 | AE9: 0 | AF9: 0 | AH9: Top Glass | AI9: =(CMR!$E$61*CMR!$E$63)/144 -> 0.1002604167 | AJ9: =$L$12 ->  | AP9: =IF($AO$4<=6,6,0) ->  | AQ9: =IF(AND(AP9=6,$AN$4>=16,$AN$4<=20),AP9&"E",0) ->  | AU9: =IF($AT$4<=6,6,0) ->  | AV9: =IF(AND(AU9=6,$AS$4>=16,$AS$4<=20),AU9&"E",0) ->  | BF9: =IF(AND($BE$4<=10,$BE$4>8),10,0) ->  | BG9: =IF(AND(BF9=10,$BD$4>=7,$BD$4<=10),BF9&"B",0) ->  | BK9: =IF(AND($BJ$4<=10,$BJ$4>8),10,0) ->  | BL9: =IF(AND(BK9=10,$BI$4>=7,$BI$4<=10),BK9&"B",0) ->  | BR9: =HLOOKUP($BR$4,CALDWELL_LOOKUP,6,FALSE) -> 15 | BS9: =HLOOKUP($BS$4,CALDWELL_LOOKUP,6,FALSE) -> 16.9995 | BT9: 14 | BU9: 12 | BW9: 15.7665 | BX9: 17.766 | BY9: 15.2185 | BZ9: 17.218 | CA9: 15 | CB9: 16.9995
B10: 11 | C10: 6 | D10: YW | F10: 11 | G10: 6 | H10: OR | J10: 8 | M10: =GLASS8 ->  | O10: 0301 | P10: =CMR!$E$43 -> 0 | Q10: =CMR!$E$43-0.625 -> -0.625 | R10: =$AF$89 -> 0 | S10: =$AF$88 -> 0 | T10: 1.3125 | U10: 7.61812 | V10: 2.05906 | W10: 4.375 | AC10: Top Spacer | AD10: 0 | AE10: 0 | AF10: 0 | AH10: Top Spacer | AI10: =((CMR!$E$61*2)+(CMR!$E$63*2))/12 -> -1.302083333 | AJ10: 0.0536 | AK10: -0.06979166667 | AP10: =IF(AND($AO$4<=8,$AO$4>6),8,0) ->  | AQ10: =IF(AND(AP10=8,$AN$4>=16,$AN$4<=20),AP10&"A",0) ->  | AU10: =IF(AND($AT$4<=8,$AT$4>6),8,0) ->  | AV10: =IF(AND(AU10=8,$AS$4>=16,$AS$4<=20),AU10&"A",0) ->  | BF10: =IF(AND($BE$4<=10,$BE$4>8),10,0) ->  | BG10: =IF(AND(BF10=10,$BD$4>=11,$BD$4<=13),BF10&"C",0) ->  | BK10: =IF(AND($BJ$4<=10,$BJ$4>8),10,0) ->  | BL10: =IF(AND(BK10=10,$BI$4>=11,$BI$4<=13),BK10&"C",0) ->  | BR10: =HLOOKUP($BR$4,CALDWELL_LOOKUP,7,FALSE) -> 17 | BS10: =HLOOKUP($BS$4,CALDWELL_LOOKUP,7,FALSE) -> 18.9995 | BT10: 16 | BU10: 14 | BW10: 17.7665 | BX10: 19.766 | BY10: 17.2185 | BZ10: 19.218 | CA10: 17 | CB10: 18.9995
B11: 12 | C11: 6 | D11: YW | F11: 12 | G11: 6 | H11: OR | M11: 1 | O11: E301(3250) | P11: =CMR!$E$43 -> 0 | Q11: =CMR!$E$43-0.625 -> -0.625 | R11: =$AF$89 -> 0 | S11: =$AF$88 -> 0 | W11: 4.375 | Y11: E301(3250) | Z11: 25.1875 | AC11: Top Hardware | AD11: 0 | AE11: 0 | AF11: 0 | AH11: Top Hardware | AI11: 1 | AJ11: 0.24 | AK11: 0.24 | AP11: =IF(AND($AO$4<=8,$AO$4>6),8,0) ->  | AQ11: =IF(AND(AP11=8,$AN$4>=16,$AN$4<=20),AP11&"B",0) ->  | AU11: =IF(AND($AT$4<=8,$AT$4>6),8,0) ->  | AV11: =IF(AND(AU11=8,$AS$4>=16,$AS$4<=20),AU11&"B",0) ->  | BF11: =IF(AND($BE$4<=10,$BE$4>8),10,0) ->  | BG11: =IF(AND(BF11=10,$BD$4>=14,$BD$4<=16),BF11&"D",0) ->  | BK11: =IF(AND($BJ$4<=10,$BJ$4>8),10,0) ->  | BL11: =IF(AND(BK11=10,$BI$4>=14,$BI$4<=16),BK11&"D",0) ->  | BR11: =HLOOKUP($BR$4,CALDWELL_LOOKUP,8,FALSE) -> 19 | BS11: =HLOOKUP($BS$4,CALDWELL_LOOKUP,8,FALSE) -> 20.9995 | BT11: 18 | BU11: 16 | BW11: 19.7665 | BX11: 21.766 | BY11: 19.2185 | BZ11: 21.218 | CA11: 19 | CB11: 20.9995
B12: 13 | C12: 7 | D12: GN | F12: 13 | G12: 7 | H12: BU | L12: =VLOOKUP(GT,K3:L10,2,FALSE) ->  | M12: =VLOOKUP(Glass,J3:L10,2,FALSE) ->  | O12: E301(3052) | P12: =CMR!$E$43 -> 0 | Q12: =CMR!$E$43-0.625 -> -0.625 | R12: =$AF$89 -> 0 | S12: =$AF$88 -> 0 | W12: 4.375 | Y12: E301(3052) | Z12: 26.375 | AC12: Top Bead | AD12: 0 | AE12: 0 | AF12: 0 | AH12: Top Handle Bead | AI12: =(Frame_Width-5.9375)/12 -> -0.4947916667 | AJ12: 0.078 | AK12: -0.03859375 | AP12: =IF(AND($AO$4<=8,$AO$4>6),8,0) ->  | AQ12: =IF(AND(AP12=8,$AN$4>=16,$AN$4<=20),AP12&"C",0) ->  | AU12: =IF(AND($AT$4<=8,$AT$4>6),8,0) ->  | AV12: =IF(AND(AU12=8,$AS$4>=16,$AS$4<=20),AU12&"C",0) ->  | BF12: =IF(AND($BE$4<=12,$BE$4>10),12,0) ->  | BG12: =IF(AND(BF12=12,$BD$4>=3,$BD$4<=7),BF12&"A",0) ->  | BK12: =IF(AND($BJ$4<=12,$BJ$4>10),12,0) ->  | BL12: =IF(AND(BK12=12,$BI$4>=3,$BI$4<=7),BK12&"A",0) ->  | BR12: =HLOOKUP($BR$4,CALDWELL_LOOKUP,9,FALSE) -> 21 | BS12: =HLOOKUP($BS$4,CALDWELL_LOOKUP,9,FALSE) -> 22.9995 | BT12: 20 | BU12: 18 | BW12: 21.7665 | BX12: 23.766 | BY12: 21.2185 | BZ12: 23.218 | CA12: 21 | CB12: 22.9995
B13: 14 | C13: 7 | D13: GN | F13: 14 | G13: 7 | H13: BU | O13: E301(2862) | P13: =CMR!$E$43 -> 0 | Q13: =CMR!$E$43-0.625 -> -0.625 | R13: =$AF$89 -> 0 | S13: =$AF$88 -> 0 | W13: 4.375 | Y13: E301(2862) | Z13: 32.3125 | AC13: Bottom Top Rail | AD13: =(Frame_Width-2.3125)/12 -> -0.1927083333 | AE13: 0.241 | AF13: =AD13*AE13 -> -0.04644270833 | AH13: Top Bead | AI13: =((Frame_Width-5.9375)+((CMR!$E$58-3.0625)*2))/12 -> -1.005208333 | AJ13: 0.078 | AK13: -0.07840625 | AP13: =IF(AND($AO$4<=8,$AO$4>6),8,0) ->  | AQ13: =IF(AND(AP13=8,$AN$4>=16,$AN$4<=20),AP13&"D",0) ->  | AU13: =IF(AND($AT$4<=8,$AT$4>6),8,0) ->  | AV13: =IF(AND(AU13=8,$AS$4>=16,$AS$4<=20),AU13&"D",0) ->  | BF13: =IF(AND($BE$4<=12,$BE$4>10),12,0) ->  | BG13: =IF(AND(BF13=12,$BD$4>=8,$BD$4<=10),BF13&"B",0) ->  | BK13: =IF(AND($BJ$4<=12,$BJ$4>10),12,0) ->  | BL13: =IF(AND(BK13=12,$BI$4>=8,$BI$4<=10),BK13&"B",0) ->  | BR13: =HLOOKUP($BR$4,CALDWELL_LOOKUP,10,FALSE) -> 23 | BS13: =HLOOKUP($BS$4,CALDWELL_LOOKUP,10,FALSE) -> 24.9995 | BT13: 22 | BU13: 20 | BW13: 23.7665 | BX13: 25.766 | BY13: 23.2185 | BZ13: 25.218 | CA13: 23 | CB13: 24.9995
B14: 15 | C14: 8 | D14: LG | F14: 15 | G14: 8 | H14: BK | M14: Extrusion | O14: 0501 | P14: =CMR!$L$43 -> 0 | Q14: =CMR!$L$43-1.3125 -> -1.3125 | R14: =$AF$113 -> 0 | S14: =$AF$112 -> 0 | T14: 1.875 | U14: 4.375 | V14: 2.689 | W14: 5.375 | Z14: =IF(OR(ModelNo="E301(3250)",ModelNo="E301(3052)",ModelNo="E301(2862)"),VLOOKUP(ModelNo,$Y$11:$Z$13,2,FALSE),0) -> 0 | AC14: Bottom Bottom Rail | AD14: =(Frame_Width-2.3125)/12 -> -0.1927083333 | AE14: 0.25 | AF14: -0.04817708333 | AH14: Bottom Top Rail | AI14: =(Frame_Width-3)/12 -> -0.25 | AJ14: 0.429 | AK14: -0.10725 | AP14: =IF(AND($AO$4<=8,$AO$4>6),8,0) ->  | AQ14: =IF(AND(AP14=8,$AN$4>=16,$AN$4<=20),AP14&"E",0) ->  | AU14: =IF(AND($AT$4<=8,$AT$4>6),8,0) ->  | AV14: =IF(AND(AU14=8,$AS$4>=16,$AS$4<=20),AU14&"E",0) ->  | BF14: =IF(AND($BE$4<=12,$BE$4>10),12,0) ->  | BG14: =IF(AND(BF14=12,$BD$4>=11,$BD$4<=16),BF14&"C",0) ->  | BK14: =IF(AND($BJ$4<=12,$BJ$4>10),12,0) ->  | BL14: =IF(AND(BK14=12,$BI$4>=11,$BI$4<=16),BK14&"C",0) ->  | BR14: =HLOOKUP($BR$4,CALDWELL_LOOKUP,11,FALSE) -> 25 | BS14: =HLOOKUP($BS$4,CALDWELL_LOOKUP,11,FALSE) -> 26.9995 | BT14: 24 | BU14: 22 | BW14: 25.7665 | BX14: 27.766 | BY14: 25.2185 | BZ14: 27.218 | CA14: 25 | CB14: 26.9995
B15: 16 | C15: 8 | D15: LG | F15: 16 | G15: 8 | H15: BK | L15: 1 | M15: =IF(EXT_1=0,"",EXT_1) ->  | O15: B501 | P15: =CMR!$L$43 -> 0 | Q15: =CMR!$L$43-1.3125 -> -1.3125 | R15: =$AF$113 -> 0 | S15: =$AF$112 -> 0 | T15: 1.875 | U15: 4.375 | V15: 2.689 | W15: 5.375 | AC15: Bottom Stile | AD15: =((CMR!$E$11+0.125)*2)/12 -> 0.02083333333 | AE15: 0.23 | AF15: 0.004791666667 | AH15: Bottom Bottom Rail | AI15: =(Frame_Width-3)/12 -> -0.25 | AJ15: 0.429 | AK15: -0.10725 | AP15: =IF(AND($AO$4<=10,$AO$4>8),10,0) ->  | AQ15: =IF(AND(AP15=10,$AN$4>=2,$AN$4<=6),AP15&"A",0) ->  | AU15: =IF(AND($AT$4<=10,$AT$4>8),10,0) ->  | AV15: =IF(AND(AU15=10,$AS$4>=2,$AS$4<=6),AU15&"A",0) ->  | BF15: =IF(AND($BE$4<=12,$BE$4>10),12,0) ->  | BG15: =IF(AND(BF15=12,$BD$4>=17,$BD$4<=18),BF15&"D",0) ->  | BK15: =IF(AND($BJ$4<=12,$BJ$4>10),12,0) ->  | BL15: =IF(AND(BK15=12,$BI$4>=17,$BI$4<=18),BK15&"D",0) ->  | BR15: =HLOOKUP($BR$4,CALDWELL_LOOKUP,12,FALSE) -> 27 | BS15: =HLOOKUP($BS$4,CALDWELL_LOOKUP,12,FALSE) -> 28.9995 | BT15: 26 | BU15: 24 | BW15: 27.7665 | BX15: 29.766 | BY15: 27.2185 | BZ15: 29.218 | CA15: 27 | CB15: 28.9995
B16: 17 | C16: 9 | D16: NAT | F16: 17 | G16: 9 | H16: NAT | L16: 2 | M16: =IF(EXT_2=0,"",EXT_2) ->  | N16: 12.5 | O16: 0700 | P16: =CMR!$E$11 -> 0 | Q16: =CMR!$E$11+0.125 -> 0.125 | R16: =$AF$23 -> 0 | S16: =$AF$22 -> 0 | T16: 1.03125 | U16: 3.074 | V16: 1.537 | W16: 3.0625 | Y16: V100 | Z16: =Frame_Height-(V100_CDIM-0.844)-3.64625 -> -2.80225 | AC16: Bottom Rail Reinf. | AD16: =(TRUNC(((AD13*12)-6)/2)*2)/12 -> -0.6666666667 | AE16: 0.328 | AF16: -0.2186666667 | AH16: Bottom Stile | AI16: =(2*(CMR!$E$59-0.8125))/12 -> -0.1354166667 | AJ16: 0.233 | AK16: -0.03155208333 | AP16: =IF(AND($AO$4<=10,$AO$4>8),10,0) ->  | AQ16: =IF(AND(AP16=10,$AN$4>=7,$AN$4<=10),AP16&"B",0) ->  | AU16: =IF(AND($AT$4<=10,$AT$4>8),10,0) ->  | AV16: =IF(AND(AU16=10,$AS$4>=7,$AS$4<=10),AU16&"B",0) ->  | BF16: =IF(AND($BE$4<=12,$BE$4>10),12,0) ->  | BG16: =IF(AND(BF16=12,$BD$4>=19,$BD$4<=21),BF16&"E",0) ->  | BK16: =IF(AND($BJ$4<=12,$BJ$4>10),12,0) ->  | BL16: =IF(AND(BK16=12,$BI$4>=19,$BI$4<=21),BK16&"E",0) ->  | BR16: =HLOOKUP($BR$4,CALDWELL_LOOKUP,13,FALSE) -> 29 | BS16: =HLOOKUP($BS$4,CALDWELL_LOOKUP,13,FALSE) -> 30.9995 | BT16: 28 | BU16: 26 | BW16: 29.7665 | BX16: 31.766 | BY16: 29.2185 | BZ16: 31.218 | CA16: 29 | CB16: 30.9995
B17: 18 | C17: 9 | D17: NAT | F17: 18 | G17: 9 | H17: NAT | L17: 3 | M17: =IF(EXT_3=0,"",EXT_3) ->  | N17: 13 | O17: 07HP | P17: =CMR!$L$11 -> 0 | Q17: =CMR!$L$11+0.125 -> 0.125 | R17: =$AF$23 -> 0 | S17: =$AF$22 -> 0 | T17: 1.03125 | U17: 3.168 | V17: 1.631 | W17: 3.0625 | Y17: V101 | Z17: =Frame_Height-(V101_CDIM-0.3125)-4.948 -> -4.6355 | AC17: Bottom Stile Reinf. | AD17: =IF(OR(CMR!$E$16>=28.5,ModelNo="01HP",ModelNo="07HP",ModelNo="S140 (HP)",ModelNo="S144 (HP)",ModelNo="S146 (HP)"),(((CMR!$E$11-1.625)/2)*2)/12,0) -> 0 | AE17: 0.238 | AF17: 0 | AH17: Bottom Rail Reinf. | AI17: =(FLOOR(Frame_Width-13,2))/12 -> -1.166666667 | AJ17: 0.146 | AK17: -0.1703333333 | AP17: =IF(AND($AO$4<=10,$AO$4>8),10,0) ->  | AQ17: =IF(AND(AP17=10,$AN$4>=11,$AN$4<=13),AP17&"C",0) ->  | AU17: =IF(AND($AT$4<=10,$AT$4>8),10,0) ->  | AV17: =IF(AND(AU17=10,$AS$4>=11,$AS$4<=13),AU17&"C",0) ->  | BF17: =IF(AND($BE$4<=14,$BE$4>12),14,0) ->  | BG17: =IF(AND(BF17=14,$BD$4>=3,$BD$4<=7),BF17&"A",0) ->  | BK17: =IF(AND($BJ$4<=14,$BJ$4>12),14,0) ->  | BL17: =IF(AND(BK17=14,$BI$4>=3,$BI$4<=7),BK17&"A",0) ->  | BR17: =HLOOKUP($BR$4,CALDWELL_LOOKUP,14,FALSE) -> 31 | BS17: =HLOOKUP($BS$4,CALDWELL_LOOKUP,14,FALSE) -> 32.9995 | BT17: 30 | BU17: 28 | BW17: 31.7665 | BX17: 33.766 | BY17: 31.2185 | BZ17: 33.218 | CA17: 31 | CB17: 32.9995
B18: 19 | C18: 10 | D18: PK | F18: 19 | G18: 55 | H18: NAT | L18: 4 | M18: =IF(EXT_4=0,"",EXT_4) ->  | N18: 10 | O18: 0901 | P18: =CMR!$E$59 -> 0 | Q18: =CMR!$E$59-0.6875 -> -0.6875 | R18: =$AK$25 -> 0 | S18: =$AK$24 -> 0 | T18: 0.9375 | U18: 7.927 | V18: 2.125 | W18: 4.0625 | Y18: V200 | Z18: =Frame_Height-(TRUNC(((V200_CDIM-0.8125)*32+0.5))/32-0.0625)-4.047 -> -3.20325 | AC18: Bottom Glass | AD18: =(CMR!$E$14*CMR!$E$16)/144 -> 0.041015625 | AE18: =$L$12 ->  | AF18: =IF(AND(Frame_Width=35.5,Frame_Height=59.5),($AD$18*$AE$18)-2.25,$AD$18*$AE$18) ->  | AH18: Bottom Stile Reinf. | AJ18: 0.146 | AK18: 0 | AP18: =IF(AND($AO$4<=10,$AO$4>8),10,0) ->  | AQ18: =IF(AND(AP18=10,$AN$4>=14,$AN$4<=15),AP18&"D",0) ->  | AU18: =IF(AND($AT$4<=10,$AT$4>8),10,0) ->  | AV18: =IF(AND(AU18=10,$AS$4>=14,$AS$4<=15),AU18&"D",0) ->  | BG18: =IF(AND(BF18=14,$BD$4>=8,$BD$4<=10),BF18&"B",0) ->  | BL18: =IF(AND(BK18=14,$BI$4>=8,$BI$4<=10),BK18&"B",0) ->  | BR18: =HLOOKUP($BR$4,CALDWELL_LOOKUP,15,FALSE) -> 33 | BS18: =HLOOKUP($BS$4,CALDWELL_LOOKUP,15,FALSE) -> 34.9995 | BT18: 32 | BU18: 30 | BW18: 33.7665 | BX18: 35.766 | BY18: 33.2185 | BZ18: 35.218 | CA18: 33 | CB18: 34.9995
B19: 20 | C19: 10 | D19: PK | F19: 20 | G19: 55 | H19: NAT | L19: 5 | M19: =IF(EXT_5=0,"",EXT_5) ->  | N19: 10 | O19: 09L1 | P19: =CMR!$E$59 -> 0 | Q19: =CMR!$E$59-0.6875 -> -0.6875 | R19: =$AK$25 -> 0 | S19: =$AK$24 -> 0 | T19: 0.9375 | U19: 7.927 | V19: 2.125 | W19: 4.0625 | Y19: 1700 | Z19: =CDIM_1700-2.875 -> -2.875 | AC19: Bottom Spacer | AD19: =((CMR!$E$14*2)+(CMR!$E$16*2))/12 -> -0.90625 | AE19: 0.0536 | AF19: -0.048575 | AH19: Bottom Glass | AI19: =(CMR!$E$62*CMR!$E$64)/144 -> 0.1002604167 | AJ19: =$L$12 ->  | AP19: =IF(AND($AO$4<=10,$AO$4>8),10,0) ->  | AQ19: =IF(AND(AP19=10,$AN$4>=16,$AN$4<=18),AP19&"E",0) ->  | AU19: =IF(AND($AT$4<=10,$AT$4>8),10,0) ->  | AV19: =IF(AND(AU19=10,$AS$4>=16,$AS$4<=18),AU19&"E",0) ->  | BG19: =IF(AND(BF19=14,$BD$4>=11,$BD$4<=16),BF19&"C",0) ->  | BL19: =IF(AND(BK19=14,$BI$4>=11,$BI$4<=16),BK19&"C",0) ->  | BR19: =HLOOKUP($BR$4,CALDWELL_LOOKUP,16,FALSE) -> 35 | BS19: =HLOOKUP($BS$4,CALDWELL_LOOKUP,16,FALSE) -> 36.9995 | BT19: 34 | BU19: 32 | BW19: 35.7665 | BX19: 37.766 | BY19: 35.2185 | BZ19: 37.218 | CA19: 35 | CB19: 36.9995
B20: 21 | C20: 56 | D20: BU | F20: 21 | G20: 47 | H20: BK | L20: 6 | M20: =IF(EXT_5=0,"",EXT_6) ->  | N20: 11.75 | O20: i201 | P20: =CMR!$E$27 -> 0 | Q20: =CMR!$E$27-0.5625 -> -0.5625 | R20: =$AK$72 -> 0 | S20: =$AK$71 -> 0 | T20: 1.25 | U20: 7.3125 | V20: 1.75 | W20: 4.406 | Y20: 1720 | Z20: =CDIM_1720-2.875 -> -2.875 | AC20: Bottom Hardware | AD20: 1 | AE20: 0.36 | AF20: 0.36 | AH20: Bottom Spacer | AI20: =((CMR!$E$62*2)+(CMR!$E$64*2))/12 -> -1.302083333 | AJ20: 0.0536 | AK20: -0.06979166667 | AP20: =IF(AND($AO$4<=12,$AO$4>10),12,0) ->  | AQ20: =IF(AND(AP20=12,$AN$4>=3,$AN$4<=7),AP20&"A",0) ->  | AU20: =IF(AND($AT$4<=12,$AT$4>10),12,0) ->  | AV20: =IF(AND(AU20=12,$AS$4>=3,$AS$4<=7),AU20&"A",0) ->  | BG20: =IF(AND(BF20=14,$BD$4>=17,$BD$4<=19),BF20&"D",0) ->  | BL20: =IF(AND(BK20=14,$BI$4>=17,$BI$4<=19),BK20&"D",0) ->  | BR20: =HLOOKUP($BR$4,CALDWELL_LOOKUP,17,FALSE) -> 37 | BS20: =HLOOKUP($BS$4,CALDWELL_LOOKUP,17,FALSE) -> 38.9995 | BT20: 36 | BU20: 34 | BW20: 37.7665 | BX20: 39.766 | BY20: 37.2185 | BZ20: 39.218 | CA20: 37 | CB20: 38.9995
B21: 22 | C21: 56 | D21: BU | F21: 22 | G21: 47 | H21: BK | L21: 7 | M21: =IF(EXT_5=0,"",EXT_7) ->  | N21: 12 | O21: 3100 | P21: =CMR!$E$75 -> 0 | Q21: =TRUNC(((CMR!$E$75-0.375)*32+0.5))/32 -> -0.34375 | R21: =$AK$49 -> 0 | S21: 0 | T21: 1.25 | U21: 3.42977 | V21: 2.42977 | W21: 4.86 | Y21: 1730 | Z21: =CDIM_1730-2.875 -> -2.875 | AC21: Bottom Bead | AD21: =(((Frame_Width-3.75)*2)+((CMR!$E$11-2.5)*2))/12 -> -1.041666667 | AE21: 0.046 | AF21: -0.04791666667 | AH21: Bottom Hardware | AI21: 1 | AJ21: 0.322 | AK21: 0.322 | AP21: =IF(AND($AO$4<=12,$AO$4>10),12,0) ->  | AQ21: =IF(AND(AP21=12,$AN$4>=8,$AN$4<=10),AP21&"B",0) ->  | AU21: =IF(AND($AT$4<=12,$AT$4>10),12,0) ->  | AV21: =IF(AND(AU21=12,$AS$4>=8,$AS$4<=10),AU21&"B",0) ->  | BG21: =IF(AND(BF21=14,$BD$4>=20,$BD$4<=22),BF21&"E",0) ->  | BL21: =IF(AND(BK21=14,$BI$4>=20,$BI$4<=22),BK21&"E",0) ->  | BR21: =HLOOKUP($BR$4,CALDWELL_LOOKUP,18,FALSE) -> 39 | BS21: =HLOOKUP($BS$4,CALDWELL_LOOKUP,18,FALSE) -> 40.9995 | BT21: 38 | BU21: 36 | BW21: 39.7665 | BX21: 41.766 | BY21: 39.2185 | BZ21: 41.218 | CA21: 39 | CB21: 40.9995
B22: 23 | C22: 66 | D22: YW | F22: 23 | G22: 48 | H22: BU | L22: 8 | M22: =IF(EXT_5=0,"",EXT_8) ->  | N22: 12 | O22: S140 | P22: =CDIMS140 -> 0 | Q22: =BSH_S140 ->  | R22: =SW_S140 ->  | S22: 0 | T22: =IF(OR(EXTSELECT=2,EXTSELECT=3,EXTSELECT=6),1.3125,IF(OR(EXTSELECT=4,EXTSELECT=5),1.03125,0)) -> 0 | U22: 4.25 | V22: 5.625 | W22: =IF(OR(EXTSELECT=2,EXTSELECT=3),5.8125,IF(OR(EXTSELECT=4,EXTSELECT=5),3.0625,IF(OR(EXTSELECT=7,EXTSELECT=8),4.625,4.5))) -> 4.5 | Y22: 1900 | Z22: =CDIM_1900-3.0625 -> -3.0625 | AE22: Top Sash | AF22: 0 | AH22: Bottom Keeper Bead | AI22: =(Frame_Width-5.9375)/12 -> -0.4947916667 | AJ22: 0.078 | AK22: -0.03859375 | AP22: =IF(AND($AO$4<=12,$AO$4>10),12,0) ->  | AQ22: =IF(AND(AP22=12,$AN$4>=11,$AN$4<=16),AP22&"C",0) ->  | AU22: =IF(AND($AT$4<=12,$AT$4>10),12,0) ->  | AV22: =IF(AND(AU22=12,$AS$4>=11,$AS$4<=16),AU22&"C",0) ->  | AY22: V-Series Tube Length | BG22: =IF(AND(BF22=14,$BD$4>=23,$BD$4<=25),BF22&"F",0) ->  | BL22: =IF(AND(BK22=14,$BI$4>=23,$BI$4<=25),BK22&"F",0) ->  | BR22: =HLOOKUP($BR$4,CALDWELL_LOOKUP,19,FALSE) -> 41 | BS22: =HLOOKUP($BS$4,CALDWELL_LOOKUP,19,FALSE) -> 42.9995 | BT22: 40 | BU22: 38 | BW22: 41.7665 | BX22: 43.766 | BY22: 41.2185 | BZ22: 43.218 | CA22: 41 | CB22: 42.9995
B23: 24 | C23: 66 | D23: YW | F23: 24 | G23: 48 | H23: BU | M23: 1 | N23: =VLOOKUP(EXTSELECT,L15:M22,2,FALSE) ->  | O23: S144 | P23: =CDIMS140 -> 0 | Q23: =BSH_S140 ->  | R23: =SW_S140 ->  | S23: 0 | T23: =IF(OR(EXTSELECT=2,EXTSELECT=3,EXTSELECT=6),1.3125,IF(OR(EXTSELECT=4,EXTSELECT=5),1.03125,0)) -> 0 | U23: 4.25 | V23: 5.625 | W23: =IF(OR(EXTSELECT=2,EXTSELECT=3),5.8125,IF(OR(EXTSELECT=4,EXTSELECT=5),3.0625,IF(OR(EXTSELECT=7,EXTSELECT=8),4.625,4.5))) -> 4.5 | Y23: 1920 | Z23: =CDIM_1920-3.0625 -> -3.0625 | AE23: Bottom Sash | AF23: =IF(OR(ModelNo="0100",ModelNo="01HP",ModelNo="0700",ModelNo="07HP",ModelNo="S140",ModelNo="S144",ModelNo="S146",ModelNo="S140 (HP)",ModelNo="S144 (HP)",ModelNo="S146 (HP)"),SUM(AF13:AF21),0) -> 0 | AH23: Bottom Bead | AI23: =((Frame_Width-5.9375)+((CMR!$E$59-3.0625)*2))/12 -> -1.005208333 | AJ23: 0.078 | AK23: -0.07840625 | AP23: =IF(AND($AO$4<=12,$AO$4>10),12,0) ->  | AQ23: =IF(AND(AP23=12,$AN$4>=17,$AN$4<=18),AP23&"D",0) ->  | AU23: =IF(AND($AT$4<=12,$AT$4>10),12,0) ->  | AV23: =IF(AND(AU23=12,$AS$4>=17,$AS$4<=18),AU23&"D",0) ->  | AY23: Model | AZ23: Top | BA23: Bott | BF23: =IF(AND($BE$4<=16,$BE$4>14),16,0) ->  | BG23: =IF(AND(BF23=16,$BD$4>=3,$BD$4<=7),BF23&"A",0) ->  | BK23: =IF(AND($BJ$4<=16,$BJ$4>14),16,0) ->  | BL23: =IF(AND(BK23=16,$BI$4>=3,$BI$4<=7),BK23&"A",0) ->  | BR23: =HLOOKUP($BR$4,CALDWELL_LOOKUP,20,FALSE) -> 43 | BS23: =HLOOKUP($BS$4,CALDWELL_LOOKUP,20,FALSE) -> 44.9995 | BT23: 42 | BU23: 40 | BW23: 43.7665 | BX23: 45.766 | BY23: 43.2185 | BZ23: 45.218 | CA23: 43 | CB23: 44.9995
B24: 25 | C24: 67 | D24: GN | F24: 25 | G24: 58 | H24: OR | M24: =IF($M$23=1,0,IF($M$23=6,1.75,IF(OR($M$23=2,$M$23=3),2.40625,IF(OR($M$23=7,$M$23=8),1.8125,1)))) -> 0 | O24: S146 | P24: =CDIMS140 -> 0 | Q24: =BSH_S140 ->  | R24: =SW_S140 ->  | S24: 0 | T24: =IF(OR(EXTSELECT=2,EXTSELECT=3,EXTSELECT=6),1.3125,IF(OR(EXTSELECT=4,EXTSELECT=5),1.03125,0)) -> 0 | U24: 4.25 | V24: 5.625 | W24: =IF(OR(EXTSELECT=2,EXTSELECT=3),5.8125,IF(OR(EXTSELECT=4,EXTSELECT=5),3.0625,IF(OR(EXTSELECT=7,EXTSELECT=8),4.625,4.5))) -> 4.5 | Y24: 1930 | Z24: =CDIM_1930-3.0625 -> -3.0625 | AJ24: Top Sash | AK24: =IF(OR(ModelNo="0901",ModelNo="09A1",ModelNo="09B1",ModelNo="09L1"),(SUM(AK4:AK13))+5,0) -> 0 | AP24: =IF(AND($AO$4<=12,$AO$4>10),12,0) ->  | AQ24: =IF(AND(AP24=12,$AN$4>=19,$AN$4<=21),AP24&"E",0) ->  | AU24: =IF(AND($AT$4<=12,$AT$4>10),12,0) ->  | AV24: =IF(AND(AU24=12,$AS$4>=19,$AS$4<=21),AU24&"E",0) ->  | AY24: V100 | BA24: =FLOOR(Frame_Height/2-2,2) -> -2 | BG24: =IF(AND(BF24=16,$BD$4>=8,$BD$4<=10),BF24&"B",0) ->  | BL24: =IF(AND(BK24=16,$BI$4>=8,$BI$4<=10),BK24&"B",0) ->  | BR24: =HLOOKUP($BR$4,CALDWELL_LOOKUP,21,FALSE) -> 45 | BS24: =HLOOKUP($BS$4,CALDWELL_LOOKUP,21,FALSE) -> 46.9995 | BT24: 44 | BU24: 42 | BW24: 45.7665 | BX24: 47.766 | BY24: 45.2185 | BZ24: 47.218 | CA24: 45 | CB24: 46.9995
B25: 26 | C25: 67 | D25: GN | F25: 26 | G25: 58 | H25: OR | M25: =IF(AND(EXTSELECT=1,OR(SELECTEXT="Select Reinforcement",SELECTEXT="Select Extrusion")),"<< Must Select","") ->  | O25: V100 | P25: =V100_CDIM -> 0 | Q25: =TRUNC(((V100_CDIM-0.844)*32+0.5))/32 -> -0.8125 | R25: =V100_BSW -> 0 | S25: 0 | U25: 4.375 | V25: 2 | W25: 4.625 | Y25: 1901 | Z25: =CDIM_1901-4.125 -> -4.125 | AC25: 0201 | AD25: Length | AE25: Weight/ft | AF25: Weight | AJ25: Bottom Sash | AK25: =IF(OR(ModelNo="0901",ModelNo="09A1",ModelNo="09B1",ModelNo="09L1"),SUM(AK14:AK23),0) -> 0 | AP25: =IF(AND($AO$4<=14,$AO$4>12),14,0) ->  | AQ25: =IF(AND(AP25=14,$AN$4>=3,$AN$4<=7),AP25&"A",0) ->  | AU25: =IF(AND($AT$4<=14,$AT$4>12),14,0) ->  | AV25: =IF(AND(AU25=14,$AS$4>=3,$AS$4<=7),AU25&"A",0) ->  | AY25: V101 | AZ25: =IF(V101_DDIM>=Frame_Height/2-0.07,(INT(INT((Frame_Height/2-4.75))/2))*2,(INT(INT((V101_DDIM-4.75))/2))*2) -> -6 | BA25: =(INT(INT((Frame_Height/2-2.75)+0.25)/2)*2) -> -4 | BG25: =IF(AND(BF25=16,$BD$4>=11,$BD$4<=16),BF25&"C",0) ->  | BL25: =IF(AND(BK25=16,$BI$4>=11,$BI$4<=16),BK25&"C",0) ->  | BR25: =HLOOKUP($BR$4,CALDWELL_LOOKUP,22,FALSE) -> 47 | BS25: =HLOOKUP($BS$4,CALDWELL_LOOKUP,22,FALSE) -> 48.9995 | BT25: 46 | BU25: 44 | BW25: 47.7665 | BX25: 49.766 | BY25: 47.2185 | BZ25: 49.218 | CA25: 47 | CB25: 48.9995
B26: 27 | C26: 77 | D26: LG | F26: 27 | G26: 68 | H26: BR | M26: =IF(AND(EXT_CONTROL=1,W>0,H>0,LEG=0),"<< Need Leg Height",IF(AND(ModelNo="S140",W>0,H>0,LEG<>(Frame_Height-(Frame_Width/2))),"<< Leg Should be"&" "&(Frame_Height-(Frame_Width/2)),"")) ->  | O26: V101 | P26: =V101_CDIM -> 0 | Q26: =TRUNC(((V101_CDIM-0.3125)*32+0.5))/32 -> -0.28125 | R26: =V101_BSW -> 0 | S26: =V101_TSW -> 0 | U26: 4.375 | V26: 2 | W26: 4.625 | Y26: 1921 | Z26: =CDIM_1921-4.125 -> -4.125 | AC26: Top Top Rail | AD26: =(Frame_Width-3.25)/12 -> -0.2708333333 | AE26: 0.257 | AF26: =AD26*AE26 -> -0.06960416667 | AQ26: =IF(AND(AP26=14,$AN$4>=8,$AN$4<=10),AP26&"B",0) ->  | AV26: =IF(AND(AU26=14,$AS$4>=8,$AS$4<=10),AU26&"B",0) ->  | AY26: V200 | BA26: =FLOOR(Frame_Height/2-2.75,2) -> -4 | BG26: =IF(AND(BF26=16,$BD$4>=17,$BD$4<=19),BF26&"D",0) ->  | BL26: =IF(AND(BK26=16,$BI$4>=17,$BI$4<=19),BK26&"D",0) -> 
B27: 28 | C27: 77 | D27: LG | F27: 28 | G27: 68 | H27: BR | M27: Type | O27: V200 | P27: =V200_CDIM -> 0 | Q27: =TRUNC(((V200_CDIM-0.8125)*32+0.5))/32-0.0625 -> -0.84375 | R27: =V200_BSW -> 0 | S27: 0 | U27: 4.375 | V27: 1.818 | W27: 4.625 | Y27: 1931 | Z27: =CDIM_1931-4.125 -> -4.125 | AC27: Top Bottom Rail | AD27: =(Frame_Width-3.25)/12 -> -0.2708333333 | AE27: 0.273 | AF27: -0.0739375 | AH27: 3100 | AI27: Length | AJ27: Weight/ft | AK27: Weight | AQ27: =IF(AND(AP27=14,$AN$4>=11,$AN$4<=16),AP27&"C",0) ->  | AV27: =IF(AND(AU27=14,$AS$4>=11,$AS$4<=16),AU27&"C",0) ->  | AY27: 1700 | BA27: =VLOOKUP((CDIM_1700-0.84375),Caldwell,3) ->  | BG27: =IF(AND(BF27=16,$BD$4>=20,$BD$4<=22),BF27&"E",0) ->  | BL27: =IF(AND(BK27=16,$BI$4>=20,$BI$4<=22),BK27&"E",0) -> 
B28: 29 | C28: 78 | D28: OR | F28: 29 | G28: 78 | H28: GR | L28: 1 | M28: =IF(TYPE1>"",TYPE1,"") ->  | O28: 3001 | P28: =CDIM3001 -> 0 | Q28: =CDIM3001-0.625 -> -0.625 | R28: =BSW_3001 -> 0 | S28: =TSW_3001 -> 0 | U28: 5.25 | V28: 5.875 | W28: 5.25 | Z28: =VLOOKUP(ModelNo,$Y$16:$Z$27,2,FALSE) ->  | AC28: Top Stile | AD28: =(2*(CMR!$E$26-1.5625))/12 -> -0.2604166667 | AE28: 0.233 | AF28: -0.06067708333 | AH28: Top Top Rail | AI28: 0 | AJ28: 0 | AK28: =AI28*AJ28 -> 0 | AQ28: =IF(AND(AP28=14,$AN$4>=17,$AN$4<=19),AP28&"D",0) ->  | AV28: =IF(AND(AU28=14,$AS$4>=17,$AS$4<=19),AU28&"D",0) ->  | AY28: 1720 | BA28: =VLOOKUP((CDIM_1720-0.84375),Caldwell,3) ->  | BG28: =IF(AND(BF28=16,$BD$4>=23,$BD$4<=24),BF28&"F",0) ->  | BL28: =IF(AND(BK28=16,$BI$4>=23,$BI$4<=24),BK28&"F",0) -> 
B29: 30 | C29: 78 | D29: OR | F29: 30 | G29: 78 | H29: GR | L29: 2 | M29: =IF(TYPE2>"",TYPE2,"") ->  | O29: 03A0 | P29: =CDIM03A0 -> 0 | Q29: =CDIM03A0-1.125 -> -1.125 | R29: =BSW03A0 -> 0 | S29: 0 | U29: 4.25 | V29: 5.625 | W29: 5.8125 | Z29: =IF(VEH>0,ROUND(((VEH*EW)/144),3)) ->  | AC29: Top Rail Reinf. | AD29: =(TRUNC(((Frame_Width-3.25)-6)/2)*2)/12 -> -0.6666666667 | AE29: =IF(ModelNo="0201",0.299,IF(ModelNo="L201",0.052,0)) -> 0 | AF29: 0 | AH29: Top Bottom Rail | AI29: 0 | AJ29: 0 | AK29: =AI29*AJ29 -> 0 | AQ29: =IF(AND(AP29=14,$AN$4>=20,$AN$4<=22),AP29&"E",0) ->  | AV29: =IF(AND(AU29=14,$AS$4>=20,$AS$4<=22),AU29&"E",0) ->  | AY29: 1730 | BA29: =VLOOKUP((CDIM_1730-0.84375),Caldwell,3) ->  | BG29: =IF(AND(BF29=16,$BD$4>=25,$BD$4<=27),BF29&"G",0) ->  | BL29: =IF(AND(BK29=16,$BI$4>=25,$BI$4<=27),BK29&"G",0) -> 
B30: 31 | C30: 88 | D30: WT | F30: 31 | G30: 88 | H30: RD | L30: 3 | M30: =IF(TYPE3>"",TYPE3,"") ->  | O30: 1700 | P30: =CDIM_1700 -> 0 | Q30: =TRUNC(((CDIM_1700-0.78125)*32+0.5))/32-0.0625 -> -0.8125 | R30: =AK153 -> 0 | S30: 0 | U30: 3 | V30: 4.1875 | W30: 4.625 | AC30: Top Stile Reinf | AD30: =IF(CMR!$E$31>26.6875,((TRUNC((CMR!$E$26-9.5)/2)*2)/12)*2,0) -> 0 | AE30: =IF(ModelNo="0201",0.299,IF(ModelNo="L201",0.052,0)) -> 0 | AF30: 0 | AH30: Top Stile | AI30: 0 | AJ30: 0 | AK30: =(AI30*AJ30)/12 -> 0 | AQ30: =IF(AND(AP30=14,$AN$4>=23,$AN$4<=25),AP30&"F",0) ->  | AV30: =IF(AND(AU30=14,$AS$4>=23,$AS$4<=25),AU30&"F",0) ->  | AY30: 1900 | BA30: =VLOOKUP((CDIM_1900-0.84375),Caldwell,3) ->  | BF30: =IF(AND($BE$4<=18,$BE$4>16),18,0) ->  | BG30: =IF(AND(BF30=18,$BD$4>=4,$BD$4<=9),BF30&"A",0) ->  | BK30: =IF(AND($BJ$4<=18,$BJ$4>16),18,0) ->  | BL30: =IF(AND(BK30=18,$BI$4>=4,$BI$4<=9),BK30&"A",0) -> 
B31: 32 | C31: 88 | D31: WT | F31: 32 | G31: 88 | H31: RD | L31: 4 | M31: =IF(TYPE4>"",TYPE4,"") ->  | O31: 1720 | P31: =CDIM_1720 -> 0 | Q31: =TRUNC(((CDIM_1720-0.84375)*32+0.5))/32 -> -0.8125 | R31: =AK165 -> 0 | S31: 0 | U31: 3 | V31: 4.1875 | W31: =Frame_Width/2+4.875 -> 4.875 | AC31: Top Glass | AD31: =(CMR!$E$29*CMR!$E$31)/144 -> 0.1068522135 | AE31: =$L$12 ->  | AH31: Top Rail Reinf. | AI31: 0 | AJ31: 0 | AK31: 0 | AQ31: =IF(AND(AP31=14,$AN$4>=26,$AN$4<=28),AP31&"G",0) ->  | AV31: =IF(AND(AU31=14,$AS$4>=26,$AS$4<=28),AU31&"G",0) ->  | AY31: 1920 | BA31: =VLOOKUP((CDIM_1920-0.84375),Caldwell,3) ->  | BG31: =IF(AND(BF31=18,$BD$4>=10,$BD$4<=13),BF31&"B",0) ->  | BL31: =IF(AND(BK31=18,$BI$4>=10,$BI$4<=13),BK31&"B",0) -> 
B32: 33 | C32: 89 | D32: NAT | F32: 33 | G32: 89 | H32: YW | L32: 1 | M32: =VLOOKUP(TYPE,L28:M31,2,FALSE) ->  | O32: 1730 | P32: =CDIM_1730 -> 0 | Q32: =TRUNC(((CDIM_1730-0.84375)*32+0.5))/32 -> -0.8125 | R32: =AK177 -> 0 | S32: 0 | U32: 3 | V32: 4.1875 | W32: =((Frame_Width/3)*2)+4.875 -> 4.875 | Y32: SHAT Error | AC32: Top Spacer | AD32: =((CMR!$E$29*2)+(CMR!$E$31*2))/12 -> -1.338541667 | AE32: 0.0536 | AF32: -0.07174583333 | AH32: Top Stile Reinf | AI32: 0 | AJ32: 0 | AK32: 0 | AQ32: =IF(AND(AP32=14,$AN$4>=29,$AN$4<=31),AP32&"H",0) ->  | AV32: =IF(AND(AU32=14,$AS$4>=29,$AS$4<=31),AU32&"H",0) ->  | AY32: 1930 | BA32: =VLOOKUP((CDIM_1930-0.84375),Caldwell,3) ->  | BG32: =IF(AND(BF32=18,$BD$4>=14,$BD$4<=18),BF32&"C",0) ->  | BL32: =IF(AND(BK32=18,$BI$4>=14,$BI$4<=18),BK32&"C",0) -> 
B33: 34 | C33: 89 | D33: NAT | F33: 34 | G33: 89 | H33: YW | O33: 1900 | P33: =CDIM_1900 -> 0 | Q33: =TRUNC(((CDIM_1900-0.844)*16+0.5))/16 -> -0.8125 | R33: =AF160 -> 0 | S33: 0 | U33: 3 | V33: 4.4375 | W33: 4.625 | Y33: =IF(AND(OR(ModelNo="S140",ModelNo="S144",ModelNo="S146"),EH<6),1,0) ->  | AC33: Top Hardware | AD33: 1 | AE33: 0.2 | AF33: 0.2 | AH33: Top Glass | AI33: 0 | AJ33: 0 | AK33: 0 | AQ33: =IF(AND(AP33=14,$AN$4>=32,$AN$4<=34),AP33&"I",0) ->  | AV33: =IF(AND(AU33=14,$AS$4>=32,$AS$4<=34),AU33&"I",0) ->  | AY33: 1901 | AZ33: =VLOOKUP((DDIM_1901-1),Caldwell,4) ->  | BA33: =VLOOKUP((CDIM_1901-1),Caldwell,3) ->  | BG33: =IF(AND(BF33=18,$BD$4>=19,$BD$4<=21),BF33&"D",0) ->  | BL33: =IF(AND(BK33=18,$BI$4>=19,$BI$4<=21),BK33&"D",0) -> 
B34: 35 | C34: 99 | D34: PU | F34: 35 | G34: 99 | H34: YW | M34: Opening | O34: 1920 | P34: =CDIM_1920 -> 0 | Q34: =TRUNC(((CDIM_1920-0.844)*16+0.5))/16 -> -0.8125 | R34: =AF172 -> 0 | S34: 0 | U34: 3 | V34: 4.4375 | W34: =Frame_Width/2+4.875 -> 4.875 | Y34: SHAT_MIN_R | AC34: Top Bead | AD34: =(((Frame_Width-4.3125)*2)+((CMR!$E$26-2.625)*2))/12 -> -1.15625 | AE34: 0.028 | AF34: -0.032375 | AH34: Top Spacer | AI34: 0 | AJ34: 0 | AK34: 0 | AP34: =IF(AND($AO$4<=16,$AO$4>14),16,0) ->  | AQ34: =IF(AND(AP34=16,$AN$4>=3,$AN$4<=7),AP34&"A",0) ->  | AU34: =IF(AND($AT$4<=16,$AT$4>14),16,0) ->  | AV34: =IF(AND(AU34=16,$AS$4>=3,$AS$4<=7),AU34&"A",0) ->  | AY34: 1921 | AZ34: =VLOOKUP((DDIM_1921-1),Caldwell,4) ->  | BA34: =VLOOKUP((CDIM_1921-1),Caldwell,3) ->  | BG34: =IF(AND(BF34=18,$BD$4>=22,$BD$4<=24),BF34&"E",0) ->  | BL34: =IF(AND(BK34=18,$BI$4>=22,$BI$4<=24),BK34&"E",0) -> 
B35: 36 | C35: 99 | D35: PU | F35: 36 | G35: 99 | H35: YW | L35: 1 | M35: Exact Size | O35: 1930 | P35: =CDIM_1930 -> 0 | Q35: =TRUNC(((CDIM_1930-0.844)*16+0.5))/16 -> -0.8125 | R35: =AF184 -> 0 | S35: 0 | U35: 3 | V35: 4.4375 | W35: =((Frame_Width/3)*2)+4.875 -> 4.875 | Y35: =IF(AND(OR(ModelNo="S140",ModelNo="S144",ModelNo="S146"),SHATRADIUS<Y36),1,0) ->  | AC35: Bottom Top Rail | AD35: =(Frame_Width-2.25)/12 -> -0.1875 | AE35: 0.246 | AF35: =AD35*AE35 -> -0.046125 | AH35: Top Hardware | AI35: 0 | AJ35: 0 | AK35: 0 | AQ35: =IF(AND(AP35=16,$AN$4>=8,$AN$4<=10),AP35&"B",0) ->  | AV35: =IF(AND(AU35=16,$AS$4>=8,$AS$4<=10),AU35&"B",0) ->  | AY35: 1931 | AZ35: =VLOOKUP((DDIM_1931-1),Caldwell,4) ->  | BA35: =VLOOKUP((CDIM_1931-1),Caldwell,3) ->  | BG35: =IF(AND(BF35=18,$BD$4>=25,$BD$4<=26),BF35&"F",0) ->  | BL35: =IF(AND(BK35=18,$BI$4>=25,$BI$4<=26),BK35&"F",0) -> 
B36: 37 | C36: 766 | D36: BU | F36: 37 | G36: 478 | H36: PUR | L36: 2 | M36: Rough Opening | O36: 1901 | P36: =CDIM_1901 -> 0 | Q36: =TRUNC(((CDIM_1901-1)*16+0.5))/16 -> -0.9375 | R36: =AK199 -> 0 | S36: =AK198 -> 0 | U36: 3.5 | V36: 3.125 | W36: 4.625 | Y36: =IF(OR(ModelNo="S140",ModelNo="S144",ModelNo="S146"),VLOOKUP(EXTSELECT,L16:N20,3),0) -> 0 | AC36: Bottom Bottom Rail | AD36: =(Frame_Width-2.25)/12 -> -0.1875 | AE36: 0.257 | AF36: -0.0481875 | AH36: Top Bead | AI36: 0 | AJ36: 0 | AK36: 0 | AQ36: =IF(AND(AP36=16,$AN$4>=11,$AN$4<=16),AP36&"C",0) ->  | AV36: =IF(AND(AU36=16,$AS$4>=11,$AS$4<=16),AU36&"C",0) ->  | AY36: =ModelNo -> Select Model | AZ36: =VLOOKUP($AY$36,$AY$24:$BA$35,2,FALSE) ->  | BA36: =VLOOKUP($AY$36,$AY$24:$BA$35,3,FALSE) ->  | BG36: =IF(AND(BF36=18,$BD$4>=27,$BD$4<=29),BF36&"G",0) ->  | BL36: =IF(AND(BK36=18,$BI$4>=27,$BI$4<=29),BK36&"G",0) -> 
B37: 38 | C37: 766 | D37: BU | F37: 38 | G37: 478 | H37: PUR | L37: 1 | M37: =VLOOKUP(RO,L35:M36,2,FALSE) -> Exact Size | O37: 1921 | P37: =CDIM_1921 -> 0 | Q37: =TRUNC(((CDIM_1921-1)*16+0.5))/16 -> -0.9375 | R37: =AK199 -> 0 | S37: =AK198 -> 0 | U37: 3.5 | V37: 3.125 | W37: =Frame_Width/2+4.875 -> 4.875 | Y37: SHAT_MESSAGE | AC37: Bottom Stile | AD37: =(2*(CMR!$E$27-0.5625))/12 -> -0.09375 | AE37: 0.233 | AF37: -0.02184375 | AH37: Bottom Top Rail | AI37: =(Frame_Width-2.14315)/12 -> -0.1785958333 | AJ37: 0.331 | AK37: =AI37*AJ37 -> -0.05911522083 | AQ37: =IF(AND(AP37=16,$AN$4>=17,$AN$4<=19),AP37&"D",0) ->  | AV37: =IF(AND(AU37=16,$AS$4>=17,$AS$4<=19),AU37&"D",0) ->  | BG37: =IF(AND(BF37=18,$BD$4>=30,$BD$4<=32),BF37&"H",0) ->  | BL37: =IF(AND(BK37=18,$BI$4>=30,$BI$4<=32),BK37&"H",0) -> 
B38: 39 | C38: 866 | D38: YW | F38: 39 | G38: 488 | H38: YW | O38: 1931 | P38: =CDIM_1931 -> 0 | Q38: =TRUNC(((CDIM_1931-1)*16+0.5))/16 -> -0.9375 | R38: =AK199 -> 0 | S38: =AK198 -> 0 | U38: 3.5 | V38: 3.125 | W38: =((Frame_Width/3)*2)+4.875 -> 4.875 | Y38: =IF(Y35=1,"Radius Must be Greater Than "&Y36,"") ->  | AC38: Bottom Rail Reinf. | AD38: =(TRUNC(((Frame_Width-2.25)-6)/2)*2)/12 -> -0.6666666667 | AE38: =IF(ModelNo="0201",0.37,IF(ModelNo="L201",0.052,0)) -> 0 | AF38: 0 | AH38: Bottom Bottom Rail | AI38: =(Frame_Width-2.14315)/12 -> -0.1785958333 | AJ38: 0.316 | AK38: =AI38*AJ38 -> -0.05643628333 | AQ38: =IF(AND(AP38=16,$AN$4>=20,$AN$4<=22),AP38&"E",0) ->  | AV38: =IF(AND(AU38=16,$AS$4>=20,$AS$4<=22),AU38&"E",0) ->  | BF38: =IF(AND($BE$4<=20,$BE$4>18),20,0) ->  | BG38: =IF(AND(BF38=20,$BD$4>=5,$BD$4<=10),BF38&"A",0) ->  | BK38: =IF(AND($BJ$4<=20,$BJ$4>18),20,0) ->  | BL38: =IF(AND(BK38=20,$BI$4>=5,$BI$4<=10),BK38&"A",0) -> 
B39: 40 | C39: 866 | D39: YW | F39: 40 | G39: 488 | H39: YW | L39: =IF(OR(ModelNo="0100",ModelNo="01HP",ModelNo="0102",ModelNo="0103",ModelNo="0104",ModelNo="0109",ModelNo="0151",ModelNo="0152",ModelNo="0153",ModelNo="0154",ModelNo="0155",ModelNo="0170",ModelNo="0171",ModelNo="0172",ModelNo="0173",ModelNo="S174",ModelNo="S175",ModelNo="0179",ModelNo="0301"),1,0) -> 0 | M39: Screen | AC39: Bottom Stile Reinf. | AD39: =IF(CMR!$E$32>27.6875,((TRUNC((CMR!$E$27-4.5)/2)*2)/12)*2,0) -> 0 | AE39: =IF(ModelNo="0201",0.299,IF(ModelNo="L201",0.052,0)) -> 0 | AF39: 0 | AH39: Bottom Stile | AI39: =((CMR!$E$75-0.375)*2)/12 -> -0.0625 | AJ39: 0.27 | AK39: =AI39*AJ39 -> -0.016875 | AQ39: =IF(AND(AP39=16,$AN$4>=23,$AN$4<=24),AP39&"F",0) ->  | AV39: =IF(AND(AU39=16,$AS$4>=23,$AS$4<=24),AU39&"F",0) ->  | BG39: =IF(AND(BF39=20,$BD$4>=11,$BD$4<=14),BF39&"B",0) ->  | BL39: =IF(AND(BK39=20,$BI$4>=11,$BI$4<=14),BK39&"B",0) -> 
B40: 41 | C40: 777 | D40: GN | F40: 41 | G40: 588 | H40: RD | L40: 1 | M40: =IF(SCREEN1>"",SCREEN1,"") ->  | AC40: Bottom Glass | AD40: =(CMR!$E$30*CMR!$E$32)/144 -> 0.05802408854 | AE40: =$L$12 ->  | AH40: Lock Rail Reinf. | AI40: =(Frame_Width-2.39315)/12 -> -0.1994291667 | AJ40: 0.392 | AK40: =AI40*AJ40 -> -0.07817623333 | AQ40: =IF(AND(AP40=16,$AN$4>=25,$AN$4<=28),AP40&"G",0) ->  | AV40: =IF(AND(AU40=16,$AS$4>=25,$AS$4<=28),AU40&"G",0) ->  | BG40: =IF(AND(BF40=20,$BD$4>=15,$BD$4<=18),BF40&"C",0) ->  | BL40: =IF(AND(BK40=20,$BI$4>=15,$BI$4<=18),BK40&"C",0) -> 
B41: 42 | C41: 777 | D41: GN | F41: 42 | G41: 588 | H41: RD | L41: 2 | M41: =IF(SCREEN2>"",SCREEN2,"") ->  | AC41: Bottom Spacer | AD41: =((CMR!$E$30*2)+(CMR!$E$32*2))/12 -> -1.005208333 | AE41: 0.0536 | AF41: -0.05387916667 | AH41: Lock Rail Reinf. | AI41: =(Frame_Width-3.625)/12 -> -0.3020833333 | AJ41: 0.229 | AK41: =AI41*AJ41 -> -0.06917708333 | AQ41: =IF(AND(AP41=16,$AN$4>=29,$AN$4<=31),AP41&"H",0) ->  | AV41: =IF(AND(AU41=16,$AS$4>=29,$AS$4<=31),AU41&"H",0) ->  | BG41: =IF(AND(BF41=20,$BD$4>=19,$BD$4<=22),BF41&"D",0) ->  | BL41: =IF(AND(BK41=20,$BI$4>=19,$BI$4<=22),BK41&"D",0) -> 
B42: 43 | C42: 877 | D42: LG | F42: 43 | G42: 688 | H42: GR | L42: 3 | M42: =IF(SCREEN3>"",SCREEN3,"") ->  | AC42: Bottom Hardware | AD42: 1 | AE42: 0.36 | AF42: 0.36 | AH42: Handle Rail Reinf. | AI42: =(Frame_Width-3.625)/12 -> -0.3020833333 | AJ42: 0.536 | AK42: -0.1619166667 | AQ42: =IF(AND(AP42=16,$AN$4>=32,$AN$4<=34),AP42&"I",0) ->  | AV42: =IF(AND(AU42=16,$AS$4>=32,$AS$4<=34),AU42&"I",0) ->  | BG42: =IF(AND(BF42=20,$BD$4>=23,$BD$4<=26),BF42&"E",0) ->  | BL42: =IF(AND(BK42=20,$BI$4>=23,$BI$4<=26),BK42&"E",0) -> 
B43: 44 | C43: 877 | D43: LG | F43: 44 | G43: 688 | H43: GR | L43: 1 | M43: =IF(Screen_Type=3,"L",IF(Screen_Type=2,"F","H")) -> H | AC43: Bottom Bead | AD43: =(((Frame_Width-3.3125)*2)+((CMR!$E$27-1.625)*2))/12 -> -0.8229166667 | AE43: 0.028 | AF43: -0.02304166667 | AH43: Bottom Stile Reinf. | AI43: =(CMR!$E$75-1.84375)/12 -> -0.1536458333 | AJ43: 0.536 | AK43: -0.08235416667 | AP43: =IF(AND($AO$4<=18,$AO$4>16),18,0) ->  | AQ43: =IF(AND(AP43=18,$AN$4>=4,$AN$4<=9),AP43&"A",0) ->  | AU43: =IF(AND($AT$4<=18,$AT$4>16),18,0) ->  | AV43: =IF(AND(AU43=18,$AS$4>=4,$AS$4<=9),AU43&"A",0) ->  | BG43: =IF(AND(BF43=20,$BD$4>=27,$BD$4<=30),BF43&"F",0) ->  | BL43: =IF(AND(BK43=20,$BI$4>=27,$BI$4<=30),BK43&"F",0) -> 
B44: 45 | C44: 878 | D44: OR | F44: 45 | G44: 788 | H44: BR | AE44: Top Sash | AF44: =IF(OR(ModelNo="0201",ModelNo="L201"),SUM(AF26:AF34),0) -> 0 | AH44: Bottom Glass | AI44: =(CMR!$E$78*CMR!$E$80)/144 -> 0.09792751736 | AJ44: =$L$12 ->  | AQ44: =IF(AND(AP44=18,$AN$4>=10,$AN$4<=13),AP44&"B",0) ->  | AV44: =IF(AND(AU44=18,$AS$4>=10,$AS$4<=13),AU44&"B",0) ->  | BG44: =IF(AND(BF44=20,$BD$4>=31,$BD$4<=34),BF44&"G",0) ->  | BL44: =IF(AND(BK44=20,$BI$4>=31,$BI$4<=34),BK44&"G",0) -> 
B45: 46 | C45: 878 | D45: OR | F45: 46 | G45: 788 | H45: BR | M45: Add Grid for Weight Calc | AE45: Bottom Sash | AF45: =IF(OR(ModelNo="0201",ModelNo="L201"),SUM(AF35:AF43),0) -> 0 | AH45: Bottom Spacer | AI45: =((CMR!$E$78*2)+(CMR!$E$80*2))/12 -> -1.286458333 | AJ45: 0.0536 | AK45: -0.06895416667 | AQ45: =IF(AND(AP45=18,$AN$4>=14,$AN$4<=18),AP45&"C",0) ->  | AV45: =IF(AND(AU45=18,$AS$4>=14,$AS$4<=18),AU45&"C",0) ->  | BF45: =IF(AND($BE$4<=22,$BE$4>20),22,0) ->  | BG45: =IF(AND(BF45=22,$BD$4>=5,$BD$4<=10),BF45&"A",0) ->  | BK45: =IF(AND($BJ$4<=22,$BJ$4>20),22,0) ->  | BL45: =IF(AND(BK45=22,$BI$4>=5,$BI$4<=10),BK45&"A",0) -> 
B46: 47 | C46: 888 | D46: WT | F46: 47 | G46: 888 | H46: OR | M46: FALSE | AH46: Bottom Hardware | AI46: 1 | AJ46: 0.36 | AK46: 0.36 | AQ46: =IF(AND(AP46=18,$AN$4>=19,$AN$4<=21),AP46&"D",0) ->  | AV46: =IF(AND(AU46=18,$AS$4>=19,$AS$4<=21),AU46&"D",0) ->  | BG46: =IF(AND(BF46=22,$BD$4>=11,$BD$4<=16),BF46&"B",0) ->  | BL46: =IF(AND(BK46=22,$BI$4>=11,$BI$4<=16),BK46&"B",0) -> 
B47: 48 | C47: 888 | D47: WT | F47: 48 | G47: 888 | H47: OR | AC47: 02A0 | AD47: Length | AE47: Weight/ft | AF47: Weight | AH47: Bottom Bead | AI47: =(((Frame_Width-4.45565)*2)+((CMR!$E$75-4.09375)*2))/12 -> -1.4249 | AJ47: 0.046 | AK47: -0.0655454 | AQ47: =IF(AND(AP47=18,$AN$4>=22,$AN$4<=24),AP47&"E",0) ->  | AV47: =IF(AND(AU47=18,$AS$4>=22,$AS$4<=24),AU47&"E",0) ->  | BG47: =IF(AND(BF47=22,$BD$4>=17,$BD$4<=21),BF47&"C",0) ->  | BL47: =IF(AND(BK47=22,$BI$4>=17,$BI$4<=21),BK47&"C",0) -> 
B48: 49 | C48: 889 | D48: BN | F48: 49 | G48: 889 | H48: BU | AC48: Top Top Rail | AD48: 0 | AE48: 0 | AF48: =AD48*AE48 -> 0 | AJ48: Top Sash | AK48: 0 | AQ48: =IF(AND(AP48=18,$AN$4>=25,$AN$4<=26),AP48&"F",0) ->  | AV48: =IF(AND(AU48=18,$AS$4>=25,$AS$4<=26),AU48&"F",0) ->  | BG48: =IF(AND(BF48=22,$BD$4>=22,$BD$4<=24),BF48&"D",0) ->  | BL48: =IF(AND(BK48=22,$BI$4>=22,$BI$4<=24),BK48&"D",0) -> 
B49: 50 | C49: 889 | D49: BN | F49: 50 | G49: 889 | H49: BU | AC49: Top Bottom Rail | AD49: 0 | AE49: 0 | AF49: 0 | AJ49: Bottom Sash | AK49: =IF(ModelNo="3100",SUM(AK37:AK47),0) -> 0 | AQ49: =IF(AND(AP49=18,$AN$4>=27,$AN$4<=29),AP49&"G",0) ->  | AV49: =IF(AND(AU49=18,$AS$4>=27,$AS$4<=29),AU49&"G",0) ->  | BG49: =IF(AND(BF49=22,$BD$4>=25,$BD$4<=27),BF49&"E",0) ->  | BL49: =IF(AND(BK49=22,$BI$4>=25,$BI$4<=27),BK49&"E",0) -> 
B50: 51 | C50: 899 | D50: RD | F50: 51 | G50: 899 | H50: BK | AC50: Top Stile | AD50: 0 | AE50: 0 | AF50: 0 | AQ50: =IF(AND(AP50=18,$AN$4>=30,$AN$4<=32),AP50&"H",0) ->  | AV50: =IF(AND(AU50=18,$AS$4>=30,$AS$4<=32),AU50&"H",0) ->  | BG50: =IF(AND(BF50=22,$BD$4>=28,$BD$4<=30),BF50&"F",0) ->  | BL50: =IF(AND(BK50=22,$BI$4>=28,$BI$4<=30),BK50&"F",0) -> 
B51: 52 | C51: 899 | D51: RD | F51: 52 | G51: 899 | H51: BK | AC51: Top Rail Reinf. | AD51: 0 | AE51: 0 | AF51: 0 | AH51: i201 | AI51: Length | AJ51: Weight/ft | AK51: Weight | AQ51: =IF(AND(AP51=18,$AN$4>=33,$AN$4<=34),AP51&"I",0) ->  | AV51: =IF(AND(AU51=18,$AS$4>=33,$AS$4<=34),AU51&"I",0) ->  | BG51: =IF(AND(BF51=22,$BD$4>=31,$BD$4<=34),BF51&"G",0) ->  | BL51: =IF(AND(BK51=22,$BI$4>=31,$BI$4<=34),BK51&"G",0) -> 
B52: 53 | C52: 999 | D52: NAT | F52: 53 | G52: 999 | H52: NAT | AC52: Top Stile Reinf | AD52: 0 | AE52: 0 | AF52: 0 | AH52: Top Top Rail | AI52: =(Frame_Width-3.25)/12 -> -0.2708333333 | AJ52: 0.257 | AK52: =AI52*AJ52 -> -0.06960416667 | AP52: =IF(AND($AO$4<=20,$AO$4>18),20,0) ->  | AQ52: =IF(AND(AP52=20,$AN$4>=5,$AN$4<=10),AP52&"A",0) ->  | AU52: =IF(AND($AT$4<=20,$AT$4>18),20,0) ->  | AV52: =IF(AND(AU52=20,$AS$4>=5,$AS$4<=10),AU52&"A",0) ->  | BG52: =IF(AND(BF52=22,$BD$4>=35,$BD$4<=37),BF52&"H",0) ->  | BL52: =IF(AND(BK52=22,$BI$4>=35,$BI$4<=37),BK52&"H",0) -> 
B53: 54 | C53: 999 | D53: NAT | F53: 54 | G53: 999 | H53: NAT | AC53: Top Glass | AD53: 0 | AE53: 0 | AF53: 0 | AH53: Top Bottom Rail | AI53: =(Frame_Width-3.25)/12 -> -0.2708333333 | AJ53: 0.273 | AK53: -0.0739375 | AQ53: =IF(AND(AP53=20,$AN$4>=11,$AN$4<=14),AP53&"B",0) ->  | AV53: =IF(AND(AU53=20,$AS$4>=11,$AS$4<=14),AU53&"B",0) ->  | BF53: =IF(AND($BE$4<=24,$BE$4>22),24,0) ->  | BG53: =IF(AND(BF53=24,$BD$4>=6,$BD$4<=10),BF53&"A",0) ->  | BK53: =IF(AND($BJ$4<=24,$BJ$4>22),24,0) ->  | BL53: =IF(AND(BK53=24,$BI$4>=6,$BI$4<=10),BK53&"A",0) -> 
B54: 55 | C54: 6679 | D54: BU | F54: 55 | G54: 4888 | H54: NAT | AC54: Top Spacer | AD54: 0 | AE54: 0 | AF54: 0 | AH54: Top Stile | AI54: =(2*(CMR!$E$26-1.5625))/12 -> -0.2604166667 | AJ54: 0.233 | AK54: -0.06067708333 | AQ54: =IF(AND(AP54=20,$AN$4>=15,$AN$4<=18),AP54&"C",0) ->  | AV54: =IF(AND(AU54=20,$AS$4>=15,$AS$4<=18),AU54&"C",0) ->  | BG54: =IF(AND(BF54=24,$BD$4>=11,$BD$4<=17),BF54&"B",0) ->  | BL54: =IF(AND(BK54=24,$BI$4>=11,$BI$4<=17),BK54&"B",0) -> 
B55: 56 | C55: 6679 | D55: BU | F55: 56 | G55: 4888 | H55: NAT | AC55: Top Hardware | AD55: 0 | AE55: 0 | AF55: 0 | AH55: Keeper Rail Reinf. | AI55: =(TRUNC(Frame_Width-3.25)-6)/12 -> -0.75 | AJ55: 0.431 | AK55: -0.32325 | AQ55: =IF(AND(AP55=20,$AN$4>=19,$AN$4<=22),AP55&"D",0) ->  | AV55: =IF(AND(AU55=20,$AS$4>=19,$AS$4<=22),AU55&"D",0) ->  | BG55: =IF(AND(BF55=24,$BD$4>=18,$BD$4<=22),BF55&"C",0) ->  | BL55: =IF(AND(BK55=24,$BI$4>=18,$BI$4<=22),BK55&"C",0) -> 
B56: 57 | C56: 6779 | D56: LG | F56: 57 | G56: 5888 | H56: BK | AC56: Top Bead | AD56: 0 | AE56: 0 | AF56: 0 | AH56: Top Stile Reinf | AI56: =(2*(CMR!$E$26-3.5625))/12 -> -0.59375 | AJ56: 0.431 | AK56: -0.25590625 | AQ56: =IF(AND(AP56=20,$AN$4>=23,$AN$4<=26),AP56&"E",0) ->  | AV56: =IF(AND(AU56=20,$AS$4>=23,$AS$4<=26),AU56&"E",0) ->  | BG56: =IF(AND(BF56=24,$BD$4>=23,$BD$4<=25),BF56&"D",0) ->  | BL56: =IF(AND(BK56=24,$BI$4>=23,$BI$4<=25),BK56&"D",0) -> 
B57: 58 | C57: 6779 | D57: LG | F57: 58 | G57: 5888 | H57: BK | P57: Block & Tackle Tube Length | AC57: Bottom Top Rail | AD57: =(Frame_Width-2.25)/12 -> -0.1875 | AE57: 0.241 | AF57: =AD57*AE57 -> -0.0451875 | AH57: Top Glass | AI57: =(CMR!$E$29*CMR!$E$31)/144 -> 0.1068522135 | AJ57: =$L$12 ->  | AQ57: =IF(AND(AP57=20,$AN$4>=27,$AN$4<=30),AP57&"F",0) ->  | AV57: =IF(AND(AU57=20,$AS$4>=27,$AS$4<=30),AU57&"F",0) ->  | BG57: =IF(AND(BF57=24,$BD$4>=26,$BD$4<=28),BF57&"E",0) ->  | BL57: =IF(AND(BK57=24,$BI$4>=26,$BI$4<=28),BK57&"E",0) -> 
B58: 59 | C58: 7779 | D58: WT | F58: 59 | G58: 6888 | H58: BU | P58: Model | Q58: Bott. Tube Length | R58: Top Tube Length | AC58: Bottom Bottom Rail | AD58: =(Frame_Width-2.25)/12 -> -0.1875 | AE58: 0.25 | AF58: -0.046875 | AH58: Top Spacer | AI58: =((CMR!$E$29*2)+(CMR!$E$31*2))/12 -> -1.338541667 | AJ58: 0.0536 | AK58: -0.07174583333 | AQ58: =IF(AND(AP58=20,$AN$4>=31,$AN$4<=34),AP58&"G",0) ->  | AV58: =IF(AND(AU58=20,$AS$4>=31,$AS$4<=34),AU58&"G",0) ->  | BG58: =IF(AND(BF58=24,$BD$4>=29,$BD$4<=30),BF58&"F",0) ->  | BL58: =IF(AND(BK58=24,$BI$4>=29,$BI$4<=30),BK58&"F",0) -> 
B59: 60 | C59: 7779 | D59: WT | F59: 60 | G59: 6888 | H59: BU | P59: =ModelNo -> Select Model | Q59: =VLOOKUP(ModelNo,$P$60:$R$68,2,FALSE) ->  | R59: =VLOOKUP(ModelNo,$P$60:$R$68,3,FALSE) ->  | AC59: Bottom Stile | AD59: =((CMR!L27-0.75)*2)/12 -> -0.125 | AE59: 0.23 | AF59: -0.02875 | AH59: Top Hardware | AI59: 1 | AJ59: =IF(Frame_Width>36,0.258,0.2) -> 0.2 | AK59: 0.2 | AQ59: =IF(AND(AP59=20,$AN$4>=35,$AN$4<=37),AP59&"H",0) ->  | AV59: =IF(AND(AU59=20,$AS$4>=35,$AS$4<=37),AU59&"H",0) ->  | BG59: =IF(AND(BF59=24,$BD$4>=31,$BD$4<=34),BF59&"G",0) ->  | BL59: =IF(AND(BK59=24,$BI$4>=31,$BI$4<=34),BK59&"G",0) -> 
B60: 61 | C60: 6799 | D60: OR | F60: 61 | G60: 7888 | H60: OR | P60: 0201 | Q60: =FLOOR(Frame_Height/2-2.25,2) -> -4 | R60: =IF(DDIM0201>=Frame_Height/2,FLOOR(Frame_Height/2-4.75,2),FLOOR(DDIM0201-4.75,2)) -> -6 | AC60: Bottom Rail Reinf. | AD60: =(TRUNC(((AD57*12)-6)/2)*2)/12 -> -0.6666666667 | AE60: 0.328 | AF60: -0.2186666667 | AH60: Top Bead | AI60: =(((Frame_Width-4.3125)*2)+((CMR!$E$26-2.625)*2))/12 -> -1.15625 | AJ60: 0.028 | AK60: -0.032375 | AQ60: =IF(AND(AP60=20,$AN$4>=38,$AN$4<=40),AP60&"I",0) ->  | AV60: =IF(AND(AU60=20,$AS$4>=38,$AS$4<=40),AU60&"I",0) ->  | BG60: =IF(AND(BF60=24,$BD$4>=35,$BD$4<=37),BF60&"H",0) ->  | BL60: =IF(AND(BK60=24,$BI$4>=35,$BI$4<=37),BK60&"H",0) -> 
B61: 62 | C61: 6799 | D61: OR | F61: 62 | G61: 7888 | H61: OR | P61: L201 | Q61: =FLOOR(Frame_Height/2-2.25,2) -> -4 | R61: =IF(DDIM0201>=Frame_Height/2,FLOOR(Frame_Height/2-4.75,2),FLOOR(DDIM0201-4.75,2)) -> -6 | AC61: Bottom Stile Reinf. | AD61: =IF(CMR!$L$32>=27.5,(((CMR!$L$32-4.5)/2)*2)/12,0) -> 0 | AE61: 0.238 | AF61: 0 | AH61: Bottom Top Rail | AI61: =(Frame_Width-2.25)/12 -> -0.1875 | AJ61: 0.246 | AK61: -0.046125 | AP61: =IF(AND($AO$4<=22,$AO$4>20),22,0) ->  | AQ61: =IF(AND(AP61=22,$AN$4>=5,$AN$4<=10),AP61&"A",0) ->  | AU61: =IF(AND($AT$4<=22,$AT$4>20),22,0) ->  | AV61: =IF(AND(AU61=22,$AS$4>=5,$AS$4<=10),AU61&"A",0) ->  | BF61: =IF(AND($BE$4<=26,$BE$4>24),26,0) ->  | BG61: =IF(AND(BF61=26,$BD$4>=6,$BD$4<=11),BF61&"A",0) ->  | BK61: =IF(AND($BJ$4<=26,$BJ$4>24),26,0) ->  | BL61: =IF(AND(BK61=26,$BI$4>=6,$BI$4<=11),BK61&"A",0) -> 
B62: 63 | C62: 7799 | D62: BN | F62: 63 | G62: 8888 | H62: BR | P62: 02A0 | Q62: =FLOOR(Frame_Height/2-2.25,2) -> -4 | AC62: Bottom Glass | AD62: =(CMR!$L$30*CMR!$L$32)/144 -> 0.06391059028 | AE62: =$L$12 ->  | AH62: Bottom Bottom Rail | AI62: =(Frame_Width-2.25)/12 -> -0.1875 | AJ62: 0.257 | AK62: -0.0481875 | AQ62: =IF(AND(AP62=22,$AN$4>=11,$AN$4<=16),AP62&"B",0) ->  | AV62: =IF(AND(AU62=22,$AS$4>=11,$AS$4<=16),AU62&"B",0) ->  | BG62: =IF(AND(BF62=26,$BD$4>=12,$BD$4<=17),BF62&"B",0) ->  | BL62: =IF(AND(BK62=26,$BI$4>=12,$BI$4<=17),BK62&"B",0) -> 
B63: 64 | C63: 7799 | D63: BN | F63: 64 | G63: 8888 | H63: BR | P63: 0501 | Q63: =FLOOR(Frame_Height/2-3,2) -> -4 | R63: =IF(DDIM0501>=Frame_Height/2-0.07,FLOOR(Frame_Height/2-5,2),FLOOR(DDIM0501-5,2)) -> -6 | AC63: Bottom Spacer | AD63: =((CMR!$L$30*2)+(CMR!$L$32*2))/12 -> -1.041666667 | AE63: 0.0536 | AF63: -0.05583333333 | AH63: Bottom Stile | AI63: =(2*(CMR!$E$27-0.5625))/12 -> -0.09375 | AJ63: 0.233 | AK63: -0.02184375 | AQ63: =IF(AND(AP63=22,$AN$4>=17,$AN$4<=21),AP63&"C",0) ->  | AV63: =IF(AND(AU63=22,$AS$4>=17,$AS$4<=21),AU63&"C",0) ->  | BG63: =IF(AND(BF63=26,$BD$4>=18,$BD$4<=22),BF63&"C",0) ->  | BL63: =IF(AND(BK63=26,$BI$4>=18,$BI$4<=22),BK63&"C",0) -> 
B64: 65 | C64: 7899 | D64: GN | F64: 65 | G64: 8889 | H64: GR | P64: B501 | Q64: =FLOOR(Frame_Height/2-3,2) -> -4 | R64: =IF(DDIM0501>=Frame_Height/2-0.07,FLOOR(Frame_Height/2-5,2),FLOOR(DDIM0501-5,2)) -> -6 | AC64: Bottom Hardware | AD64: 1 | AE64: 0.36 | AF64: 0.36 | AH64: Lock Rail Reinf. | AI64: =(Frame_Width-3)/12 -> -0.25 | AJ64: 0.5601 | AK64: -0.140025 | AQ64: =IF(AND(AP64=22,$AN$4>=22,$AN$4<=24),AP64&"D",0) ->  | AV64: =IF(AND(AU64=22,$AS$4>=22,$AS$4<=24),AU64&"D",0) ->  | BG64: =IF(AND(BF64=26,$BD$4>=23,$BD$4<=26),BF64&"D",0) ->  | BL64: =IF(AND(BK64=26,$BI$4>=23,$BI$4<=26),BK64&"D",0) -> 
B65: 66 | C65: 7899 | D65: GN | F65: 66 | G65: 8889 | H65: GR | P65: 0901 | Q65: =FLOOR(Frame_Height/2-2.5,2) -> -4 | R65: =IF(DDIM0901>=Frame_Height/2-0.07,FLOOR(Frame_Height/2-4,2),FLOOR(DDIM0901-4,2)) -> -4 | AC65: Bottom Bead | AD65: =(((Frame_Width-3.3125)*2)+((CMR!$L$27-1.8125)*2))/12 -> -0.8541666667 | AE65: 0.028 | AF65: -0.02391666667 | AH65: Bottom Rail Reinf. | AI65: =(Frame_Width-8.25)/12 -> -0.6875 | AJ65: 0.43 | AK65: =AI65*AJ65 -> -0.295625 | AQ65: =IF(AND(AP65=22,$AN$4>=25,$AN$4<=27),AP65&"E",0) ->  | AV65: =IF(AND(AU65=22,$AS$4>=25,$AS$4<=27),AU65&"E",0) ->  | BG65: =IF(AND(BF65=26,$BD$4>=27,$BD$4<=30),BF65&"E",0) ->  | BL65: =IF(AND(BK65=26,$BI$4>=27,$BI$4<=30),BK65&"E",0) -> 
B66: 67 | C66: 8899 | D66: RD | F66: 67 | G66: 8899 | H66: RD | P66: 09L1 | Q66: =FLOOR(Frame_Height/2-2.5,2) -> -4 | R66: =IF(DDIM0901>=Frame_Height/2-0.07,FLOOR(Frame_Height/2-4,2),FLOOR(DDIM0901-4,2)) -> -4 | AE66: Top Sash | AF66: 0 | AH66: Bottom Stile Reinf. | AI66: =2*((CMR!$E$27-2.5625)/12) -> -0.4270833333 | AJ66: 0.43 | AK66: -0.1836458333 | AQ66: =IF(AND(AP66=22,$AN$4>=28,$AN$4<=30),AP66&"F",0) ->  | AV66: =IF(AND(AU66=22,$AS$4>=28,$AS$4<=30),AU66&"F",0) ->  | BG66: =IF(AND(BF66=26,$BD$4>=31,$BD$4<=34),BF66&"F",0) ->  | BL66: =IF(AND(BK66=26,$BI$4>=31,$BI$4<=34),BK66&"F",0) -> 
B67: 68 | C67: 8899 | D67: RD | F67: 68 | G67: 8899 | H67: RD | P67: 3001 | Q67: =FLOOR(Frame_Height/2-2.25,2) -> -4 | R67: =IF(DDIM3001>=Frame_Height/2,FLOOR(Frame_Height/2-4.75,2),FLOOR(DDIM3001-4.75,2)) -> -6 | AE67: Bottom Sash | AF67: =IF(OR(ModelNo="02A0",ModelNo="S140",ModelNo="S144",ModelNo="S146",ModelNo="S140 (HP)",ModelNo="S144 (HP)",ModelNo="S146 (HP)"),SUM(AF57:AF65),0) -> 0 | AH67: Bottom Glass | AI67: =(CMR!$E$30*CMR!$E$32)/144 -> 0.05802408854 | AJ67: =$L$12 ->  | AQ67: =IF(AND(AP67=22,$AN$4>=31,$AN$4<=34),AP67&"G",0) ->  | AV67: =IF(AND(AU67=22,$AS$4>=31,$AS$4<=34),AU67&"G",0) ->  | BG67: =IF(AND(BF67=26,$BD$4>=35,$BD$4<=38),BF67&"G",0) ->  | BL67: =IF(AND(BK67=26,$BI$4>=35,$BI$4<=38),BK67&"G",0) -> 
B68: 69 | C68: 8999 | D68: YW | F68: 69 | G68: 8999 | H68: YW | P68: 03A0 | Q68: =IF(FLOOR(Frame_Height/2-2.25,2)>38,38,FLOOR(Frame_Height/2-2.25,2)) -> -4 | AH68: Bottom Spacer | AI68: =((CMR!$E$30*2)+(CMR!$E$32*2))/12 -> -1.005208333 | AJ68: 0.0536 | AK68: -0.05387916667 | AQ68: =IF(AND(AP68=22,$AN$4>=35,$AN$4<=37),AP68&"H",0) ->  | AV68: =IF(AND(AU68=22,$AS$4>=35,$AS$4<=37),AU68&"H",0) ->  | BG68: =IF(AND(BF68=26,$BD$4>=39,$BD$4<=42),BF68&"H",0) ->  | BL68: =IF(AND(BK68=26,$BI$4>=39,$BI$4<=42),BK68&"H",0) -> 
B69: 70 | C69: 8999 | D69: YW | F69: 70 | G69: 8999 | H69: YW | AC69: 0301 | AD69: Length | AE69: Weight/ft | AF69: Weight | AH69: Bottom Hardware | AI69: 1 | AJ69: =IF(Frame_Width>36,0.482,0.36) -> 0.36 | AK69: 0.36 | AQ69: =IF(AND(AP69=22,$AN$4>=38,$AN$4<=40),AP69&"I",0) ->  | AV69: =IF(AND(AU69=22,$AS$4>=38,$AS$4<=40),AU69&"I",0) ->  | BE69: =IF(AND(BF69>0,BG69>0),BF69,0) ->  | BF69: =IF(AND($BE$4<=28,$BE$4>26),28,0) ->  | BG69: =IF(AND(BF69=28,$BD$4>=7,$BD$4<=12),BF69&"A",0) ->  | BJ69: =IF(AND(BK69>0,BL69>0),BK69,0) ->  | BK69: =IF(AND($BJ$4<=28,$BJ$4>26),28,0) ->  | BL69: =IF(AND(BK69=28,$BI$4>=7,$BI$4<=12),BK69&"A",0) -> 
B70: 71 | C70: 9999 | D70: PU | F70: 71 | G70: 9999 | H70: PUR | AC70: Top Top Rail | AD70: =(Frame_Width-3.25)/12 -> -0.2708333333 | AE70: 0.257 | AF70: =AD70*AE70 -> -0.06960416667 | AH70: Bottom Bead | AI70: =(((Frame_Width-3.3125)*2)+((CMR!$E$27-1.625)*2))/12 -> -0.8229166667 | AJ70: 0.028 | AK70: -0.02304166667 | AO70: =IF(AND(AP70>0,AQ70>0),AP70,0) ->  | AP70: =IF(AND($AO$4<=24,$AO$4>22),24,0) ->  | AQ70: =IF(AND(AP70=24,$AN$4>=6,$AN$4<=10),AP70&"A",0) ->  | AT70: =IF(AND(AU70>0,AV70>0),AU70,0) ->  | AU70: =IF(AND($AT$4<=24,$AT$4>22),24,0) ->  | AV70: =IF(AND(AU70=24,$AS$4>=6,$AS$4<=10),AU70&"A",0) ->  | BG70: =IF(AND(BF70=28,$BD$4>=13,$BD$4<=18),BF70&"B",0) ->  | BL70: =IF(AND(BK70=28,$BI$4>=13,$BI$4<=18),BK70&"B",0) -> 
B71: 72 | C71: 9999 | D71: PU | F71: 72 | G71: 9999 | H71: PUR | AC71: Top Bottom Rail | AD71: =(Frame_Width-3.25)/12 -> -0.2708333333 | AE71: 0.273 | AF71: -0.0739375 | AJ71: Top Sash | AK71: =IF(ModelNo="i201",(SUM(AK52:AK60))+5,0) -> 0 | AQ71: =IF(AND(AP71=24,$AN$4>=11,$AN$4<=17),AP71&"B",0) ->  | AV71: =IF(AND(AU71=24,$AS$4>=11,$AS$4<=17),AU71&"B",0) ->  | BG71: =IF(AND(BF71=28,$BD$4>=19,$BD$4<=23),BF71&"C",0) ->  | BL71: =IF(AND(BK71=28,$BI$4>=19,$BI$4<=23),BK71&"C",0) -> 
AC72: Top Stile | AD72: =(2*(CMR!$E$42-1.625))/12 -> -0.2708333333 | AE72: 0.233 | AF72: -0.06310416667 | AJ72: Bottom Sash | AK72: =IF(ModelNo="i201",SUM(AK61:AK70),0) -> 0 | AQ72: =IF(AND(AP72=24,$AN$4>=18,$AN$4<=22),AP72&"C",0) ->  | AV72: =IF(AND(AU72=24,$AS$4>=18,$AS$4<=22),AU72&"C",0) ->  | BG72: =IF(AND(BF72=28,$BD$4>=24,$BD$4<=28),BF72&"D",0) ->  | BL72: =IF(AND(BK72=28,$BI$4>=24,$BI$4<=28),BK72&"D",0) -> 
AC73: Top Rail Reinf. | AD73: =(TRUNC(((Frame_Width-3.25)-6)/2)*2)/12 -> -0.6666666667 | AE73: 0.299 | AF73: -0.1993333333 | AQ73: =IF(AND(AP73=24,$AN$4>=23,$AN$4<=25),AP73&"D",0) ->  | AV73: =IF(AND(AU73=24,$AS$4>=23,$AS$4<=25),AU73&"D",0) ->  | BG73: =IF(AND(BF73=28,$BD$4>=29,$BD$4<=32),BF73&"E",0) ->  | BL73: =IF(AND(BK73=28,$BI$4>=29,$BI$4<=32),BK73&"E",0) -> 
B74: 4 | C74: 3 | D74: 1 | F74: 4 | G74: 3 | H74: 1 | P74: FALSE | Q74: AC SASH CALCULATOR | AC74: Top Stile Reinf | AD74: =IF(CMR!$E$47>26.6875,((TRUNC((CMR!$E$42-9.5)/2)*2)/12)*2,0) -> 0 | AE74: 0.299 | AF74: 0 | AQ74: =IF(AND(AP74=24,$AN$4>=26,$AN$4<=28),AP74&"E",0) ->  | AV74: =IF(AND(AU74=24,$AS$4>=26,$AS$4<=28),AU74&"E",0) ->  | BG74: =IF(AND(BF74=28,$BD$4>=33,$BD$4<=36),BF74&"F",0) ->  | BL74: =IF(AND(BK74=28,$BI$4>=33,$BI$4<=36),BK74&"F",0) -> 
B75: =B74+1 -> 5 | C75: 3 | D75: 1 | F75: 5 | G75: 3 | H75: 1 | P75: Model | Q75: Head | R75: Sill | S75: Center of Astragal | T75: Top Sash Width | U75: Sash Height | V75: CMR | AC75: Top Glass | AD75: =(CMR!$E$45*CMR!$E$47)/144 -> 0.1100260417 | AE75: =$L$12 ->  | AH75: V100 | AI75: Length | AJ75: Weight/ft | AK75: Weight | AQ75: =IF(AND(AP75=24,$AN$4>=29,$AN$4<=30),AP75&"F",0) ->  | AV75: =IF(AND(AU75=24,$AS$4>=29,$AS$4<=30),AU75&"F",0) ->  | BG75: =IF(AND(BF75=28,$BD$4>=37,$BD$4<=40),BF75&"G",0) ->  | BL75: =IF(AND(BK75=28,$BI$4>=37,$BI$4<=40),BK75&"G",0) -> 
B76: 6 | C76: 3 | D76: 1 | F76: 6 | G76: 3 | H76: 1 | P76: =ModelNo -> Select Model | Q76: =IF(ISERROR(VLOOKUP(ModelNo,ACTABLE,2,FALSE)),"",VLOOKUP(ModelNo,ACTABLE,2,FALSE)) ->  | R76: =IF(ISERROR(VLOOKUP(ModelNo,ACTABLE,3,FALSE)),"",VLOOKUP(ModelNo,ACTABLE,3,FALSE)) ->  | S76: =IF(ISERROR(VLOOKUP(ModelNo,ACTABLE,4,FALSE)),"",VLOOKUP(ModelNo,ACTABLE,4,FALSE)) ->  | T76: =IF(ISERROR(VLOOKUP(ModelNo,ACTABLE,5,FALSE)),"",VLOOKUP(ModelNo,ACTABLE,5,FALSE)) ->  | U76: =IF(ISERROR(VLOOKUP(ModelNo,ACTABLE,6,FALSE)),"",VLOOKUP(ModelNo,ACTABLE,6,FALSE)) ->  | V76: =IF(ISERROR(VLOOKUP(ModelNo,ACTABLE,7,FALSE)),"",VLOOKUP(ModelNo,ACTABLE,7,FALSE)) ->  | AC76: Top Spacer | AD76: =((CMR!$E$45*2)+(CMR!$E$47*2))/12 -> -1.354166667 | AE76: 0.0536 | AF76: -0.07258333333 | AH76: Top Top Rail | AI76: 0 | AJ76: 0 | AK76: =AI76*AJ76 -> 0 | AQ76: =IF(AND(AP76=24,$AN$4>=31,$AN$4<=34),AP76&"G",0) ->  | AV76: =IF(AND(AU76=24,$AS$4>=31,$AS$4<=34),AU76&"G",0) ->  | BG76: =IF(AND(BF76=28,$BD$4>=41,$BD$4<=43),BF76&"H",0) ->  | BL76: =IF(AND(BK76=28,$BI$4>=41,$BI$4<=43),BK76&"H",0) -> 
B77: 7 | C77: 4 | D77: 1 | F77: 7 | G77: 4 | H77: 1 | P77: 0100 | R77: 1.537 | S77: 2.5583 | T77: =Frame_Width-2.3125 -> -2.3125 | V77: =INT((Frame_Height-(R77+0.5+ACHEIGHT+S77))*16+0.5)/16 -> -4.625 | AC77: Top Hardware | AD77: 1 | AE77: 0.2 | AF77: 0.2 | AH77: Top Bottom Rail | AI77: 0 | AJ77: 0 | AK77: 0 | AQ77: =IF(AND(AP77=24,$AN$4>=35,$AN$4<=37),AP77&"H",0) ->  | AV77: =IF(AND(AU77=24,$AS$4>=35,$AS$4<=37),AU77&"H",0) ->  | BG77: =IF(AND(BF77=28,$BD$4>=44,$BD$4<=45),BF77&"I",0) ->  | BL77: =IF(AND(BK77=28,$BI$4>=44,$BI$4<=45),BK77&"I",0) -> 
B78: 8 | C78: 4 | D78: 1 | F78: 8 | G78: 4 | H78: 1 | P78: 01HP | R78: 1.537 | S78: 2.6833 | T78: =Frame_Width-2.3125 -> -2.3125 | V78: =INT((Frame_Height-(R78+0.5+ACHEIGHT+S78))*16+0.5)/16 -> -4.75 | AC78: Top Bead | AD78: =(((Frame_Width-4.3125)*2)+((CMR!$E$42-2.6875)*2))/12 -> -1.166666667 | AE78: 0.028 | AF78: -0.03266666667 | AH78: Top Stile | AI78: 0 | AJ78: 0 | AK78: 0 | AQ78: =IF(AND(AP78=24,$AN$4>=38,$AN$4<=40),AP78&"I",0) ->  | AV78: =IF(AND(AU78=24,$AS$4>=38,$AS$4<=40),AU78&"I",0) ->  | BF78: =IF(AND($BE$4<=30,$BE$4>28),30,0) ->  | BG78: =IF(AND(BF78=30,$BD$4>=8,$BD$4<=13),BF78&"A",0) ->  | BK78: =IF(AND($BJ$4<=30,$BJ$4>28),30,0) ->  | BL78: =IF(AND(BK78=30,$BI$4>=8,$BI$4<=13),BK78&"A",0) -> 
B79: 9 | C79: 5 | D79: 1 | F79: 9 | G79: 5 | H79: 1 | P79: 02A0 | R79: 1.75 | S79: 2.875 | T79: =Frame_Width-2.25 -> -2.25 | V79: =INT((Frame_Height-(R79+0.5+ACHEIGHT+S79))*16+0.5)/16 -> -5.125 | AC79: Bottom Top Rail | AD79: =(Frame_Width-2.25)/12 -> -0.1875 | AE79: 0.246 | AF79: -0.046125 | AH79: Top Rail Reinf. | AI79: 0 | AJ79: 0 | AK79: 0 | AP79: =IF(AND($AO$4<=26,$AO$4>24),26,0) ->  | AQ79: =IF(AND(AP79=26,$AN$4>=6,$AN$4<=11),AP79&"A",0) ->  | AU79: =IF(AND($AT$4<=26,$AT$4>24),26,0) ->  | AV79: =IF(AND(AU79=26,$AS$4>=6,$AS$4<=11),AU79&"A",0) ->  | BG79: =IF(AND(BF79=30,$BD$4>=14,$BD$4<=19),BF79&"B",0) ->  | BL79: =IF(AND(BK79=30,$BI$4>=14,$BI$4<=19),BK79&"B",0) -> 
B80: 10 | C80: 5 | D80: 1 | F80: 10 | G80: 5 | H80: 1 | P80: 0201 | Q80: 1.625 | R80: 1.75 | T80: =Frame_Width-3.25 -> -3.25 | U80: =INT((Frame_Height-(Q80+R80+0.5+ACHEIGHT))*16+0.5)/16 -> -3.875 | AC80: Bottom Bottom Rail | AD80: =(Frame_Width-2.25)/12 -> -0.1875 | AE80: 0.257 | AF80: -0.0481875 | AH80: Top Stile Reinf | AI80: 0 | AJ80: 0 | AK80: 0 | AQ80: =IF(AND(AP80=26,$AN$4>=12,$AN$4<=17),AP80&"B",0) ->  | AV80: =IF(AND(AU80=26,$AS$4>=12,$AS$4<=17),AU80&"B",0) ->  | BG80: =IF(AND(BF80=30,$BD$4>=20,$BD$4<=24),BF80&"C",0) ->  | BL80: =IF(AND(BK80=30,$BI$4>=20,$BI$4<=24),BK80&"C",0) -> 
B81: 11 | C81: 6 | D81: 1 | F81: 11 | G81: 6 | H81: 1 | P81: L201 | Q81: 1.625 | R81: 1.75 | T81: =Frame_Width-3.25 -> -3.25 | U81: -3.875 | AC81: Bottom Stile | AD81: =(2*(CMR!$E$43-0.625))/12 -> -0.1041666667 | AE81: 0.233 | AF81: -0.02427083333 | AH81: Top Glass | AI81: 0 | AJ81: 0 | AK81: 0 | AQ81: =IF(AND(AP81=26,$AN$4>=18,$AN$4<=22),AP81&"C",0) ->  | AV81: =IF(AND(AU81=26,$AS$4>=18,$AS$4<=22),AU81&"C",0) ->  | BG81: =IF(AND(BF81=30,$BD$4>=25,$BD$4<=29),BF81&"D",0) ->  | BL81: =IF(AND(BK81=30,$BI$4>=25,$BI$4<=29),BK81&"D",0) -> 
B82: 12 | C82: 6 | D82: 1 | F82: 12 | G82: 6 | H82: 1 | P82: i201 | Q82: 1.625 | R82: 1.75 | T82: =Frame_Width-3.25 -> -3.25 | U82: -3.875 | AC82: Bottom Rail Reinf. | AD82: =(TRUNC(((Frame_Width-2.25)-6)/2)*2)/12 -> -0.6666666667 | AE82: 0.37 | AF82: -0.2466666667 | AH82: Top Spacer | AI82: 0 | AJ82: 0 | AK82: 0 | AQ82: =IF(AND(AP82=26,$AN$4>=23,$AN$4<=26),AP82&"D",0) ->  | AV82: =IF(AND(AU82=26,$AS$4>=23,$AS$4<=26),AU82&"D",0) ->  | BG82: =IF(AND(BF82=30,$BD$4>=30,$BD$4<=33),BF82&"E",0) ->  | BL82: =IF(AND(BK82=30,$BI$4>=30,$BI$4<=33),BK82&"E",0) -> 
B83: 13 | C83: 7 | D83: 1 | F83: 13 | G83: 7 | H83: 1 | P83: 0301 | Q83: 1.75 | R83: 2.0625 | T83: =Frame_Width-3.25 -> -3.25 | U83: -4.3125 | AC83: Bottom Stile Reinf. | AD83: =IF(CMR!$E$48>27.6875,((TRUNC((CMR!$E$43-4.5)/2)*2)/12)*2,0) -> 0 | AE83: 0.299 | AF83: 0 | AH83: Top Hardware | AI83: 0 | AJ83: 0 | AK83: 0 | AQ83: =IF(AND(AP83=26,$AN$4>=27,$AN$4<=30),AP83&"E",0) ->  | AV83: =IF(AND(AU83=26,$AS$4>=27,$AS$4<=30),AU83&"E",0) ->  | BG83: =IF(AND(BF83=30,$BD$4>=34,$BD$4<=37),BF83&"F",0) ->  | BL83: =IF(AND(BK83=30,$BI$4>=34,$BI$4<=37),BK83&"F",0) -> 
B84: 14 | C84: 7 | D84: 1 | F84: 14 | G84: 7 | H84: 1 | P84: 0401 | Q84: 1.125 | R84: 2 | T84: =Frame_Width-3.25 -> -3.25 | U84: -3.625 | AC84: Bottom Glass | AD84: =(CMR!$E$46*CMR!$E$48)/144 -> 0.060546875 | AE84: =$L$12 ->  | AH84: Top Bead | AI84: 0 | AJ84: 0 | AK84: 0 | AQ84: =IF(AND(AP84=26,$AN$4>=31,$AN$4<=34),AP84&"F",0) ->  | AV84: =IF(AND(AU84=26,$AS$4>=31,$AS$4<=34),AU84&"F",0) ->  | BG84: =IF(AND(BF84=30,$BD$4>=38,$BD$4<=40),BF84&"G",0) ->  | BL84: =IF(AND(BK84=30,$BI$4>=38,$BI$4<=40),BK84&"G",0) -> 
B85: 15 | C85: 8 | D85: 1 | F85: 15 | G85: 8 | H85: 1 | P85: =IF(ModelNo="B501","B501","0501") -> 0501 | Q85: 2.25 | R85: 3 | T85: =Frame_Width-4.25 -> -4.25 | U85: -5.75 | AC85: Bottom Spacer | AD85: =((CMR!$E$46*2)+(CMR!$E$48*2))/12 -> -1.020833333 | AE85: 0.0536 | AF85: -0.05471666667 | AH85: Bottom Top Rail | AI85: =(Frame_Width-2.1875)/12 -> -0.1822916667 | AJ85: 0.224 | AK85: -0.04083333333 | AQ85: =IF(AND(AP85=26,$AN$4>=35,$AN$4<=38),AP85&"G",0) ->  | AV85: =IF(AND(AU85=26,$AS$4>=35,$AS$4<=38),AU85&"G",0) ->  | BG85: =IF(AND(BF85=30,$BD$4>=41,$BD$4<=43),BF85&"H",0) ->  | BL85: =IF(AND(BK85=30,$BI$4>=41,$BI$4<=43),BK85&"H",0) -> 
B86: 16 | C86: 8 | D86: 1 | F86: 16 | G86: 8 | H86: 1 | P86: 0601 | Q86: 2.375 | R86: 2.75 | T86: =Frame_Width-4.25 -> -4.25 | U86: -5.625 | AC86: Bottom Hardware | AD86: 1 | AE86: 0.36 | AF86: 0.36 | AH86: Bottom Bottom Rail | AI86: =(Frame_Width-2.1875)/12 -> -0.1822916667 | AJ86: 0.199 | AK86: -0.03627604167 | AQ86: =IF(AND(AP86=26,$AN$4>=39,$AN$4<=42),AP86&"H",0) ->  | AV86: =IF(AND(AU86=26,$AS$4>=39,$AS$4<=42),AU86&"H",0) ->  | BG86: =IF(AND(BF86=30,$BD$4>=44,$BD$4<=45),BF86&"I",0) ->  | BL86: =IF(AND(BK86=30,$BI$4>=44,$BI$4<=45),BK86&"I",0) -> 
B87: 17 | C87: 9 | D87: 1 | F87: 17 | G87: 9 | H87: 1 | P87: 0700 | R87: 1.537 | S87: 2.5625 | T87: =Frame_Width-2.3125 -> -2.3125 | V87: =INT((Frame_Height-(R87+0.5+ACHEIGHT+S87))*16+0.5)/16 -> -4.625 | AC87: Bottom Bead | AD87: =(((Frame_Width-3.3125)*2)+((CMR!$E$43-1.6875)*2))/12 -> -0.8333333333 | AE87: 0.028 | AF87: -0.02333333333 | AH87: Bottom Stile | AI87: =((V100_CDIM-0.844)*2)/12 -> -0.1406666667 | AJ87: 0.199 | AK87: -0.02799266667 | AQ87: =IF(AND(AP87=26,$AN$4>=43,$AN$4<=45),AP87&"I",0) ->  | AV87: =IF(AND(AU87=26,$AS$4>=43,$AS$4<=45),AU87&"I",0) ->  | BF87: =IF(AND($BE$4<=32,$BE$4>30),32,0) ->  | BG87: =IF(AND(BF87=32,$BD$4>=8,$BD$4<=14),BF87&"A",0) ->  | BK87: =IF(AND($BJ$4<=32,$BJ$4>30),32,0) ->  | BL87: =IF(AND(BK87=32,$BI$4>=8,$BI$4<=14),BK87&"A",0) -> 
B88: 18 | C88: 9 | D88: 1 | F88: 18 | G88: 9 | H88: 1 | P88: 07HP | R88: 1.537 | S88: 2.6875 | T88: =Frame_Width-2.3125 -> -2.3125 | V88: =INT((Frame_Height-(R88+0.5+ACHEIGHT+S88))*16+0.5)/16 -> -4.75 | AE88: Top Sash | AF88: =IF(OR(ModelNo="0301",ModelNo="E301(3250)",ModelNo="E301(3052)",ModelNo="E301(2862)"),(SUM(AF70:AF78))+5,0) -> 0 | AH88: Bottom Rail Reinf. | AI88: =(TRUNC(((Frame_Width-8.188)-0.5)/2)*2)/12 -> -0.6666666667 | AJ88: 0.133 | AK88: -0.08866666667 | AP88: =IF(AND($AO$4<=28,$AO$4>26),28,0) ->  | AQ88: =IF(AND(AP88=28,$AN$4>=6,$AN$4<=12),AP88&"A",0) ->  | AU88: =IF(AND($AT$4<=28,$AT$4>26),28,0) ->  | AV88: =IF(AND(AU88=28,$AS$4>=6,$AS$4<=12),AU88&"A",0) ->  | BG88: =IF(AND(BF88=32,$BD$4>=15,$BD$4<=20),BF88&"B",0) ->  | BL88: =IF(AND(BK88=32,$BI$4>=15,$BI$4<=20),BK88&"B",0) -> 
B89: 19 | C89: 10 | D89: 1 | F89: 19 | G89: 55 | H89: 2 | P89: 0901 | Q89: 1.4375 | R89: 2.125 | T89: =Frame_Width-3.4375 -> -3.4375 | U89: =INT((Frame_Height-(Q89+R89+0.5+ACHEIGHT))*16+0.5)/16 -> -4.0625 | AE89: Bottom Sash | AF89: =IF(OR(ModelNo="0301",ModelNo="E301(3250)",ModelNo="E301(3052)",ModelNo="E301(2862)"),SUM(AF79:AF87),0) -> 0 | AH89: Bottom Stile Reinf. | AI89: =(TRUNC((((V100_CDIM-0.844)-1.46875)-0.25)/2)*2)/12 -> -0.1666666667 | AJ89: 0.101 | AK89: -0.01683333333 | AQ89: =IF(AND(AP89=28,$AN$4>=13,$AN$4<=18),AP89&"B",0) ->  | AV89: =IF(AND(AU89=28,$AS$4>=13,$AS$4<=18),AU89&"B",0) ->  | BG89: =IF(AND(BF89=32,$BD$4>=21,$BD$4<=25),BF89&"C",0) ->  | BL89: =IF(AND(BK89=32,$BI$4>=21,$BI$4<=25),BK89&"C",0) -> 
B90: 20 | C90: 10 | D90: 1 | F90: 20 | G90: 55 | H90: 2 | P90: 09L1 | Q90: 1.4375 | R90: 2.125 | T90: =Frame_Width-3.4375 -> -3.4375 | U90: =INT((Frame_Height-(Q90+R90+0.5+ACHEIGHT))*16+0.5)/16 -> -4.0625 | AH90: Bottom Glass | AI90: =(V100_BGW*V100_BGH)/144 -> 0.05445692274 | AJ90: =$L$12 ->  | AQ90: =IF(AND(AP90=28,$AN$4>=19,$AN$4<=23),AP90&"C",0) ->  | AV90: =IF(AND(AU90=28,$AS$4>=19,$AS$4<=23),AU90&"C",0) ->  | BG90: =IF(AND(BF90=32,$BD$4>=26,$BD$4<=30),BF90&"D",0) ->  | BL90: =IF(AND(BK90=32,$BI$4>=26,$BI$4<=30),BK90&"D",0) -> 
B91: 21 | C91: 56 | D91: 2 | F91: 21 | G91: 47 | H91: 2 | P91: 8001 | Q91: 2.5 | R91: 2.5 | T91: =Frame_Width-4.9375 -> -4.9375 | U91: =INT((Frame_Height-(Q91+R91+0.5+ACHEIGHT))*16+0.5)/16 -> -5.5 | AC91: 0501 | AD91: Length | AE91: Weight/ft | AF91: Weight | AH91: Bottom Spacer | AI91: =((V100_BGW*2)+(V100_BGH*2))/12 -> -0.953125 | AJ91: 0.0536 | AK91: -0.0510875 | AQ91: =IF(AND(AP91=28,$AN$4>=24,$AN$4<=28),AP91&"D",0) ->  | AV91: =IF(AND(AU91=28,$AS$4>=24,$AS$4<=28),AU91&"D",0) ->  | BG91: =IF(AND(BF91=32,$BD$4>=31,$BD$4<=34),BF91&"E",0) ->  | BL91: =IF(AND(BK91=32,$BI$4>=31,$BI$4<=34),BK91&"E",0) -> 
B92: 22 | C92: 56 | D92: 2 | F92: 22 | G92: 47 | H92: 2 | P92: R601 | Q92: 2.5 | R92: 2.5 | T92: =Frame_Width-4.9375 -> -4.9375 | U92: =INT((Frame_Height-(Q92+R92+0.5+ACHEIGHT))*16+0.5)/16 -> -5.5 | AC92: Top Top Rail | AD92: =(Frame_Width-4.25)/12 -> -0.3541666667 | AE92: 0.369 | AF92: =AD92*AE92 -> -0.1306875 | AH92: Bottom Hardware | AI92: 1 | AJ92: 0.36 | AK92: 0.36 | AQ92: =IF(AND(AP92=28,$AN$4>=29,$AN$4<=32),AP92&"E",0) ->  | AV92: =IF(AND(AU92=28,$AS$4>=29,$AS$4<=32),AU92&"E",0) ->  | BG92: =IF(AND(BF92=32,$BD$4>=35,$BD$4<=37),BF92&"F",0) ->  | BL92: =IF(AND(BK92=32,$BI$4>=35,$BI$4<=37),BK92&"F",0) -> 
B93: 23 | C93: 66 | D93: 2 | F93: 23 | G93: 48 | H93: 2 | P93: S140 | R93: =IF(OR(EXTSELECT=2,EXTSELECT=3),1.875,IF(OR(EXTSELECT=4,EXTSELECT=5),1.537,IF(EXTSELECT=7,1.818,IF(EXTSELECT=8,2,1.75)))) -> 1.75 | S93: 2.5583 | T93: =IF(EXTSELECT=2,Frame_Width-2.25,Frame_Width-2.3125) -> -2.3125 | V93: =IF(EXTSELECT=2,INT((Frame_Height-(R93+0.5+ACHEIGHT+S93))*16+0.5)/16,INT((Frame_Height-(R93+0.5+ACHEIGHT+S93))*16+0.5)/16) -> -4.8125 | AC93: Top Bottom Rail | AD93: =(Frame_Width-4.25)/12 -> -0.3541666667 | AE93: 0.369 | AF93: -0.1306875 | AH93: Bottom Bead | AI93: =(((Frame_Width-2.9375)*2)+((V100_CDIM-1.625)*2))/12 -> -0.7604166667 | AJ93: 0.021 | AK93: -0.01596875 | AQ93: =IF(AND(AP93=28,$AN$4>=33,$AN$4<=36),AP93&"F",0) ->  | AV93: =IF(AND(AU93=28,$AS$4>=33,$AS$4<=36),AU93&"F",0) ->  | BG93: =IF(AND(BF93=32,$BD$4>=38,$BD$4<=40),BF93&"G",0) ->  | BL93: =IF(AND(BK93=32,$BI$4>=38,$BI$4<=40),BK93&"G",0) -> 
B94: 24 | C94: 66 | D94: 2 | F94: 24 | G94: 48 | H94: 2 | P94: S144 | R94: =IF(OR(EXTSELECT=2,EXTSELECT=3),1.875,IF(OR(EXTSELECT=4,EXTSELECT=5),1.537,IF(EXTSELECT=7,1.818,IF(EXTSELECT=8,2,1.75)))) -> 1.75 | S94: 2.5583 | T94: =IF(EXTSELECT=2,Frame_Width-2.25,Frame_Width-2.3125) -> -2.3125 | V94: =IF(EXTSELECT=2,INT((Frame_Height-(R94+0.5+ACHEIGHT+S94))*16+0.5)/16,INT((Frame_Height-(R94+0.5+ACHEIGHT+S94))*16+0.5)/16) -> -4.8125 | AC94: Top Stile | AD94: =(2*(CMR!$L$42-2.25))/12 -> -0.375 | AE94: 0.369 | AF94: -0.138375 | AJ94: Top Sash | AK94: 0 | AQ94: =IF(AND(AP94=28,$AN$4>=37,$AN$4<=40),AP94&"G",0) ->  | AV94: =IF(AND(AU94=28,$AS$4>=37,$AS$4<=40),AU94&"G",0) ->  | BG94: =IF(AND(BF94=32,$BD$4>=41,$BD$4<=43),BF94&"H",0) ->  | BL94: =IF(AND(BK94=32,$BI$4>=41,$BI$4<=43),BK94&"H",0) -> 
B95: 25 | C95: 67 | D95: 2 | F95: 25 | G95: 58 | H95: 2 | P95: S146 | R95: =IF(OR(EXTSELECT=2,EXTSELECT=3),1.875,IF(OR(EXTSELECT=4,EXTSELECT=5),1.537,IF(EXTSELECT=7,1.818,IF(EXTSELECT=8,2,1.75)))) -> 1.75 | S95: 2.5583 | T95: =IF(EXTSELECT=2,Frame_Width-2.25,Frame_Width-2.3125) -> -2.3125 | V95: =IF(EXTSELECT=2,INT((Frame_Height-(R95+0.5+ACHEIGHT+S95))*16+0.5)/16,INT((Frame_Height-(R95+0.5+ACHEIGHT+S95))*16+0.5)/16) -> -4.8125 | AC95: Top Rail Reinf. | AD95: =(TRUNC(((Frame_Width-4.25)-6)/2)*2)/12 -> -0.8333333333 | AE95: 0.264 | AF95: -0.22 | AJ95: Bottom Sash | AK95: =IF(ModelNo="V100",SUM(AK85:AK93),0) -> 0 | AQ95: =IF(AND(AP95=28,$AN$4>=41,$AN$4<=43),AP95&"H",0) ->  | AV95: =IF(AND(AU95=28,$AS$4>=41,$AS$4<=43),AU95&"H",0) ->  | BG95: =IF(AND(BF95=32,$BD$4>=44,$BD$4<=45),BF95&"I",0) ->  | BL95: =IF(AND(BK95=32,$BI$4>=44,$BI$4<=45),BK95&"I",0) -> 
B96: 26 | C96: 67 | D96: 2 | F96: 26 | G96: 58 | H96: 2 | P96: 3100 | R96: 2.43 | S96: 4.375 | T96: =TRUNC((Frame_Width-2.14315)*32+0.5)/32 -> -2.125 | V96: =INT((Frame_Height-(R96+0.5+ACHEIGHT+S96))*16+0.5)/16 -> -7.3125 | AC96: Top Stile Reinf | AD96: =IF(CMR!$L$47>26.1875,((TRUNC((CMR!$L$43-10)/2)*2)/12)*2,0) -> 0 | AE96: 0.264 | AF96: 0 | AQ96: =IF(AND(AP96=28,$AN$4>=44,$AN$4<=45),AP96&"I",0) ->  | AV96: =IF(AND(AU96=28,$AS$4>=44,$AS$4<=45),AU96&"I",0) ->  | BF96: =IF(AND($BE$4<=34,$BE$4>32),34,0) ->  | BG96: =IF(AND(BF96=34,$BD$4>=11,$BD$4<=16),BF96&"A",0) ->  | BK96: =IF(AND($BJ$4<=34,$BJ$4>32),34,0) ->  | BL96: =IF(AND(BK96=34,$BI$4>=11,$BI$4<=16),BK96&"A",0) -> 
B97: 27 | C97: 77 | D97: 2 | F97: 27 | G97: 68 | H97: 2 | P97: 9001 | Q97: 2.5 | R97: 2.75 | T97: =Frame_Width-4.9375 -> -4.9375 | U97: =INT((Frame_Height-(Q97+R97+0.5+ACHEIGHT))*16+0.5)/16 -> -5.75 | AC97: Top Glass | AD97: =(CMR!$L$45*CMR!$L$47)/144 -> 0.1710340712 | AE97: =$L$12 ->  | AH97: V101 | AI97: Length | AJ97: Weight/ft | AK97: Weight | AP97: =IF(AND($AO$4<=30,$AO$4>28),30,0) ->  | AQ97: =IF(AND(AP97=30,$AN$4>=8,$AN$4<=13),AP97&"A",0) ->  | AU97: =IF(AND($AT$4<=30,$AT$4>28),30,0) ->  | AV97: =IF(AND(AU97=30,$AS$4>=8,$AS$4<=13),AU97&"A",0) ->  | BG97: =IF(AND(BF97=34,$BD$4>=17,$BD$4<=22),BF97&"B",0) ->  | BL97: =IF(AND(BK97=34,$BI$4>=17,$BI$4<=22),BK97&"B",0) -> 
B98: 28 | C98: 77 | D98: 2 | F98: 28 | G98: 68 | H98: 2 | P98: P601 | Q98: 2.5 | R98: 2.75 | T98: =Frame_Width-4.9375 -> -4.9375 | U98: =INT((Frame_Height-(Q98+R98+0.5+ACHEIGHT))*16+0.5)/16 -> -5.75 | AC98: Top Spacer | AD98: =((CMR!$L$45*2)+(CMR!$L$47*2))/12 -> -1.6875 | AE98: 0.0536 | AF98: -0.09045 | AH98: Top Top Rail | AI98: =(Frame_Width-3.4375)/12 -> -0.2864583333 | AJ98: 0.208 | AK98: =AI98*AJ98 -> -0.05958333333 | AQ98: =IF(AND(AP98=30,$AN$4>=14,$AN$4<=19),AP98&"B",0) ->  | AV98: =IF(AND(AU98=30,$AS$4>=14,$AS$4<=19),AU98&"B",0) ->  | BG98: =IF(AND(BF98=34,$BD$4>=23,$BD$4<=27),BF98&"C",0) ->  | BL98: =IF(AND(BK98=34,$BI$4>=23,$BI$4<=27),BK98&"C",0) -> 
B99: 29 | C99: 78 | D99: 2 | F99: 29 | G99: 78 | H99: 2 | P99: V100 | R99: 2 | S99: 1 | T99: =TRUNC((Frame_Width-2.188)*32+0.5)/32 -> -2.15625 | V99: =INT((Frame_Height-(R99+0.5+ACHEIGHT+S99))*16+0.5)/16 -> -3.5 | AC99: Top Hardware | AD99: 1 | AE99: 0.2 | AF99: 0.2 | AH99: Top Bottom Rail | AI99: =(Frame_Width-3.4375)/12 -> -0.2864583333 | AJ99: 0.238 | AK99: -0.06817708333 | AQ99: =IF(AND(AP99=30,$AN$4>=20,$AN$4<=24),AP99&"C",0) ->  | AV99: =IF(AND(AU99=30,$AS$4>=20,$AS$4<=24),AU99&"C",0) ->  | BG99: =IF(AND(BF99=34,$BD$4>=28,$BD$4<=32),BF99&"D",0) ->  | BL99: =IF(AND(BK99=34,$BI$4>=28,$BI$4<=32),BK99&"D",0) -> 
B100: 30 | C100: 78 | D100: 2 | F100: 30 | G100: 78 | H100: 2 | P100: V101 | Q100: 1.875 | R100: 2 | T100: =Frame_Width-3.4375 -> -3.4375 | U100: =INT((Frame_Height-(Q100+R100+0.5+ACHEIGHT))*16+0.5)/16 -> -4.375 | AC100: Top Handle Bead | AD100: =(Frame_Width-5.912)/12 -> -0.4926666667 | AE100: 0.104 | AF100: -0.05123733333 | AH100: Top Stile | AI100: =(2*(V101_DDIM-1.5625))/12 -> -0.2604166667 | AJ100: 0.199 | AK100: -0.05182291667 | AQ100: =IF(AND(AP100=30,$AN$4>=25,$AN$4<=29),AP100&"D",0) ->  | AV100: =IF(AND(AU100=30,$AS$4>=25,$AS$4<=29),AU100&"D",0) ->  | BG100: =IF(AND(BF100=34,$BD$4>=33,$BD$4<=34),BF100&"E",0) ->  | BL100: =IF(AND(BK100=34,$BI$4>=33,$BI$4<=34),BK100&"E",0) -> 
B101: 31 | C101: 88 | D101: 2 | F101: 31 | G101: 88 | H101: 2 | P101: V200 | R101: 2 | S101: 0.4375 | T101: =TRUNC((Frame_Width-2.188)*32+0.5)/32 -> -2.15625 | V101: =INT((Frame_Height-(R101+0.5+ACHEIGHT+S101))*16+0.5)/16 -> -2.9375 | AC101: Top Bead | AD101: =((Frame_Width-4.25)+((CMR!$L$42-5.0625)*2))/12 -> -1.197916667 | AE101: 0.074 | AF101: =AD101*AE101 -> -0.08864583333 | AH101: Top Rail Reinf. | AI101: =(TRUNC(((Frame_Width-9.4375)+0.5)/2)*2)/12 -> -0.6666666667 | AJ101: 0.101 | AK101: -0.06733333333 | AQ101: =IF(AND(AP101=30,$AN$4>=30,$AN$4<=33),AP101&"E",0) ->  | AV101: =IF(AND(AU101=30,$AS$4>=30,$AS$4<=33),AU101&"E",0) ->  | BG101: =IF(AND(BF101=34,$BD$4>=35,$BD$4<=37),BF101&"F",0) ->  | BL101: =IF(AND(BK101=34,$BI$4>=35,$BI$4<=37),BK101&"F",0) -> 
B102: 32 | C102: 88 | D102: 2 | F102: 32 | G102: 88 | H102: 2 | P102: 3001 | Q102: 2.0625 | R102: 1.875 | T102: =Frame_Width-4.125 -> -4.125 | U102: =INT((Frame_Height-(Q102+R102+0.5+ACHEIGHT))*16+0.5)/16 -> -4.4375 | AC102: Bottom Top Rail | AD102: =(Frame_Width-3.25)/12 -> -0.2708333333 | AE102: 0.437 | AF102: -0.1183541667 | AH102: Top Stile Reinf | AI102: =((TRUNC(((V101_DDIM-2.5625)+0.5)/2)*2)/12)*2 -> -0.3333333333 | AJ102: 0.133 | AK102: -0.04433333333 | AQ102: =IF(AND(AP102=30,$AN$4>=34,$AN$4<=37),AP102&"F",0) ->  | AV102: =IF(AND(AU102=30,$AS$4>=34,$AS$4<=37),AU102&"F",0) ->  | BG102: =IF(AND(BF102=34,$BD$4>=38,$BD$4<=40),BF102&"G",0) ->  | BL102: =IF(AND(BK102=34,$BI$4>=38,$BI$4<=40),BK102&"G",0) -> 
B103: 33 | C103: 89 | D103: 2 | F103: 33 | G103: 89 | H103: 2 | P103: 03A0 | R103: 1.875 | S103: 0.625 | T103: =Frame_Width-3.125 -> -3.125 | V103: =INT((Frame_Height-(R103+0.5+ACHEIGHT+S103))*16+0.5)/16 -> -3 | AC103: Bottom Bottom Rail | AD103: =(Frame_Width-3.25)/12 -> -0.2708333333 | AE103: 0.437 | AF103: -0.1183541667 | AH103: Top Glass | AI103: =(V101_TGW*V101_TGH)/144 -> 0.09358723958 | AJ103: =$L$12 ->  | AQ103: =IF(AND(AP103=30,$AN$4>=38,$AN$4<=40),AP103&"G",0) ->  | AV103: =IF(AND(AU103=30,$AS$4>=38,$AS$4<=40),AU103&"G",0) ->  | BG103: =IF(AND(BF103=34,$BD$4>=41,$BD$4<=43),BF103&"H",0) ->  | BL103: =IF(AND(BK103=34,$BI$4>=41,$BI$4<=43),BK103&"H",0) -> 
B104: 34 | C104: 89 | D104: 2 | F104: 34 | G104: 89 | H104: 2 | P104: 1700 | R104: 2 | S104: 0.4375 | T104: =TRUNC((Frame_Width-2.188)*32+0.5)/32 -> -2.15625 | V104: -2.9375 | AC104: Bottom Stile | AD104: =(2*(CMR!$L$43-1.25))/12 -> -0.2083333333 | AE104: 0.437 | AF104: -0.09104166667 | AH104: Top Spacer | AI104: =((V101_TGW*2)+(V101_TGH*2))/12 -> -1.260416667 | AJ104: 0.0536 | AK104: -0.06755833333 | AQ104: =IF(AND(AP104=30,$AN$4>=41,$AN$4<=43),AP104&"H",0) ->  | AV104: =IF(AND(AU104=30,$AS$4>=41,$AS$4<=43),AU104&"H",0) ->  | BG104: =IF(AND(BF104=34,$BD$4>=44,$BD$4<=45),BF104&"I",0) ->  | BL104: =IF(AND(BK104=34,$BI$4>=44,$BI$4<=45),BK104&"I",0) -> 
B105: 35 | C105: 99 | D105: 2 | F105: 35 | G105: 99 | H105: 2 | P105: 1720 | R105: 2 | S105: 0.4375 | T105: =TRUNC((Frame_Width/2-2.4375)*32+0.5)/32 -> -2.40625 | V105: -2.9375 | AC105: Bottom Rail Reinf. | AD105: =(TRUNC(((Frame_Width-3.25)-6)/2)*2)/12 -> -0.6666666667 | AE105: 0.4344 | AF105: -0.2896 | AH105: Top Hardware | AI105: 1 | AJ105: 0.2 | AK105: 0.2 | AQ105: =IF(AND(AP105=30,$AN$4>=44,$AN$4<=45),AP105&"I",0) ->  | AV105: =IF(AND(AU105=30,$AS$4>=44,$AS$4<=45),AU105&"I",0) ->  | BF105: =IF(AND($BE$4<=36,$BE$4>34),36,0) ->  | BG105: =IF(AND(BF105=36,$BD$4>=11,$BD$4<=16),BF105&"A",0) ->  | BK105: =IF(AND($BJ$4<=36,$BJ$4>34),36,0) ->  | BL105: =IF(AND(BK105=36,$BI$4>=11,$BI$4<=16),BK105&"A",0) -> 
B106: 36 | C106: 99 | D106: 2 | F106: 36 | G106: 99 | H106: 2 | P106: 1730 | R106: 2 | S106: 0.4375 | T106: =TRUNC((Frame_Width/3-2.53125)*32+0.5)/32 -> -2.5 | V106: -2.9375 | AC106: Bottom Stile Reinf. | AD106: =IF(CMR!$L$48>26.1875,((TRUNC((CMR!$L$43-4)/2)*2)/12)*2,0) -> 0 | AE106: 0.4344 | AF106: 0 | AH106: Top Bead | AI106: =(((Frame_Width-4.2)*2)+((V101_DDIM-2.875)*2))/12 -> -1.179166667 | AJ106: 0.021 | AK106: -0.0247625 | AP106: =IF(AND($AO$4<=32,$AO$4>30),32,0) ->  | AQ106: =IF(AND(AP106=32,$AN$4>=8,$AN$4<=14),AP106&"A",0) ->  | AU106: =IF(AND($AT$4<=32,$AT$4>30),32,0) ->  | AV106: =IF(AND(AU106=32,$AS$4>=8,$AS$4<=14),AU106&"A",0) ->  | BG106: =IF(AND(BF106=36,$BD$4>=17,$BD$4<=22),BF106&"B",0) ->  | BL106: =IF(AND(BK106=36,$BI$4>=17,$BI$4<=22),BK106&"B",0) -> 
B107: 37 | C107: 766 | D107: 3 | F107: 37 | G107: 478 | H107: 3 | P107: 1900 | R107: 2 | S107: 1 | T107: =TRUNC((Frame_Width-2.1875)*32+0.5)/32 -> -2.15625 | V107: -3.5 | AC107: Bottom Glass | AD107: =(CMR!$L$46*CMR!$L$48)/144 -> 0.1710340712 | AE107: =$L$12 ->  | AH107: Bottom Top Rail | AI107: =(Frame_Width-2.1875)/12 -> -0.1822916667 | AJ107: 0.224 | AK107: -0.04083333333 | AQ107: =IF(AND(AP107=32,$AN$4>=15,$AN$4<=20),AP107&"B",0) ->  | AV107: =IF(AND(AU107=32,$AS$4>=15,$AS$4<=20),AU107&"B",0) ->  | BG107: =IF(AND(BF107=36,$BD$4>=23,$BD$4<=27),BF107&"C",0) ->  | BL107: =IF(AND(BK107=36,$BI$4>=23,$BI$4<=27),BK107&"C",0) -> 
B108: 38 | C108: 766 | D108: 3 | F108: 38 | G108: 478 | H108: 3 | P108: 1920 | R108: 2 | S108: 1 | T108: =TRUNC((Frame_Width/2-2.4375)*32+0.5)/32 -> -2.40625 | V108: -3.5 | AC108: Bottom Spacer | AD108: =((CMR!$L$46*2)+(CMR!$L$48*2))/12 -> -1.6875 | AE108: 0.0536 | AF108: -0.09045 | AH108: Bottom Bottom Rail | AI108: =(Frame_Width-2.1875)/12 -> -0.1822916667 | AJ108: 0.199 | AK108: -0.03627604167 | AQ108: =IF(AND(AP108=32,$AN$4>=21,$AN$4<=25),AP108&"C",0) ->  | AV108: =IF(AND(AU108=32,$AS$4>=21,$AS$4<=25),AU108&"C",0) ->  | BG108: =IF(AND(BF108=36,$BD$4>=28,$BD$4<=32),BF108&"D",0) ->  | BL108: =IF(AND(BK108=36,$BI$4>=28,$BI$4<=32),BK108&"D",0) -> 
B109: 39 | C109: 866 | D109: 3 | F109: 39 | G109: 488 | H109: 3 | P109: 1930 | R109: 2 | S109: 1 | T109: =TRUNC((Frame_Width/3-2.53125)*32+0.5)/32 -> -2.5 | V109: -3.5 | AC109: Bottom Hardware | AD109: 1 | AE109: 0.36 | AF109: 0.36 | AH109: Bottom Stile | AI109: =(2*(V101_CDIM-0.3125))/12 -> -0.05208333333 | AJ109: 0.199 | AK109: -0.01036458333 | AQ109: =IF(AND(AP109=32,$AN$4>=26,$AN$4<=30),AP109&"D",0) ->  | AV109: =IF(AND(AU109=32,$AS$4>=26,$AS$4<=30),AU109&"D",0) ->  | BG109: =IF(AND(BF109=36,$BD$4>=33,$BD$4<=34),BF109&"E",0) ->  | BL109: =IF(AND(BK109=36,$BI$4>=33,$BI$4<=34),BK109&"E",0) -> 
B110: 40 | C110: 866 | D110: 3 | F110: 40 | G110: 488 | H110: 3 | P110: 1901 | Q110: 1.875 | R110: 2 | T110: =Frame_Width-2.1875 -> -2.1875 | U110: =INT((Frame_Height-(Q110+R110+0.5+ACHEIGHT))*16+0.5)/16 -> -4.375 | AC110: Bottom Keeper Bead | AD110: =(Frame_Width-5.912)/12 -> -0.4926666667 | AE110: 0.109 | AF110: -0.05370066667 | AH110: Bottom Rail Reinf. | AI110: =(TRUNC(((Frame_Width-8.1875)+0.5)/2)*2)/12 -> -0.5 | AJ110: 0.133 | AK110: -0.0665 | AQ110: =IF(AND(AP110=32,$AN$4>=31,$AN$4<=34),AP110&"E",0) ->  | AV110: =IF(AND(AU110=32,$AS$4>=31,$AS$4<=34),AU110&"E",0) ->  | BG110: =IF(AND(BF110=36,$BD$4>=35,$BD$4<=37),BF110&"F",0) ->  | BL110: =IF(AND(BK110=36,$BI$4>=35,$BI$4<=37),BK110&"F",0) -> 
B111: 41 | C111: 777 | D111: 3 | F111: 41 | G111: 588 | H111: 3 | P111: 1921 | Q111: 1.875 | R111: 2 | T111: =Frame_Width/2-2.4375 -> -2.4375 | U111: =INT((Frame_Height-(Q111+R111+0.5+ACHEIGHT))*16+0.5)/16 -> -4.375 | AC111: Bottom Bead | AD111: =((Frame_Width-5.912)+((CMR!$L$43-5.0625)*2))/12 -> -1.336416667 | AE111: 0.074 | AF111: -0.09889483333 | AH111: Bottom Stile Reinf. | AI111: =((TRUNC(((V101_CDIM-1.3125)+0.5)/2)*2)/12)*2 -> 0 | AJ111: 0.133 | AK111: 0 | AQ111: =IF(AND(AP111=32,$AN$4>=35,$AN$4<=37),AP111&"F",0) ->  | AV111: =IF(AND(AU111=32,$AS$4>=35,$AS$4<=37),AU111&"F",0) ->  | BG111: =IF(AND(BF111=36,$BD$4>=38,$BD$4<=40),BF111&"G",0) ->  | BL111: =IF(AND(BK111=36,$BI$4>=38,$BI$4<=40),BK111&"G",0) -> 
B112: 42 | C112: 777 | D112: 3 | F112: 42 | G112: 588 | H112: 3 | P112: 1931 | Q112: 1.875 | R112: 2 | T112: =Frame_Width/3-2.5 -> -2.5 | U112: =INT((Frame_Height-(Q112+R112+0.5+ACHEIGHT))*16+0.5)/16 -> -4.375 | AE112: Top Sash | AF112: =IF(OR(ModelNo="0501",ModelNo="B501",ModelNo="U501"),SUM(AF92:AF101),0) -> 0 | AH112: Bottom Glass | AI112: =(V101_BGW*V101_BGH)/144 -> 0.03879123264 | AJ112: =$L$12 ->  | AQ112: =IF(AND(AP112=32,$AN$4>=38,$AN$4<=40),AP112&"G",0) ->  | AV112: =IF(AND(AU112=32,$AS$4>=38,$AS$4<=40),AU112&"G",0) ->  | BG112: =IF(AND(BF112=36,$BD$4>=41,$BD$4<=43),BF112&"H",0) ->  | BL112: =IF(AND(BK112=36,$BI$4>=41,$BI$4<=43),BK112&"H",0) -> 
B113: 43 | C113: 877 | D113: 3 | F113: 43 | G113: 688 | H113: 3 | AE113: Bottom Sash | AF113: =IF(OR(ModelNo="0501",ModelNo="B501",ModelNo="U501"),SUM(AF102:AF111),0) -> 0 | AH113: Bottom Spacer | AI113: =((V101_BGW*2)+(V101_BGH*2))/12 -> -0.84375 | AJ113: 0.0536 | AK113: -0.045225 | AQ113: =IF(AND(AP113=32,$AN$4>=41,$AN$4<=43),AP113&"H",0) ->  | AV113: =IF(AND(AU113=32,$AS$4>=41,$AS$4<=43),AU113&"H",0) ->  | BG113: =IF(AND(BF113=36,$BD$4>=44,$BD$4<=45),BF113&"I",0) ->  | BL113: =IF(AND(BK113=36,$BI$4>=44,$BI$4<=45),BK113&"I",0) -> 
B114: 44 | C114: 877 | D114: 3 | F114: 44 | G114: 688 | H114: 3 | AH114: Bottom Hardware | AI114: 1 | AJ114: 0.36 | AK114: 0.36 | AQ114: =IF(AND(AP114=32,$AN$4>=44,$AN$4<=45),AP114&"I",0) ->  | AV114: =IF(AND(AU114=32,$AS$4>=44,$AS$4<=45),AU114&"I",0) ->  | BF114: =IF(AND($BE$4<=38,$BE$4>36),38,0) ->  | BG114: =IF(AND(BF114=38,$BD$4>=11,$BD$4<=16),BF114&"A",0) ->  | BK114: =IF(AND($BJ$4<=38,$BJ$4>36),38,0) ->  | BL114: =IF(AND(BK114=38,$BI$4>=11,$BI$4<=16),BK114&"A",0) -> 
B115: 45 | C115: 878 | D115: 3 | F115: 45 | G115: 788 | H115: 3 | AC115: 3001 | AD115: Length | AE115: Weight/ft | AF115: Weight | AH115: Bottom Bead | AI115: =(((Frame_Width-2.95)*2)+((V101_CDIM-1.0625)*2))/12 -> -0.66875 | AJ115: 0.021 | AK115: -0.01404375 | AP115: =IF(AND($AO$4<=34,$AO$4>32),34,0) ->  | AQ115: =IF(AND(AP115=34,$AN$4>=11,$AN$4<=16),AP115&"A",0) ->  | AU115: =IF(AND($AT$4<=34,$AT$4>32),34,0) ->  | AV115: =IF(AND(AU115=34,$AS$4>=11,$AS$4<=16),AU115&"A",0) ->  | BG115: =IF(AND(BF115=38,$BD$4>=17,$BD$4<=22),BF115&"B",0) ->  | BL115: =IF(AND(BK115=38,$BI$4>=17,$BI$4<=22),BK115&"B",0) -> 
B116: 46 | C116: 878 | D116: 3 | F116: 46 | G116: 788 | H116: 3 | AC116: Top Top Rail | AD116: =(Frame_Width-4.125)/12 -> -0.34375 | AE116: 0.297 | AF116: =AD116*AE116 -> -0.10209375 | AJ116: Top Sash | AK116: =IF(ModelNo="V101",(SUM(AK98:AK106))+5,0) -> 0 | AQ116: =IF(AND(AP116=34,$AN$4>=17,$AN$4<=22),AP116&"B",0) ->  | AV116: =IF(AND(AU116=34,$AS$4>=17,$AS$4<=22),AU116&"B",0) ->  | BG116: =IF(AND(BF116=38,$BD$4>=23,$BD$4<=27),BF116&"C",0) ->  | BL116: =IF(AND(BK116=38,$BI$4>=23,$BI$4<=27),BK116&"C",0) -> 
B117: 47 | C117: 888 | D117: 3 | F117: 47 | G117: 888 | H117: 3 | AC117: Top Bottom Rail | AD117: =(Frame_Width-4.125)/12 -> -0.34375 | AE117: 0.289 | AF117: -0.09934375 | AJ117: Bottom Sash | AK117: =IF(ModelNo="V101",SUM(AK107:AK115),0) -> 0 | AQ117: =IF(AND(AP117=34,$AN$4>=23,$AN$4<=27),AP117&"C",0) ->  | AV117: =IF(AND(AU117=34,$AS$4>=23,$AS$4<=27),AU117&"C",0) ->  | BG117: =IF(AND(BF117=38,$BD$4>=28,$BD$4<=32),BF117&"D",0) ->  | BL117: =IF(AND(BK117=38,$BI$4>=28,$BI$4<=32),BK117&"D",0) -> 
B118: 48 | C118: 888 | D118: 3 | F118: 48 | G118: 888 | H118: 3 | AC118: Top Stile | AD118: =(2*(DDIM3001-1.625))/12 -> -0.2708333333 | AE118: 0.218 | AF118: -0.05904166667 | AQ118: =IF(AND(AP118=34,$AN$4>=28,$AN$4<=32),AP118&"D",0) ->  | AV118: =IF(AND(AU118=34,$AS$4>=28,$AS$4<=32),AU118&"D",0) ->  | BG118: =IF(AND(BF118=38,$BD$4>=33,$BD$4<=34),BF118&"E",0) ->  | BL118: =IF(AND(BK118=38,$BI$4>=33,$BI$4<=34),BK118&"E",0) -> 
B119: 49 | C119: 889 | D119: 3 | F119: 49 | G119: 889 | H119: 3 | AC119: Keeper Rail Reinf. | AD119: =(TRUNC(((Frame_Width-4.125)-2)/2)*2)/12 -> -0.5 | AE119: =IF(OR(EXTSELECT=2,Frame_Width<48,Frame_Height<84),0.0516,IF(OR(EXTSELECT=3,Frame_Width>48,Frame_Height>84),0.3784,0)) -> 0.0516 | AF119: -0.0258 | AQ119: =IF(AND(AP119=34,$AN$4>=33,$AN$4<=34),AP119&"E",0) ->  | AV119: =IF(AND(AU119=34,$AS$4>=33,$AS$4<=34),AU119&"E",0) ->  | BG119: =IF(AND(BF119=38,$BD$4>=35,$BD$4<=37),BF119&"F",0) ->  | BL119: =IF(AND(BK119=38,$BI$4>=35,$BI$4<=37),BK119&"F",0) -> 
B120: 50 | C120: 889 | D120: 3 | F120: 50 | G120: 889 | H120: 3 | AC120: Top Stile Reinf | AD120: =IF(OR(Frame_Width>48,Frame_Height>84,EXTTYPE="Steel"),((TRUNC(((DDIM3001-1.625)-8)/2)*2)/12)*2,0) -> 0 | AE120: 0.456 | AF120: 0 | AH120: V200 | AI120: Length | AJ120: Weight/ft | AK120: Weight | AQ120: =IF(AND(AP120=34,$AN$4>=35,$AN$4<=37),AP120&"F",0) ->  | AV120: =IF(AND(AU120=34,$AS$4>=35,$AS$4<=37),AU120&"F",0) ->  | BG120: =IF(AND(BF120=38,$BD$4>=38,$BD$4<=40),BF120&"G",0) ->  | BL120: =IF(AND(BK120=38,$BI$4>=38,$BI$4<=40),BK120&"G",0) -> 
B121: 51 | C121: 899 | D121: 3 | F121: 51 | G121: 899 | H121: 3 | AC121: Top Glass | AD121: =(CMR!$E$103*CMR!$E$105)/144 -> 0.1285264757 | AE121: =$L$12 ->  | AH121: Top Top Rail | AI121: 0 | AJ121: 0 | AK121: =AI121*AJ121 -> 0 | AQ121: =IF(AND(AP121=34,$AN$4>=38,$AN$4<=40),AP121&"G",0) ->  | AV121: =IF(AND(AU121=34,$AS$4>=38,$AS$4<=40),AU121&"G",0) ->  | BG121: =IF(AND(BF121=38,$BD$4>=41,$BD$4<=43),BF121&"H",0) ->  | BL121: =IF(AND(BK121=38,$BI$4>=41,$BI$4<=43),BK121&"H",0) -> 
B122: 52 | C122: 899 | D122: 3 | F122: 52 | G122: 899 | H122: 3 | AC122: Top Spacer | AD122: =((CMR!$E$103*2)+(CMR!$E$105*2))/12 -> -1.494791667 | AE122: 0.0536 | AF122: -0.08012083333 | AH122: Top Bottom Rail | AI122: 0 | AJ122: 0 | AK122: 0 | AQ122: =IF(AND(AP122=34,$AN$4>=41,$AN$4<=43),AP122&"H",0) ->  | AV122: =IF(AND(AU122=34,$AS$4>=41,$AS$4<=43),AU122&"H",0) ->  | BG122: =IF(AND(BF122=38,$BD$4>=44,$BD$4<=45),BF122&"I",0) ->  | BL122: =IF(AND(BK122=38,$BI$4>=44,$BI$4<=45),BK122&"I",0) -> 
B123: 53 | C123: 999 | D123: 3 | F123: 53 | G123: 999 | H123: 3 | AC123: Top Hardware | AD123: 1 | AE123: 0.4 | AF123: 0.4 | AH123: Top Stile | AI123: 0 | AJ123: 0 | AK123: 0 | AQ123: =IF(AND(AP123=34,$AN$4>=44,$AN$4<=45),AP123&"I",0) ->  | AV123: =IF(AND(AU123=34,$AS$4>=44,$AS$4<=45),AU123&"I",0) ->  | BF123: =IF(AND($BE$4<=40,$BE$4>38),40,0) ->  | BG123: =IF(AND(BF123=40,$BD$4>=11,$BD$4<=16),BF123&"A",0) ->  | BK123: =IF(AND($BJ$4<=40,$BJ$4>38),40,0) ->  | BL123: =IF(AND(BK123=40,$BI$4>=11,$BI$4<=16),BK123&"A",0) -> 
B124: 54 | C124: 999 | D124: 3 | F124: 54 | G124: 999 | H124: 3 | AC124: Top Bead | AD124: =(((Frame_Width-5.125)*2)+((DDIM3001-4.3125)*2))/12 -> -1.572916667 | AE124: 0.072 | AF124: -0.11325 | AH124: Top Rail Reinf. | AI124: 0 | AJ124: 0 | AK124: 0 | AP124: =IF(AND($AO$4<=36,$AO$4>34),36,0) ->  | AQ124: =IF(AND(AP124=36,$AN$4>=11,$AN$4<=16),AP124&"A",0) ->  | AU124: =IF(AND($AT$4<=36,$AT$4>34),36,0) ->  | AV124: =IF(AND(AU124=36,$AS$4>=11,$AS$4<=16),AU124&"A",0) ->  | BG124: =IF(AND(BF124=40,$BD$4>=17,$BD$4<=22),BF124&"B",0) ->  | BL124: =IF(AND(BK124=40,$BI$4>=17,$BI$4<=22),BK124&"B",0) -> 
B125: 55 | C125: 6679 | D125: 4 | F125: 55 | G125: 4888 | H125: 4 | AC125: Bottom Top Rail | AD125: =(Frame_Width-3.125)/12 -> -0.2604166667 | AE125: 0.297 | AF125: -0.07734375 | AH125: Top Stile Reinf | AI125: 0 | AJ125: 0 | AK125: 0 | AQ125: =IF(AND(AP125=36,$AN$4>=17,$AN$4<=22),AP125&"B",0) ->  | AV125: =IF(AND(AU125=36,$AS$4>=17,$AS$4<=22),AU125&"B",0) ->  | BG125: =IF(AND(BF125=40,$BD$4>=23,$BD$4<=27),BF125&"C",0) ->  | BL125: =IF(AND(BK125=40,$BI$4>=23,$BI$4<=27),BK125&"C",0) -> 
B126: 56 | C126: 6679 | D126: 4 | F126: 56 | G126: 4888 | H126: 4 | AC126: Bottom Bottom Rail | AD126: =(Frame_Width-3.125)/12 -> -0.2604166667 | AE126: 0.232 | AF126: -0.06041666667 | AH126: Top Glass | AI126: 0 | AJ126: 0 | AK126: 0 | AQ126: =IF(AND(AP126=36,$AN$4>=23,$AN$4<=27),AP126&"C",0) ->  | AV126: =IF(AND(AU126=36,$AS$4>=23,$AS$4<=27),AU126&"C",0) ->  | BG126: =IF(AND(BF126=40,$BD$4>=28,$BD$4<=32),BF126&"D",0) ->  | BL126: =IF(AND(BK126=40,$BI$4>=28,$BI$4<=32),BK126&"D",0) -> 
B127: 57 | C127: 6779 | D127: 4 | F127: 57 | G127: 5888 | H127: 4 | AC127: Bottom Stile | AD127: =(2*(CDIM3001-0.625))/12 -> -0.1041666667 | AE127: 0.219 | AF127: -0.0228125 | AH127: Top Spacer | AI127: 0 | AJ127: 0 | AK127: 0 | AQ127: =IF(AND(AP127=36,$AN$4>=28,$AN$4<=32),AP127&"D",0) ->  | AV127: =IF(AND(AU127=36,$AS$4>=28,$AS$4<=32),AU127&"D",0) ->  | BG127: =IF(AND(BF127=40,$BD$4>=33,$BD$4<=34),BF127&"E",0) ->  | BL127: =IF(AND(BK127=40,$BI$4>=33,$BI$4<=34),BK127&"E",0) -> 
B128: 58 | C128: 6779 | D128: 4 | F128: 58 | G128: 5888 | H128: 4 | AC128: Bottom Rail Reinf. | AD128: =(TRUNC(((Frame_Width-3.125)-6)/2)*2)/12 -> -0.6666666667 | AE128: =IF(OR(EXTSELECT=2,Frame_Width<48,Frame_Height<84),0.0516,IF(OR(EXTSELECT=3,Frame_Width>48,Frame_Height>84),0.57,0)) -> 0.0516 | AF128: -0.0344 | AH128: Top Hardware | AI128: 0 | AJ128: 0 | AK128: 0 | AQ128: =IF(AND(AP128=36,$AN$4>=33,$AN$4<=34),AP128&"E",0) ->  | AV128: =IF(AND(AU128=36,$AS$4>=33,$AS$4<=34),AU128&"E",0) ->  | BG128: =IF(AND(BF128=40,$BD$4>=35,$BD$4<=37),BF128&"F",0) ->  | BL128: =IF(AND(BK128=40,$BI$4>=35,$BI$4<=37),BK128&"F",0) -> 
B129: 59 | C129: 7779 | D129: 4 | F129: 59 | G129: 6888 | H129: 4 | AC129: Bottom Stile Reinf. | AD129: =IF(OR(Frame_Width>48,Frame_Height>84,EXTTYPE="Steel"),((TRUNC((CDIM3001-2)/2)*2)/12)*2,0) -> 0 | AE129: 0.456 | AF129: 0 | AH129: Top Bead | AI129: 0 | AJ129: 0 | AK129: 0 | AQ129: =IF(AND(AP129=36,$AN$4>=35,$AN$4<=37),AP129&"F",0) ->  | AV129: =IF(AND(AU129=36,$AS$4>=35,$AS$4<=37),AU129&"F",0) ->  | BG129: =IF(AND(BF129=40,$BD$4>=38,$BD$4<=40),BF129&"G",0) ->  | BL129: =IF(AND(BK129=40,$BI$4>=38,$BI$4<=40),BK129&"G",0) -> 
B130: 60 | C130: 7779 | D130: 4 | F130: 60 | G130: 6888 | H130: 4 | AC130: Bottom Glass | AD130: =(CMR!$E$104*CMR!$E$106)/144 -> 0.07318793403 | AE130: =$L$12 ->  | AH130: Bottom Top Rail | AI130: =(Frame_Width-2.1875)/12 -> -0.1822916667 | AJ130: 0.224 | AK130: -0.04083333333 | AQ130: =IF(AND(AP130=36,$AN$4>=38,$AN$4<=40),AP130&"G",0) ->  | AV130: =IF(AND(AU130=36,$AS$4>=38,$AS$4<=40),AU130&"G",0) ->  | BG130: =IF(AND(BF130=40,$BD$4>=41,$BD$4<=42),BF130&"H",0) ->  | BL130: =IF(AND(BK130=40,$BI$4>=41,$BI$4<=42),BK130&"H",0) -> 
B131: 61 | C131: 6799 | D131: 4 | F131: 61 | G131: 7888 | H131: 4 | AC131: Bottom Spacer | AD131: =((CMR!$E$104*2)+(CMR!$E$106*2))/12 -> -1.161458333 | AE131: 0.0536 | AF131: -0.06225416667 | AH131: Bottom Bottom Rail | AI131: =(Frame_Width-2.1875)/12 -> -0.1822916667 | AJ131: 0.199 | AK131: -0.03627604167 | AQ131: =IF(AND(AP131=36,$AN$4>=41,$AN$4<=43),AP131&"H",0) ->  | AV131: =IF(AND(AU131=36,$AS$4>=41,$AS$4<=43),AU131&"H",0) ->  | BG131: =IF(AND(BF131=40,$BD$4>=43,$BD$4<=45),BF131&"I",0) ->  | BL131: =IF(AND(BK131=40,$BI$4>=43,$BI$4<=45),BK131&"I",0) -> 
B132: 62 | C132: 6799 | D132: 4 | F132: 62 | G132: 7888 | H132: 4 | AC132: Bottom Hardware | AD132: 1 | AE132: 0.36 | AF132: 0.36 | AH132: Bottom Stile | AI132: =((V200_CDIM-0.875)*2)/12 -> -0.1458333333 | AJ132: 0.199 | AK132: -0.02902083333 | AQ132: =IF(AND(AP132=36,$AN$4>=44,$AN$4<=45),AP132&"I",0) ->  | AV132: =IF(AND(AU132=36,$AS$4>=44,$AS$4<=45),AU132&"I",0) ->  | BF132: =IF(AND($BE$4<=42,$BE$4>40),42,0) ->  | BG132: =IF(AND(BF132=42,$BD$4>=11,$BD$4<=16),BF132&"A",0) ->  | BK132: =IF(AND($BJ$4<=42,$BJ$4>40),42,0) ->  | BL132: =IF(AND(BK132=42,$BI$4>=11,$BI$4<=16),BK132&"A",0) -> 
B133: 63 | C133: 7799 | D133: 4 | F133: 63 | G133: 8888 | H133: 4 | AC133: Bottom Bead | AD133: =(((Frame_Width-4.125)*2)+((CDIM3001-3.3125)*2))/12 -> -1.239583333 | AE133: 0.072 | AF133: -0.08925 | AH133: Bottom Rail Reinf. | AI133: =(TRUNC(((Frame_Width-3.625)-0.5)/2)*2-2)/12 -> -0.5 | AJ133: 0.133 | AK133: -0.0665 | AP133: =IF(AND($AO$4<=38,$AO$4>36),38,0) ->  | AQ133: =IF(AND(AP133=38,$AN$4>=11,$AN$4<=16),AP133&"A",0) ->  | AU133: =IF(AND($AT$4<=38,$AT$4>36),38,0) ->  | AV133: =IF(AND(AU133=38,$AS$4>=11,$AS$4<=16),AU133&"A",0) ->  | BE133: =IF(AND(BF133>0,BG133>0),BF133,0) ->  | BG133: =IF(AND(BF133=42,$BD$4>=17,$BD$4<=22),BF133&"B",0) ->  | BJ133: =IF(AND(BK133>0,BL133>0),BK133,0) ->  | BL133: =IF(AND(BK133=42,$BI$4>=17,$BI$4<=22),BK133&"B",0) -> 
B134: 64 | C134: 7799 | D134: 4 | F134: 64 | G134: 8888 | H134: 4 | AE134: Top Sash | AF134: =IF(ModelNo="3001",SUM(AF116:AF124),0) -> 0 | AH134: Bottom Stile Reinf. | AI134: =(TRUNC((((TRUNC(((V200_CDIM-0.8125)*32+0.5))/32-0.0625)-1.46875)-0.25)/2)*2)/12 -> -0.1666666667 | AJ134: 0.101 | AK134: -0.01683333333 | AO134: =IF(AND(AP134>0,AQ134>0),AP134,0) ->  | AQ134: =IF(AND(AP134=38,$AN$4>=17,$AN$4<=22),AP134&"B",0) ->  | AT134: =IF(AND(AU134>0,AV134>0),AU134,0) ->  | AV134: =IF(AND(AU134=38,$AS$4>=17,$AS$4<=22),AU134&"B",0) ->  | BG134: =IF(AND(BF134=42,$BD$4>=23,$BD$4<=27),BF134&"C",0) ->  | BL134: =IF(AND(BK134=42,$BI$4>=23,$BI$4<=27),BK134&"C",0) -> 
B135: 65 | C135: 7899 | D135: 4 | F135: 65 | G135: 8889 | H135: 4 | AE135: Bottom Sash | AF135: =IF(ModelNo="3001",SUM(AF125:AF133),0) -> 0 | AH135: Bottom Glass | AI135: =(V200_BGW*V200_BGH)/144 -> 0.0546875 | AJ135: =$L$12 ->  | AQ135: =IF(AND(AP135=38,$AN$4>=23,$AN$4<=27),AP135&"C",0) ->  | AV135: =IF(AND(AU135=38,$AS$4>=23,$AS$4<=27),AU135&"C",0) ->  | BG135: =IF(AND(BF135=42,$BD$4>=28,$BD$4<=31),BF135&"D",0) ->  | BL135: =IF(AND(BK135=42,$BI$4>=28,$BI$4<=31),BK135&"D",0) -> 
B136: 66 | C136: 7899 | D136: 4 | F136: 66 | G136: 8889 | H136: 4 | AH136: Bottom Spacer | AI136: =((V200_BGW*2)+(V200_BGH*2))/12 -> -0.9583333333 | AJ136: 0.0536 | AK136: -0.05136666667 | AQ136: =IF(AND(AP136=38,$AN$4>=28,$AN$4<=32),AP136&"D",0) ->  | AV136: =IF(AND(AU136=38,$AS$4>=28,$AS$4<=32),AU136&"D",0) ->  | BG136: =IF(AND(BF136=42,$BD$4>=32,$BD$4<=34),BF136&"E",0) ->  | BL136: =IF(AND(BK136=42,$BI$4>=32,$BI$4<=34),BK136&"E",0) -> 
B137: 67 | C137: 8899 | D137: 4 | F137: 67 | G137: 8899 | H137: 4 | AC137: 03A0 | AD137: Length | AE137: Weight/ft | AF137: Weight | AH137: Bottom Hardware | AI137: 1 | AJ137: 0.36 | AK137: 0.36 | AQ137: =IF(AND(AP137=38,$AN$4>=33,$AN$4<=34),AP137&"E",0) ->  | AV137: =IF(AND(AU137=38,$AS$4>=33,$AS$4<=34),AU137&"E",0) ->  | BG137: =IF(AND(BF137=42,$BD$4>=35,$BD$4<=37),BF137&"F",0) ->  | BL137: =IF(AND(BK137=42,$BI$4>=35,$BI$4<=37),BK137&"F",0) -> 
B138: 68 | C138: 8899 | D138: 4 | F138: 68 | G138: 8899 | H138: 4 | AC138: Bottom Top Rail | AD138: =(Frame_Width-3.125)/12 -> -0.2604166667 | AE138: 0.297 | AF138: =AD138*AE138 -> -0.07734375 | AH138: Bottom Bead | AI138: =(((Frame_Width-2.9375)*2)+((V200_CDIM-1.625)*2))/12 -> -0.7604166667 | AJ138: 0.021 | AK138: -0.01596875 | AQ138: =IF(AND(AP138=38,$AN$4>=35,$AN$4<=37),AP138&"F",0) ->  | AV138: =IF(AND(AU138=38,$AS$4>=35,$AS$4<=37),AU138&"F",0) ->  | BG138: =IF(AND(BF138=42,$BD$4>=38,$BD$4<=40),BF138&"G",0) ->  | BL138: =IF(AND(BK138=42,$BI$4>=38,$BI$4<=40),BK138&"G",0) -> 
B139: 69 | C139: 8999 | D139: 4 | F139: 69 | G139: 8999 | H139: 4 | AC139: Bottom Bottom Rail | AD139: =(Frame_Width-3.125)/12 -> -0.2604166667 | AE139: 0.232 | AF139: -0.06041666667 | AJ139: Top Sash | AK139: 0 | AQ139: =IF(AND(AP139=38,$AN$4>=38,$AN$4<=40),AP139&"G",0) ->  | AV139: =IF(AND(AU139=38,$AS$4>=38,$AS$4<=40),AU139&"G",0) ->  | BG139: =IF(AND(BF139=42,$BD$4>=41,$BD$4<=43),BF139&"H",0) ->  | BL139: =IF(AND(BK139=42,$BI$4>=41,$BI$4<=43),BK139&"H",0) -> 
B140: 70 | C140: 8999 | D140: 4 | F140: 70 | G140: 8999 | H140: 4 | AC140: Bottom Stile | AD140: =(2*(CDIM03A0-1.125))/12 -> -0.1875 | AE140: 0.219 | AF140: -0.0410625 | AJ140: Bottom Sash | AK140: =IF(ModelNo="V200",SUM(AK130:AK138),0) -> 0 | AQ140: =IF(AND(AP140=38,$AN$4>=41,$AN$4<=43),AP140&"H",0) ->  | AV140: =IF(AND(AU140=38,$AS$4>=41,$AS$4<=43),AU140&"H",0) ->  | BG140: =IF(AND(BF140=42,$BD$4>=44,$BD$4<=45),BF140&"I",0) ->  | BL140: =IF(AND(BK140=42,$BI$4>=44,$BI$4<=45),BK140&"I",0) -> 
B141: 71 | C141: 9999 | D141: 4 | F141: 71 | G141: 9999 | H141: 4 | AC141: Bottom Rail Reinf. | AD141: =(TRUNC(((Frame_Width-3.125)-6)/2)*2)/12 -> -0.6666666667 | AE141: =IF(OR(EXTSELECT=2,Frame_Width<48,Frame_Height<84),0.0516,IF(OR(EXTSELECT=3,Frame_Width>48,Frame_Height>84),0.57,0)) -> 0.0516 | AF141: -0.0344 | AQ141: =IF(AND(AP141=38,$AN$4>=44,$AN$4<=45),AP141&"I",0) ->  | AV141: =IF(AND(AU141=38,$AS$4>=44,$AS$4<=45),AU141&"I",0) ->  | BF141: =IF(AND($BE$4<=44,$BE$4>42),44,0) ->  | BG141: =IF(AND(BF141=44,$BD$4>=11,$BD$4<=16),BF141&"A",0) ->  | BK141: =IF(AND($BJ$4<=44,$BJ$4>42),44,0) ->  | BL141: =IF(AND(BK141=44,$BI$4>=11,$BI$4<=16),BK141&"A",0) -> 
B142: 72 | C142: 9999 | D142: 4 | F142: 72 | G142: 9999 | H142: 4 | AC142: Bottom Stile Reinf. | AD142: =IF(OR(Frame_Width>48,Frame_Height>84,EXTTYPE="Steel"),((TRUNC(((CDIM03A0-1.125)-4)/2)*2)/12)*2,0) -> 0 | AE142: 0.456 | AF142: 0 | AP142: =IF(AND($AO$4<=40,$AO$4>38),40,0) ->  | AQ142: =IF(AND(AP142=40,$AN$4>=11,$AN$4<=16),AP142&"A",0) ->  | AU142: =IF(AND($AT$4<=40,$AT$4>38),40,0) ->  | AV142: =IF(AND(AU142=40,$AS$4>=11,$AS$4<=16),AU142&"A",0) ->  | BG142: =IF(AND(BF142=44,$BD$4>=17,$BD$4<=22),BF142&"B",0) ->  | BL142: =IF(AND(BK142=44,$BI$4>=17,$BI$4<=22),BK142&"B",0) -> 
AC143: Bottom Glass | AD143: =(CMR!$E$120*CMR!$E$122)/144 -> 0.08968098958 | AE143: =$L$12 ->  | AH143: 1700 | AI143: Length | AJ143: Weight/ft | AK143: Weight | AQ143: =IF(AND(AP143=40,$AN$4>=17,$AN$4<=22),AP143&"B",0) ->  | AV143: =IF(AND(AU143=40,$AS$4>=17,$AS$4<=22),AU143&"B",0) ->  | BG143: =IF(AND(BF143=44,$BD$4>=23,$BD$4<=27),BF143&"C",0) ->  | BL143: =IF(AND(BK143=44,$BI$4>=23,$BI$4<=27),BK143&"C",0) -> 
AC144: Bottom Spacer | AD144: =((CMR!$E$120*2)+(CMR!$E$122*2))/12 -> -1.244791667 | AE144: 0.0536 | AF144: -0.06672083333 | AH144: Bottom Top Rail | AI144: =(Frame_Width-2.1875)/12 -> -0.1822916667 | AJ144: 0.221 | AK144: =AI144*AJ144 -> -0.04028645833 | AQ144: =IF(AND(AP144=40,$AN$4>=23,$AN$4<=27),AP144&"C",0) ->  | AV144: =IF(AND(AU144=40,$AS$4>=23,$AS$4<=27),AU144&"C",0) ->  | BG144: =IF(AND(BF144=44,$BD$4>=28,$BD$4<=32),BF144&"D",0) ->  | BL144: =IF(AND(BK144=44,$BI$4>=28,$BI$4<=32),BK144&"D",0) -> 
AC145: Bottom Hardware | AD145: 1 | AE145: 0.36 | AF145: 0.36 | AH145: Bottom Bottom Rail | AI145: =(Frame_Width-2.1875)/12 -> -0.1822916667 | AJ145: 0.196 | AK145: -0.03572916667 | AQ145: =IF(AND(AP145=40,$AN$4>=28,$AN$4<=32),AP145&"D",0) ->  | AV145: =IF(AND(AU145=40,$AS$4>=28,$AS$4<=32),AU145&"D",0) ->  | BG145: =IF(AND(BF145=44,$BD$4>=33,$BD$4<=34),BF145&"E",0) ->  | BL145: =IF(AND(BK145=44,$BI$4>=33,$BI$4<=34),BK145&"E",0) -> 
AC146: Bottom Bead | AD146: =(((Frame_Width-4.125)*2)+((CDIM03A0-3.3125)*2))/12 -> -1.239583333 | AE146: 0.072 | AF146: -0.08925 | AH146: Bottom Stile | AI146: =((CDIM_1700-0.875)*2)/12 -> -0.1458333333 | AJ146: 0.196 | AK146: -0.02858333333 | AQ146: =IF(AND(AP146=40,$AN$4>=33,$AN$4<=34),AP146&"E",0) ->  | AV146: =IF(AND(AU146=40,$AS$4>=33,$AS$4<=34),AU146&"E",0) ->  | BG146: =IF(AND(BF146=44,$BD$4>=35,$BD$4<=37),BF146&"F",0) ->  | BL146: =IF(AND(BK146=44,$BI$4>=35,$BI$4<=37),BK146&"F",0) -> 
AE147: Bottom Sash | AF147: =IF(OR(ModelNo="03A0",ModelNo="S140",ModelNo="S144",ModelNo="S146",ModelNo="S140 (HP)",ModelNo="S144 (HP)",ModelNo="S146 (HP)"),SUM(AF138:AF146),0) -> 0 | AH147: Bottom Rail Reinf. | AI147: =IF(STILE_REINF>0,(TRUNC(((Frame_Width-3.625)-0.5)/2)*2-2)/12,0) -> 0 | AJ147: 0.133 | AK147: 0 | AQ147: =IF(AND(AP147=40,$AN$4>=35,$AN$4<=37),AP147&"F",0) ->  | AV147: =IF(AND(AU147=40,$AS$4>=35,$AS$4<=37),AU147&"F",0) ->  | BG147: =IF(AND(BF147=44,$BD$4>=38,$BD$4<=40),BF147&"G",0) ->  | BL147: =IF(AND(BK147=44,$BI$4>=38,$BI$4<=40),BK147&"G",0) -> 
AH148: Bottom Stile Reinf. | AI148: =IF(STILE_REINF>0,(((((CDIM_1700-4.03125))/2)*2)/12)*2,0) -> 0 | AJ148: 0.133 | AK148: 0 | AQ148: =IF(AND(AP148=40,$AN$4>=38,$AN$4<=40),AP148&"G",0) ->  | AV148: =IF(AND(AU148=40,$AS$4>=38,$AS$4<=40),AU148&"G",0) ->  | BG148: =IF(AND(BF148=44,$BD$4>=41,$BD$4<=43),BF148&"H",0) ->  | BL148: =IF(AND(BK148=44,$BI$4>=41,$BI$4<=43),BK148&"H",0) -> 
AH149: Bottom Glass | AI149: =(Data!D1101*Data!D1102)/144 -> 0.05118815104 | AJ149: =$L$12 ->  | AQ149: =IF(AND(AP149=40,$AN$4>=41,$AN$4<=43),AP149&"H",0) ->  | AV149: =IF(AND(AU149=40,$AS$4>=41,$AS$4<=43),AU149&"H",0) ->  | BG149: =IF(AND(BF149=44,$BD$4>=44,$BD$4<=45),BF149&"I",0) ->  | BL149: =IF(AND(BK149=44,$BI$4>=44,$BI$4<=45),BK149&"I",0) -> 
AC150: 1900 | AD150: Length | AE150: Weight/ft | AF150: Weight | AH150: Bottom Spacer | AI150: =((Data!D1101*2)+(Data!D1102*2))/12 -> -0.9322916667 | AJ150: 0.0536 | AK150: -0.04997083333 | AQ150: =IF(AND(AP150=40,$AN$4>=44,$AN$4<=45),AP150&"I",0) ->  | AV150: =IF(AND(AU150=40,$AS$4>=44,$AS$4<=45),AU150&"I",0) -> 
AC151: Bottom Top Rail | AD151: =(Frame_Width-2.1875)/12 -> -0.1822916667 | AE151: 0.221 | AF151: =AD151*AE151 -> -0.04028645833 | AH151: Bottom Hardware | AI151: 1 | AJ151: 0.36 | AK151: 0.36 | AP151: =IF(AND($AO$4<=42,$AO$4>40),42,0) ->  | AQ151: =IF(AND(AP151=42,$AN$4>=11,$AN$4<=16),AP151&"A",0) ->  | AU151: =IF(AND($AT$4<=42,$AT$4>40),42,0) ->  | AV151: =IF(AND(AU151=42,$AS$4>=11,$AS$4<=16),AU151&"A",0) -> 
AC152: Bottom Bottom Rail | AD152: =(Frame_Width-2.1875)/12 -> -0.1822916667 | AE152: 0.196 | AF152: -0.03572916667 | AH152: Bottom Bead | AI152: =(((Frame_Width-2.9375)*2)+((CDIM_1700-1.625)*2))/12 -> -0.7604166667 | AJ152: 0.021 | AK152: -0.01596875 | AQ152: =IF(AND(AP152=42,$AN$4>=17,$AN$4<=22),AP152&"B",0) ->  | AV152: =IF(AND(AU152=42,$AS$4>=17,$AS$4<=22),AU152&"B",0) -> 
AC153: Bottom Stile | AD153: =((CDIM_1900-0.844)*2)/12 -> -0.1406666667 | AE153: 0.196 | AF153: -0.02757066667 | AJ153: Bottom Sash | AK153: =IF(OR(ModelNo="1700",ModelNo="S140",ModelNo="S144",ModelNo="S146"),SUM(AK144:AK152),0) -> 0 | AQ153: =IF(AND(AP153=42,$AN$4>=23,$AN$4<=27),AP153&"C",0) ->  | AV153: =IF(AND(AU153=42,$AS$4>=23,$AS$4<=27),AU153&"C",0) -> 
AC154: Bottom Rail Reinf. | AD154: =IF(STILE_REINF>0,(TRUNC(((Frame_Width-8.688)-0.5)/2)*2)/12,0) -> 0 | AE154: 0.133 | AF154: 0 | AQ154: =IF(AND(AP154=42,$AN$4>=28,$AN$4<=32),AP154&"D",0) ->  | AV154: =IF(AND(AU154=42,$AS$4>=28,$AS$4<=32),AU154&"D",0) -> 
AC155: Bottom Stile Reinf. | AD155: =IF(STILE_REINF>0,(((((CDIM_1900-4.094))/2)*2)/12)*2,0) -> 0 | AE155: 0.133 | AF155: 0 | AH155: 1720 | AI155: Length | AJ155: Weight/ft | AK155: Weight | AQ155: =IF(AND(AP155=42,$AN$4>=33,$AN$4<=34),AP155&"E",0) ->  | AV155: =IF(AND(AU155=42,$AS$4>=33,$AS$4<=34),AU155&"E",0) -> 
AC156: Bottom Glass | AD156: =(Data!D1185*Data!D1186)/144 -> 0.04998101128 | AE156: =$L$12 ->  | AH156: Bottom Top Rail | AI156: =(Frame_Width-2.4375)/12 -> -0.203125 | AJ156: 0.221 | AK156: =AI156*AJ156 -> -0.044890625 | AQ156: =IF(AND(AP156=42,$AN$4>=35,$AN$4<=37),AP156&"F",0) ->  | AV156: =IF(AND(AU156=42,$AS$4>=35,$AS$4<=37),AU156&"F",0) -> 
AC157: Bottom Spacer | AD157: =((Data!D1185*2)+(Data!D1186*2))/12 -> -0.921875 | AE157: 0.0536 | AF157: -0.0494125 | AH157: Bottom Bottom Rail | AI157: =(Frame_Width-2.4375)/12 -> -0.203125 | AJ157: 0.196 | AK157: -0.0398125 | AQ157: =IF(AND(AP157=42,$AN$4>=38,$AN$4<=40),AP157&"G",0) ->  | AV157: =IF(AND(AU157=42,$AS$4>=38,$AS$4<=40),AU157&"G",0) -> 
AC158: Bottom Hardware | AD158: 1 | AE158: 0.36 | AF158: 0.36 | AH158: Bottom Stile | AI158: =((CDIM_1720-0.84375)*2)/12 -> -0.140625 | AJ158: 0.196 | AK158: -0.0275625 | AQ158: =IF(AND(AP158=42,$AN$4>=41,$AN$4<=43),AP158&"H",0) ->  | AV158: =IF(AND(AU158=42,$AS$4>=41,$AS$4<=43),AU158&"H",0) -> 
AC159: Bottom Bead | AD159: =(((Frame_Width-2.9375)*2)+((DDIM_1900-1.625)*2))/12 -> -0.7604166667 | AE159: 0.021 | AF159: -0.01596875 | AH159: Bottom Rail Reinf. | AI159: =IF(STILE_REINF>0,(TRUNC((((Frame_Width/2-2.4375)-6.25)-0.5)/2)*2)/12,0) -> 0 | AJ159: 0.133 | AK159: 0 | AQ159: =IF(AND(AP159=42,$AN$4>=44,$AN$4<=45),AP159&"I",0) ->  | AV159: =IF(AND(AU159=42,$AS$4>=44,$AS$4<=45),AU159&"I",0) -> 
AE160: Bottom Sash | AF160: =IF(OR(ModelNo="1900",ModelNo="S140",ModelNo="S144",ModelNo="S146"),SUM(AF151:AF159),0) -> 0 | AH160: Bottom Stile Reinf. | AI160: =IF(STILE_REINF>0,(((((CDIM_1720-4.03125))/2)*2)/12)*2,0) -> 0 | AJ160: 0.133 | AK160: 0 | AP160: =IF(AND($AO$4<=44,$AO$4>42),44,0) ->  | AQ160: =IF(AND(AP160=44,$AN$4>=11,$AN$4<=16),AP160&"A",0) ->  | AU160: =IF(AND($AT$4<=44,$AT$4>42),44,0) ->  | AV160: =IF(AND(AU160=44,$AS$4>=11,$AS$4<=16),AU160&"A",0) -> 
AH161: Bottom Glass | AI161: =(Data!D1157*Data!D1158)/144 -> 0.05361599392 | AJ161: =$L$12 ->  | AQ161: =IF(AND(AP161=44,$AN$4>=17,$AN$4<=22),AP161&"B",0) ->  | AV161: =IF(AND(AU161=44,$AS$4>=17,$AS$4<=22),AU161&"B",0) -> 
AC162: 1920 | AD162: Length | AE162: Weight/ft | AF162: Weight | AH162: Bottom Spacer | AI162: =((Data!D1157*2)+(Data!D1158*2))/12 -> -0.9635416667 | AJ162: 0.0536 | AK162: -0.05164583333 | AQ162: =IF(AND(AP162=44,$AN$4>=23,$AN$4<=27),AP162&"C",0) ->  | AV162: =IF(AND(AU162=44,$AS$4>=23,$AS$4<=27),AU162&"C",0) -> 
AC163: Bottom Top Rail | AD163: =(Frame_Width/2-2.4375)/12 -> -0.203125 | AE163: 0.221 | AF163: =AD163*AE163 -> -0.044890625 | AH163: Bottom Hardware | AI163: 1 | AJ163: 0.36 | AK163: 0.36 | AQ163: =IF(AND(AP163=44,$AN$4>=28,$AN$4<=32),AP163&"D",0) ->  | AV163: =IF(AND(AU163=44,$AS$4>=28,$AS$4<=32),AU163&"D",0) -> 
AC164: Bottom Bottom Rail | AD164: =(Frame_Width/2-2.4375)/12 -> -0.203125 | AE164: 0.196 | AF164: -0.0398125 | AH164: Bottom Bead | AI164: =(((Data!D1375-0.75)*2)+((Data!D1376-0.781)*2))/12 -> -0.2551666667 | AJ164: 0.021 | AK164: -0.0053585 | AQ164: =IF(AND(AP164=44,$AN$4>=33,$AN$4<=34),AP164&"E",0) ->  | AV164: =IF(AND(AU164=44,$AS$4>=33,$AS$4<=34),AU164&"E",0) -> 
AC165: Bottom Stile | AD165: =((CDIM_1920-0.844)*2)/12 -> -0.1406666667 | AE165: 0.196 | AF165: -0.02757066667 | AJ165: Bottom Sash | AK165: =IF(ModelNo="1720",SUM(AK156:AK164),0) -> 0 | AQ165: =IF(AND(AP165=44,$AN$4>=35,$AN$4<=37),AP165&"F",0) ->  | AV165: =IF(AND(AU165=44,$AS$4>=35,$AS$4<=37),AU165&"F",0) -> 
AC166: Bottom Rail Reinf. | AD166: =IF(STILE_REINF>0,(TRUNC(((Frame_Width/2-8.9375)-0.5)/2)*2)/12,0) -> 0 | AE166: 0.133 | AF166: 0 | AQ166: =IF(AND(AP166=44,$AN$4>=38,$AN$4<=40),AP166&"G",0) ->  | AV166: =IF(AND(AU166=44,$AS$4>=38,$AS$4<=40),AU166&"G",0) -> 
AC167: Bottom Stile Reinf. | AD167: =IF(STILE_REINF>0,(((((CDIM_1920-4.094))/2)*2)/12)*2,0) -> 0 | AE167: 0.133 | AF167: 0 | AH167: 1730 | AI167: Length | AJ167: Weight/ft | AK167: Weight | AQ167: =IF(AND(AP167=44,$AN$4>=41,$AN$4<=43),AP167&"H",0) ->  | AV167: =IF(AND(AU167=44,$AS$4>=41,$AS$4<=43),AU167&"H",0) -> 
AC168: Bottom Glass | AD168: =(Data!D1241*Data!D1242)/144 -> 0.05361599392 | AE168: =$L$12 ->  | AH168: Bottom Top Rail | AI168: =(Frame_Width/3-2.53125)/12 -> -0.2109375 | AJ168: 0.221 | AK168: =AI168*AJ168 -> -0.0466171875 | AQ168: =IF(AND(AP168=44,$AN$4>=44,$AN$4<=45),AP168&"I",0) ->  | AV168: =IF(AND(AU168=44,$AS$4>=44,$AS$4<=45),AU168&"I",0) -> 
AC169: Bottom Spacer | AD169: =((Data!D1241*2)+(Data!D1242*2))/12 -> -0.9635416667 | AE169: 0.0536 | AF169: -0.05164583333 | AH169: Bottom Bottom Rail | AI169: =(Frame_Width/3-2.53125)/12 -> -0.2109375 | AJ169: 0.196 | AK169: -0.04134375
AC170: Bottom Hardware | AD170: 1 | AE170: 0.36 | AF170: 0.36 | AH170: Bottom Stile | AI170: =((CDIM_1730-0.84375)*2)/12 -> -0.140625 | AJ170: 0.196 | AK170: -0.0275625
AC171: Bottom Bead | AD171: =(((Frame_Width/2-3.2)*2)+((DDIM_1920-1.625)*2))/12 -> -0.8041666667 | AE171: 0.021 | AF171: -0.0168875 | AH171: Bottom Rail Reinf. | AI171: =IF(STILE_REINF>0,(TRUNC((((Frame_Width/3-2.53125)-7)-0.5)/2)*2)/12,0) -> 0 | AJ171: 0.133 | AK171: 0
AE172: Bottom Sash | AF172: =IF(ModelNo="1920",SUM(AF163:AF171),0) -> 0 | AH172: Bottom Stile Reinf. | AI172: =IF(STILE_REINF>0,(((((CDIM_1730-4.03125))/2)*2)/12)*2,0) -> 0 | AJ172: 0.133 | AK172: 0
AH173: Bottom Glass | AI173: =(Data!D1171*Data!D1172)/144 -> 0.05543348524 | AJ173: =$L$12 -> 
AC174: 1930 | AD174: Length | AE174: Weight/ft | AF174: Weight | AH174: Bottom Spacer | AI174: =((Data!D1171*2)+(Data!D1172*2))/12 -> -0.984375 | AJ174: 0.0536 | AK174: -0.0527625
AC175: Bottom Top Rail | AD175: =(Frame_Width/3-2.53125)/12 -> -0.2109375 | AE175: 0.221 | AF175: =AD175*AE175 -> -0.0466171875 | AH175: Bottom Hardware | AI175: 1 | AJ175: 0.36 | AK175: 0.36
AC176: Bottom Bottom Rail | AD176: =(Frame_Width/3-2.53125)/12 -> -0.2109375 | AE176: 0.196 | AF176: -0.04134375 | AH176: Bottom Bead | AI176: =(((Data!D1389-0.75)*2)+((Data!D1390-0.781)*2))/12 -> -0.2551666667 | AJ176: 0.021 | AK176: -0.0053585
AC177: Bottom Stile | AD177: =((CDIM_1930-0.844)*2)/12 -> -0.1406666667 | AE177: 0.196 | AF177: -0.02757066667 | AJ177: Bottom Sash | AK177: =IF(ModelNo="1730",SUM(AK168:AK176),0) -> 0
AC178: Bottom Rail Reinf. | AD178: =IF(STILE_REINF>0,(TRUNC(((Frame_Width/3-8.9375)-0.5)/2)*2)/12,0) -> 0 | AE178: 0.133 | AF178: 0
AC179: Bottom Stile Reinf. | AD179: =IF(STILE_REINF>0,(((((CDIM_1930-4.094))/2)*2)/12)*2,0) -> 0 | AE179: 0.133 | AF179: 0 | AH179: 1901/1921/1931 | AI179: Length | AJ179: Weight/ft | AK179: Weight
AC180: Bottom Glass | AD180: =(Data!D1255*Data!D1256)/144 -> 0.05497911241 | AE180: =$L$12 ->  | AH180: Top Top Rail | AI180: =IF(ModelNo="1901",(Frame_Width-3.4375)/12,IF(ModelNo="1921",(Frame_Width/2-3.6875)/12,IF(ModelNo="1931",(Frame_Width/3-3.75)/12,0))) -> 0 | AJ180: 0.208 | AK180: =AI180*AJ180 -> 0
AC181: Bottom Spacer | AD181: =((Data!D1255*2)+(Data!D1256*2))/12 -> -0.9791666667 | AE181: 0.0536 | AF181: -0.05248333333 | AH181: Top Bottom Rail | AI181: =IF(ModelNo="1901",(Frame_Width-3.4375)/12,IF(ModelNo="1921",(Frame_Width/2-3.6875)/12,IF(ModelNo="1931",(Frame_Width/3-3.75)/12,0))) -> 0 | AJ181: 0.238 | AK181: 0
AC182: Bottom Hardware | AD182: 1 | AE182: 0.36 | AF182: 0.36 | AH182: Top Stile | AI182: =(2*(CDIM_1901-0.90625))/12 -> -0.1510416667 | AJ182: 0.196 | AK182: -0.02960416667
AC183: Bottom Bead | AD183: =(((Frame_Width/3-3.281)*2)+((DDIM_1930-1.625)*2))/12 -> -0.8176666667 | AE183: 0.021 | AF183: -0.017171 | AH183: Top Rail Reinf. | AI183: =IF(ModelNo="1901",(Frame_Width-9.4375)/12,IF(ModelNo="1921",(Frame_Width/2-9.6875)/12,IF(ModelNo="1931",(Frame_Width/3-9.75)/12,0))) -> 0 | AJ183: 0.101 | AK183: 0
AE184: Bottom Sash | AF184: =IF(ModelNo="1930",SUM(AF175:AF183),0) -> 0 | AH184: Top Stile Reinf | AI184: =IF(STILE_REINF>0,(((((DDIM_1901-11))/2)*2)/12)*2,0) -> 0 | AJ184: 0.133 | AK184: 0
AH185: Top Glass | AI185: =IF(ModelNo="1901",(Data!D1271*Data!D1272)/144,IF(ModelNo="1921",(Data!D1288*Data!D1289)/144,IF(ModelNo="1931",(Data!D1305*Data!D1306)/144,0))) -> 0 | AJ185: =$L$12 -> 
AH186: Top Spacer | AI186: =IF(ModelNo="1901",((Data!D1271*2)+(Data!D1272*2))/12,IF(ModelNo="1921",((Data!D1288*2)+(Data!D1289*2))/12,IF(ModelNo="1931",((Data!D1305*2)+(Data!D1306*2))/12,0))) -> 0 | AJ186: 0.0536 | AK186: 0
AH187: Top Hardware | AI187: 1 | AJ187: 0.2 | AK187: 0.2
AH188: Top Bead | AI188: =(((Frame_Width-4.2)*2)+((DDIM_1901-1.75)*2))/12 -> -0.9916666667 | AJ188: 0.021 | AK188: -0.020825
AH189: Bottom Top Rail | AI189: =IF(ModelNo="1901",(Frame_Width-2.1875)/12,IF(ModelNo="1921",(Frame_Width/2-2.4375)/12,IF(ModelNo="1931",(Frame_Width/3-2.5)/12,0))) -> 0 | AJ189: 0.221 | AK189: 0
AH190: Bottom Bottom Rail | AI190: =IF(ModelNo="1901",(Frame_Width-2.1875)/12,IF(ModelNo="1921",(Frame_Width/2-2.4375)/12,IF(ModelNo="1931",(Frame_Width/3-2.5)/12,0))) -> 0 | AJ190: 0.196 | AK190: 0
AH191: Bottom Stile | AI191: =(2*(CDIM_1901-0.90625))/12 -> -0.1510416667 | AJ191: 0.196 | AK191: -0.02960416667
AH192: Bottom Rail Reinf. | AI192: =IF(AND(ModelNo="1901",STILE_REINF>0),(Frame_Width-8.4375)/12,IF(AND(ModelNo="1921",STILE_REINF>0),(Frame_Width/2-8.6875)/12,IF(AND(ModelNo="1931",STILE_REINF>0),(Frame_Width/3-8.75)/12,0))) -> 0 | AJ192: 0.133 | AK192: 0
AH193: Bottom Stile Reinf. | AI193: =IF(STILE_REINF>0,(((((CDIM_1901-4.25))/2)*2)/12)*2,0) -> 0 | AJ193: 0.133 | AK193: 0
AH194: Bottom Glass | AI194: =IF(ModelNo="1901",(Data!D1273*Data!D1274)/144,IF(ModelNo="1921",(Data!D1290*Data!D1291)/144,IF(ModelNo="1931",(Data!D1307*Data!D1308)/144,0))) -> 0 | AJ194: =$L$12 -> 
AH195: Bottom Spacer | AI195: =IF(ModelNo="1901",((Data!D1273*2)+(Data!D1274*2))/12,IF(ModelNo="1921",((Data!D1290*2)+(Data!D1291*2))/12,IF(ModelNo="1931",((Data!D1307*2)+(Data!D1308*2))/12,0))) -> 0 | AJ195: 0.0536 | AK195: 0
AH196: Bottom Hardware | AI196: 1 | AJ196: 0.36 | AK196: 0.36
AH197: Bottom Bead | AI197: =(((Frame_Width-2.95)*2)+((CDIM_1901-1.75)*2))/12 -> -0.7833333333 | AJ197: 0.021 | AK197: -0.01645
AJ198: Top Sash | AK198: =IF(OR(ModelNo="1901",ModelNo="1921",ModelNo="1931"),(SUM(AK180:AK188))+3,0) -> 0
AJ199: Bottom Sash | AK199: =IF(OR(ModelNo="1901",ModelNo="1921",ModelNo="1931"),SUM(AK189:AK197),0) -> 0

Sheet CMR (hidden)
C2: W | E2: 0100 / 0700 | J2: W | L2: S140, S144, S146 | T2: SashW | U2: SashH | V2: GlassW | W2: GlassH | X2: Radius | Y2: Weight | AP2: 1700 | AQ2: 1720 | AR2: 1730 | AS2: 1900 | AT2: 1920 | AU2: 1930 | AV2: 1901 | AW2: 1921 | AX2: 1931
C3: =IF(TYPE=1,$C$2,IF(TYPE= "",$C$2," ")) -> W | D3: 1 | E3: =Frame_Height/2 -> 0 | F3: =TRUNC($E$3*16+0.5)/16 -> 0 | J3: =IF(TYPE=1,$J$2,IF(TYPE= "",$J$2," ")) -> W | K3: 1 | L3: =Frame_Height/2-CMRD -> 6 | M3: =TRUNC($L$3*16+0.5)/16 -> 6 | P3: Frame Cut Leg | Q3: =LEG+6 -> 6 | S3: 2 | T3: =Frame_Width-3.125 -> -3.125 | U3: =CDIMS140-1.125 -> -1.125 | V3: =T3-1.6875 -> -4.8125 | W3: =U3-1.625 -> -2.75 | X3: 12.5 | Y3: =BSW03A0 -> 0 | AO3: TGW | AP3: =IF(AD20>40.5,1,0) -> 0 | AQ3: =IF(AD21>40.25,1,0) -> 0 | AR3: =IF(AD22>25.5,1,0) -> 0 | AS3: =IF(AD23>40.5,1,0) -> 0 | AT3: =IF(AD24>40.25,1,0) -> 0 | AU3: =IF(AD25>25.5,1,0) -> 0 | AV3: =IF(AD26>39.25,1,0) -> 0 | AW3: =IF(AD27>39,1,0) -> 0 | AX3: =IF(AD28>30.9375,1,0) -> 0
C4: =IF(TYPE=5,$C$2,IF(TYPE=2,IF(Frame_Height>=54.5,IF(Frame_Height<72.5,$C$2,""),""),"")) ->  | D4: 2 | E4: =CEILING(((Frame_Height/5-0.093)*3-0.03125),0.0625) -> -0.25 | F4: =TRUNC($E4*16+0.5)/16 -> -0.1875 | G4: 5 | J4: =IF(TYPE=5,$J$2,IF(TYPE=2,IF(Frame_Height>=54.5,IF(Frame_Height<72.5,$J$2,""),""),"")) ->  | K4: 2 | L4: =CEILING(((Frame_Height/3-0.22)*2-0.03125),0.0625)-CMRD -> 5.5625 | M4: =TRUNC($L$4*16+0.5)/16 -> 5.5625 | N4: 5 | P4: CMRD | Q4: =Frame_Height-Q3 -> -6 | S4: 3 | T4: =Frame_Width-3.125 -> -3.125 | U4: =CDIMS140-1.125 -> -1.125 | V4: =T4-1.6875 -> -4.8125 | W4: =U4-1.625 -> -2.75 | X4: 13 | Y4: =BSW03A0 -> 0 | AO4: TGH | AP4: =IF(AE20>35.34375,1,0) -> 0 | AQ4: =IF(AE21>35.34375,1,0) -> 0 | AR4: =IF(AE22>35.34375,1,0) -> 0 | AS4: =IF(AE23>35.34375,1,0) -> 0 | AT4: =IF(AE24>35.34375,1,0) -> 0 | AU4: =IF(AE25>35.34375,1,0) -> 0 | AV4: =IF(AE26>35.1875,1,0) -> 0 | AW4: =IF(AE27>35.1875,1,0) -> 0 | AX4: =IF(AE28>35.1875,1,0) -> 0
C5: =IF(TYPE=6,$C$2,IF(AND(TYPE=2,OR(Frame_Height<54.5,Frame_Height>=72.5)),$C$2,"")) ->  | E5: =TRUNC((Frame_Height/3-0.22)*32+0.5)/16 -> -0.375 | F5: =TRUNC($E$5*16+0.5)/16 -> -0.3125 | G5: 6 | J5: =IF(TYPE=6,$J$2,IF(AND(TYPE=2,OR(Frame_Height<54.5,Frame_Height>=72.5)),$J$2,"")) ->  | L5: =TRUNC((Frame_Height/5-0.093)*32+0.5)/16-CMRD -> 5.875 | M5: =TRUNC($L$5*16+0.5)/16 -> 5.875 | N5: 6 | P5: Sash Cut back | Q5: =IF(OR(EXTSELECT=2,EXTSELECT=3),3.125,IF(OR(EXTSELECT=4,EXTSELECT=5),2.3125,IF(EXTSELECT=6,2.25,0))) -> 0 | S5: 4 | T5: =Frame_Width-2.3125 -> -2.3125 | U5: =CDIMS140+0.125 -> 0.125 | V5: =Frame_Width-4 -> -4 | W5: =CDIMS140-1.5625 -> -1.5625 | X5: 10 | Y5: =Balance!AF23 -> 0 | AA5: Model | AB5: TSW | AC5: TSH | AD5: TGW | AE5: TGH | AF5: TGSF | AG5: BSW | AH5: BSH | AI5: BGW | AJ5: BGH | AK5: BGSF | AO5: BGW | AP5: =IF(AI20>40.5,1,0) -> 0 | AQ5: =IF(AI21>40.25,1,0) -> 0 | AR5: =IF(AI22>25.46875,1,0) -> 0 | AS5: =IF(AI23>40.5,1,0) -> 0 | AT5: =IF(AI24>40.25,1,0) -> 0 | AU5: =IF(AI25>25.5,1,0) -> 0 | AV5: =IF(AG26>40.5,1,0) -> 0 | AW5: =IF(AI27>40.25,1,0) -> 0 | AX5: =IF(AI28>32.1875,1,0) -> 0
C6: =IF(TYPE=7,$C$2,IF(TYPE=3,IF(Frame_Height>=54.5,IF(Frame_Height<72.5,$C$2,""),""),"")) ->  | D6: 3 | E6: =TRUNC((Frame_Height/5+0.156)*32+0.5)/16 -> 0.3125 | F6: =TRUNC($E$6*16+0.5)/16 -> 0.3125 | G6: 7 | J6: =IF(TYPE=7,$J$2,IF(TYPE=3,IF(Frame_Height>=54.5,IF(Frame_Height<72.5,$J$2,""),""),"")) ->  | K6: 3 | L6: =TRUNC((Frame_Height/3+0.44)*32+0.5)/16 -> 0.875 | M6: =TRUNC($L$6*16+0.5)/16 -> 0.875 | N6: 7 | S6: 5 | T6: =Frame_Width-2.3125 -> -2.3125 | U6: =CDIMS140+0.125 -> 0.125 | V6: =Frame_Width-4 -> -4 | W6: =CDIMS140-1.5625 -> -1.5625 | X6: 10 | Y6: =Balance!AF23 -> 0 | AA6: 0100 | AF6: =(AD6*AE6)/144 -> 0 | AG6: =Data!D2 -> -2.3125 | AH6: =Data!D3 -> 0.125 | AI6: =Data!D4 -> -3.9375 | AJ6: =Data!D5 -> -1.5 | AK6: =(AI6*AJ6)/144 -> 0.041015625 | AO6: BGH | AP6: =IF(AJ20>35.34375,1,0) -> 0 | AQ6: =IF(AJ21>35.34375,1,0) -> 0 | AR6: =IF(AJ22>35.34375,1,0) -> 0 | AS6: =IF(AJ23>35.3125,1,0) -> 0 | AT6: =IF(AJ24>35.34375,1,0) -> 0 | AU6: =IF(AJ25>35.3125,1,0) -> 0 | AV6: =IF(AJ26>35.1875,1,0) -> 0 | AW6: =IF(AJ27>35.1875,1,0) -> 0 | AX6: =IF(AJ28>35.1875,1,0) -> 0
C7: =IF(TYPE=8,$C$2,IF(AND(TYPE=3,OR(Frame_Height<54.5,Frame_Height>=72.5)),$C$2,"")) ->  | E7: =TRUNC((Frame_Height/3+0.44)*16+0.5)/16 -> 0.4375 | F7: =TRUNC($E$7*16+0.5)/16 -> 0.4375 | G7: 8 | J7: =IF(TYPE=8,$J$2,IF(AND(TYPE=3,OR(Frame_Height<54.5,Frame_Height>=72.5)),$J$2,"")) ->  | L7: =TRUNC((Frame_Height/5+0.156)*16+0.5)/16-CMRD -> 6.125 | M7: =TRUNC($L$7*16+0.5)/16 -> 6.125 | N7: 8 | S7: 6 | T7: =Frame_Width-2.25 -> -2.25 | U7: =CDIMS140-0.75 -> -0.75 | V7: =Frame_Width-3.9375 -> -3.9375 | W7: =CDIMS140-2.4375 -> -2.4375 | X7: 11.75 | Y7: =Balance!AF67 -> 0 | AA7: 01HP | AF7: =(AD7*AE7)/144 -> 0 | AG7: =Data!D16 -> -2.3125 | AH7: =Data!D17 -> 0.125 | AI7: =Data!D18 -> -3.9375 | AJ7: =Data!D19 -> -1.5 | AK7: =(AI7*AJ7)/144 -> 0.041015625 | AP7: =MAX(AP3:AP6) -> 0 | AQ7: 0 | AR7: 0 | AS7: 0 | AT7: 0 | AU7: 0 | AV7: 0 | AW7: 0 | AX7: 0
C8: =IF(TYPE=4,$C$2,"") ->  | D8: 4 | E8: =CMR -> 0 | F8: =TRUNC($E$8*16+0.5)/16 -> 0 | J8: =IF(TYPE=4,$J$2,"") ->  | K8: 4 | L8: =CMR-CMRD -> 6 | M8: =TRUNC($L$8*16+0.5)/16 -> 6 | S8: 7 | T8: =Frame_Width-2.1875 -> -2.1875 | U8: =CDIMS140-0.84375 -> -0.84375 | V8: =T8-1.3125 -> -3.5 | W8: =U8-1.3125 -> -2.15625 | X8: 12 | Y8: =Balance!AK153 -> 0 | AA8: 0301 | AB8: =Data!D321 -> -3.25 | AC8: =Data!D322 -> -1.625 | AD8: =Data!D325 -> -4.875 | AE8: =Data!D326 -> -3.25 | AF8: 0.1100260417 | AG8: =Data!D323 -> -2.25 | AH8: =Data!D324 -> -0.625 | AI8: =Data!D327 -> -3.875 | AJ8: =Data!D328 -> -2.25 | AK8: 0.060546875 | AN8: Stile Reinf. Driver >> | AO8: =MAX(AP8:AX8,AO9,AO10) -> 0 | AP8: =IF(ModelNo="1700",HLOOKUP(Model_Select,REINF_CHART,6,FALSE),0) -> 0 | AQ8: =IF(ModelNo="1720",HLOOKUP(Model_Select,REINF_CHART,6,FALSE),0) -> 0 | AR8: =IF(ModelNo="1730",HLOOKUP(Model_Select,REINF_CHART,6,FALSE),0) -> 0 | AS8: =IF(ModelNo="1900",HLOOKUP(Model_Select,REINF_CHART,6,FALSE),0) -> 0 | AT8: =IF(ModelNo="1920",HLOOKUP(Model_Select,REINF_CHART,6,FALSE),0) -> 0 | AU8: =IF(ModelNo="1930",HLOOKUP(Model_Select,REINF_CHART,6,FALSE),0) -> 0 | AV8: =IF(ModelNo="1901",HLOOKUP(Model_Select,REINF_CHART,6,FALSE),0) -> 0 | AW8: =IF(ModelNo="1921",HLOOKUP(Model_Select,REINF_CHART,6,FALSE),0) -> 0 | AX8: =IF(ModelNo="1931",HLOOKUP(Model_Select,REINF_CHART,6,FALSE),0) -> 0
S9: 8 | T9: =Frame_Width-2.1875 -> -2.1875 | U9: =CDIMS140-1.03125 -> -1.03125 | V9: =T9-1.3125 -> -3.5 | W9: =U9-1.3125 -> -2.34375 | X9: 12 | Y9: =Balance!AF160 -> 0 | AA9: 0501 | AB9: =Data!D355 -> -4.25 | AC9: =Data!D356 -> -2.25 | AD9: =Data!D359 -> -6.0625 | AE9: =Data!D360 -> -4.0625 | AF9: 0.1710340712 | AG9: =Data!D357 -> -3.25 | AH9: =Data!D358 -> -1.25 | AI9: =Data!D361 -> -6.0625 | AJ9: =Data!D362 -> -4.0625 | AK9: 0.1710340712 | AN9: Oriel >> | AO9: =IF(TYPE>1,1,0) -> 0
B10: Dim.,"D" | D10: = | E10: =IF($C$3=$C$2,$F$3,IF($C$4=$C$2,$F$4,IF($C$5=$C$2,$F$5,IF($C$6=$C$2,$F$6,IF($C$7=$C$2,$F$7,IF($C$8=$C$2,$F$8,$F$3)))))) -> 0 | I10: Dim.,"D" | K10: = | L10: =IF($J$3=$J$2,$M$3,IF($J$4=$J$2,$M$4,IF($J$5=$J$2,$M$5,IF($J$6=$J$2,$M$6,IF($J$7=$J$2,$M$7,IF($J$8=$J$2,$M$8,$M$3)))))) -> 6 | T10: =VLOOKUP(EXTSELECT,$S$3:$Y$9,2,FALSE) ->  | U10: =VLOOKUP(EXTSELECT,$S$3:$Y$9,3,FALSE) ->  | V10: =VLOOKUP(EXTSELECT,$S$3:$Y$9,4,FALSE) ->  | W10: =VLOOKUP(EXTSELECT,$S$3:$Y$9,5,FALSE) ->  | X10: =VLOOKUP(EXTSELECT,$S$3:$Y$9,6,FALSE) ->  | Y10: =VLOOKUP(EXTSELECT,$S$3:$Y$9,7,FALSE) ->  | AA10: 0700 | AF10: 0 | AG10: =Data!D449 -> -2.3125 | AH10: =Data!D450 -> 0.125 | AI10: =Data!D451 -> -3.9375 | AJ10: =Data!D452 -> -1.5 | AK10: 0.041015625 | AN10: HP >> | AO10: =IF(EXTTYPE="HP Package",1,0) -> 0
B11: Dim.,"C" | D11: = | E11: =Frame_Height-$E$10 -> 0 | I11: Dim.,"C" | K11: = | L11: =Q3-DDIMS140 -> 0 | AA11: 07HP | AF11: 0 | AG11: =Data!D463 -> -2.3125 | AH11: =Data!D464 -> 0.125 | AI11: =Data!D465 -> -3.9375 | AJ11: =Data!D466 -> -1.5 | AK11: 0.041015625
AA12: i201 | AB12: =Data!D628 -> -3.25 | AC12: =Data!D629 -> -1.5625 | AD12: =Data!D632 -> -4.875 | AE12: =Data!D633 -> -3.15625 | AF12: 0.1068522135 | AG12: =Data!D630 -> -2.25 | AH12: =Data!D631 -> -0.5625 | AI12: =Data!D634 -> -3.875 | AJ12: =Data!D635 -> -2.15625 | AK12: 0.05802408854
B13: Top Glass Width | E13: =TRUNC((Frame_Width-2)*16+0.5)/16 -> -1.9375 | I13: Top Glass Width | L13: =TRUNC((Frame_Width-2*EXT)*16+0.5)/16 -> 0 | M13: Glass R: | N13: =FrameR-EXT ->  | O13: F | P13: =IF(Frame_Width>=(Frame_Height-LEG),2*(ASIN((EXT*2)/(2*N13))),2*(ASIN(((N13-(Frame_Width-2*EXT))*2)/(2*N13)))) ->  | AA13: S140 | AG13: =IF(AND(Frame_Width>0,Frame_Height>0,LEG>0),BSW_S140,0) -> 0 | AH13: =IF(AND(Frame_Width>0,Frame_Height>0,LEG>0),BSH_S140,0) -> 0 | AI13: =IF(AND(Frame_Width>0,Frame_Height>0,LEG>0),BGW_S140,0) -> 0 | AJ13: =IF(AND(Frame_Width>0,Frame_Height>0,LEG>0),BGH_S140,0) -> 0 | AK13: =IF(AND(Frame_Width>0,Frame_Height>0,LEG>0),(AI13*AJ13)/144,0) -> 0
B14: Bottom Glass Width | E14: =TRUNC((Frame_Width-4)*16+0.5)/16 -> -3.9375 | I14: Bottom Glass Width | L14: =IF(EXTSELECT=5,$L$30,IF(EXTSELECT=2,$E$120,TRUNC((Frame_Width-4)*16+0.5)/16)) -> -3.9375 | M14: Glass h: | N14: =IF(ModelNo="S146",N13-(SQRT((4*N13^2)-(L13*2+(2*EXT))^2))/2,N13-(SQRT((4*N13^2)-(L13)^2)/2)) ->  | O14: d | P14: =N13*COS(P13/2) ->  | AA14: S144 | AG14: =IF(AND(Frame_Width>0,Frame_Height>0,LEG>0),BSW_S140,0) -> 0 | AH14: =IF(AND(Frame_Width>0,Frame_Height>0,LEG>0),BSH_S140,0) -> 0 | AI14: =IF(AND(Frame_Width>0,Frame_Height>0,LEG>0),BGW_S140,0) -> 0 | AJ14: =IF(AND(Frame_Width>0,Frame_Height>0,LEG>0),BGH_S140,0) -> 0 | AK14: =IF(AND(Frame_Width>0,Frame_Height>0,LEG>0),(AI14*AJ14)/144,0) -> 0
B15: Top Glass Height | E15: =TRUNC(($E$10-1.9375)*16+0.5)/16 -> -1.875 | I15: Top Glass Height | L15: =IF(ModelNo="S146",Frame_Height-($L$11+$N$15+EXT+P15),Frame_Height-($L$11+N15+EXT)) -> -0.5137 | N15: =IF(OR(EXTSELECT=4,EXTSELECT=5),0.9198,IF(OR(EXTSELECT=2,EXTSELECT=3),0.264,IF(OR(EXTSELECT=7,EXTSELECT=8),0.407,0.5137))) -> 0.5137 | O15: h | P15: =N13-P14 ->  | AA15: S146 | AG15: =IF(AND(Frame_Width>0,Frame_Height>0,LEG>0),BSW_S140,0) -> 0 | AH15: =IF(AND(Frame_Width>0,Frame_Height>0,LEG>0),BSH_S140,0) -> 0 | AI15: =IF(AND(Frame_Width>0,Frame_Height>0,LEG>0),BGW_S140,0) -> 0 | AJ15: =IF(AND(Frame_Width>0,Frame_Height>0,LEG>0),BGH_S140,0) -> 0 | AK15: =IF(AND(Frame_Width>0,Frame_Height>0,LEG>0),(AI15*AJ15)/144,0) -> 0
B16: Bottom Glass Height | E16: =TRUNC(($E$11-1.5625)*16+0.5)/16 -> -1.5 | I16: Bottom Glass Height | L16: =IF(EXTSELECT=5,$L$32,IF(EXTSELECT=2,$E$122,TRUNC(($L$11-1.5625)*16+0.5)/16)) -> -1.5 | M16: Top Glass Leg: | N16: =IF(ModelNo="S146",L15-N14+P15,L15-N14) ->  | P16: =IF(ModelNo="S146",((Frame_Height-LEG)/2)+(((Frame_Width*2)^2)/(8*(Frame_Height-LEG))),((Frame_Height-LEG)/2)+((Frame_Width^2)/(8*(Frame_Height-LEG)))) ->  | AA16: 3100 | AF16: 0 | AG16: =Data!D585 -> -2.125 | AH16: =Data!D586 -> -0.34375 | AI16: =Data!D587 -> -4.75 | AJ16: =Data!D588 -> -2.96875 | AK16: 0.09792751736
AA17: 03A0 | AF17: 0 | AG17: =Data!D1049 -> -3.125 | AH17: =Data!D1050 -> -1.125 | AI17: =Data!D1051 -> -4.75 | AJ17: =Data!D1052 -> -2.71875 | AK17: 0.08968098958
C18: W | E18: 0201 | J18: W | L18: 02A0 | AA18: L201 | AB18: =Data!D211 -> -3.25 | AC18: =Data!D212 -> -1.5625 | AD18: =Data!D215 -> -4.875 | AE18: =Data!D216 -> -3.15625 | AF18: 0.1068522135 | AG18: =Data!D213 -> -2.25 | AH18: =Data!D214 -> -0.5625 | AI18: =Data!D217 -> -3.875 | AJ18: =Data!D218 -> -2.15625 | AK18: 0.05802408854
C19: =IF(TYPE=1,C18,IF(TYPE= "",C18,"")) -> W | D19: 1 | E19: =Frame_Height/2 -> 0 | F19: =TRUNC(E19*16+0.5)/16 -> 0 | J19: =IF(TYPE=1,$J$18,IF(TYPE= "",$J$18," ")) -> W | K19: 1 | L19: =Frame_Height/2 -> 0 | M19: =TRUNC($L$19*16+0.5)/16 -> 0 | AA19: 3001 | AB19: =Data!D991 -> -4.125 | AC19: =Data!D992 -> -1.625 | AD19: =Data!D995 -> -5.75 | AE19: =Data!D996 -> -3.21875 | AF19: 0.1285264757 | AG19: =Data!D993 -> -3.125 | AH19: =Data!D994 -> -0.625 | AI19: =Data!D997 -> -4.75 | AJ19: =Data!D998 -> -2.21875 | AK19: 0.07318793403
C20: =IF(TYPE=5,C18,IF(TYPE=2,IF(Frame_Height>=54.5,IF(Frame_Height<72.5,C18,""),""),"")) ->  | D20: 2 | E20: =INT((Frame_Height/5)*48+0.5)/16 -> 0 | F20: 0 | G20: 5 | J20: =IF(TYPE=5,$J$18,IF(TYPE=2,IF(Frame_Height>=54.5,IF(Frame_Height<72.5,$J$18,""),""),"")) ->  | K20: 2 | L20: =INT((Frame_Height/5)*48+0.5)/16 -> 0 | M20: =TRUNC($L$20*16+0.5)/16 -> 0 | N20: 5 | AA20: 1700 | AD20: =Data!D1103 -> -3.46875 | AE20: =Data!D1104 -> -2.125 | AF20: 0.05118815104 | AG20: =Data!D1099 -> -2.15625 | AH20: =Data!D1100 -> -0.8125 | AI20: =Data!D1101 -> -3.46875 | AJ20: =Data!D1102 -> -2.125 | AK20: 0.05118815104
C21: =IF(TYPE=6,C18,IF(AND(TYPE=2,OR(Frame_Height<54.5,Frame_Height>=72.5)),C18,"")) ->  | E21: =INT((Frame_Height/3-0.22)*32+0.5)/16 -> -0.4375 | F21: -0.375 | G21: 6 | J21: =IF(TYPE=6,$J$18,IF(AND(TYPE=2,OR(Frame_Height<54.5,Frame_Height>=72.5)),$J$18,"")) ->  | L21: =INT((Frame_Height/3-0.22)*32+0.5)/16 -> -0.4375 | M21: =TRUNC($L$21*16+0.5)/16 -> -0.375 | N21: 6 | AA21: 1720 | AD21: =Data!D1159 -> -3.71875 | AE21: =Data!D1160 -> -2.125 | AF21: 0.05487738715 | AG21: =Data!D1155 -> -2.40625 | AH21: =Data!D1156 -> -0.8125 | AI21: =Data!D1157 -> -3.6875 | AJ21: =Data!D1158 -> -2.09375 | AK21: 0.05361599392
C22: =IF(TYPE=7,C18,IF(TYPE=3,IF(Frame_Height>=54.5,IF(Frame_Height<72.5,C18,""),""),"")) ->  | D22: 3 | E22: =INT((Frame_Height/5+0.55)*32+0.5)/16 -> 1.125 | F22: 1.125 | G22: 7 | J22: =IF(TYPE=7,$J$18,IF(TYPE=3,IF(Frame_Height>=54.5,IF(Frame_Height<72.5,$J$18,""),""),"")) ->  | K22: 3 | L22: =INT((Frame_Height/5+0.55)*32+0.5)/16 -> 1.125 | M22: =TRUNC($L$22*16+0.5)/16 -> 1.125 | N22: 7 | AA22: 1730 | AD22: =Data!D1173 -> -3.8125 | AE22: =Data!D1174 -> -2.125 | AF22: 0.05626085069 | AG22: =Data!D1169 -> -2.5 | AH22: =Data!D1170 -> -0.8125 | AI22: =Data!D1171 -> -3.8125 | AJ22: =Data!D1172 -> -2.09375 | AK22: 0.05543348524
C23: =IF(TYPE=8,C18,IF(AND(TYPE=3,OR(Frame_Height<54.5,Frame_Height>=72.5)),C18,"")) ->  | E23: =INT((Frame_Height/3+1.4)*16+0.5)/16 -> 1.375 | F23: 1.375 | G23: 8 | J23: =IF(TYPE=8,$J$18,IF(AND(TYPE=3,OR(Frame_Height<54.5,Frame_Height>=72.5)),$J$18,"")) ->  | L23: =INT((Frame_Height/3+1.4)*16+0.5)/16 -> 1.375 | M23: =TRUNC($L$23*16+0.5)/16 -> 1.375 | N23: 8 | AA23: 1900 | AD23: =Data!D1187 -> -3.46875 | AE23: =Data!D1188 -> -2.125 | AF23: 0.05118815104 | AG23: =Data!D1183 -> -2.15625 | AH23: =Data!D1184 -> -0.8125 | AI23: =Data!D1185 -> -3.4375 | AJ23: =Data!D1186 -> -2.09375 | AK23: 0.04998101128
C24: =IF(TYPE=4,C18,"") ->  | D24: 4 | E24: =CMR -> 0 | F24: 0 | J24: =IF(TYPE=4,$J$18,"") ->  | K24: 4 | L24: =CMR -> 0 | M24: =TRUNC($L$24*16+0.5)/16 -> 0 | AA24: 1920 | AD24: =Data!D1243 -> -3.71875 | AE24: =Data!D1244 -> -2.125 | AF24: 0.05487738715 | AG24: =Data!D1239 -> -2.40625 | AH24: =Data!D1240 -> -0.8125 | AI24: =Data!D1241 -> -3.6875 | AJ24: =Data!D1242 -> -2.09375 | AK24: 0.05361599392
AA25: 1930 | AD25: =Data!D1257 -> -3.8125 | AE25: =Data!D1258 -> -2.125 | AF25: 0.05626085069 | AG25: =Data!D1253 -> -2.5 | AH25: =Data!D1254 -> -0.8125 | AI25: =Data!D1255 -> -3.78125 | AJ25: =Data!D1256 -> -2.09375 | AK25: 0.05497911241
B26: Dim.,"D" | D26: = | E26: =TRUNC((IF(C19=C18,F19,IF(C20=C18,F20,IF(C21=C18,F21,IF(C22=C18,F22,IF(C23=C18,F23,IF(C24=C18,F24,F19)))))))*32+0.5)/32 -> 0 | I26: Dim.,"D" | K26: = | L26: =IF($J$19=$J$18,$M$19,IF($J$20=$J$18,$M$20,IF($J$21=$J$18,$M$21,IF($J$22=$J$18,$M$22,IF($J$23=$J$18,$M$23,IF($J$24=$J$18,$M$24,$M$19)))))) -> 0 | AA26: 1901 | AB26: =Data!D1267 -> -3.4375 | AC26: =Data!D1268 -> -0.90625 | AD26: =Data!D1271 -> -4.75 | AE26: =Data!D1272 -> -2.21875 | AF26: 0.07318793403 | AG26: =Data!D1269 -> -2.1875 | AH26: =Data!D1270 -> -0.90625 | AI26: =Data!D1273 -> -3.5 | AJ26: =Data!D1274 -> -2.21875 | AK26: 0.05392795139
B27: Dim.,"C" | D27: = | E27: =TRUNC((Frame_Height-E26)*32+0.5)/32 -> 0 | I27: Dim.,"C" | K27: = | L27: =Frame_Height-$L$26 -> 0 | AA27: 1921 | AB27: =Data!D1284 -> -3.6875 | AC27: =Data!D1285 -> -0.90625 | AD27: =Data!D1288 -> -5 | AE27: =Data!D1289 -> -2.21875 | AF27: 0.07703993056 | AG27: =Data!D1286 -> -2.4375 | AH27: =Data!D1287 -> -0.90625 | AI27: =Data!D1290 -> -3.75 | AJ27: =Data!D1291 -> -2.21875 | AK27: 0.05777994792
AA28: 1931 | AB28: =Data!D1301 -> -3.75 | AC28: =Data!D1302 -> -0.90625 | AD28: =Data!D1305 -> -5.0625 | AE28: =Data!D1306 -> -2.21875 | AF28: =(AD28*AE28)/144 -> 0.07800292969 | AG28: =Data!D1303 -> -2.5 | AH28: =Data!D1304 -> -0.90625 | AI28: =Data!D1307 -> -3.8125 | AJ28: =Data!D1308 -> -2.21875 | AK28: 0.05874294705
B29: Top Glass Width | E29: =TRUNC((Frame_Width-4.9375)*16+0.5)/16 -> -4.875 | I29: Top Glass Width | L29: =TRUNC((Frame_Width-3.4375)*16+0.5)/16 -> -3.375 | AA29: =ModelNo -> Select Model | AB29: =VLOOKUP(ModelNo,ORL_LIMIT,2,FALSE) ->  | AC29: =VLOOKUP(ModelNo,ORL_LIMIT,3,FALSE) ->  | AD29: =VLOOKUP(ModelNo,ORL_LIMIT,4,FALSE) ->  | AE29: =VLOOKUP(ModelNo,ORL_LIMIT,5,FALSE) ->  | AF29: =VLOOKUP(ModelNo,ORL_LIMIT,6,FALSE) ->  | AG29: =VLOOKUP(ModelNo,ORL_LIMIT,7,FALSE) ->  | AH29: =VLOOKUP(ModelNo,ORL_LIMIT,8,FALSE) ->  | AI29: =VLOOKUP(ModelNo,ORL_LIMIT,9,FALSE) ->  | AJ29: =VLOOKUP(ModelNo,ORL_LIMIT,10,FALSE) ->  | AK29: =VLOOKUP(ModelNo,ORL_LIMIT,11,FALSE) -> 
B30: Bottom Glass Width | E30: =TRUNC((Frame_Width-3.9375)*16+0.5)/16 -> -3.875 | I30: Bottom Glass Width | L30: =TRUNC((Frame_Width-3.90625)*16+0.5)/16 -> -3.875
B31: Top Glass Height | E31: =TRUNC((E26-3.1875)*32+0.5)/32 -> -3.15625 | I31: Top Glass Height | L31: =TRUNC(($L$26-2.25)*16+0.5)/16 -> -2.1875
B32: Bottom Glass Height | E32: =TRUNC((E27-2.1875)*32+0.5)/32 -> -2.15625 | I32: Bottom Glass Height | L32: =TRUNC(($L$27-2.40625)*16+0.5)/16 -> -2.375
C34: W | E34: 0301 | J34: W | L34: 0501
C35: =IF(TYPE=1,$C34,IF(TYPE= "",$C34," ")) -> W | D35: 1 | E35: =Frame_Height/2 -> 0 | F35: =TRUNC($E35*16+0.5)/16 -> 0 | J35: =IF(TYPE=1,J34,IF(TYPE= "",J34," ")) -> W | K35: 1 | L35: =Frame_Height/2 -> 0 | M35: =TRUNC(L35*16+0.5)/16 -> 0
C36: =IF(TYPE=5,$C34,IF(TYPE=2,IF(Frame_Height>=54.5,IF(Frame_Height<72.5,$C34,""),""),"")) ->  | D36: 2 | E36: =INT((Frame_Height/5)*48+0.5)/16 -> 0 | F36: 0 | G36: 5 | J36: =IF(TYPE=5,J34,IF(TYPE=2,IF(Frame_Height>=54.5,IF(Frame_Height<72.5,J34,""),""),"")) ->  | K36: 2 | L36: =CEILING(((Frame_Height/5-0.24)*3-0.03125),0.0625) -> -0.75 | M36: -0.6875 | N36: 5
C37: =IF(TYPE=6,$C34,IF(AND(TYPE=2,OR(Frame_Height<54.5,Frame_Height>=72.5)),$C34,"")) ->  | E37: =INT((Frame_Height/3-0.22)*32+0.5)/16 -> -0.4375 | F37: -0.375 | G37: 6 | J37: =IF(TYPE=6,J34,IF(AND(TYPE=2,OR(Frame_Height<54.5,Frame_Height>=72.5)),J34,"")) ->  | L37: =TRUNC((Frame_Height/3-0.62)*32+0.5)/16 -> -1.1875 | M37: -1.125 | N37: 6
C38: =IF(TYPE=7,$C34,IF(TYPE=3,IF(Frame_Height>=54.5,IF(Frame_Height<72.5,$C34,""),""),"")) ->  | D38: 3 | E38: =INT((Frame_Height/5+0.55)*32+0.5)/16 -> 1.125 | F38: 1.125 | G38: 7 | J38: =IF(TYPE=7,J34,IF(TYPE=3,IF(Frame_Height>=54.5,IF(Frame_Height<72.5,J34,""),""),"")) ->  | K38: 3 | L38: =TRUNC((Frame_Height/5+0.38)*32+0.5)/16 -> 0.75 | M38: 0.75 | N38: 7
C39: =IF(TYPE=8,$C34,IF(AND(TYPE=3,OR(Frame_Height<54.5,Frame_Height>=72.5)),$C34,"")) ->  | E39: =INT((Frame_Height/3+1.4)*16+0.5)/16 -> 1.375 | F39: 1.375 | G39: 8 | J39: =IF(TYPE=8,J34,IF(AND(TYPE=3,OR(Frame_Height<54.5,Frame_Height>=72.5)),J34,"")) ->  | L39: =TRUNC((Frame_Height/3+1.3)*16+0.5)/16 -> 1.3125 | M39: 1.3125 | N39: 8
C40: =IF(TYPE=4,$C34,"") ->  | D40: 4 | E40: =CMR -> 0 | F40: 0 | J40: =IF(TYPE=4,J34,"") ->  | K40: 4 | L40: =CMR -> 0 | M40: 0
B42: Dim.,"D" | D42: = | E42: =IF($C35=$C34,$F35,IF($C36=$C34,$F36,IF($C37=$C34,$F37,IF($C38=$C34,$F38,IF($C39=$C34,$F39,IF($C40=$C34,$F40)))))) -> 0 | I42: Dim.,"D" | K42: = | L42: =IF(J35=J34,M35,IF(J36=J34,M36,IF(J37=J34,M37,IF(J38=J34,M38,IF(J39=J34,M39,IF(J40=J34,M40,M35)))))) -> 0
B43: Dim.,"C" | D43: = | E43: =Frame_Height-$E42 -> 0 | I43: Dim.,"C" | K43: = | L43: =Frame_Height-L42 -> 0
B45: Top Glass Width | E45: =TRUNC((Frame_Width-4.9375)*16+0.5)/16 -> -4.875 | I45: Top Glass Width | L45: =TRUNC((Frame_Width-6.125)*16+0.5)/16 -> -6.0625
B46: Bottom Glass Width | E46: =TRUNC((Frame_Width-3.9375)*16+0.5)/16 -> -3.875 | I46: Bottom Glass Width | L46: =TRUNC((Frame_Width-6.125)*16+0.5)/16 -> -6.0625
B47: Top Glass Height | E47: =TRUNC(($E42-3.3125)*16+0.5)/16 -> -3.25 | I47: Top Glass Height | L47: =TRUNC((L42-4.125)*16+0.5)/16 -> -4.0625
B48: Bottom Glass Height | E48: =TRUNC(($E43-2.3125)*16+0.5)/16 -> -2.25 | I48: Bottom Glass Height | L48: =TRUNC((L43-4.125)*16+0.5)/16 -> -4.0625
C50: W | E50: 0901, 0981, 09A1, 09B1 | J50: W | L50: 8001
C51: =IF(TYPE=1,C50,IF(TYPE= "",C50," ")) -> W | D51: 1 | E51: =Frame_Height/2 -> 0 | F51: =TRUNC(E51*16+0.5)/16 -> 0 | J51: =IF(TYPE=1,J50,IF(TYPE= "",J50," ")) -> W | K51: 1 | L51: =Frame_Height/2 -> 0 | M51: =TRUNC(L51*16+0.5)/16 -> 0
C52: =IF(TYPE=5,C50,IF(TYPE=2,IF(Frame_Height>=54.5,IF(Frame_Height<72.5,C50,""),""),"")) ->  | D52: 2 | E52: =(Frame_Height/3-0.31)*2 -> -0.62 | F52: -0.5625 | G52: 5 | J52: =IF(TYPE=5,J50,IF(TYPE=2,IF(Frame_Height>=54.5,IF(Frame_Height<72.5,J50,""),""),"")) ->  | K52: 2 | L52: =CEILING(((Frame_Height/5-0.24)*3-0.03125),0.0625) -> -0.75 | M52: -0.6875 | N52: 5
C53: =IF(TYPE=6,C50,IF(AND(TYPE=2,OR(Frame_Height<54.5,Frame_Height>=72.5)),C50,"")) ->  | E53: =(Frame_Height/5-0.2)*3 -> -0.6 | F53: -0.5625 | G53: 6 | J53: =IF(TYPE=6,J50,IF(AND(TYPE=2,OR(Frame_Height<54.5,Frame_Height>=72.5)),J50,"")) ->  | L53: =TRUNC((Frame_Height/3-0.62)*32+0.5)/16 -> -1.1875 | M53: -1.125 | N53: 6
C54: =IF(TYPE=7,C50,IF(TYPE=3,IF(Frame_Height>=54.5,IF(Frame_Height<72.5,C50,""),""),"")) ->  | D54: 3 | E54: =(Frame_Height/3+0.65) -> 0.65 | F54: 0.625 | G54: 7 | J54: =IF(TYPE=7,J50,IF(TYPE=3,IF(Frame_Height>=54.5,IF(Frame_Height<72.5,J50,""),""),"")) ->  | K54: 3 | L54: =TRUNC((Frame_Height/5+0.38)*32+0.5)/16 -> 0.75 | M54: 0.75 | N54: 7
C55: =IF(TYPE=8,C50,IF(AND(TYPE=3,OR(Frame_Height<54.5,Frame_Height>=72.5)),C50,"")) ->  | E55: =(Frame_Height/5+0.31)*2 -> 0.62 | F55: 0.625 | G55: 8 | J55: =IF(TYPE=8,J50,IF(AND(TYPE=3,OR(Frame_Height<54.5,Frame_Height>=72.5)),J50,"")) ->  | L55: =TRUNC((Frame_Height/3+1.3)*16+0.5)/16 -> 1.3125 | M55: 1.3125 | N55: 8
C56: =IF(TYPE=4,C50,"") ->  | D56: 4 | E56: =CMR -> 0 | F56: 0 | J56: =IF(TYPE=4,J50,"") ->  | K56: 4 | L56: =CMR -> 0 | M56: 0
C58: Dim.,"D" | D58: = | E58: =IF(C51=C50,F51,IF(C52=C50,F52,IF(C53=C50,F53,IF(C54=C50,F54,IF(C55=C50,F55,IF(C56=C50,F56,F51)))))) -> 0 | J58: Dim.,"D" | K58: = | L58: =IF(J51=J50,M51,IF(J52=J50,M52,IF(J53=J50,M53,IF(J54=J50,M54,IF(J55=J50,M55,IF(J56=J50,M56,M51)))))) -> 0
C59: Dim.,"C" | D59: = | E59: =Frame_Height-E58 -> 0 | J59: Dim.,"C" | K59: = | L59: =Frame_Height-L58 -> 0
D61: Top Glass Width | E61: =TRUNC((Frame_Width-4.875)*16+0.5)/16 -> -4.8125 | K61: Top Glass Width | L61: =TRUNC((Frame_Width-6.8125)*16+0.5)/16 -> -6.75
D62: Bottom Glass Width | E62: =TRUNC((Frame_Width-4.875)*16+0.5)/16 -> -4.8125 | K62: Bottom Glass Width | L62: =TRUNC((Frame_Width-6.8125)*16+0.5)/16 -> -6.75
D63: Top Glass Height | E63: =TRUNC((E58-3.0625)*16+0.5)/16 -> -3 | K63: Top Glass Height | L63: =TRUNC((L58-3.5625)*16+0.5)/16 -> -3.5
D64: Bottom Glass Height | E64: =TRUNC((E59-3.0625)*16+0.5)/16 -> -3 | K64: Bottom Glass Height | L64: =TRUNC((L59-3.5625)*16+0.5)/16 -> -3.5
C66: W | E66: 3100 | J66: W | L66: 9001
C67: =IF(TYPE=1,$C66,IF(TYPE= "",$C66," ")) -> W | D67: 1 | E67: =Frame_Height/2 -> 0 | F67: =TRUNC($E67*16+0.5)/16 -> 0 | J67: =IF(TYPE=1,J66,IF(TYPE= "",J66," ")) -> W | K67: 1 | L67: =Frame_Height/2 -> 0 | M67: =TRUNC(L67*16+0.5)/16 -> 0
C68: =IF(TYPE=5,$C66,IF(TYPE=2,IF(Frame_Height>=54.5,IF(Frame_Height<72.5,$C66,""),""),"")) ->  | D68: 2 | E68: =INT((Frame_Height/5)*16+0.5)/16 -> 0 | F68: 0 | G68: 5 | J68: =IF(TYPE=5,J66,IF(TYPE=2,IF(Frame_Height>=54.5,IF(Frame_Height<72.5,J66,""),""),"")) ->  | K68: 2 | L68: =CEILING(((Frame_Height/5-0.24)*3-0.03125),0.0625) -> -0.75 | M68: -0.6875 | N68: 5
C69: =IF(TYPE=6,$C66,IF(AND(TYPE=2,OR(Frame_Height<54.5,Frame_Height>=72.5)),$C66,"")) ->  | E69: =INT((Frame_Height/3-0.22)*32+0.5)/16 -> -0.4375 | F69: -0.375 | G69: 6 | J69: =IF(TYPE=6,J66,IF(AND(TYPE=2,OR(Frame_Height<54.5,Frame_Height>=72.5)),J66,"")) ->  | L69: =TRUNC((Frame_Height/3-0.62)*32+0.5)/16 -> -1.1875 | M69: -1.125 | N69: 6
C70: =IF(TYPE=7,$C66,IF(TYPE=3,IF(Frame_Height>=54.5,IF(Frame_Height<72.5,$C66,""),""),"")) ->  | D70: 3 | E70: =INT((Frame_Height/5+0.55)*32+0.5)/16 -> 1.125 | F70: 1.125 | G70: 7 | J70: =IF(TYPE=7,J66,IF(TYPE=3,IF(Frame_Height>=54.5,IF(Frame_Height<72.5,J66,""),""),"")) ->  | K70: 3 | L70: =TRUNC((Frame_Height/5+0.38)*32+0.5)/16 -> 0.75 | M70: 0.75 | N70: 7
C71: =IF(TYPE=8,$C66,IF(AND(TYPE=3,OR(Frame_Height<54.5,Frame_Height>=72.5)),$C66,"")) ->  | E71: =INT((Frame_Height/3+1.4)*16+0.5)/16 -> 1.375 | F71: 1.375 | G71: 8 | J71: =IF(TYPE=8,J66,IF(AND(TYPE=3,OR(Frame_Height<54.5,Frame_Height>=72.5)),J66,"")) ->  | L71: =TRUNC((Frame_Height/3+1.3)*16+0.5)/16 -> 1.3125 | M71: 1.3125 | N71: 8
C72: =IF(TYPE=4,$C66,"") ->  | D72: 4 | E72: =CMR -> 0 | F72: 0 | J72: =IF(TYPE=4,J66,"") ->  | K72: 4 | L72: =CMR -> 0 | M72: 0
C74: Dim.,"D" | D74: = | E74: =IF(C67=C66,F67,IF(C68=C66,F68,IF(C69=C66,F69,IF(C70=C66,F70,IF(C71=C66,F71,IF(C72=C66,F72,F67)))))) -> 0 | I74: Dim.,"D" | K74: = | L74: =IF(J67=J66,M67,IF(J68=J66,M68,IF(J69=J66,M69,IF(J70=J66,M70,IF(J71=J66,M71,IF(J72=J66,M72,M67)))))) -> 0
C75: Dim.,"C" | D75: = | E75: =Frame_Height-$E74 -> 0 | I75: Dim.,"C" | K75: = | L75: =Frame_Height-L74 -> 0
B77: Top Glass Width | E77: =TRUNC((Frame_Width-4.03125)*32+0.5)/32 -> -4 | I77: Top Glass Width | L77: =TRUNC((Frame_Width-6.8125)*16+0.5)/16 -> -6.75
B78: Bottom Glass Width | E78: =TRUNC((Frame_Width-4.76815)*32+0.5)/32 -> -4.75 | I78: Bottom Glass Width | L78: =TRUNC((Frame_Width-6.8125)*16+0.5)/16 -> -6.75
B79: Top Glass Height | E79: =TRUNC(($E74-3.0625)*32+0.5)/32 -> -3.03125 | I79: Top Glass Height | L79: =TRUNC((L74-3.9375)*16+0.5)/16 -> -3.875
B80: Bottom Glass Height | E80: =TRUNC(($E75-3.00375)*32+0.5)/32 -> -2.96875 | I80: Bottom Glass Height | L80: =TRUNC((L75-3.9375)*16+0.5)/16 -> -3.875
D82: 3102 | L82: V100
I83: Dim.,"D" | K83: = | L83: =IF(TYPE=1,(Frame_Height/2),IF(TYPE=2,CMR)) -> 0
B84: Dim.,"D" | D84: = | E84: =IF(TYPE=1,(Frame_Width/2),IF(TYPE=4,CMR)) -> 0 | I84: Dim.,"C" | K84: = | L84: =Frame_Height-L83 -> 0
B85: Dim.,"C" | D85: = | E85: =Frame_Width-$E84 -> 0
I86: Top Glass Width | L86: =TRUNC((Frame_Width-3.5)*32+0.5)/32 -> -3.46875
B87: Fixed Glass Width | E87: =$E$84-3.09375 -> -3.09375 | I87: Bottom Glass Width | L87: =TRUNC(((TRUNC((Frame_Width-2.188)*32+0.5)/32)-1.3125)*32+0.5)/32 -> -3.4375
B88: Sash Glass Width | E88: =(TRUNC(($E$85-0.7)*16+0.5)/16)-1.625 -> -2.25 | I88: Top Glass Height | L88: =TRUNC((L83-2.157)*32+0.5)/32 -> -2.125
B89: Fixed Glass Height | E89: =Frame_Height-5.09375 -> -5.09375 | I89: Bottom Glass Height | L89: =TRUNC(((TRUNC(((L84-1.0625)*16+0.5))/16)-1.312)*32+0.5)/32 -> -2.28125
B90: Sash Glass Height | E90: =(TRUNC((Frame_Height-3.4)*16+0.5)/16)-1.625 -> -4.9375
J91: W | L91: V101
C92: W | E92: 3001 | J92: =IF(TYPE=1,$J91,IF(TYPE="",$J91," ")) -> W | K92: 1 | L92: =Frame_Height/2 -> 0 | M92: =TRUNC($L92*16+0.5)/16 -> 0
C93: =IF(TYPE=1,C92,IF(TYPE= "",C92,"")) -> W | D93: 1 | E93: =Frame_Height/2 -> 0 | F93: =TRUNC(E93*16+0.5)/16 -> 0 | J93: =IF(TYPE=5,$J91,IF(TYPE=2,IF(Frame_Height>=54.5,IF(Frame_Height<72.5,$J91,""),""),"")) ->  | K93: 2 | L93: =INT((Frame_Height/5)*48+0.5)/16 -> 0 | M93: 0 | N93: 5
C94: =IF(TYPE=5,C92,IF(TYPE=2,IF(Frame_Height>=54.5,IF(Frame_Height<72.5,C92,""),""),"")) ->  | D94: 2 | E94: =INT((Frame_Height/5)*48+0.5)/16 -> 0 | F94: 0 | G94: 5 | J94: =IF(TYPE=6,$J91,IF(AND(TYPE=2,OR(Frame_Height<54.5,Frame_Height>=72.5)),$J91,"")) ->  | L94: =INT((Frame_Height/3-0.22)*32+0.5)/16 -> -0.4375 | M94: -0.375 | N94: 6
C95: =IF(TYPE=6,C92,IF(AND(TYPE=2,OR(Frame_Height<54.5,Frame_Height>=72.5)),C92,"")) ->  | E95: =INT((Frame_Height/3-0.22)*32+0.5)/16 -> -0.4375 | F95: -0.375 | G95: 6 | J95: =IF(TYPE=7,$J91,IF(TYPE=3,IF(Frame_Height>=54.5,IF(Frame_Height<72.5,$J91,""),""),"")) ->  | K95: 3 | L95: =INT((Frame_Height/5+0.55)*32+0.5)/16 -> 1.125 | M95: 1.125 | N95: 7
C96: =IF(TYPE=7,C92,IF(TYPE=3,IF(Frame_Height>=54.5,IF(Frame_Height<72.5,C92,""),""),"")) ->  | D96: 3 | E96: =INT((Frame_Height/5+0.55)*32+0.5)/16 -> 1.125 | F96: 1.125 | G96: 7 | J96: =IF(TYPE=8,$J91,IF(AND(TYPE=3,OR(Frame_Height<54.5,Frame_Height>=72.5)),$J91,"")) ->  | L96: =INT((Frame_Height/3+1.4)*16+0.5)/16 -> 1.375 | M96: 1.375 | N96: 8
C97: =IF(TYPE=8,C92,IF(AND(TYPE=3,OR(Frame_Height<54.5,Frame_Height>=72.5)),C92,"")) ->  | E97: =INT((Frame_Height/3+1.4)*16+0.5)/16 -> 1.375 | F97: 1.375 | G97: 8 | J97: =IF(TYPE=4,$J91,"") ->  | K97: 4 | L97: =CMR -> 0 | M97: 0
C98: =IF(TYPE=4,C92,"") ->  | D98: 4 | E98: =CMR -> 0 | F98: 0
I99: Dim.,"D" | K99: = | L99: =IF($J92=$J91,$M92,IF($J93=$J91,$M93,IF($J94=$J91,$M94,IF($J95=$J91,$M95,IF($J96=$J91,$M96,IF($J97=$J91,$M97)))))) -> 0
B100: Dim.,"D" | D100: = | E100: =TRUNC((IF(C93=C92,F93,IF(C94=C92,F94,IF(C95=C92,F95,IF(C96=C92,F96,IF(C97=C92,F97,IF(C98=C92,F98,F93)))))))*32+0.5)/32 -> 0 | I100: Dim.,"C" | K100: = | L100: =Frame_Height-$L99 -> 0
B101: Dim.,"C" | D101: = | E101: =TRUNC((Frame_Height-E100)*32+0.5)/32 -> 0
I102: Top Glass Width | L102: =TRUNC((Frame_Width-4.75)*16+0.5)/16 -> -4.6875
B103: Top Glass Width | E103: =TRUNC((Frame_Width-5.8125)*16+0.5)/16 -> -5.75 | I103: Bottom Glass Width | L103: =TRUNC((Frame_Width-3.5)*16+0.5)/16 -> -3.4375
B104: Bottom Glass Width | E104: =TRUNC((Frame_Width-4.8125)*16+0.5)/16 -> -4.75 | I104: Top Glass Height | L104: =TRUNC(($L99-2.9375)*16+0.5)/16 -> -2.875
B105: Top Glass Height | E105: =TRUNC((E100-3.25)*32+0.5)/32 -> -3.21875 | I105: Bottom Glass Height | L105: =TRUNC(($L100-1.6875)*16+0.5)/16 -> -1.625
B106: Bottom Glass Height | E106: =TRUNC((E101-2.25)*32+0.5)/32 -> -2.21875
L107: V200
C108: W | E108: 03A0 | I108: Dim.,"D" | K108: = | L108: =IF(TYPE=1,(Frame_Height/2),IF(TYPE=2,CMR)) -> 0
C109: =IF(TYPE=1,C108,IF(TYPE= "",C108,"")) -> W | D109: 1 | E109: =Frame_Height/2 -> 0 | F109: =TRUNC(E109*16+0.5)/16 -> 0 | I109: Dim.,"C" | K109: = | L109: =Frame_Height-L108 -> 0
C110: =IF(TYPE=5,C108,IF(TYPE=2,IF(Frame_Height>=54.5,IF(Frame_Height<72.5,C108,""),""),"")) ->  | D110: 2 | E110: =INT((Frame_Height/5)*48+0.5)/16 -> 0 | F110: 0 | G110: 5
C111: =IF(TYPE=6,C108,IF(AND(TYPE=2,OR(Frame_Height<54.5,Frame_Height>=72.5)),C108,"")) ->  | E111: =INT((Frame_Height/3-0.22)*32+0.5)/16 -> -0.4375 | F111: -0.375 | G111: 6 | I111: Top Glass Width | L111: =TRUNC((Frame_Width-3.5625)*32+0.5)/32 -> -3.53125
C112: =IF(TYPE=7,C108,IF(TYPE=3,IF(Frame_Height>=54.5,IF(Frame_Height<72.5,C108,""),""),"")) ->  | D112: 3 | E112: =INT((Frame_Height/5+0.55)*32+0.5)/16 -> 1.125 | F112: 1.125 | G112: 7 | I112: Bottom Glass Width | L112: =TRUNC(((TRUNC((Frame_Width-2.1875)*32+0.5)/32)-1.375)*32+0.5)/32 -> -3.5
C113: =IF(TYPE=8,C108,IF(AND(TYPE=3,OR(Frame_Height<54.5,Frame_Height>=72.5)),C108,"")) ->  | E113: =INT((Frame_Height/3+1.4)*16+0.5)/16 -> 1.375 | F113: 1.375 | G113: 8 | I113: Top Glass Height | L113: =TRUNC((L108-2.25)*32+0.5)/32 -> -2.21875
C114: =IF(TYPE=4,C108,"") ->  | D114: 4 | E114: =CMR -> 0 | F114: 0 | I114: Bottom Glass Height | L114: =TRUNC(((TRUNC(((L109-0.8125)*32+0.5))/32-0.0625)-1.4375)*32+0.5)/32 -> -2.25
B116: Dim.,"D" | D116: = | E116: =TRUNC((IF(C109=C108,F109,IF(C110=C108,F110,IF(C111=C108,F111,IF(C112=C108,F112,IF(C113=C108,F113,IF(C114=C108,F114,F109)))))))*32+0.5)/32 -> 0 | L116: 1700
B117: Dim.,"C" | D117: = | E117: =TRUNC((Frame_Height-E116)*32+0.5)/32 -> 0 | J117: Dim.,"D" | K117: = | L117: =IF(TYPE=1,(Frame_Height/2),IF(TYPE=2,CMR)) -> 0
J118: Dim.,"C" | K118: = | L118: =Frame_Height-L117 -> 0
B119: Top Glass Width | E119: =TRUNC((Frame_Width-4.75)*16+0.5)/16 -> -4.6875
B120: Bottom Glass Width | E120: =TRUNC((Frame_Width-4.8125)*16+0.5)/16 -> -4.75
B121: Top Glass Height | E121: =TRUNC((E116-2.625)*32+0.5)/32 -> -2.59375 | L121: 1702
B122: Bottom Glass Height | E122: =TRUNC((E117-2.75)*32+0.5)/32 -> -2.71875 | J122: Dim.,"D" | K122: = | L122: =IF(TYPE=1,(Frame_Width/2),IF(TYPE=2,CMR)) -> 0
J123: Dim.,"C" | K123: = | L123: =Frame_Width-L122 -> 0
L126: 1720
J127: Dim.,"D" | K127: = | L127: =IF(TYPE=1,(Frame_Height/2),IF(TYPE=2,CMR)) -> 0
J128: Dim.,"C" | K128: = | L128: =Frame_Height-L127 -> 0
L131: 1730
J132: Dim.,"D" | K132: = | L132: =IF(TYPE=1,(Frame_Height/2),IF(TYPE=2,CMR)) -> 0
J133: Dim.,"C" | K133: = | L133: =Frame_Height-L132 -> 0
L136: 1900
J137: Dim.,"D" | K137: = | L137: =IF(TYPE=1,(Frame_Height/2),IF(TYPE=2,CMR)) -> 0
J138: Dim.,"C" | K138: = | L138: =Frame_Height-DDIM_1900 -> 0
L141: 1902
J142: Dim.,"D" | K142: = | L142: =IF(TYPE=1,(Frame_Width/2),IF(TYPE=2,CMR)) -> 0
J143: Dim.,"C" | K143: = | L143: =Frame_Width-DDIM_1902 -> 0
L146: 1920
J147: Dim.,"D" | K147: = | L147: =IF(TYPE=1,(Frame_Height/2),IF(TYPE=2,CMR)) -> 0
J148: Dim.,"C" | K148: = | L148: =Frame_Height-DDIM_1920 -> 0
L151: 1930
J152: Dim.,"D" | K152: = | L152: =IF(TYPE=1,(Frame_Height/2),IF(TYPE=2,CMR)) -> 0
J153: Dim.,"C" | K153: = | L153: =Frame_Height-DDIM_1930 -> 0
J156: W | L156: 1901
J157: =IF(TYPE=1,$J156,IF(TYPE="",$J156," ")) -> W | K157: 1 | L157: =Frame_Height/2 -> 0 | M157: =TRUNC($L157*16+0.5)/16 -> 0
J158: =IF(TYPE=5,$J156,IF(TYPE=2,IF(Frame_Height>=54.5,IF(Frame_Height<72.5,$J156,""),""),"")) ->  | K158: 2 | L158: =INT((Frame_Height/5)*48+0.5)/16 -> 0 | M158: 0 | N158: 5
J159: =IF(TYPE=6,$J156,IF(AND(TYPE=2,OR(Frame_Height<54.5,Frame_Height>=72.5)),$J156,"")) ->  | L159: =INT((Frame_Height/3-0.22)*32+0.5)/16 -> -0.4375 | M159: -0.375 | N159: 6
J160: =IF(TYPE=7,$J156,IF(TYPE=3,IF(Frame_Height>=54.5,IF(Frame_Height<72.5,$J156,""),""),"")) ->  | K160: 3 | L160: =INT((Frame_Height/5+0.55)*32+0.5)/16 -> 1.125 | M160: 1.125 | N160: 7
J161: =IF(TYPE=8,$J156,IF(AND(TYPE=3,OR(Frame_Height<54.5,Frame_Height>=72.5)),$J156,"")) ->  | L161: =INT((Frame_Height/3+1.4)*16+0.5)/16 -> 1.375 | M161: 1.375 | N161: 8
J162: =IF(TYPE=4,$J156,"") ->  | K162: 4 | L162: =CMR -> 0 | M162: 0
J164: Dim.,"D" | K164: = | L164: =IF($J157=$J156,$M157,IF($J158=$J156,$M158,IF($J159=$J156,$M159,IF($J160=$J156,$M160,IF($J161=$J156,$M161,IF($J162=$J156,$M162)))))) -> 0
J165: Dim.,"C" | K165: = | L165: =Frame_Height-DDIM_1901 -> 0
J168: W | L168: 1921
J169: =IF(TYPE=1,$J168,IF(TYPE="",$J168," ")) -> W | K169: 1 | L169: =Frame_Height/2 -> 0 | M169: =TRUNC($L169*16+0.5)/16 -> 0
J170: =IF(TYPE=5,$J168,IF(TYPE=2,IF(Frame_Height>=54.5,IF(Frame_Height<72.5,$J168,""),""),"")) ->  | K170: 2 | L170: =INT((Frame_Height/5)*48+0.5)/16 -> 0 | M170: 0 | N170: 5
J171: =IF(TYPE=6,$J168,IF(AND(TYPE=2,OR(Frame_Height<54.5,Frame_Height>=72.5)),$J168,"")) ->  | L171: =INT((Frame_Height/3-0.22)*32+0.5)/16 -> -0.4375 | M171: -0.375 | N171: 6
J172: =IF(TYPE=7,$J168,IF(TYPE=3,IF(Frame_Height>=54.5,IF(Frame_Height<72.5,$J168,""),""),"")) ->  | K172: 3 | L172: =INT((Frame_Height/5+0.55)*32+0.5)/16 -> 1.125 | M172: 1.125 | N172: 7
J173: =IF(TYPE=8,$J168,IF(AND(TYPE=3,OR(Frame_Height<54.5,Frame_Height>=72.5)),$J168,"")) ->  | L173: =INT((Frame_Height/3+1.4)*16+0.5)/16 -> 1.375 | M173: 1.375 | N173: 8
J174: =IF(TYPE=4,$J168,"") ->  | K174: 4 | L174: =CMR -> 0 | M174: 0
J176: Dim.,"D" | K176: = | L176: =IF($J169=$J168,$M169,IF($J170=$J168,$M170,IF($J171=$J168,$M171,IF($J172=$J168,$M172,IF($J173=$J168,$M173,IF($J174=$J168,$M174)))))) -> 0
J177: Dim.,"C" | K177: = | L177: =Frame_Height-DDIM_1921 -> 0
J180: W | L180: 1931
J181: =IF(TYPE=1,$J180,IF(TYPE="",$J180," ")) -> W | K181: 1 | L181: =Frame_Height/2 -> 0 | M181: =TRUNC($L181*16+0.5)/16 -> 0
J182: =IF(TYPE=5,$J180,IF(TYPE=2,IF(Frame_Height>=54.5,IF(Frame_Height<72.5,$J180,""),""),"")) ->  | K182: 2 | L182: =INT((Frame_Height/5)*48+0.5)/16 -> 0 | M182: 0 | N182: 5
J183: =IF(TYPE=6,$J180,IF(AND(TYPE=2,OR(Frame_Height<54.5,Frame_Height>=72.5)),$J180,"")) ->  | L183: =INT((Frame_Height/3-0.22)*32+0.5)/16 -> -0.4375 | M183: -0.375 | N183: 6
J184: =IF(TYPE=7,$J180,IF(TYPE=3,IF(Frame_Height>=54.5,IF(Frame_Height<72.5,$J180,""),""),"")) ->  | K184: 3 | L184: =INT((Frame_Height/5+0.55)*32+0.5)/16 -> 1.125 | M184: 1.125 | N184: 7
J185: =IF(TYPE=8,$J180,IF(AND(TYPE=3,OR(Frame_Height<54.5,Frame_Height>=72.5)),$J180,"")) ->  | L185: =INT((Frame_Height/3+1.4)*16+0.5)/16 -> 1.375 | M185: 1.375 | N185: 8
J186: =IF(TYPE=4,$J180,"") ->  | K186: 4 | L186: =CMR -> 0 | M186: 0
J188: Dim.,"D" | K188: = | L188: =IF($J181=$J180,$M181,IF($J182=$J180,$M182,IF($J183=$J180,$M183,IF($J184=$J180,$M184,IF($J185=$J180,$M185,IF($J186=$J180,$M186)))))) -> 0
J189: Dim.,"C" | K189: = | L189: =Frame_Height-DDIM_1931 -> 0

Sheet Data (hidden)
B1: Model | C1: Description | D1: Value
A2: =IF(ModelNo=B2,1,"") ->  | B2: 0100 | C2: Bottom Sash Width | D2: =Frame_Width-2.3125 -> -2.3125 | F2: =G192 -> Select Model | G2: Models | H2: Description | I2: W cut-back | J2: H-cut-back | K2: Width | L2: Height | M2: Min W | N2: Min H | O2: Max W | P2: Max H | Q2: Max UI | R2: Type1 | S2: Type2 | T2: Type3 | U2: Type4 | V2: Screen1 | W2: Screen2 | X2: Screen3 | Y2: Ext./Reinf. | Z2: Ext./Reinf. | AA2: Ext./Reinf. | AB2: Ext./Reinf. | AC2: Ext./Reinf. | AD2: Ext./Reinf. | AE2: Ext./Reinf. | AF2: Ext./Reinf. | AG2: Glass1 | AH2: Glass2 | AI2: Glass3 | AJ2: Glass4 | AK2: Glass5 | AL2: Glass6 | AM2: Glass7 | AN2: Glass8 | AO2: Opening
A3: =IF(ModelNo=B3,2,"") ->  | B3: 0100 | C3: Bottom Sash Height | D3: =CMR!$E$11+0.125 -> 0.125 | F3: 1 | G3: Select Model
A4: =IF(ModelNo=B4,3,"") ->  | B4: 0100 | C4: Bottom Glass Width | D4: =CMR!$E$14 -> -3.9375 | F4: 2 | G4: 0100 | H4: New Const. Single Hung | I4: 0.5 | J4: 0.5 | M4: 14.375 | N4: 23.75 | O4: 52 | P4: 77 | Q4: 129 | R4: Standard | S4: Oriel (2/3 - 1/3) | T4: Cottage (1/3 - 2/3) | U4: Custom | V4: Half | AG4: Single Strength (2.5 mm) | AH4: Double Strength (3 mm) | AI4: Triple Strength (5 mm) | AL4: Laminated | AO4: << Select Opening | AQ4: 1 | AR4: Single Strength (2.5 mm) | AV4: SS (2.2) | AW4: DS (3.2) | AX4: 4 mm | AY4: TS (5.0) | BD4: Min. W | BE4: Min. H | BF4: Max. W | BG4: Max. H | BH4: Max. UI
A5: =IF(ModelNo=B5,4,"") ->  | B5: 0100 | C5: Bottom Glass Height | D5: =CMR!$E$16 -> -1.5 | F5: 3 | G5: 01HP | H5: New Const. Single Hung High Performance | I5: 0.5 | J5: 0.5 | M5: 14.375 | N5: 23.75 | O5: 52 | P5: 84 | Q5: 129 | R5: Standard | S5: Oriel (2/3 - 1/3) | T5: Cottage (1/3 - 2/3) | U5: Custom | V5: Half | AH5: Double Strength (3 mm) | AI5: Triple Strength (5 mm) | AL5: Laminated | AO5: << Select Opening | AQ5: 2 | AR5: Double Strength (3 mm) | AU5: Max. Short | AV5: =IF(TG2W>41,0,41) -> 41 | AW5: =IF(TG2W>56,0,56) -> 56 | AX5: =IF(TG2W>67,0,67) -> 67 | AY5: =IF(TG2W>70,0,70) -> 70 | AZ5: Annealed | BC5: Mezzo | BD5: 25 | BE5: 40
A6: =IF(ModelNo=B6,5,"") ->  | B6: 0100 | C6: Top Glass Width | D6: =CMR!$E$13 -> -1.9375 | F6: 4 | G6: 0102 | H6: New Const. Single Slider | I6: 0.5 | J6: 0.5 | M6: 23.5 | N6: 14.25 | O6: 72 | P6: 60 | Q6: 132 | R6: Standard | V6: Half | AG6: Single Strength (2.5 mm) | AH6: Double Strength (3 mm) | AI6: Triple Strength (5 mm) | AL6: Laminated | AO6: << Select Opening | AQ6: 3 | AR6: Triple Strength (5 mm) | AU6: Max. Long | AV6: =IF(TG2H>62,0,62) -> 62 | AW6: =IF(TG2H>76,0,76) -> 76 | AX6: =IF(TG2H>90,0,90) -> 90 | AY6: =IF(TG2H>102,0,102) -> 102 | AZ6: Annealed | BC6: Mezzo/N.F | BD6: 26 | BE6: 41
A7: =IF(ModelNo=B7,6,"") ->  | B7: 0100 | C7: Top Glass Height | D7: =CMR!$E$15 -> -1.875 | F7: 5 | G7: 0103 | H7: New Const. Three Lite Slider (1/4-1/2-1/4) | I7: 0.5 | J7: 0.5 | M7: 48 | N7: 14.25 | O7: 108 | P7: 60 | Q7: 168 | R7: Standard (1/4-1/2-1/4) | V7: Half | AG7: Single Strength (2.5 mm) | AH7: Double Strength (3 mm) | AI7: Triple Strength (5 mm) | AL7: Laminated | AO7: << Select Opening | AQ7: 4 | AR7: Triple IG Single Strrength | AU7: Max Sq.Ft. | AV7: =IF(TG2A>12,0,12) -> 12 | AW7: =IF(TG2A>22,0,22) -> 22 | AX7: =IF(TG2A>32,0,32) -> 32 | AY7: =IF(TG2A>35,0,35) -> 35 | AZ7: Annealed | BC7: New Construction | BD7: 20 | BE7: 36
A8: =IF(ModelNo=B8,7,"") ->  | B8: 0100 | C8: Astragal Length | D8: =TRUNC((Frame_Width-1.218)*32+0.5)/32 -> -1.1875 | F8: 6 | G8: 0104 | H8: New Const. Picture Window | I8: 0.5 | J8: 0.5 | M8: 11.5 | N8: 11.5 | O8: 95 | P8: 95 | Q8: 154 | R8: Standard | AH8: Double Strength (3 mm) | AI8: Triple Strength (5 mm) | AL8: Laminated | AO8: << Select Opening | AQ8: 5 | AR8: Triple IG Double Strength | AU8: Max. Short | AV8: 0 | AW8: =IF(TG2W>42,0,42) -> 42 | AX8: =IF(TG2W>70,0,70) -> 70 | AY8: =IF(TG2W>70,0,70) -> 70 | AZ8: Tempered | BC8: 0700 Series | BD8: 20 | BE8: 36
A9: =IF(ModelNo=B9,8,"") ->  | B9: 0100 | C9: Screen Width | D9: =TRUNC((Frame_Width-1.75)*32+0.5)/32 -> -1.71875 | F9: 7 | G9: 0109 | H9: New Const. Three Lite Slider Equal Lite | I9: 0.5 | J9: 0.5 | M9: 34.75 | N9: 14.25 | O9: 108 | P9: 60 | Q9: 168 | R9: Standard (1/3-1/3-1/3) | V9: Half | AG9: Single Strength (2.5 mm) | AH9: Double Strength (3 mm) | AI9: Triple Strength (5 mm) | AL9: Laminated | AO9: << Select Opening | AQ9: 6 | AR9: Laminated | AU9: Max. Long | AV9: 0 | AW9: =IF(TG2H>84,0,84) -> 84 | AX9: =IF(TG2H>129,0,129) -> 129 | AY9: =IF(TG2H>129,0,129) -> 129 | AZ9: Tempered | BC9: Fusion | BD9: 23.5 | BE9: 38
A10: =IF(ModelNo=B10,9,"") ->  | B10: 0100 | C10: Screen Height | D10: =TRUNC((CMR!$E$11-1.1875)*32+0.5)/32 -> -1.15625 | F10: 8 | G10: 0151 | H10: New Const. Single Vent Awning | I10: 0.5 | J10: 0.5 | M10: 19 | N10: 16 | O10: 48 | P10: 48 | Q10: 96 | R10: Standard | W10: Full | AH10: Double Strength (3 mm) | AI10: Triple Strength (5 mm) | AL10: Laminated | AO10: << Select Opening | AQ10: 7 | AR10: HP Package | AU10: Max Sq.Ft. | AV10: 0 | AW10: =IF(TG2A>24.5,0,24.5) -> 24.5 | AX10: =IF(TG2A>42,0,42) -> 42 | AY10: =IF(TG2A>42,0,42) -> 42 | AZ10: Tempered | BC10: 1700 | BD10: 24
A11: =IF(ModelNo=B11,10,"") ->  | B11: 0100 | C11: Bottom Sash Weight | D11: =BTM_WGT&" "&"lb" ->  | F11: 9 | G11: 0152 | H11: New Const. Awning W/ Transom Equal Lite | I11: 0.5 | J11: 0.5 | M11: 19 | N11: 32 | O11: 48 | P11: 96 | Q11: 144 | R11: Standard | V11: Half | AH11: Double Strength (3 mm) | AI11: Triple Strength (5 mm) | AL11: Laminated | AO11: << Select Opening | AQ11: 8 | AR11: Impact Laminated | AV11: =IF(AND(AV5>0,AV6>0,AV7>0),1,0) -> 1 | AW11: =IF(AND(AW5>0,AW6>0,AW7>0),1,0) -> 1 | AX11: =IF(AND(AX5>0,AX6>0,AX7>0),1,0) -> 1 | AY11: =IF(AND(AY5>0,AY6>0,AY7>0),1,0) -> 1 | AZ11: =IF(AV11>0,"≥SS Annealed",IF(AW11>0,"≥DS Annealed",IF(AY11>0,"TS Annealed",""))) -> ≥SS Annealed | BC11: 1900 | BD11: 24
A12: =IF(ModelNo=B12,11,"") ->  | B12: 0100 | C12: Balance Size | D12: =IF(ISERROR((VLOOKUP(BTM_WGT,CFB,2,FALSE))&(VLOOKUP(BTM_WGT,CFB,3,FALSE))),"N/A",(VLOOKUP(BTM_WGT,CFB,2,FALSE))&(VLOOKUP(BTM_WGT,CFB,3,FALSE))) -> N/A | F12: 10 | G12: 0153 | H12: New Const. Awning W/ Transom (1/3-2/3) | I12: 0.5 | J12: 0.5 | M12: 19 | N12: 48 | O12: 48 | P12: 96 | Q12: 144 | R12: Standard | V12: Half | AH12: Double Strength (3 mm) | AI12: Triple Strength (5 mm) | AL12: Laminated | AO12: << Select Opening | AW12: =IF(AND(AW8>0,AW9>0,AW10>0),1,0) -> 1 | AX12: =IF(AND(AX8>0,AX9>0,AX10>0),1,0) -> 1 | AY12: =IF(AND(AY8>0,AY9>0,AY10>0),1,0) -> 1 | AZ12: =IF(AW12>0,"≥DS Tempered",IF(AY12>0,"TS Tempered","")) -> ≥DS Tempered
A13: =IF(ModelNo=B13,12,"") ->  | B13: 0100 | C13: Egress Opening Width | D13: =EW ->  | F13: 11 | G13: 0154 | H13: New Const. Single Vent Awning W/ Bottom Transom | I13: 0.5 | J13: 0.5 | M13: 19 | N13: 32 | O13: 48 | P13: 96 | Q13: 144 | R13: Standard | V13: Half | AH13: Double Strength (3 mm) | AI13: Triple Strength (5 mm) | AL13: Laminated | AO13: << Select Opening | AV13: 2.5 mm | AW13: 3.2 mm | AX13: 4 mm | AY13: 5 mm
A14: =IF(ModelNo=B14,13,"") ->  | B14: 0100 | C14: Egress Opening Height | D14: =EH ->  | F14: 12 | G14: 0155 | H14: New Const. Dual Vent Equal Lite | I14: 0.5 | J14: 0.5 | M14: 19 | N14: 32 | O14: 48 | P14: 96 | Q14: 144 | R14: Standard | V14: Half | AH14: Double Strength (3 mm) | AI14: Triple Strength (5 mm) | AL14: Laminated | AO14: << Select Opening | AU14: Max. Short | AV14: =IF(TG2H>41,0,41) -> 41 | AW14: =IF(TG2H>56,0,56) -> 56 | AX14: =IF(TG2H>67,0,67) -> 67 | AY14: =IF(TG2H>70,0,70) -> 70 | AZ14: Annealed
A15: =IF(ModelNo=B15,14,"") ->  | B15: 0100 | C15: Egress Opening Area (sq.ft.) | D15: =EO ->  | F15: 13 | G15: 0170 | H15: New Const. Casement Picture Window | I15: 0.5 | J15: 0.5 | M15: 13 | N15: 11.5 | O15: 96 | P15: 96 | Q15: 154 | R15: Standard | AH15: Double Strength (3 mm) | AI15: Triple Strength (5 mm) | AL15: Laminated | AO15: << Select Opening | AU15: Max. Long | AV15: =IF(TG2W>62,0,62) -> 62 | AW15: =IF(TG2W>76,0,76) -> 76 | AX15: =IF(TG2W>90,0,90) -> 90 | AY15: =IF(TG2W>102,0,102) -> 102 | AZ15: Annealed
A16: =IF(ModelNo=B16,1,"") ->  | B16: 01HP | C16: Bottom Sash Width | D16: =Frame_Width-2.3125 -> -2.3125 | F16: 14 | G16: 0171 | H16: New Const. Single Vent Casement | I16: 0.5 | J16: 0.5 | M16: 16 | N16: 19 | O16: 36 | P16: 78 | Q16: 114 | R16: Standard | W16: Full | AH16: Double Strength (3 mm) | AI16: Triple Strength (5 mm) | AL16: Laminated | AO16: << Select Opening | AU16: Max Sq.Ft. | AV16: =IF(TG2A>12,0,12) -> 12 | AW16: =IF(TG2A>22,0,22) -> 22 | AX16: =IF(TG2A>32,0,32) -> 32 | AY16: =IF(TG2A>35,0,35) -> 35 | AZ16: Annealed
A17: =IF(ModelNo=B17,2,"") ->  | B17: 01HP | C17: Bottom Sash Height | D17: =CMR!$E$11+0.125 -> 0.125 | F17: 15 | G17: 0172 | H17: New Const. Dual Vent Casement | I17: 0.5 | J17: 0.5 | M17: 32 | N17: 19 | O17: 72 | P17: 78 | Q17: 150 | R17: Standard | V17: Half | AH17: Double Strength (3 mm) | AI17: Triple Strength (5 mm) | AL17: Laminated | AO17: << Select Opening | AU17: Max. Short | AV17: 0 | AW17: =IF(TG2H>42,0,42) -> 42 | AX17: =IF(TG2H>70,0,70) -> 70 | AY17: =IF(TG2H>70,0,70) -> 70 | AZ17: Tempered
A18: =IF(ModelNo=B18,3,"") ->  | B18: 01HP | C18: Bottom Glass Width | D18: =CMR!$E$14 -> -3.9375 | F18: 16 | G18: 0173 | H18: New Const. Dual Vent Casement (1/4-1/2-1/4) | I18: 0.5 | J18: 0.5 | M18: 64 | N18: 19 | O18: 120 | P18: 78 | Q18: 198 | R18: Standard (1/4-1/2-1/4) | V18: Half | AH18: Double Strength (3 mm) | AI18: Triple Strength (5 mm) | AL18: Laminated | AO18: << Select Opening | AU18: Max. Long | AV18: 0 | AW18: =IF(TG2W>84,0,84) -> 84 | AX18: =IF(TG2W>129,0,129) -> 129 | AY18: =IF(TG2W>129,0,129) -> 129 | AZ18: Tempered
A19: =IF(ModelNo=B19,4,"") ->  | B19: 01HP | C19: Bottom Glass Height | D19: =CMR!$E$16 -> -1.5 | F19: 17 | G19: 0179 | H19: New Const. Dual Vent Casement Equal Lite | I19: 0.5 | J19: 0.5 | M19: 48 | N19: 19 | O19: 108 | P19: 78 | Q19: 186 | R19: Standard (1/3-1/3-1/3) | V19: Half | AH19: Double Strength (3 mm) | AI19: Triple Strength (5 mm) | AL19: Laminated | AO19: << Select Opening | AU19: Max Sq.Ft. | AV19: 0 | AW19: =IF(TG2A>24.5,0,24.5) -> 24.5 | AX19: =IF(TG2A>42,0,42) -> 42 | AY19: =IF(TG2A>42,0,42) -> 42 | AZ19: Tempered
A20: =IF(ModelNo=B20,5,"") ->  | B20: 01HP | C20: Top Glass Width | D20: =CMR!$E$13 -> -1.9375 | F20: 18 | G20: S174 | H20: New Construction Four Lite Casement | I20: 0.5 | J20: 0.5 | M20: 64 | N20: 19 | O20: 120 | P20: 78 | Q20: 198 | R20: Standard | V20: Half | AH20: Double Strength (3 mm) | AI20: Triple Strength (5 mm) | AL20: Laminated | AO20: << Select Opening | AV20: =IF(AND(AV14>0,AV15>0,AV16>0),1,0) -> 1 | AW20: =IF(AND(AW14>0,AW15>0,AW16>0),1,0) -> 1 | AX20: =IF(AND(AX14>0,AX15>0,AX16>0),1,0) -> 1 | AY20: =IF(AND(AY14>0,AY15>0,AY16>0),1,0) -> 1 | AZ20: =IF(AV20>0,"≥SS Annealed",IF(AW20>0,"≥DS Annealed",IF(AY20>0,"TS Annealed",""))) -> ≥SS Annealed
A21: =IF(ModelNo=B21,6,"") ->  | B21: 01HP | C21: Top Glass Height | D21: =CMR!$E$15 -> -1.875 | F21: 19 | G21: S175 | H21: New Construction Five Lite Casement | I21: 0.5 | J21: 0.5 | M21: 80 | N21: 19 | O21: 120 | P21: 78 | Q21: 198 | R21: Standard | V21: Half | AH21: Double Strength (3 mm) | AI21: Triple Strength (5 mm) | AL21: Laminated | AO21: << Select Opening | AW21: =IF(AND(AW17>0,AW18>0,AW19>0),1,0) -> 1 | AX21: =IF(AND(AX17>0,AX18>0,AX19>0),1,0) -> 1 | AY21: =IF(AND(AY17>0,AY18>0,AY19>0),1,0) -> 1 | AZ21: =IF(AW21>0,"≥DS Tempered",IF(AY21>0,"TS Tempered","")) -> ≥DS Tempered
A22: =IF(ModelNo=B22,7,"") ->  | B22: 01HP | C22: Astragal Length | D22: =TRUNC((Frame_Width-1.218)*32+0.5)/32 -> -1.1875 | F22: 20 | G22: 0201 | H22: Signature Double Hung | I22: 0 | J22: 0 | M22: 11 | N22: 20 | O22: 52 | P22: 84 | Q22: 132 | R22: Standard | S22: Oriel (2/3 - 1/3) | T22: Cottage (1/3 - 2/3) | U22: Custom | V22: Half | W22: Full | X22: Locking | AH22: Double Strength (3 mm) | AI22: Triple Strength (5 mm) | AL22: Laminated | AO22: =IF(RO=2,"<< Exact Size Only","") ->  | AU22: =IF(AND(OR(AZ11="≥SS Annealed",AZ11="≥DS Annealed",AZ12="≥DS Tempered",AZ20="≥SS Annealed",AZ20="≥DS Annealed",AZ21="≥DS Tempered")),"TIG","") -> TIG | AV22: =IF(AND(ANNEALED1=0,ANNEALED2=0,OR(TEMPERED1>0,TEMPERED2>0)),"Tempered is Required for TIG","") -> 
A23: =IF(ModelNo=B23,8,"") ->  | B23: 01HP | C23: Screen Width | D23: =TRUNC((Frame_Width-1.75)*32+0.5)/32 -> -1.71875 | F23: 21 | G23: 0202 | H23: Signature Two Lite Slider | I23: 0 | J23: 0 | M23: 18 | N23: 9 | O23: 84 | P23: 72 | Q23: 148 | R23: Standard | V23: Half | W23: Full | AH23: Double Strength (3 mm) | AI23: Triple Strength (5 mm) | AL23: Laminated | AU23: Model | AV23: Width | AW23: Height | AX23: Area | AY23: Balance
A24: =IF(ModelNo=B24,9,"") ->  | B24: 01HP | C24: Screen Height | D24: =TRUNC((CMR!$E$11-1.1875)*32+0.5)/32 -> -1.15625 | F24: 22 | G24: 0203 | H24: Signature Three Lite Slider (1/4-1/2-1/4) | I24: 0 | J24: 0 | M24: 47.5 | N24: 9 | O24: 120 | P24: 72 | Q24: 192 | R24: Standard (1/4-1/2-1/4) | V24: Half | W24: Full | AH24: Double Strength (3 mm) | AI24: Triple Strength (5 mm) | AL24: Laminated | AT24: =IF(ModelNo=AU24,ModelNo,0) -> 0 | AU24: 3001 | AV24: =MAX($D$995,$D$997) -> -4.75 | AW24: =MAX($D$996,$D$998) -> -2.21875 | AX24: =(AV24*AW24)/144 -> 0.07318793403 | AY24: =IF(AND(OR(Glass=4,Glass=5),OR($D$1002="N/A",$D$1004="N/A")),1,IF(AND(Glass=3,Single_ST=0),1,0)) -> 
A25: =IF(ModelNo=B25,10,"") ->  | B25: 01HP | C25: Bottom Sash Weight | D25: =BTM_WGT&" "&"lb" ->  | F25: 23 | G25: 0204 | H25: Signature Picture Window | I25: 0 | J25: 0 | M25: 9 | N25: 9 | O25: 112 | P25: 96 | Q25: 154 | R25: Standard | AH25: Double Strength (3 mm) | AI25: Triple Strength (5 mm) | AL25: Laminated | AT25: 0 | AU25: 3002 | AV25: =$D$1011 -> -2.5625 | AW25: =$D$1012 -> -5.4375 | AX25: 0.09676106771
A26: =IF(ModelNo=B26,11,"") ->  | B26: 01HP | C26: Balance Size | D26: =IF(ISERROR((VLOOKUP(BTM_WGT,CFB,2,FALSE))&(VLOOKUP(BTM_WGT,CFB,3,FALSE))),"N/A",(VLOOKUP(BTM_WGT,CFB,2,FALSE))&(VLOOKUP(BTM_WGT,CFB,3,FALSE))) -> N/A | F26: 24 | G26: 0209 | H26: Signature Three Lite Slider Equal Lite | I26: 0 | J26: 0 | M26: 37.25 | N26: 9 | O26: 120 | P26: 72 | Q26: 192 | R26: Standard (1/3-1/3-1/3) | V26: Half | W26: Full | AH26: Double Strength (3 mm) | AI26: Triple Strength (5 mm) | AL26: Laminated | AT26: 0 | AU26: 3003 | AV26: =MAX($D$1023,$D$1025) -> -1.4375 | AW26: =MAX($D$1024,$D$1026) -> -5.4375 | AX26: 0.05428059896
A27: =IF(ModelNo=B27,12,"") ->  | B27: 01HP | C27: Egress Opening Width | D27: =EW ->  | F27: 25 | G27: 02A0 | H27: Signature Single Hung | I27: 0 | J27: 0 | M27: 11 | N27: 20 | O27: 52 | P27: 84 | Q27: 132 | R27: Standard | S27: Oriel (2/3 - 1/3) | T27: Cottage (1/3 - 2/3) | U27: Custom | V27: Half | W27: Full | X27: Locking | AG27: Single Strength (2.5 mm) | AH27: Double Strength (3 mm) | AI27: Triple Strength (5 mm) | AL27: Laminated | AT27: 0 | AU27: 3004 | AV27: =$D$1032 -> -4.1875 | AW27: =$D$1033 -> -4.1875 | AX27: 0.1217719184
A28: =IF(ModelNo=B28,13,"") ->  | B28: 01HP | C28: Egress Opening Height | D28: =EH ->  | F28: 26 | G28: 02A2 | H28: Signature Two Lite Single Slider | I28: 0 | J28: 0 | M28: 18 | N28: 12 | O28: 84 | P28: 66 | Q28: 148 | R28: Standard | V28: Half | W28: Full | AG28: Single Strength (2.5 mm) | AH28: Double Strength (3 mm) | AI28: Triple Strength (5 mm) | AL28: Laminated | AT28: 0 | AU28: 3009 | AV28: =MAX($D$1040,$D$1042) -> -1.875 | AW28: =MAX($D$1041,$D$1043) -> -5.4375 | AX28: 0.07080078125
A29: =IF(ModelNo=B29,14,"") ->  | B29: 01HP | C29: Egress Opening Area (sq.ft.) | D29: =EO ->  | F29: 27 | G29: 02A3 | H29: Signature Three Lite Slider (1/4-1/2-1/4) | I29: 0 | J29: 0 | M29: 46 | N29: 12 | O29: 116 | P29: 66 | Q29: 182 | R29: Standard (1/4-1/2-1/4) | V29: Half | W29: Full | AG29: Single Strength (2.5 mm) | AH29: Double Strength (3 mm) | AI29: Triple Strength (5 mm) | AL29: Laminated | AT29: 0 | AU29: 03A0 | AV29: =MAX($D$1051,$D$1053) -> -4.6875 | AW29: =MAX($D$1052,$D$1054) -> -2.59375 | AX29: 0.08443196615 | AY29: =IF(AND(OR(Glass=4,Glass=5),$D$1059="N/A"),1,IF(AND(Glass=3,Single_ST=0),1,0)) -> 
A30: =IF(ModelNo=B30,1,"") ->  | B30: 0102 | C30: Sash Width | D30: =(Frame_Width/2)+0.25 -> 0.25 | F30: 28 | G30: 02A4 | H30: Signature Picture Window | I30: 0 | J30: 0 | M30: 9 | N30: 9 | O30: 96 | P30: 96 | Q30: 154 | R30: Standard | AG30: Single Strength (2.5 mm) | AH30: Double Strength (3 mm) | AI30: Triple Strength (5 mm) | AL30: Laminated | AT30: 0 | AU30: 03A2 | AV30: =MAX($D$1066,$D$1068) -> -2.5625 | AW30: =MAX($D$1067,$D$1069) -> -4.6875 | AX30: 0.08341471354
A31: =IF(ModelNo=B31,2,"") ->  | B31: 0102 | C31: Sash Height | D31: =Frame_Height-2.25 -> -2.25 | F31: 29 | G31: 02A9 | H31: Signature Three Lite Slider Equal Lite | I31: 0 | J31: 0 | M31: 37.25 | N31: 12 | O31: 120 | P31: 66 | Q31: 182 | R31: Standard (1/3-1/3-1/3) | V31: Half | W31: Full | AG31: Single Strength (2.5 mm) | AH31: Double Strength (3 mm) | AI31: Triple Strength (5 mm) | AL31: Laminated | AT31: 0 | AU31: 03A3 | AV31: =MAX($D$1078,$D$1080) -> -1.5 | AW31: =MAX($D$1079,$D$1081) -> -4.6875 | AX31: 0.048828125
A32: =IF(ModelNo=B32,3,"") ->  | B32: 0102 | C32: Sash Glass Width | D32: =(Frame_Width/2)-1.4375 -> -1.4375 | F32: 30 | G32: 3001 | H32: Signature Elite Double Hung | I32: 0 | J32: 0 | M32: 12 | N32: 20 | O32: =IF(EXTSELECT=2,48,IF(EXTSELECT=3,52,"")) ->  | P32: =IF(EXTSELECT=2,84,IF(EXTSELECT=3,96,"")) ->  | Q32: =IF(EXTSELECT=2,126,IF(EXTSELECT=3,148,"")) ->  | R32: Standard | S32: Oriel (2/3 - 1/3) | T32: Cottage (1/3 - 2/3) | U32: Custom | V32: Half | W32: Full | X32: Locking | Y32: Select Reinforcement | Z32: Composite | AA32: Steel | AH32: Double Strength (3 mm) | AI32: Triple Strength (5 mm) | AJ32: Triple IG Single Strength | AK32: Triple IG Double Strength | AL32: Laminated | AT32: 0 | AU32: 03A4 | AV32: =$D$1032 -> -4.1875 | AW32: =$D$1033 -> -4.1875 | AX32: 0.1217719184
A33: =IF(ModelNo=B33,4,"") ->  | B33: 0102 | C33: Sash Glass Height | D33: =Frame_Height-3.9375 -> -3.9375 | F33: 31 | G33: 3002 | H33: Signature Elite Two Lite Slider | I33: 0 | J33: 0 | M33: 18.5 | N33: 11.25 | O33: =IF(EXTSELECT=2,72,IF(EXTSELECT=3,96,"")) ->  | P33: =IF(EXTSELECT=2,56,IF(EXTSELECT=3,72,"")) ->  | Q33: =IF(EXTSELECT=2,128,IF(EXTSELECT=3,156,"")) ->  | R33: Standard | V33: Half | W33: Full | Y33: Select Reinforcement | Z33: Composite | AA33: Steel | AH33: Double Strength (3 mm) | AI33: Triple Strength (5 mm) | AJ33: Triple IG Single Strength | AK33: Triple IG Double Strength | AL33: Laminated | AT33: 0 | AU33: 03A9 | AV33: =MAX($D$1090,$D$1092) -> -1.875 | AW33: =MAX($D$1091,$D$1093) -> -4.6875 | AX33: 0.06103515625
A34: =IF(ModelNo=B34,5,"") ->  | B34: 0102 | C34: Fixed Glass Width | D34: =(Frame_Width/2)-1.9375 -> -1.9375 | F34: 32 | G34: 3003 | H34: Signature Elite Three Lite Slider (1/4-1/2-1/4) | I34: 0 | J34: 0 | M34: 47.5 | N34: 11.25 | O34: =IF(EXTSELECT=2,108,IF(EXTSELECT=3,120,"")) ->  | P34: =IF(EXTSELECT=2,56,IF(EXTSELECT=3,72,"")) ->  | Q34: =IF(EXTSELECT=2,164,IF(EXTSELECT=3,192,"")) ->  | R34: Standard (1/4-1/2-1/4) | V34: Half | W34: Full | Y34: Select Reinforcement | Z34: Composite | AA34: Steel | AH34: Double Strength (3 mm) | AI34: Triple Strength (5 mm) | AJ34: Triple IG Single Strength | AK34: Triple IG Double Strength | AL34: Laminated | AT34: 0 | AU34: 0501 | AV34: =MAX($D$359,$D$361) -> -6.0625 | AW34: =MAX($D$360,$D$362) -> -4.0625 | AX34: 0.1710340712 | AY34: =IF(AND(OR(Glass=4,Glass=5),OR($D$366="N/A",$D$368="N/A")),1,IF(AND(Glass=3,Single_ST=0),1,0)) -> 
A35: =IF(ModelNo=B35,6,"") ->  | B35: 0102 | C35: Fixed Glass Height | D35: =Frame_Height-2 -> -2 | F35: 33 | G35: 3004 | H35: Signature Elite Picture Window | I35: 0 | J35: 0 | M35: 9.5 | N35: 9.5 | O35: 112 | P35: 112 | Q35: 154 | R35: Standard | AH35: Double Strength (3 mm) | AI35: Triple Strength (5 mm) | AJ35: Triple IG Single Strength | AK35: Triple IG Double Strength | AL35: Laminated | AT35: 0 | AU35: 0502 | AV35: =$D$375 -> -3.5 | AW35: =$D$376 -> -7.5 | AX35: 0.1822916667
A36: =IF(ModelNo=B36,7,"") ->  | B36: 0102 | C36: Astragal Length | D36: =TRUNC((Frame_Height-1.218)*16+0.5)/16 -> -1.125 | F36: 34 | G36: 3009 | H36: Signature Elite Three Lite Slider Equal Lite | I36: 0 | J36: 0 | M36: 37.25 | N36: 11.25 | O36: =IF(EXTSELECT=2,108,IF(EXTSELECT=3,120,"")) ->  | P36: =IF(EXTSELECT=2,56,IF(EXTSELECT=3,72,"")) ->  | Q36: =IF(EXTSELECT=2,164,IF(EXTSELECT=3,192,"")) ->  | R36: Standard (1/3-1/3-1/3) | V36: Half | W36: Full | Y36: Select Reinforcement | Z36: Composite | AA36: Steel | AH36: Double Strength (3 mm) | AI36: Triple Strength (5 mm) | AJ36: Triple IG Single Strength | AK36: Triple IG Double Strength | AL36: Laminated | AT36: 0 | AU36: 0503 | AV36: =MAX($D$387,$D$389) -> -1.9375 | AW36: =MAX($D$388,$D$390) -> -7.5 | AX36: 0.1009114583
A37: =IF(ModelNo=B37,8,"") ->  | B37: 0102 | C37: Roller Track Length | D37: =Frame_Width-1 -> -1 | F37: 35 | G37: 03A0 | H37: Signature Elite Single Hung | I37: 0 | J37: 0 | M37: 12 | N37: 22 | O37: =IF(EXTSELECT=2,48,IF(EXTSELECT=3,52,"")) ->  | P37: =IF(EXTSELECT=2,78,IF(EXTSELECT=3,96,"")) ->  | Q37: =IF(EXTSELECT=2,126,IF(EXTSELECT=3,148,"")) ->  | R37: Standard | S37: Oriel (2/3 - 1/3) | T37: Cottage (1/3 - 2/3) | U37: Custom | V37: Half | W37: Full | X37: Locking | Y37: Select Reinforcement | Z37: Composite | AA37: Steel | AH37: Double Strength (3 mm) | AI37: Triple Strength (5 mm) | AJ37: Triple IG Single Strength | AK37: Triple IG Double Strength | AL37: Laminated | AT37: 0 | AU37: 0504 | AV37: =$D$120 -> -4.625 | AW37: =$D$121 -> -4.625 | AX37: 0.1485460069
A38: =IF(ModelNo=B38,9,"") ->  | B38: 0102 | C38: Screen Width | D38: =(Frame_Width/2)-1.1875 -> -1.1875 | F38: 36 | G38: 03A2 | H38: Signature Elite Two Lite Single Slider | I38: 0 | J38: 0 | M38: 18.5 | N38: 12 | O38: =IF(EXTSELECT=2,72,IF(EXTSELECT=3,96,"")) ->  | P38: =IF(EXTSELECT=2,56,IF(EXTSELECT=3,72,"")) ->  | Q38: =IF(EXTSELECT=2,128,IF(EXTSELECT=3,148,"")) ->  | R38: Standard | V38: Half | W38: Full | Y38: Select Reinforcement | Z38: Composite | AA38: Steel | AH38: Double Strength (3 mm) | AI38: Triple Strength (5 mm) | AJ38: Triple IG Single Strength | AK38: Triple IG Double Strength | AL38: Laminated | AT38: 0 | AU38: 0509 | AV38: =MAX($D$401,$D$403) -> -2.6875 | AW38: =MAX($D$402,$D$404) -> -7.5 | AX38: 0.1399739583
A39: =IF(ModelNo=B39,10,"") ->  | B39: 0102 | C39: Screen Height | D39: =Frame_Height-1.75 -> -1.75 | F39: 37 | G39: 03A3 | H39: Signature Elite Three Lite Slider (1/4-1/2-1/4) | I39: 0 | J39: 0 | M39: 52 | N39: 12 | O39: =IF(EXTSELECT=2,108,IF(EXTSELECT=3,110,"")) ->  | P39: =IF(EXTSELECT=2,56,IF(EXTSELECT=3,72,"")) ->  | Q39: =IF(EXTSELECT=2,164,IF(EXTSELECT=3,182,"")) ->  | R39: Standard (1/4-1/2-1/4) | V39: Half | W39: Full | Y39: Select Reinforcement | Z39: Composite | AA39: Steel | AH39: Double Strength (3 mm) | AI39: Triple Strength (5 mm) | AJ39: Triple IG Single Strength | AK39: Triple IG Double Strength | AL39: Laminated | AT39: 0 | AU39: B501 | AV39: =MAX($D$359,$D$361) -> -6.0625 | AW39: =MAX($D$360,$D$362) -> -4.0625 | AX39: 0.1710340712 | AY39: =IF(AND(OR(Glass=4,Glass=5),OR($D$366="N/A",$D$368="N/A")),1,IF(AND(Glass=3,Single_ST=0),1,0)) -> 
A40: =IF(ModelNo=B40,11,"") ->  | B40: 0102 | C40: Egress Opening Width | D40: =TRUNC(((Frame_Width/2)-3.25)*16+0.5)/16 -> -3.1875 | F40: 38 | G40: 03A4 | H40: Signature Elite Picture Window | I40: 0 | J40: 0 | M40: 9.5 | N40: 9.5 | O40: 112 | P40: 112 | Q40: 154 | R40: Standard | AH40: Double Strength (3 mm) | AI40: Triple Strength (5 mm) | AJ40: Triple IG Single Strength | AK40: Triple IG Double Strength | AL40: Laminated | AT40: 0 | AU40: U501 | AV40: =MAX($D$359,$D$361) -> -6.0625 | AW40: =MAX($D$360,$D$362) -> -4.0625 | AX40: 0.1710340712 | AY40: =IF(AND(OR(Glass=4,Glass=5),OR($D$366="N/A",$D$368="N/A")),1,IF(AND(Glass=3,Single_ST=0),1,0)) -> 
A41: =IF(ModelNo=B41,12,"") ->  | B41: 0102 | C41: Egress Opening Height | D41: =TRUNC((Frame_Height-3.074)*16+0.5)/16 -> -3 | F41: 39 | G41: 03A9 | H41: Signature Elite Three Lite Slider Equal Lite | I41: 0 | J41: 0 | M41: 52 | N41: 12 | O41: =IF(EXTSELECT=2,108,IF(EXTSELECT=3,120,"")) ->  | P41: =IF(EXTSELECT=2,56,IF(EXTSELECT=3,72,"")) ->  | Q41: =IF(EXTSELECT=2,164,IF(EXTSELECT=3,192,"")) ->  | R41: Standard (1/3-1/3-1/3) | V41: Half | W41: Full | Y41: Select Reinforcement | Z41: Composite | AA41: Steel | AH41: Double Strength (3 mm) | AI41: Triple Strength (5 mm) | AJ41: Triple IG Single Strength | AK41: Triple IG Double Strength | AL41: Laminated | AT41: 0 | AU41: U502 | AV41: =$D$375 -> -3.5 | AW41: =$D$376 -> -7.5 | AX41: 0.1822916667
A42: =IF(ModelNo=B42,13,"") ->  | B42: 0102 | C42: Egress Opening Area (sq.ft.) | D42: =(D40*D41)/144 -> 0.06640625 | F42: 40 | G42: L201 | H42: Concord Plus Double Hung | I42: 0 | J42: 0 | M42: 11 | N42: 20 | O42: 48 | P42: 78 | Q42: 126 | R42: Standard | S42: Oriel (2/3 - 1/3) | T42: Cottage (1/3 - 2/3) | U42: Custom | V42: Half | W42: Full | X42: Locking | AG42: Single Strength (2.5 mm) | AH42: Double Strength (3 mm) | AI42: Triple Strength (5 mm) | AT42: 0 | AU42: U503 | AV42: =MAX($D$387,$D$389) -> -1.9375 | AW42: =MAX($D$388,$D$390) -> -7.5 | AX42: 0.1009114583
A43: =IF(ModelNo=B43,1,"") ->  | B43: 0103 | C43: Sash Width | D43: =Frame_Width/4 -> 0 | F43: 41 | G43: L202 | H43: Concord Plus Two Lite Slider | I43: 0 | J43: 0 | M43: 18 | N43: 9 | O43: 84 | P43: 56 | Q43: 140 | R43: Standard | V43: Half | W43: Full | AG43: Single Strength (2.5 mm) | AH43: Double Strength (3 mm) | AI43: Triple Strength (5 mm) | AT43: 0 | AU43: U504 | AV43: =$D$120 -> -4.625 | AW43: =$D$121 -> -4.625 | AX43: 0.1485460069
A44: =IF(ModelNo=B44,2,"") ->  | B44: 0103 | C44: Sash Height | D44: =Frame_Height-2.25 -> -2.25 | F44: 42 | G44: L203 | H44: Cocord Plus Three Lite Slider (1/4-1/2-1/4) | I44: 0 | J44: 0 | M44: 48 | N44: 9 | O44: 108 | P44: 56 | Q44: 164 | R44: Standard (1/4-1/2-1/4) | V44: Half | W44: Full | AG44: Single Strength (2.5 mm) | AH44: Double Strength (3 mm) | AI44: Triple Strength (5 mm) | AT44: 0 | AU44: U509 | AV44: =MAX($D$401,$D$403) -> -2.6875 | AW44: =MAX($D$402,$D$404) -> -7.5 | AX44: 0.1399739583
A45: =IF(ModelNo=B45,3,"") ->  | B45: 0103 | C45: Sash Glass Width | D45: =(TRUNC((Frame_Width/4-0.25)*16+0.5)/16)-1.4375 -> -1.625 | F45: 43 | G45: L204 | H45: Concord Plus Picture Window | I45: 0 | J45: 0 | M45: 9 | N45: 9 | O45: 96 | P45: 96 | Q45: 154 | R45: Standard | AH45: Double Strength (3 mm) | AI45: Triple Strength (5 mm) | AT45: 0 | AU45: 0951 | AV45: =$D$74 -> -4.625 | AW45: =$D$75 -> -4.625 | AX45: 0.1485460069
A46: =IF(ModelNo=B46,4,"") ->  | B46: 0103 | C46: Sash Glass Height | D46: =Frame_Height-3.9375 -> -3.9375 | F46: 44 | G46: L209 | H46: Cocord Plus Three Lite Slider Equal Lite | I46: 0 | J46: 0 | M46: 38 | N46: 9 | O46: 108 | P46: 56 | Q46: 164 | R46: Standard (1/3-1/3-1/3) | V46: Half | W46: Full | AG46: Single Strength (2.5 mm) | AH46: Double Strength (3 mm) | AI46: Triple Strength (5 mm) | AT46: 0 | AU46: 0952 | AV46: =MAX($D$84,$D$86) -> -4.625 | AW46: =MAX($D$85,$D$87) -> -4.375 | AX46: 0.1405164931
A47: =IF(ModelNo=B47,5,"") ->  | B47: 0103 | C47: Fixed Glass Width | D47: =(Frame_Width-2*(TRUNC((Frame_Width/4-0.25)*16+0.5)/16))-1.9375 -> -1.5625 | F47: 45 | G47: 0301 | H47: New Const. Double Hung | I47: 0.5 | J47: 0.5 | M47: 14.25 | N47: 25.25 | O47: 48 | P47: 78 | Q47: 126 | R47: Standard | S47: Oriel (2/3 - 1/3) | T47: Cottage (1/3 - 2/3) | U47: Custom | V47: Half | W47: Full | AG47: Single Strength (2.5 mm) | AH47: Double Strength (3 mm) | AI47: Triple Strength (5 mm) | AL47: Laminated | AO47: << Select Opening | AT47: 0 | AU47: 0953 | AV47: =MAX($D$95,$D$97) -> -4.625 | AW47: =MAX($D$96,$D$98) -> -4.375 | AX47: 0.1405164931
A48: =IF(ModelNo=B48,6,"") ->  | B48: 0103 | C48: Fixed Glass Height | D48: =Frame_Height-2 -> -2 | F48: 46 | G48: 0501 | H48: Sequoia Double Hung | I48: 0 | J48: 0 | M48: 15.25 | N48: 26.75 | O48: 52 | P48: 84 | Q48: 136 | R48: Standard | S48: Oriel (2/3 - 1/3) | T48: Cottage (1/3 - 2/3) | U48: Custom | V48: Half | W48: Full | X48: Locking | AH48: Double Strength (3 mm) | AI48: Triple Strength (5 mm) | AJ48: Triple IG Single Strength | AK48: Triple IG Double Strength | AL48: Laminated | AO48: =IF(RO=2,"<< Exact Size Only","") ->  | AT48: 0 | AU48: 0954 | AV48: =MAX($D$106,$D$108) -> -4.625 | AW48: =MAX($D$107,$D$109) -> -4.375 | AX48: 0.1405164931
A49: =IF(ModelNo=B49,7,"") ->  | B49: 0103 | C49: Astragal Length | D49: =TRUNC((Frame_Height-1.218)*16+0.5)/16 -> -1.125 | F49: 47 | G49: 0502 | H49: Sequoia Two Lite Slider | I49: 0 | J49: 0 | M49: 25.25 | N49: 16.625 | O49: 84 | P49: 68 | Q49: 148 | R49: Standard | V49: Half | W49: Full | AH49: Double Strength (3 mm) | AI49: Triple Strength (5 mm) | AJ49: Triple IG Single Strength | AK49: Triple IG Double Strength | AL49: Laminated | AT49: 0 | AU49: 0955 | AV49: =$D$115 -> -4.625 | AW49: =$D$116 -> -4.375 | AX49: 0.1405164931
A50: =IF(ModelNo=B50,8,"") ->  | B50: 0103 | C50: Roller Track Length | D50: =Frame_Width-1 -> -1 | F50: 48 | G50: 0503 | H50: Sequoia Three Lite Slider (1/4-1/2-1/4) | I50: 0 | J50: 0 | M50: 44.5 | N50: 16.625 | O50: 120 | P50: 68 | Q50: 188 | R50: Standard (1/4-1/2-1/4) | V50: Half | W50: Full | AH50: Double Strength (3 mm) | AI50: Triple Strength (5 mm) | AJ50: Triple IG Single Strength | AK50: Triple IG Double Strength | AL50: Laminated | AT50: 0 | AU50: 0970 | AV50: =$D$120 -> -4.625 | AW50: =$D$121 -> -4.625 | AX50: 0.1485460069
A51: =IF(ModelNo=B51,9,"") ->  | B51: 0103 | C51: Screen Width | D51: =(Frame_Width/4)-1.3125 -> -1.3125 | F51: 49 | G51: 0504 | H51: Sequoia Picture Window | I51: 0 | J51: 0 | M51: 13 | N51: 13 | O51: 96 | P51: 96 | Q51: 154 | R51: Standard | AH51: Double Strength (3 mm) | AI51: Triple Strength (5 mm) | AJ51: Triple IG Single Strength | AK51: Triple IG Double Strength | AL51: Laminated | AT51: 0 | AU51: B970 | AV51: =$D$120 -> -4.625 | AW51: =$D$121 -> -4.625 | AX51: 0.1485460069
A52: =IF(ModelNo=B52,10,"") ->  | B52: 0103 | C52: Screen Height | D52: =Frame_Height-1.75 -> -1.75 | F52: 50 | G52: 0509 | H52: Sequoia Three Lite Slider Equal Lite | I52: 0 | J52: 0 | M52: 35.5 | N52: 16.625 | O52: 112 | P52: 68 | Q52: 184 | R52: Standard (1/3-1/3-1/3) | V52: Half | W52: Full | AH52: Double Strength (3 mm) | AI52: Triple Strength (5 mm) | AJ52: Triple IG Single Strength | AK52: Triple IG Double Strength | AL52: Laminated | AT52: 0 | AU52: 0971 | AV52: =$D$125 -> -4.625 | AW52: =$D$126 -> -4.625 | AX52: 0.1485460069
A53: =IF(ModelNo=B53,11,"") ->  | B53: 0103 | C53: Egress Opening Width | D53: =(Frame_Width/4)-2.3125 -> -2.3125 | F53: 51 | G53: B501 | H53: Sequoia Bay-Bow Double Hung | I53: 0 | J53: 0 | M53: 15.25 | N53: 26.75 | O53: 52 | P53: 84 | Q53: 136 | R53: Standard | S53: Oriel (2/3 - 1/3) | T53: Cottage (1/3 - 2/3) | U53: Custom | V53: Half | W53: Full | X53: Locking | AH53: Double Strength (3 mm) | AI53: Triple Strength (5 mm) | AJ53: Triple IG Single Strength | AK53: Triple IG Double Strength | AL53: Laminated | AT53: 0 | AU53: B971 | AV53: =$D$125 -> -4.625 | AW53: =$D$126 -> -4.625 | AX53: 0.1485460069
A54: =IF(ModelNo=B54,12,"") ->  | B54: 0103 | C54: Egress Opening Height | D54: =TRUNC((Frame_Height-3.074)*16+0.5)/16 -> -3 | F54: 52 | G54: 0522 | H54: Swing & Clean Two Lite Slider | I54: 0 | J54: 0 | M54: 30 | N54: 20 | O54: 72 | P54: 60 | Q54: 120 | R54: Standard | V54: Half | W54: Full | AH54: Double Strength (3 mm) | AI54: Triple Strength (5 mm) | AJ54: Triple IG Single Strength | AK54: Triple IG Double Strength | AL54: Laminated | AT54: 0 | AU54: 0972 | AV54: =$D$137 -> -4.375 | AW54: =$D$138 -> -4.625 | AX54: 0.1405164931
A55: =IF(ModelNo=B55,13,"") ->  | B55: 0103 | C55: Egress Opening Area (sq.ft.) | D55: =(D53*D54)/144 -> 0.04817708333 | F55: 53 | G55: 0523 | H55: Swing & Clean Three Lite Slider (1/4-1/2-1/4) | I55: 0 | J55: 0 | M55: 48 | N55: 20 | O55: 84 | P55: 60 | Q55: 144 | R55: Standard (1/4-1/2-1/4) | V55: Half | W55: Full | AH55: Double Strength (3 mm) | AI55: Triple Strength (5 mm) | AJ55: Triple IG Single Strength | AK55: Triple IG Double Strength | AL55: Laminated | AT55: 0 | AU55: 0973 | AV55: =MAX($D$151,$D$153) -> -4.125 | AW55: =MAX($D$152,$D$154) -> -4.625 | AX55: 0.1324869792
A56: =IF(ModelNo=B56,1,"") ->  | B56: 0104 | C56: Glass Width | D56: =Frame_Width-1.9375 -> -1.9375 | F56: 54 | G56: 0529 | H56: Swing & Clean Three Lite Slider Equal Lite | I56: 0 | J56: 0 | M56: 48 | N56: 20 | O56: 84 | P56: 60 | Q56: 144 | R56: Standard (1/3-1/3-1/3) | V56: Half | W56: Full | AH56: Double Strength (3 mm) | AI56: Triple Strength (5 mm) | AJ56: Triple IG Single Strength | AK56: Triple IG Double Strength | AL56: Laminated | AT56: =IF(ModelNo=AU56,ModelNo,0) -> 0 | AU56: 0974 | AV56: =MAX($D$183,$D$185) -> -4.25 | AW56: =MAX($D$184,$D$186) -> -4.625 | AX56: =(AV56*AW56)/144 -> 0.1365017361
A57: =IF(ModelNo=B57,2,"") ->  | B57: 0104 | C57: Glass Height | D57: =Frame_Height-1.9375 -> -1.9375 | F57: 55 | G57: 0700 | H57: 0700 Series Single Hung | I57: 0 | J57: 0 | M57: 14.375 | N57: 23.75 | O57: 52 | P57: 72 | Q57: 120 | R57: Standard | S57: Oriel (2/3 - 1/3) | T57: Cottage (1/3 - 2/3) | U57: Custom | V57: Half | AG57: Single Strength (2.5 mm) | AH57: Double Strength (3 mm) | AI57: Triple Strength (5 mm) | AL57: Laminated | AT57: 0 | AU57: 0975 | AV57: =MAX($D$199,$D$201) -> -4.1875 | AW57: =MAX($D$200,$D$202) -> -4.625 | AX57: 0.1344943576
A58: =IF(ModelNo=B58,3,"") ->  | B58: 0104 | C58: Glass Area (sq.ft.) | D58: =(D56*D57)/144 -> 0.0260687934 | F58: 56 | G58: 07HP | H58: 0700 Series Single Hung | I58: 0 | J58: 0 | M58: 14.375 | N58: 23.75 | O58: 52 | P58: 77 | Q58: 129 | R58: Standard | S58: Oriel (2/3 - 1/3) | T58: Cottage (1/3 - 2/3) | U58: Custom | V58: Half | AG58: Single Strength (2.5 mm) | AH58: Double Strength (3 mm) | AI58: Triple Strength (5 mm) | AL58: Laminated | AO58: =IF(RO=2,"<< Exact Size Only","") ->  | AT58: 0 | AU58: 0979 | AV58: =MAX($D$167,$D$169) -> -4.25 | AW58: =MAX($D$168,$D$170) -> -4.625 | AX58: 0.1365017361
A59: =IF(ModelNo=B59,1,"") ->  | B59: 0109 | C59: Sash Width | D59: =TRUNC(((Frame_Width/3)+0.4375)*16+0.5)/16 -> 0.4375 | F59: 57 | G59: 0702 | H59: 0700 Series Two Lite Slider | I59: 0 | J59: 0 | M59: 23.5 | N59: 14.25 | O59: 72 | P59: 60 | Q59: 132 | R59: Standard | V59: Half | AG59: Single Strength (2.5 mm) | AH59: Double Strength (3 mm) | AI59: Triple Strength (5 mm) | AL59: Laminated | AT59: 0 | AU59: 6102 | AV59: =$D$883 -> -3.75 | AW59: =$D$884 -> -8.9375 | AX59: 0.2327473958
A60: =IF(ModelNo=B60,2,"") ->  | B60: 0109 | C60: Sash Height | D60: =Frame_Height-2.25 -> -2.25 | F60: 58 | G60: 0703 | H60: 0700 Series Three Lite Slider (1/4-1/2-1/4) | I60: 0 | J60: 0 | M60: 48 | N60: 14.25 | O60: 108 | P60: 60 | Q60: 168 | R60: Standard (1/4-1/2-1/4) | V60: Half | AG60: Single Strength (2.5 mm) | AH60: Double Strength (3 mm) | AI60: Triple Strength (5 mm) | AL60: Laminated | AT60: 0 | AU60: 6103 | AV60: =$D$895 -> -3.5625 | AW60: =$D$896 -> -8.9375 | AX60: 0.221110026
A61: =IF(ModelNo=B61,3,"") ->  | B61: 0109 | C61: Sash Glass Width | D61: =(TRUNC((Frame_Width/3+0.1875)*16+0.5)/16)-1.4375 -> -1.25 | F61: 59 | G61: 0704 | H61: 0700 Series Picture Window | I61: 0 | J61: 0 | M61: 12 | N61: 12 | O61: 96 | P61: 96 | Q61: 154 | R61: Standard | AH61: Double Strength (3 mm) | AI61: Triple Strength (5 mm) | AL61: Laminated | AT61: 0 | AU61: 6104 | AV61: =$D$909 -> -3.25 | AW61: =$D$910 -> -8.9375 | AX61: 0.2017144097
A62: =IF(ModelNo=B62,4,"") ->  | B62: 0109 | C62: Sash Glass Height | D62: =Frame_Height-3.9375 -> -3.9375 | F62: 60 | G62: 0709 | H62: 0700 Series Three Lite Slider Equal Lite | I62: 0 | J62: 0 | M62: 34.75 | N62: 14.25 | O62: 108 | P62: 60 | Q62: 168 | R62: Standard (1/3-1/3-1/3) | V62: Half | AG62: Single Strength (2.5 mm) | AH62: Double Strength (3 mm) | AI62: Triple Strength (5 mm) | AL62: Laminated | AT62: 0 | AU62: 6105 | AV62: =$D$883 -> -3.75 | AW62: =$D$884 -> -8.9375 | AX62: 0.2327473958
A63: =IF(ModelNo=B63,5,"") ->  | B63: 0109 | C63: Fixed Glass Width | D63: =(Frame_Width-2*(TRUNC((Frame_Width/3+0.1875)*16+0.5)/16))-1.9375 -> -2.3125 | F63: 61 | G63: 0901 | H63: Concord Double Hung | I63: 0 | J63: 0 | M63: 15 | N63: 22 | O63: 48 | P63: 84 | Q63: 132 | R63: Standard | S63: Oriel (2/3 - 1/3) | T63: Cottage (1/3 - 2/3) | U63: Custom | V63: Half | W63: Full | X63: Locking | AH63: Double Strength (3 mm) | AI63: Triple Strength (5 mm) | AL63: Laminated | AT63: 0 | AU63: 6106 | AV63: =$D$883 -> -3.75 | AW63: =$D$884 -> -8.9375 | AX63: 0.2327473958
A64: =IF(ModelNo=B64,6,"") ->  | B64: 0109 | C64: Fixed Glass Height | D64: =Frame_Height-2 -> -2 | F64: 62 | G64: 0902 | H64: Concord Two Lite Slider | I64: 0 | J64: 0 | M64: 21.5 | N64: 15.5 | O64: 84 | P64: 66 | Q64: 148 | R64: Standard | V64: Half | W64: Full | AH64: Double Strength (3 mm) | AI64: Triple Strength (5 mm) | AL64: Laminated | AT64: 0 | AU64: 6108 | AV64: =$D$883 -> -3.75 | AW64: =$D$884 -> -8.9375 | AX64: 0.2327473958
A65: =IF(ModelNo=B65,7,"") ->  | B65: 0109 | C65: Astragal Length | D65: =TRUNC((Frame_Height-1.218)*16+0.5)/16 -> -1.125 | F65: 63 | G65: 0903 | H65: Concord Three Lite Slider (1/4-1/2-1/4) | I65: 0 | J65: 0 | M65: 39.75 | N65: 15.5 | O65: 108 | P65: 66 | Q65: 164 | R65: Standard (1/4-1/2-1/4) | V65: Half | W65: Full | AH65: Double Strength (3 mm) | AI65: Triple Strength (5 mm) | AL65: Laminated | AT65: 0 | AU65: 6109 | AV65: =$D$895 -> -3.5625 | AW65: =$D$896 -> -8.9375 | AX65: 0.221110026
A66: =IF(ModelNo=B66,8,"") ->  | B66: 0109 | C66: Roller Track Length | D66: =Frame_Width-1 -> -1 | F66: 64 | G66: 0907 | H66: Concord Single Vent Hopper | I66: 0 | J66: 0 | M66: 12 | N66: 12 | O66: 37 | P66: 37 | Q66: 61 | R66: Standard | W66: Full | AH66: Double Strength (3 mm) | AI66: Triple Strength (5 mm) | AL66: Laminated | AT66: 0 | AU66: 6112 | AV66: =$D$909 -> -3.25 | AW66: =$D$910 -> -8.9375 | AX66: 0.2017144097
A67: =IF(ModelNo=B67,9,"") ->  | B67: 0109 | C67: Screen Width | D67: =TRUNC(((Frame_Width/3)-0.875)*16+0.5)/16 -> -0.8125 | F67: 65 | G67: 0909 | H67: Concord Three Lite Slider Equal Lite | I67: 0 | J67: 0 | M67: 30.25 | N67: 15.5 | O67: 120 | P67: 66 | Q67: 164 | R67: Standard (1/3-1/3-1/3) | V67: Half | W67: Full | AH67: Double Strength (3 mm) | AI67: Triple Strength (5 mm) | AL67: Laminated | AT67: 0 | AU67: 6122 | AV67: =$D$895 -> -3.5625 | AW67: =$D$896 -> -8.9375 | AX67: 0.221110026
A68: =IF(ModelNo=B68,10,"") ->  | B68: 0109 | C68: Screen Height | D68: =Frame_Height-1.75 -> -1.75 | F68: 66 | G68: 0914 | H68: Concord Picture Window | I68: 0 | J68: 0 | M68: 14.5 | N68: 13 | O68: 96 | P68: 84 | Q68: 154 | R68: Standard | AH68: Double Strength (3 mm) | AI68: Triple Strength (5 mm) | AL68: Laminated | AT68: 0 | AU68: 6175 | AV68: =$D$883 -> -3.75 | AW68: =$D$884 -> -8.9375 | AX68: 0.2327473958
A69: =IF(ModelNo=B69,11,"") ->  | B69: 0109 | C69: Egress Opening Width | D69: =TRUNC(((Frame_Width/3)-4.3125)*16+0.5)/16 -> -4.25 | F69: 67 | G69: 09L1 | H69: 09L1 Series Double Hung | I69: 0 | J69: 0 | M69: 15 | N69: 22 | O69: 44 | P69: 77 | Q69: 121 | R69: Standard | S69: Oriel (2/3 - 1/3) | T69: Cottage (1/3 - 2/3) | U69: Custom | V69: Half | W69: Full | X69: Locking | AG69: Single Strength (2.5 mm) | AH69: Double Strength (3 mm) | AI69: Triple Strength (5 mm) | AL69: Laminated | AT69: 0 | AU69: 6402 | AV69: =$D$958 -> -5.125 | AW69: =$D$959 -> -8.625 | AX69: 0.3069661458
A70: =IF(ModelNo=B70,12,"") ->  | B70: 0109 | C70: Egress Opening Height | D70: =TRUNC((Frame_Height-3.074)*16+0.5)/16 -> -3 | F70: 68 | G70: 09L2 | H70: 09L1 Series Two Lite Slider | I70: 0 | J70: 0 | M70: 21.5 | N70: 15.5 | O70: 72 | P70: 56 | Q70: 128 | R70: Standard | V70: Half | W70: Full | AG70: Single Strength (2.5 mm) | AH70: Double Strength (3 mm) | AI70: Triple Strength (5 mm) | AL70: Laminated | AT70: 0 | AU70: 6403 | AV70: =$D$971 -> -5 | AW70: =$D$972 -> -8.625 | AX70: 0.2994791667
A71: =IF(ModelNo=B71,13,"") ->  | B71: 0109 | C71: Egress Opening Area (sq.ft.) | D71: =(D69*D70)/144 -> 0.08854166667 | F71: 69 | G71: 09L3 | H71: 09L1 Series Three Lite Slider (1/4-1/2-1/4) | I71: 0 | J71: 0 | M71: 39.75 | N71: 15.5 | O71: 108 | P71: 56 | Q71: 164 | R71: Standard (1/4-1/2-1/4) | V71: Half | W71: Full | AG71: Single Strength (2.5 mm) | AH71: Double Strength (3 mm) | AI71: Triple Strength (5 mm) | AL71: Laminated | AT71: 0 | AU71: 6404 | AV71: =$D$984 -> -4.6875 | AW71: =$D$985 -> -8.625 | AX71: 0.2807617188
A72: =IF(OR(ModelNo="0151",ModelNo="0951"),1,"") ->  | B72: 0151 | C72: Sash Width | D72: =Frame_Width-1.625 -> -1.625 | F72: 70 | G72: 09L4 | H72: 09L1 Picture Window | I72: 0 | J72: 0 | M72: 14.5 | N72: 13 | O72: 96 | P72: 84 | Q72: 154 | R72: Standard | AH72: Double Strength (3 mm) | AI72: Triple Strength (5 mm) | AL72: Laminated | AT72: 0 | AU72: 6405 | AV72: =$D$958 -> -5.125 | AW72: =$D$959 -> -8.625 | AX72: 0.3069661458
A73: =IF(OR(ModelNo="0151",ModelNo="0951"),2,"") ->  | B73: 0151 | C73: Sash Height | D73: =Frame_Height-1.625 -> -1.625 | F73: 71 | G73: 09L9 | H73: 09L1 Series Three Lite Slider Equal Lite | I73: 0 | J73: 0 | M73: 30.25 | N73: 15.5 | O73: 108 | P73: 56 | Q73: 164 | R73: Standard (1/3-1/3-1/3) | V73: Half | W73: Full | AG73: Single Strength (2.5 mm) | AH73: Double Strength (3 mm) | AI73: Triple Strength (5 mm) | AL73: Laminated | AT73: 0 | AU73: 6406 | AV73: =$D$958 -> -5.125 | AW73: =$D$959 -> -8.625 | AX73: 0.3069661458
A74: =IF(OR(ModelNo="0151",ModelNo="0951"),3,"") ->  | B74: 0151 | C74: Sash Glass Width | D74: =Frame_Width-4.625 -> -4.625 | F74: 72 | G74: 0951 | H74: Single Vent Awning | I74: 0 | J74: 0 | M74: 19 | N74: 16 | O74: 48 | P74: 48 | Q74: 96 | R74: Standard | W74: Full | AH74: Double Strength (3 mm) | AI74: Triple Strength (5 mm) | AJ74: Triple IG Single Strength | AK74: Triple IG Double Strength | AL74: Laminated | AT74: 0 | AU74: 6408 | AV74: =$D$958 -> -5.125 | AW74: =$D$959 -> -8.625 | AX74: 0.3069661458
A75: =IF(OR(ModelNo="0151",ModelNo="0951"),4,"") ->  | B75: 0151 | C75: Sash Glass Height | D75: =Frame_Height-4.625 -> -4.625 | F75: 73 | G75: 0952 | H75: Awning W/ Transom Equal Lite | I75: 0 | J75: 0 | M75: 19 | N75: 32 | O75: 48 | P75: 96 | Q75: 144 | R75: Standard | V75: Half | AH75: Double Strength (3 mm) | AI75: Triple Strength (5 mm) | AJ75: Triple IG Single Strength | AK75: Triple IG Double Strength | AL75: Laminated | AT75: 0 | AU75: 6409 | AV75: =$D$971 -> -5 | AW75: =$D$972 -> -8.625 | AX75: 0.2994791667
A76: =IF(OR(ModelNo="0151",ModelNo="0951"),5,"") ->  | B76: 0151 | C76: Glass Area (sq.ft.) | D76: =(D74*D75)/144 -> 0.1485460069 | F76: 74 | G76: 0953 | H76: Awning W/ Transom (1/3-2/3) | I76: 0 | J76: 0 | M76: 19 | N76: 48 | O76: 48 | P76: 96 | Q76: 144 | R76: Standard | V76: Half | AH76: Double Strength (3 mm) | AI76: Triple Strength (5 mm) | AJ76: Triple IG Single Strength | AK76: Triple IG Double Strength | AL76: Laminated | AT76: 0 | AU76: 6412 | AV76: =$D$984 -> -4.6875 | AW76: =$D$985 -> -8.625 | AX76: 0.2807617188
A77: =IF(OR(ModelNo="0151",ModelNo="0951"),6,"") ->  | B77: 0151 | C77: Screen Width | D77: =Frame_Width-4 -> -4 | F77: 75 | G77: 0954 | H77: Single Vent Awning W/ Bottom Transom | I77: 0 | J77: 0 | M77: 19 | N77: 32 | O77: 48 | P77: 96 | Q77: 144 | R77: Standard | V77: Half | AH77: Double Strength (3 mm) | AI77: Triple Strength (5 mm) | AJ77: Triple IG Single Strength | AK77: Triple IG Double Strength | AL77: Laminated | AT77: 0 | AU77: 6422 | AV77: =$D$971 -> -5 | AW77: =$D$972 -> -8.625 | AX77: 0.2994791667
A78: =IF(OR(ModelNo="0151",ModelNo="0951"),7,"") ->  | B78: 0151 | C78: Screen Height | D78: =Frame_Height-4 -> -4 | F78: 76 | G78: 0955 | H78: Dual Vent Awning Equal Lite | I78: 0 | J78: 0 | M78: 19 | N78: 32 | O78: 48 | P78: 96 | Q78: 144 | R78: Standard | V78: Half | AH78: Double Strength (3 mm) | AI78: Triple Strength (5 mm) | AJ78: Triple IG Single Strength | AK78: Triple IG Double Strength | AL78: Laminated | AT78: 0 | AU78: 6475 | AV78: =$D$958 -> -5.125 | AW78: =$D$959 -> -8.625 | AX78: 0.3069661458
A79: =IF(OR(ModelNo="0151",ModelNo="0951"),8,"") ->  | B79: 0151 | C79: Awning Does not Meet Egress | F79: 77 | G79: 0970 | H79: Casement Picture Window | I79: 0 | J79: 0 | M79: 13 | N79: 13 | O79: 96 | P79: 96 | Q79: 154 | R79: Standard | AH79: Double Strength (3 mm) | AI79: Triple Strength (5 mm) | AJ79: Triple IG Single Strength | AK79: Triple IG Double Strength | AL79: Laminated | AU79: =IF(ISERROR(VLOOKUP(ModelNo,AT24:AU78,2,FALSE)),"",ModelNo) ->  | AV79: =IF(ISERROR(VLOOKUP(ModelNo,$AU$24:$AY$78,2,FALSE)),0,VLOOKUP(ModelNo,$AU$24:$AY$78,2,FALSE)) -> 0 | AW79: =IF(ISERROR(VLOOKUP(ModelNo,$AU$24:$AY$78,3,FALSE)),0,VLOOKUP(ModelNo,$AU$24:$AY$78,3,FALSE)) -> 0 | AX79: =IF(ISERROR(VLOOKUP(ModelNo,$AU$24:$AY$78,4,FALSE)),0,VLOOKUP(ModelNo,$AU$24:$AY$78,4,FALSE)) -> 0 | AY79: =IF(ISERROR(VLOOKUP(ModelNo,$AU$24:$AY$78,5,FALSE)),0,VLOOKUP(ModelNo,$AU$24:$AY$78,5,FALSE)) -> 0
A80: =IF(OR(ModelNo="0152",ModelNo="0952"),1,"") ->  | B80: 0152 | C80: Operating Sash Width | D80: =Frame_Width-1.625 -> -1.625 | F80: 78 | G80: B970 | H80: Casement Bay-Bow Picture Window | I80: 0 | J80: 0 | M80: 13 | N80: 13 | O80: 96 | P80: 96 | Q80: 154 | R80: Standard | AG80: =IF(OR(Glass=1,Glass=7,Glass=8),"<< Not Available","") -> << Not Available | AO80: =IF(RO=2,"<< Exact Size Only","") -> 
A81: =IF(OR(ModelNo="0152",ModelNo="0952"),2,"") ->  | B81: 0152 | C81: Operating Sash Height | D81: =(Frame_Height/2)-1.375 -> -1.375 | F81: 79 | G81: 0971 | H81: Single Vent Casement | I81: 0 | J81: 0 | M81: 16 | N81: 19 | O81: 36 | P81: 78 | Q81: 114 | R81: Standard | W81: Full | AH81: Double Strength (3 mm) | AI81: Triple Strength (5 mm) | AJ81: Triple IG Single Strength | AK81: Triple IG Double Strength | AL81: Laminated
A82: =IF(OR(ModelNo="0152",ModelNo="0952"),3,"") ->  | B82: 0152 | C82: Fixed Sash Width | D82: =Frame_Width-1.625 -> -1.625 | F82: 80 | G82: B971 | H82: Casement Bay-Bow Single Vent | I82: 0 | J82: 0 | M82: 16 | N82: 19 | O82: 36 | P82: 78 | Q82: 114 | R82: Standard | W82: Full | AH82: Double Strength (3 mm) | AI82: Triple Strength (5 mm) | AJ82: Triple IG Single Strength | AK82: Triple IG Double Strength | AL82: Laminated
A83: =IF(OR(ModelNo="0152",ModelNo="0952"),4,"") ->  | B83: 0152 | C83: Fixed Sash Height | D83: =(Frame_Height/2)-1.375 -> -1.375 | F83: 81 | G83: 0972 | H83: Dual Vent Casement | I83: 0 | J83: 0 | M83: 32 | N83: 19 | O83: 72 | P83: 78 | Q83: 150 | R83: Standard | V83: Half | AH83: Double Strength (3 mm) | AI83: Triple Strength (5 mm) | AJ83: Triple IG Single Strength | AK83: Triple IG Double Strength | AL83: Laminated
A84: =IF(OR(ModelNo="0152",ModelNo="0952"),5,"") ->  | B84: 0152 | C84: Operating Sash Glass Width | D84: =Frame_Width-4.625 -> -4.625 | F84: 82 | G84: 0973 | H84: Dual Vent Three Lite Casement (1/4-1/2-1/4) | I84: 0 | J84: 0 | M84: 64 | N84: 19 | O84: 120 | P84: 78 | Q84: 198 | R84: Standard (1/4-1/2-1/4) | V84: Half | AH84: Double Strength (3 mm) | AI84: Triple Strength (5 mm) | AJ84: Triple IG Single Strength | AK84: Triple IG Double Strength | AL84: Laminated
A85: =IF(OR(ModelNo="0152",ModelNo="0952"),6,"") ->  | B85: 0152 | C85: Operating Sash Glass Height | D85: =Frame_Height/2-4.375 -> -4.375 | F85: 83 | G85: 0974 | H85: Four Lite Casement | I85: 0 | J85: 0 | M85: 64 | N85: 19 | O85: 120 | P85: 78 | Q85: 198 | R85: Standard | V85: Half | AH85: Double Strength (3 mm) | AI85: Triple Strength (5 mm) | AJ85: Triple IG Single Strength | AK85: Triple IG Double Strength | AL85: Laminated
A86: =IF(OR(ModelNo="0152",ModelNo="0952"),7,"") ->  | B86: 0152 | C86: Fixed Sash Glass Width | D86: =Frame_Width-4.625 -> -4.625 | F86: 84 | G86: 0975 | H86: Five Lite Casement | I86: 0 | J86: 0 | M86: 80 | N86: 19 | O86: 120 | P86: 78 | Q86: 198 | R86: Standard | V86: Half | AH86: Double Strength (3 mm) | AI86: Triple Strength (5 mm) | AJ86: Triple IG Single Strength | AK86: Triple IG Double Strength | AL86: Laminated
A87: =IF(OR(ModelNo="0152",ModelNo="0952"),8,"") ->  | B87: 0152 | C87: Fixed Sash Glass Height | D87: =Frame_Height/2-4.375 -> -4.375 | F87: 85 | G87: 0979 | H87: Dual Vent Three Lite Casement (Equal Lite) | I87: 0 | J87: 0 | M87: 48 | N87: 19 | O87: 108 | P87: 78 | Q87: 186 | R87: Standard (1/3-1/3-1/3) | V87: Half | AH87: Double Strength (3 mm) | AI87: Triple Strength (5 mm) | AJ87: Triple IG Single Strength | AK87: Triple IG Double Strength | AL87: Laminated
A88: =IF(OR(ModelNo="0152",ModelNo="0952"),9,"") ->  | B88: 0152 | C88: Screen Width | D88: =Frame_Width-4 -> -4 | F88: 86 | G88: 1105 | H88: New Const. Five Foot Patio Door | I88: 0.625 | J88: 0.5 | K88: 60 | L88: 80 | M88: 59.375 | N88: 79.5 | O88: 59.375 | P88: 79.5 | Q88: 140 | R88: Standard | V88: Half | AH88: Double Strength (3 mm) | AI88: Triple Strength (5 mm) | AJ88: Triple IG Single Strength | AK88: Triple IG Double Strength | AL88: Laminated | AO88: =IF(RO=1,"<< Rough Opening Only","") -> << Rough Opening Only
A89: =IF(OR(ModelNo="0152",ModelNo="0952"),10,"") ->  | B89: 0152 | C89: Screen Height | D89: =(Frame_Height/2)-3.6875 -> -3.6875 | F89: 87 | G89: 1106 | H89: New Const. Six Foot Patio Door | I89: 0.625 | J89: 0.5 | K89: 72 | L89: 96 | M89: 71.375 | N89: 79.5 | O89: 71.375 | P89: 95.5 | Q89: 168 | R89: Standard | V89: Half | AH89: Double Strength (3 mm) | AI89: Triple Strength (5 mm) | AJ89: Triple IG Single Strength | AK89: Triple IG Double Strength | AL89: Laminated | AO89: << Rough Opening Only
A90: =IF(OR(ModelNo="0152",ModelNo="0952"),11,"") ->  | B90: 0152 | C90: Awning Does not Meet Egress | F90: 88 | G90: 1108 | H90: New Const. Eight Foot Patio Door | I90: 0.625 | J90: 0.5 | K90: 96 | L90: 80 | M90: 95.375 | N90: 79.5 | O90: 95.375 | P90: 79.5 | Q90: 176 | R90: Standard | V90: Half | AH90: Double Strength (3 mm) | AI90: Triple Strength (5 mm) | AJ90: Triple IG Single Strength | AK90: Triple IG Double Strength | AL90: Laminated | AO90: << Rough Opening Only
A91: =IF(OR(ModelNo="0153",ModelNo="0953"),1,"") ->  | B91: 0153 | C91: Operating Sash Width | D91: =Frame_Width-1.625 -> -1.625 | F91: 89 | G91: 1109 | H91: New Const. Nine Foot Patio Door | I91: 0.625 | J91: 0.5 | K91: 108 | L91: 96 | M91: 107.375 | N91: 79.5 | O91: 107.375 | P91: 95.5 | Q91: 204 | R91: Standard | V91: Half | AH91: Double Strength (3 mm) | AI91: Triple Strength (5 mm) | AJ91: Triple IG Single Strength | AK91: Triple IG Double Strength | AL91: Laminated | AO91: << Rough Opening Only
A92: =IF(OR(ModelNo="0153",ModelNo="0953"),2,"") ->  | B92: 0153 | C92: Operating Sash Height | D92: =(Frame_Height/3)-1.375 -> -1.375 | F92: 90 | G92: 1176 | H92: New Const. 6.5 Foot Patio Door | I92: 0.625 | J92: 0.5 | K92: 76 | L92: 80 | M92: 75.375 | N92: 79.5 | O92: 75.375 | P92: 79.5 | Q92: 156 | R92: Standard | V92: Half | AH92: Double Strength (3 mm) | AI92: Triple Strength (5 mm) | AJ92: Triple IG Single Strength | AK92: Triple IG Double Strength | AL92: Laminated | AO92: << Rough Opening Only
A93: =IF(OR(ModelNo="0153",ModelNo="0953"),3,"") ->  | B93: 0153 | C93: Fixed Sash Width | D93: =Frame_Width-1.625 -> -1.625 | F93: 91 | G93: 11C5 | H93: New Const. C. Class Five Foot Patio Door | I93: 0.5 | J93: 0.5 | K93: 60 | L93: 80 | M93: 59.5 | N93: 79.5 | O93: 59.5 | P93: 80 | Q93: 140 | R93: Standard | V93: Half | AH93: Double Strength (3 mm) | AI93: Triple Strength (5 mm) | AJ93: Triple IG Single Strength | AK93: Triple IG Double Strength | AL93: Laminated | AO93: << Rough Opening Only
A94: =IF(OR(ModelNo="0153",ModelNo="0953"),4,"") ->  | B94: 0153 | C94: Fixed Sash Height | D94: =(2*(Frame_Height/3)-1.375) -> -1.375 | F94: 92 | G94: 11C6 | H94: New Const. C. Class Six Foot Patio Door | I94: 0.5 | J94: 0.5 | K94: 72 | L94: 80 | M94: 71.5 | N94: 79.5 | O94: 72 | P94: 80 | Q94: 152 | R94: Standard | V94: Half | AH94: Double Strength (3 mm) | AI94: Triple Strength (5 mm) | AJ94: Triple IG Single Strength | AK94: Triple IG Double Strength | AL94: Laminated | AO94: << Rough Opening Only
A95: =IF(OR(ModelNo="0153",ModelNo="0953"),5,"") ->  | B95: 0153 | C95: Operating Sash Glass Width | D95: =Frame_Width-4.625 -> -4.625 | F95: 93 | G95: 11C8 | H95: New Const. C. Class Eight Foot Patio Door | I95: 0.5 | J95: 0.5 | K95: 96 | L95: 80 | M95: 95.5 | N95: 79.5 | O95: 96 | P95: 80 | Q95: 176 | R95: Standard | V95: Half | AH95: Double Strength (3 mm) | AI95: Triple Strength (5 mm) | AJ95: Triple IG Single Strength | AK95: Triple IG Double Strength | AL95: Laminated | AO95: << Rough Opening Only
A96: =IF(OR(ModelNo="0153",ModelNo="0953"),6,"") ->  | B96: 0153 | C96: Operating Sash Glass Height | D96: =Frame_Height/3-4.375 -> -4.375 | F96: 94 | G96: 11C9 | H96: New Const. C. Class Nine Foot Patio Door | I96: 0.5 | J96: 0.5 | K96: 108 | L96: 80 | M96: 107.5 | N96: 79.5 | O96: 108 | P96: 80 | Q96: 188 | R96: Standard | V96: Half | AH96: Double Strength (3 mm) | AI96: Triple Strength (5 mm) | AJ96: Triple IG Single Strength | AK96: Triple IG Double Strength | AL96: Laminated | AO96: << Rough Opening Only
A97: =IF(OR(ModelNo="0153",ModelNo="0953"),7,"") ->  | B97: 0153 | C97: Fixed Sash Glass Width | D97: =Frame_Width-4.625 -> -4.625 | F97: 95 | G97: 11i5 | H97: Coastal Impact Five Foot New Const. Patio Door | I97: 0.5 | J97: 0.5 | K97: 60 | L97: 80 | M97: 59.5 | N97: 79.5 | O97: 60 | P97: 80 | Q97: 140 | R97: Standard | V97: Half | AH97: Double Strength (3 mm) | AI97: Triple Strength (5 mm) | AJ97: Triple IG Single Strength | AK97: Triple IG Double Strength | AL97: Laminated | AO97: << Rough Opening Only
A98: =IF(OR(ModelNo="0153",ModelNo="0953"),8,"") ->  | B98: 0153 | C98: Fixed Sash Glass Height | D98: =2*(Frame_Height/3)-4.375 -> -4.375 | F98: 96 | G98: 11i6 | H98: Coastal Impact Six Foot New Const. Patio Door | I98: 0.5 | J98: 0.5 | K98: 72 | L98: 80 | M98: 71.5 | N98: 79.5 | O98: 72 | P98: 80 | Q98: 152 | R98: Standard | V98: Half | AH98: Double Strength (3 mm) | AI98: Triple Strength (5 mm) | AJ98: Triple IG Single Strength | AK98: Triple IG Double Strength | AL98: Laminated | AO98: << Rough Opening Only
A99: =IF(OR(ModelNo="0153",ModelNo="0953"),9,"") ->  | B99: 0153 | C99: Screen Width | D99: =Frame_Width-4 -> -4 | F99: 97 | G99: 11i8 | H99: Coastal Impact Eight Foot New Const. Patio Door | I99: 0.5 | J99: 0.5 | K99: 96 | L99: 80 | M99: 95.5 | N99: 79.5 | O99: 96 | P99: 80 | Q99: 176 | R99: Standard | V99: Half | AH99: Double Strength (3 mm) | AI99: Triple Strength (5 mm) | AJ99: Triple IG Single Strength | AK99: Triple IG Double Strength | AL99: Laminated | AO99: << Rough Opening Only
A100: =IF(OR(ModelNo="0153",ModelNo="0953"),10,"") ->  | B100: 0153 | C100: Screen Height | D100: =(Frame_Height/3)-3.6875 -> -3.6875 | F100: 98 | G100: 5102 | H100: 5100 Series Custom Two Lite Patio Door | I100: 0 | J100: 0 | M100: 48 | N100: 72 | O100: 96 | P100: 96 | Q100: 192 | V100: Half | AH100: Double Strength (3 mm) | AI100: Triple Strength (5 mm) | AJ100: Triple IG Single Strength | AK100: Triple IG Double Strength | AL100: Laminated | AO100: =IF(RO=2,"<< Exact Size Only","") -> 
A101: =IF(OR(ModelNo="0153",ModelNo="0953"),11,"") ->  | B101: 0153 | C101: Awning Does not Meet Egress | F101: 99 | G101: 5103 | H101: 5100 Series Custom Three Lite Patio Door | I101: 0 | J101: 0 | M101: 84 | N101: 72 | O101: 108 | P101: 96 | Q101: 204 | V101: Half | AH101: Double Strength (3 mm) | AI101: Triple Strength (5 mm) | AJ101: Triple IG Single Strength | AK101: Triple IG Double Strength | AL101: Laminated | AO101: =IF(RO=2,"<< Exact Size Only","") -> 
A102: =IF(OR(ModelNo="0154",ModelNo="0954"),1,"") ->  | B102: 0154 | C102: Operating Sash Width | D102: =Frame_Width-1.625 -> -1.625 | F102: 100 | G102: 5105 | H102: 5100 Series Five Foot Two Lite Patio Door | I102: 1.375 | J102: 0.5 | K102: 60 | L102: 80 | M102: 60 | N102: 80 | O102: 60 | P102: 80 | Q102: 140 | R102: Standard | V102: Half | AH102: Double Strength (3 mm) | AI102: Triple Strength (5 mm) | AJ102: Triple IG Single Strength | AK102: Triple IG Double Strength | AL102: Laminated | AO102: =IF(RO=1,"<< Rough Opening Only","") -> << Rough Opening Only
A103: =IF(OR(ModelNo="0154",ModelNo="0954"),2,"") ->  | B103: 0154 | C103: Operating Sash Height | D103: =(Frame_Height/2)-1.375 -> -1.375 | F103: 101 | G103: 5106 | H103: 5100 Series Six Foot Two Lite Patio Door | I103: 1.375 | J103: 0.5 | K103: 72 | L103: 80 | M103: 72 | N103: 80 | O103: 72 | P103: 80 | Q103: 152 | R103: Standard | V103: Half | AH103: Double Strength (3 mm) | AI103: Triple Strength (5 mm) | AJ103: Triple IG Single Strength | AK103: Triple IG Double Strength | AL103: Laminated | AO103: << Rough Opening Only
A104: =IF(OR(ModelNo="0154",ModelNo="0954"),3,"") ->  | B104: 0154 | C104: Fixed Sash Width | D104: =Frame_Width-1.625 -> -1.625 | F104: 102 | G104: 5108 | H104: 5100 Series Eight Foot Two Lite Patio Door | I104: 1.75 | J104: 0.5 | K104: 96 | L104: 80 | M104: 96 | N104: 80 | O104: 96 | P104: 80 | Q104: 176 | R104: Standard | V104: Half | AH104: Double Strength (3 mm) | AI104: Triple Strength (5 mm) | AJ104: Triple IG Single Strength | AK104: Triple IG Double Strength | AL104: Laminated | AO104: << Rough Opening Only
A105: =IF(OR(ModelNo="0154",ModelNo="0954"),4,"") ->  | B105: 0154 | C105: Fixed Sash Height | D105: =(Frame_Height/2)-1.375 -> -1.375 | F105: 103 | G105: 5109 | H105: 5100 Series Nine Foot Three Lite Patio Door | I105: 2.5 | J105: 0.5 | K105: 108 | L105: 80 | M105: 108 | N105: 80 | O105: 108 | P105: 80 | Q105: 188 | R105: Standard | V105: Half | AH105: Double Strength (3 mm) | AI105: Triple Strength (5 mm) | AJ105: Triple IG Single Strength | AK105: Triple IG Double Strength | AL105: Laminated | AO105: << Rough Opening Only
A106: =IF(OR(ModelNo="0154",ModelNo="0954"),5,"") ->  | B106: 0154 | C106: Operating Sash Glass Width | D106: =Frame_Width-4.625 -> -4.625 | F106: 104 | G106: 5175 | H106: 5100 Series Wisconsin Two Lite Patio Door | I106: 0.5 | J106: 0.5 | K106: 75 | L106: 80 | M106: 75 | N106: 80 | O106: 75 | P106: 80 | Q106: 155 | R106: Standard | V106: Half | AH106: Double Strength (3 mm) | AI106: Triple Strength (5 mm) | AJ106: Triple IG Single Strength | AK106: Triple IG Double Strength | AL106: Laminated | AO106: << Rough Opening Only
A107: =IF(OR(ModelNo="0154",ModelNo="0954"),6,"") ->  | B107: 0154 | C107: Operating Sash Glass Height | D107: =(Frame_Height/2)-4.375 -> -4.375 | F107: 105 | G107: 51i5 | H107: Coastal Impact Five Foot Replacenet Patio Door | I107: 1.375 | J107: 0.5 | K107: 60 | L107: 80 | M107: 60 | N107: 80 | O107: 60 | P107: 80 | Q107: 140 | R107: Standard | V107: Half | AH107: Double Strength (3 mm) | AI107: Triple Strength (5 mm) | AJ107: Triple IG Single Strength | AK107: Triple IG Double Strength | AL107: Laminated | AO107: << Rough Opening Only
A108: =IF(OR(ModelNo="0154",ModelNo="0954"),7,"") ->  | B108: 0154 | C108: Fixed Sash Glass Width | D108: =Frame_Width-4.625 -> -4.625 | F108: 106 | G108: 51i6 | H108: Coastal Impact Six Foot Replacement Patio Door | I108: 1.375 | J108: 0.5 | K108: 72 | L108: 80 | M108: 72 | N108: 80 | O108: 72 | P108: 80 | Q108: 152 | R108: Standard | V108: Half | AH108: Double Strength (3 mm) | AI108: Triple Strength (5 mm) | AJ108: Triple IG Single Strength | AK108: Triple IG Double Strength | AL108: Laminated | AO108: << Rough Opening Only
A109: =IF(OR(ModelNo="0154",ModelNo="0954"),8,"") ->  | B109: 0154 | C109: Fixed Sash Glass Height | D109: =(Frame_Height/2)-4.375 -> -4.375 | F109: 107 | G109: 51i8 | H109: Coastal Impact Eight Foot Replacement Patio Door | I109: 1.75 | J109: 0.5 | K109: 96 | L109: 80 | M109: 96 | N109: 80 | O109: 96 | P109: 80 | Q109: 176 | R109: Standard | V109: Half | AH109: Double Strength (3 mm) | AI109: Triple Strength (5 mm) | AJ109: Triple IG Single Strength | AK109: Triple IG Double Strength | AL109: Laminated | AO109: << Rough Opening Only
A110: =IF(OR(ModelNo="0154",ModelNo="0954"),9,"") ->  | B110: 0154 | C110: Screen Width | D110: =Frame_Width-4 -> -4 | F110: 108 | G110: 5202 | H110: 5200 Series Custom 2 Lite Patio Door | I110: 0 | J110: 0 | M110: 48 | N110: 72 | O110: 94.5 | P110: 94.5 | Q110: 189 | V110: Half | AH110: Double Strength (3 mm) | AI110: Triple Strength (5 mm) | AJ110: Triple IG Single Strength | AK110: Triple IG Double Strength | AL110: Laminated | AO110: =IF(RO=2,"<< Exact Size Only","") -> 
A111: =IF(OR(ModelNo="0154",ModelNo="0954"),10,"") ->  | B111: 0154 | C111: Screen Height | D111: =(Frame_Height/2)-3.6875 -> -3.6875 | F111: 109 | G111: 5203 | H111: 5200 Series Custom 3 Lite Patio Door | I111: 0 | J111: 0 | M111: 84 | N111: 72 | O111: 139 | P111: 95 | Q111: 234 | V111: Half | AH111: Double Strength (3 mm) | AI111: Triple Strength (5 mm) | AJ111: Triple IG Single Strength | AK111: Triple IG Double Strength | AL111: Laminated | AO111: =IF(RO=2,"<< Exact Size Only","") -> 
A112: =IF(OR(ModelNo="0154",ModelNo="0954"),11,"") ->  | B112: 0154 | C112: Awning Does not Meet Egress | F112: 110 | G112: 5205 | H112: 5200 Series Five Foot 2 Lite Patio Door | I112: 0.9375 | J112: 0.5 | K112: 60 | L112: 80 | M112: 60 | N112: 80 | O112: 60 | P112: 80 | Q112: 156 | R112: Standard | V112: Half | AH112: Double Strength (3 mm) | AI112: Triple Strength (5 mm) | AJ112: Triple IG Single Strength | AK112: Triple IG Double Strength | AL112: Laminated | AO112: =IF(RO=1,"<< Rough Opening Only","") -> << Rough Opening Only | AU112: 8405 | AV112: =$D$1161 -> -3.0625 | AW112: =$D$1162 -> -3.5625 | AX112: =(AV112*AW112)/144 -> 0.07576497396
A113: =IF(OR(ModelNo="0155",ModelNo="0955"),1,"") ->  | B113: 0155 | C113: Sash Width | D113: =Frame_Width-1.625 -> -1.625 | F113: 111 | G113: 5206 | H113: 5200 Series Six Foot 2 Lite Patio Door | I113: 1.125 | J113: 0.5 | K113: 72 | L113: 80 | M113: 72 | N113: 80 | O113: 72 | P113: 80 | Q113: 168 | R113: Standard | V113: Half | AH113: Double Strength (3 mm) | AI113: Triple Strength (5 mm) | AJ113: Triple IG Single Strength | AK113: Triple IG Double Strength | AL113: Laminated | AO113: << Rough Opening Only | AU113: 8406 | AV113: =$D$1161 -> -3.0625 | AW113: =$D$1162 -> -3.5625 | AX113: 0.07576497396
A114: =IF(OR(ModelNo="0155",ModelNo="0955"),2,"") ->  | B114: 0155 | C114: Sash Height | D114: =(Frame_Height/2)-1.375 -> -1.375 | F114: 112 | G114: 5208 | H114: 5200 Series Eight Foot 2 Lite Patio Door | I114: 1.5 | J114: 0.5 | K114: 96 | L114: 80 | M114: 96 | N114: 80 | O114: 96 | P114: 80 | Q114: 192 | R114: Standard | V114: Half | AH114: Double Strength (3 mm) | AI114: Triple Strength (5 mm) | AJ114: Triple IG Single Strength | AK114: Triple IG Double Strength | AL114: Laminated | AO114: << Rough Opening Only | AU114: 8408 | AV114: =$D$1161 -> -3.0625 | AW114: =$D$1162 -> -3.5625 | AX114: 0.07576497396
A115: =IF(OR(ModelNo="0155",ModelNo="0955"),3,"") ->  | B115: 0155 | C115: Sash Glass Width | D115: =(Frame_Width)-4.625 -> -4.625 | F115: 113 | G115: 5209 | H115: 5200 Series Nine Foot 3 Lite Patio Door | I115: 4.5 | J115: 0.5 | K115: 108 | L115: 80 | M115: 108 | N115: 80 | O115: 108 | P115: 80 | Q115: 204 | R115: Standard | V115: Half | AH115: Double Strength (3 mm) | AI115: Triple Strength (5 mm) | AJ115: Triple IG Single Strength | AK115: Triple IG Double Strength | AL115: Laminated | AO115: << Rough Opening Only | AU115: 8409 | AV115: =$D$1174 -> -2.125 | AW115: =$D$1175 -> -3.1875 | AX115: 0.04703776042
A116: =IF(OR(ModelNo="0155",ModelNo="0955"),4,"") ->  | B116: 0155 | C116: Sash Glass Height | D116: =(Frame_Height/2)-4.375 -> -4.375 | F116: 114 | G116: 5210 | H116: 5200 Series Ten Foot 3 Lite Patio Door | I116: 1.875 | J116: 0.5 | K116: 120 | L116: 80 | M116: 120 | N116: 80 | O116: 120 | P116: 96 | Q116: 216 | R116: Standard | V116: Half | AH116: Double Strength (3 mm) | AI116: Triple Strength (5 mm) | AJ116: Triple IG Single Strength | AK116: Triple IG Double Strength | AL116: Laminated | AO116: << Rough Opening Only | AU116: 8412 | AV116: =$D$1187 -> -3.46875 | AW116: =$D$1188 -> -2.125 | AX116: 0.05118815104
A117: =IF(OR(ModelNo="0155",ModelNo="0955"),5,"") ->  | B117: 0155 | C117: Screen Width | D117: =Frame_Width-4 -> -4 | F117: 115 | G117: 5212 | H117: 5200 Series Twelve Foot 3 Lite Patio Door | I117: 5.0625 | J117: 0.5 | K117: 144 | L117: 80 | M117: 144 | N117: 80 | O117: 144 | P117: 96 | Q117: 240 | R117: Standard | V117: Half | AH117: Double Strength (3 mm) | AI117: Triple Strength (5 mm) | AJ117: Triple IG Single Strength | AK117: Triple IG Double Strength | AL117: Laminated | AO117: << Rough Opening Only | AU117: 8422 | AV117: =$D$1174 -> -2.125 | AW117: =$D$1175 -> -3.1875 | AX117: 0.04703776042
A118: =IF(OR(ModelNo="0155",ModelNo="0955"),6,"") ->  | B118: 0155 | C118: Screen Height | D118: =(Frame_Height/2)-3.6875 -> -3.6875 | F118: 116 | G118: 6102 | H118: 6100 Series Custom Two Lite Patio Door | I118: 0 | J118: 0 | M118: 48 | N118: 72 | O118: 96 | P118: 96 | Q118: 180 | V118: Half | AH118: Double Strength (3 mm) | AI118: Triple Strength (5 mm) | AJ118: Triple IG Single Strength | AK118: Triple IG Double Strength | AL118: Laminated | AO118: =IF(RO=2,"<< Exact Size Only","") ->  | AU118: 8475 | AV118: =$D$1161 -> -3.0625 | AW118: =$D$1162 -> -3.5625 | AX118: 0.07576497396
A119: =IF(OR(ModelNo="0155",ModelNo="0955"),7,"") ->  | B119: 0155 | C119: Awning Does not Meet Egress | F119: 117 | G119: 6103 | H119: 6100 Series Custom Three Lite Patio Door | I119: 0 | J119: 0 | M119: 84 | N119: 72 | O119: 144 | P119: 96 | Q119: 228 | V119: Half | AH119: Double Strength (3 mm) | AI119: Triple Strength (5 mm) | AJ119: Triple IG Single Strength | AK119: Triple IG Double Strength | AL119: Laminated | AO119: =IF(RO=2,"<< Exact Size Only","") ->  | AU119: R601 | AV119: =MAX($D$812,$D$814) -> -2.125 | AW119: =MAX($D$813,$D$815) -> 0 | AX119: 0 | AY119: =IF(AND(OR(Glass=4,Glass=5),OR($D$819="N/A",$D$821="N/A")),1,IF(AND(Glass=3,Single_ST=0),1,0)) -> 0
A120: =IF(OR(ModelNo="0170",ModelNo="0970",ModelNo="0504",ModelNo="B970",ModelNo="i970"),1,"") ->  | B120: 0170 | C120: Glass Width | D120: =Frame_Width-4.625 -> -4.625 | F120: 118 | G120: 6104 | H120: 6100 Series Custom Four Lite Patio Door | I120: 0 | J120: 0 | M120: 96 | N120: 72 | O120: 144 | P120: 96 | Q120: 240 | V120: Half | AH120: Double Strength (3 mm) | AI120: Triple Strength (5 mm) | AJ120: Triple IG Single Strength | AK120: Triple IG Double Strength | AL120: Laminated | AO120: =IF(RO=2,"<< Exact Size Only","") ->  | AU120: R970 | AV120: =$D$122 -> 0.1485460069 | AW120: =$D$123 -> -1.625 | AX120: -0.001676300426
A121: =IF(OR(ModelNo="0170",ModelNo="0970",ModelNo="0504",ModelNo="B970",ModelNo="i970"),2,"") ->  | B121: 0170 | C121: Glass Height | D121: =Frame_Height-4.625 -> -4.625 | F121: 119 | G121: 6105 | H121: 6100 Series Five Foot Two Lite Patio Door | I121: 1.375 | J121: 0.5 | K121: 60 | L121: 80 | M121: 60 | N121: 80 | O121: 60 | P121: 80 | Q121: 140 | R121: Standard | V121: Half | AH121: Double Strength (3 mm) | AI121: Triple Strength (5 mm) | AJ121: Triple IG Single Strength | AK121: Triple IG Double Strength | AL121: Laminated | AO121: =IF(RO=1,"<< Rough Opening Only","") -> << Rough Opening Only | AU121: R971 | AV121: =$D$127 -> -4.0625 | AW121: =$D$128 -> -4 | AX121: 0.1128472222
A122: =IF(OR(ModelNo="0170",ModelNo="0970",ModelNo="0504",ModelNo="B970",ModelNo="i970"),3,"") ->  | B122: 0170 | C122: Glass Area (sq.ft.) | D122: =(D120*D121)/144 -> 0.1485460069 | F122: 120 | G122: 6106 | H122: 6100 Series Six Foot Two Lite Patio Door | I122: 1.375 | J122: 0.5 | K122: 72 | L122: 80 | M122: 72 | N122: 80 | O122: 72 | P122: 80 | Q122: 152 | R122: Standard | V122: Half | AH122: Double Strength (3 mm) | AI122: Triple Strength (5 mm) | AJ122: Triple IG Single Strength | AK122: Triple IG Double Strength | AL122: Laminated | AO122: << Rough Opening Only
A123: =IF(OR(ModelNo="0171",ModelNo="0971",ModelNo="B971",ModelNo="i971"),1,"") ->  | B123: 0171 | C123: Sash Width | D123: =Frame_Width-1.625 -> -1.625 | F123: 121 | G123: 6108 | H123: 6100 Series Eight Foot Two Lite Patio Door | I123: 1.75 | J123: 0.5 | K123: 96 | L123: 80 | M123: 96 | N123: 80 | O123: 96 | P123: 80 | Q123: 176 | R123: Standard | V123: Half | AH123: Double Strength (3 mm) | AI123: Triple Strength (5 mm) | AJ123: Triple IG Single Strength | AK123: Triple IG Double Strength | AL123: Laminated | AO123: << Rough Opening Only
A124: =IF(OR(ModelNo="0171",ModelNo="0971",ModelNo="B971",ModelNo="i971"),2,"") ->  | B124: 0171 | C124: Sash Height | D124: =Frame_Height-1.625 -> -1.625 | F124: 122 | G124: 6109 | H124: 6100 Series Nine Foot Three Lite Patio Door | I124: 2.5 | J124: 0.5 | K124: 108 | L124: 80 | M124: 108 | N124: 80 | O124: 108 | P124: 80 | Q124: 188 | R124: Standard | V124: Half | AH124: Double Strength (3 mm) | AI124: Triple Strength (5 mm) | AJ124: Triple IG Single Strength | AK124: Triple IG Double Strength | AL124: Laminated | AO124: << Rough Opening Only
A125: =IF(OR(ModelNo="0171",ModelNo="0971",ModelNo="B971",ModelNo="i971"),3,"") ->  | B125: 0171 | C125: Glass Width | D125: =Frame_Width-4.625 -> -4.625 | F125: 123 | G125: 6112 | H125: 6100 Series Twelve Foot Four Lite Patio Door | I125: 4.5 | J125: 0.5 | K125: 144 | L125: 80 | M125: 144 | N125: 80 | O125: 144 | P125: 80 | Q125: 224 | R125: Standard | V125: Half | AH125: Double Strength (3 mm) | AI125: Triple Strength (5 mm) | AJ125: Triple IG Single Strength | AK125: Triple IG Double Strength | AL125: Laminated | AO125: << Rough Opening Only
A126: =IF(OR(ModelNo="0171",ModelNo="0971",ModelNo="B971",ModelNo="i971"),4,"") ->  | B126: 0171 | C126: Glass Height | D126: =Frame_Height-4.625 -> -4.625 | F126: 124 | G126: 6122 | H126: 6100 Series Twelve Foot Three Lite Patio Door | I126: 3.125 | J126: 0.5 | K126: 144 | L126: 80 | M126: 144 | N126: 80 | O126: 144 | P126: 80 | Q126: 224 | R126: Standard | V126: Half | AH126: Double Strength (3 mm) | AI126: Triple Strength (5 mm) | AJ126: Triple IG Single Strength | AK126: Triple IG Double Strength | AL126: Laminated | AO126: << Rough Opening Only
A127: =IF(OR(ModelNo="0171",ModelNo="0971",ModelNo="B971",ModelNo="i971"),5,"") ->  | B127: 0171 | C127: Screen Width | D127: =Frame_Width-4.0625 -> -4.0625 | F127: 125 | G127: 6175 | H127: 6100 Series Wisconsin Two Lite Patio Door | I127: 0.5 | J127: 0.5 | K127: 75 | L127: 80 | M127: 75 | N127: 80 | O127: 75 | P127: 80 | Q127: 155 | R127: Standard | V127: Half | AH127: Double Strength (3 mm) | AI127: Triple Strength (5 mm) | AJ127: Triple IG Single Strength | AK127: Triple IG Double Strength | AL127: Laminated | AO127: << Rough Opening Only
A128: =IF(OR(ModelNo="0171",ModelNo="0971",ModelNo="B971",ModelNo="i971"),6,"") ->  | B128: 0171 | C128: Screen Height | D128: =Frame_Height-4 -> -4 | F128: 126 | G128: 6202 | H128: 6200 Series Custom 2 Lite Patio Door | I128: 0 | J128: 0 | M128: 48 | N128: 72 | O128: 96 | P128: 96 | Q128: 192 | V128: Half | AH128: Double Strength (3 mm) | AI128: Triple Strength (5 mm) | AJ128: Triple IG Single Strength | AK128: Triple IG Double Strength | AL128: Laminated | AO128: =IF(RO=2,"<< Exact Size Only","") ->  | AT128: =IF(ModelNo=AU114,ModelNo,0) -> 0
A129: =IF(OR(ModelNo="0171",ModelNo="0971",ModelNo="B971",ModelNo="i971"),7,"") ->  | B129: 0171 | C129: Egress Opening Width (Standard Hinge) | D129: =Frame_Width-11.25 -> -11.25 | F129: 127 | G129: 6203 | H129: 6200 Series Custom 3 Lite Patio Door | I129: 0 | J129: 0 | M129: 84 | N129: 72 | O129: 144 | P129: 96 | Q129: 240 | V129: Half | AH129: Double Strength (3 mm) | AI129: Triple Strength (5 mm) | AJ129: Triple IG Single Strength | AK129: Triple IG Double Strength | AL129: Laminated | AO129: =IF(RO=2,"<< Exact Size Only","") ->  | AT129: 0
A130: =IF(OR(ModelNo="0171",ModelNo="0971",ModelNo="B971",ModelNo="i971"),8,"") ->  | B130: 0171 | C130: Egress Opening Height (Standard Hinge) | D130: =Frame_Height-4.375 -> -4.375 | F130: 128 | G130: 6204 | H130: 6200 Series Custom 4 Lite Patio Door | I130: 0 | J130: 0 | M130: 96 | N130: 72 | O130: 144 | P130: 96 | Q130: 240 | V130: Half | AH130: Double Strength (3 mm) | AI130: Triple Strength (5 mm) | AJ130: Triple IG Single Strength | AK130: Triple IG Double Strength | AL130: Laminated | AO130: =IF(RO=2,"<< Exact Size Only","") ->  | AT130: 0
A131: =IF(OR(ModelNo="0171",ModelNo="0971",ModelNo="B971",ModelNo="i971"),9,"") ->  | B131: 0171 | C131: Egress Opening Area w/Standard Hinge (sq.ft.) | D131: =(D129*D130)/144 -> 0.341796875 | F131: 129 | G131: 6205 | H131: 6200 Series Five Foot 2 Lite Patio Door | I131: 1.375 | J131: 0.5 | K131: 60 | L131: 80 | M131: 58.625 | N131: 79.5 | O131: 58.625 | P131: 79.5 | Q131: 139 | R131: Standard | V131: Half | AH131: Double Strength (3 mm) | AI131: Triple Strength (5 mm) | AJ131: Triple IG Single Strength | AK131: Triple IG Double Strength | AL131: Laminated | AO131: =IF(RO=1,"<< Rough Opening Only","") -> << Rough Opening Only | AT131: 0
A132: =IF(OR(ModelNo="0171",ModelNo="0971",ModelNo="B971",ModelNo="i971"),10,"") ->  | B132: 0171 | C132: Egress Opening Width (Egress Hinge) | D132: =IF(D123<22.375,"N/A",Frame_Width-6.8125) -> N/A | F132: 130 | G132: 6206 | H132: 6200 Series Six Foot 2 Lite Patio Door | I132: 1.375 | J132: 0.5 | K132: 72 | L132: 80 | M132: 70.625 | N132: 79.5 | O132: 70.625 | P132: 79.5 | Q132: 151 | R132: Standard | V132: Half | AH132: Double Strength (3 mm) | AI132: Triple Strength (5 mm) | AJ132: Triple IG Single Strength | AK132: Triple IG Double Strength | AL132: Laminated | AO132: << Rough Opening Only | AT132: 0
A133: =IF(OR(ModelNo="0171",ModelNo="0971",ModelNo="B971",ModelNo="i971"),11,"") ->  | B133: 0171 | C133: Egress Opening Height (Egress Hinge) | D133: =IF(D123<22.375,"N/A",Frame_Height-4.375) -> N/A | F133: 131 | G133: 6208 | H133: 6200 Series Eight Foot 2 Lite Patio Door | I133: 1.75 | J133: 0.5 | K133: 96 | L133: 80 | M133: 94.25 | N133: 79.5 | O133: 94.25 | P133: 79.5 | Q133: 175 | R133: Standard | V133: Half | AH133: Double Strength (3 mm) | AI133: Triple Strength (5 mm) | AJ133: Triple IG Single Strength | AK133: Triple IG Double Strength | AL133: Laminated | AO133: << Rough Opening Only | AT133: 0
A134: =IF(OR(ModelNo="0171",ModelNo="0971",ModelNo="B971",ModelNo="i971"),12,"") ->  | B134: 0171 | C134: Egress Opening Area w/Egress Hinge (sq.ft.) | D134: =IF(D123<22.375,"N/A",(D132*D133)/144) -> N/A | F134: 132 | G134: 6209 | H134: 6200 Series Nine Foot 3 Lite Patio Door | I134: 2.625 | J134: 0.5 | K134: 108 | L134: 80 | M134: 105.5 | N134: 79.5 | O134: 105.5 | P134: 79.5 | Q134: 186 | R134: Standard | V134: Half | AH134: Double Strength (3 mm) | AI134: Triple Strength (5 mm) | AJ134: Triple IG Single Strength | AK134: Triple IG Double Strength | AL134: Laminated | AO134: << Rough Opening Only | AT134: 0
A135: =IF(OR(ModelNo="0172",ModelNo="0972"),1,"") ->  | B135: 0172 | C135: Sash Width | D135: =(Frame_Width/2)-1.375 -> -1.375 | F135: 133 | G135: 6212 | H135: 6200 Series Twelve Foot 4 Lite Patio Door | I135: 4.375 | J135: 0.5 | K135: 144 | L135: 80 | M135: 139.5 | N135: 79.5 | O135: 139.5 | P135: 79.5 | Q135: 220 | R135: Standard | V135: Half | AH135: Double Strength (3 mm) | AI135: Triple Strength (5 mm) | AJ135: Triple IG Single Strength | AK135: Triple IG Double Strength | AL135: Laminated | AO135: << Rough Opening Only | AT135: 0
A136: =IF(OR(ModelNo="0172",ModelNo="0972"),2,"") ->  | B136: 0172 | C136: Sash Height | D136: =Frame_Height-1.625 -> -1.625 | F136: 134 | G136: 6222 | H136: 6200 Series Twelve Foot 3 Lite Patio Door | I136: 3.1875 | J136: 0.5 | K136: 144 | L136: 80 | M136: 140.875 | N136: 79.5 | O136: 140.875 | P136: 79.5 | Q136: 221 | R136: Standard | V136: Half | AH136: Double Strength (3 mm) | AI136: Triple Strength (5 mm) | AJ136: Triple IG Single Strength | AK136: Triple IG Double Strength | AL136: Laminated | AO136: << Rough Opening Only
A137: =IF(OR(ModelNo="0172",ModelNo="0972"),3,"") ->  | B137: 0172 | C137: Glass Width | D137: =(Frame_Width/2)-4.375 -> -4.375 | F137: 135 | G137: 6275 | H137: 6200 Series Wisconsin 2 Lite Patio Door | I137: 0.5 | J137: 0.5 | K137: 75 | L137: 80 | M137: 74.5 | N137: 79.5 | O137: 74.5 | P137: 79.5 | Q137: 154 | R137: Standard | V137: Half | AH137: Double Strength (3 mm) | AI137: Triple Strength (5 mm) | AJ137: Triple IG Single Strength | AK137: Triple IG Double Strength | AL137: Laminated | AO137: << Rough Opening Only | BE137: 52 | BF137: 96 | BG137: 134
A138: =IF(OR(ModelNo="0172",ModelNo="0972"),4,"") ->  | B138: 0172 | C138: Glass Height | D138: =Frame_Height-4.625 -> -4.625 | F138: 136 | G138: 6402 | H138: 6400 Series Custom 2 Lite Patio Door | M138: 48 | N138: 72 | O138: 96 | P138: 96 | Q138: 192 | R138: 3" Sash | S138: 5" Sash | T138: French | V138: Half | AH138: Double Strength (3 mm) | AI138: Triple Strength (5 mm) | AJ138: Triple IG Single Strength | AK138: Triple IG Double Strength | AL138: Laminated | AO138: =IF(RO=2,"<< Exact Size Only","") ->  | BE138: 52 | BF138: 96 | BG138: 134
A139: =IF(OR(ModelNo="0172",ModelNo="0972"),5,"") ->  | B139: 0172 | C139: Screen Width | D139: =(Frame_Width/2)-3.8125 -> -3.8125 | F139: 137 | G139: 6403 | H139: 6400 Series Custom 3 Lite Patio Door | M139: 84 | N139: 72 | O139: 144 | P139: 96 | Q139: 240 | R139: 3" Sash | S139: 5" Sash | T139: French | V139: Half | AH139: Double Strength (3 mm) | AI139: Triple Strength (5 mm) | AJ139: Triple IG Single Strength | AK139: Triple IG Double Strength | AL139: Laminated | AO139: =IF(RO=2,"<< Exact Size Only","") ->  | BE139: 52 | BF139: 96 | BG139: 134
A140: =IF(OR(ModelNo="0172",ModelNo="0972"),6,"") ->  | B140: 0172 | C140: Screen Height | D140: =Frame_Height-4 -> -4 | F140: 138 | G140: 6404 | H140: 6400 Series Custom 4 Lite Patio Door | M140: 96 | N140: 72 | O140: 144 | P140: 96 | Q140: 240 | R140: 3" Sash | S140: 5" Sash | T140: French | V140: Half | AH140: Double Strength (3 mm) | AI140: Triple Strength (5 mm) | AJ140: Triple IG Single Strength | AK140: Triple IG Double Strength | AL140: Laminated | AO140: =IF(RO=2,"<< Exact Size Only","") ->  | BE140: 52 | BF140: 96 | BG140: 134
A141: =IF(OR(ModelNo="0172",ModelNo="0972"),7,"") ->  | B141: 0172 | C141: Egress Opening Width (Standard Hinge) | D141: =(Frame_Width/2)-11 -> -11 | F141: 139 | G141: 6405 | H141: 6400 Series Five Foot 2 Lite Patio Door | I141: 1.375 | J141: 0.5 | K141: 60 | L141: 80 | M141: 60 | N141: 80 | O141: 60 | P141: 96 | Q141: 156 | R141: 3" Sash | S141: 5" Sash | T141: French | V141: Half | AH141: Double Strength (3 mm) | AI141: Triple Strength (5 mm) | AJ141: Triple IG Single Strength | AK141: Triple IG Double Strength | AL141: Laminated | AO141: << Rough Opening Only | BE141: 52 | BF141: 96 | BG141: 134
A142: =IF(OR(ModelNo="0172",ModelNo="0972"),8,"") ->  | B142: 0172 | C142: Egress Opening Height (Standard Hinge) | D142: =Frame_Height-4.375 -> -4.375 | F142: 140 | G142: 6406 | H142: 6400 Series Six Foot 2 Lite Patio Door | I142: 1.375 | J142: 0.5 | K142: 72 | L142: 80 | M142: 72 | N142: 80 | O142: 72 | P142: 96 | Q142: 168 | R142: 3" Sash | S142: 5" Sash | T142: French | V142: Half | AH142: Double Strength (3 mm) | AI142: Triple Strength (5 mm) | AJ142: Triple IG Single Strength | AK142: Triple IG Double Strength | AL142: Laminated | AO142: << Rough Opening Only | BE142: 52 | BF142: 84 | BG142: 132
A143: =IF(OR(ModelNo="0172",ModelNo="0972"),9,"") ->  | B143: 0172 | C143: Egress Opening Area w/Standard Hinge (sq.ft.) | D143: =(D141*D142)/144 -> 0.3342013889 | F143: 141 | G143: 6408 | H143: 6400 Series Eight Foot 2 Lite Patio Door | I143: 1.5 | J143: 0.5 | K143: 96 | L143: 80 | M143: 96 | N143: 80 | O143: 96 | P143: 96 | Q143: 190 | R143: 3" Sash | S143: 5" Sash | T143: French | V143: Half | AH143: Double Strength (3 mm) | AI143: Triple Strength (5 mm) | AJ143: Triple IG Single Strength | AK143: Triple IG Double Strength | AL143: Laminated | AO143: << Rough Opening Only | BE143: 72 | BF143: 84 | BG143: 137
A144: =IF(OR(ModelNo="0172",ModelNo="0972"),10,"") ->  | B144: 0172 | C144: Egress Opening Width (Egress Hinge) | D144: =IF(D135<22.375,"N/A",(Frame_Width/2)-6.5625) -> N/A | F144: 142 | G144: 6409 | H144: 6400 Series Nine Foot 3 Lite Patio Door | I144: 2.5 | J144: 0.5 | K144: 108 | L144: 80 | M144: 108 | N144: 80 | O144: 108 | P144: 96 | Q144: 204 | R144: 3" Sash | S144: 5" Sash | T144: French | V144: Half | AH144: Double Strength (3 mm) | AI144: Triple Strength (5 mm) | AJ144: Triple IG Single Strength | AK144: Triple IG Double Strength | AL144: Laminated | AO144: << Rough Opening Only | BE144: 54 | BF144: 76 | BG144: 126
A145: =IF(OR(ModelNo="0172",ModelNo="0972"),11,"") ->  | B145: 0172 | C145: Egress Opening Height (Egress Hinge) | D145: =IF(D135<22.375,"N/A",Frame_Height-4.375) -> N/A | F145: 143 | G145: 6412 | H145: 6400 Series Twelve Foot 4 Lite Patio Door | I145: 4.5 | J145: 0.5 | K145: 144 | L145: 80 | M145: 144 | N145: 80 | O145: 144 | P145: 96 | Q145: 240 | R145: 3" Sash | S145: 5" Sash | T145: French | V145: Half | AH145: Double Strength (3 mm) | AI145: Triple Strength (5 mm) | AJ145: Triple IG Single Strength | AK145: Triple IG Double Strength | AL145: Laminated | AO145: << Rough Opening Only | BE145: 73 | BF145: 63 | BG145: 136
A146: =IF(OR(ModelNo="0172",ModelNo="0972"),12,"") ->  | B146: 0172 | C146: Egress Opening Area w/Egress Hinge (sq.ft.) | D146: =IF(D135<22.375,"N/A",(D144*D145)/144) -> N/A | F146: 144 | G146: 6422 | H146: 6400 Series Twelve Foot 3 Lite Patio Door | I146: 3.125 | J146: 0.5 | K146: 144 | L146: 80 | M146: 144 | N146: 80 | O146: 144 | P146: 96 | Q146: 240 | R146: 3" Sash | S146: 5" Sash | T146: French | V146: Half | AH146: Double Strength (3 mm) | AI146: Triple Strength (5 mm) | AJ146: Triple IG Single Strength | AK146: Triple IG Double Strength | AL146: Laminated | AO146: << Rough Opening Only | BE146: 52.5 | BF146: 76 | BG146: 128
A147: =IF(OR(ModelNo="0173",ModelNo="0973"),1,"") ->  | B147: 0173 | C147: Operating Sash Width | D147: =(Frame_Width/4)-1.375 -> -1.375 | F147: 145 | G147: 6475 | H147: 6400 Series Wisconsin 2 Lite Patio Door | I147: 0.5 | J147: 0.5 | K147: 75 | L147: 80 | M147: 75 | N147: 80 | O147: 75 | P147: 80 | Q147: 155 | R147: 3" Sash | S147: 5" Sash | T147: French | V147: Half | AH147: Double Strength (3 mm) | AI147: Triple Strength (5 mm) | AJ147: Triple IG Single Strength | AK147: Triple IG Double Strength | AL147: Laminated | AO147: << Rough Opening Only | BE147: 110 | BF147: 63 | BG147: 173
A148: =IF(OR(ModelNo="0173",ModelNo="0973"),2,"") ->  | B148: 0173 | C148: Operating Sash Height | D148: =Frame_Height-1.625 -> -1.625 | F148: 146 | G148: E301(3250) | H148: New Const. Double Hung Egress | I148: 0.5 | J148: 0.5 | K148: 38 | L148: 60 | M148: 37.5 | N148: 59.5 | O148: 37.5 | P148: 59.5 | Q148: 97 | R148: Standard | V148: Half | W148: Full | AG148: Single Strength (2.5 mm) | AH148: Double Strength (3 mm) | AI148: Triple Strength (5 mm) | AJ148: Triple IG Single Strength | AK148: Triple IG Double Strength | AL148: Laminated | AO148: << Rough Opening Only | BE148: 52 | BF148: 78 | BG148: 130
A149: =IF(OR(ModelNo="0173",ModelNo="0973"),3,"") ->  | B149: 0173 | C149: Fixed Sash Width | D149: =(Frame_Width/2)-1.125 -> -1.125 | F149: 147 | G149: E301(3052) | H149: New Const. Double Hung Egress | I149: 0.5 | J149: 0.5 | K149: 36 | L149: 62 | M149: 35.5 | N149: 61.5 | O149: 35.5 | P149: 61.5 | Q149: 97 | R149: Standard | V149: Half | W149: Full | AG149: Single Strength (2.5 mm) | AH149: Double Strength (3 mm) | AI149: Triple Strength (5 mm) | AJ149: Triple IG Single Strength | AK149: Triple IG Double Strength | AL149: Laminated | AO149: << Rough Opening Only | BE149: 36 | BF149: 78 | BG149: 114
A150: =IF(OR(ModelNo="0173",ModelNo="0973"),4,"") ->  | B150: 0173 | C150: Fixed Sash Height | D150: =Frame_Height-1.625 -> -1.625 | F150: 148 | G150: E301(2862) | H150: New Const. Double Hung Egress | I150: 0.5 | J150: 0.5 | K150: 32 | L150: 74 | M150: 31.5 | N150: 73.5 | O150: 31.5 | P150: 73.5 | Q150: 105 | R150: Standard | V150: Half | W150: Full | AG150: Single Strength (2.5 mm) | AH150: Double Strength (3 mm) | AI150: Triple Strength (5 mm) | AJ150: Triple IG Single Strength | AK150: Triple IG Double Strength | AL150: Laminated | AO150: << Rough Opening Only | BE150: 48 | BF150: 84 | BG150: 122
A151: =IF(OR(ModelNo="0173",ModelNo="0973"),5,"") ->  | B151: 0173 | C151: Operating Sash Glass Width | D151: =(Frame_Width/4)-4.375 -> -4.375 | F151: 149 | G151: S140 | H151: Arched Top Single Hung (Round-Top) | I151: 0 | J151: 0 | M151: =MINR*2 ->  | N151: 43 | O151: 52 | P151: 96 | Q151: 148 | R151: Standard | S151: Oriel (2/3 - 1/3) | T151: Cottage (1/3 - 2/3) | U151: Custom | V151: Half | Y151: Select Extrusion | Z151: Mezzo | AA151: Mezzo/N.F | AB151: New Construction | AC151: 0700 Series | AD151: Fusion | AE151: 1700 | AF151: 1900 | AH151: Double Strength (3 mm) | AI151: Triple Strength (5 mm) | AJ151: Triple IG Single Strength | AK151: Triple IG Double Strength | AL151: Laminated | AO151: =IF(RO=2,"<< Exact Size Only","") ->  | BE151: 48 | BF151: 84 | BG151: 122
A152: =IF(OR(ModelNo="0173",ModelNo="0973"),6,"") ->  | B152: 0173 | C152: Operating Sash Glass Height | D152: =Frame_Height-4.625 -> -4.625 | F152: 150 | G152: S144 | H152: Arched Top Single Hung (Eyebrow) | I152: 0 | J152: 0 | M152: 16 | N152: 43 | O152: 52 | P152: 96 | Q152: 148 | R152: Standard | S152: Oriel (2/3 - 1/3) | T152: Cottage (1/3 - 2/3) | U152: Custom | V152: Half | Y152: Select Extrusion | Z152: Mezzo | AA152: Mezzo/N.F | AB152: New Construction | AC152: 0700 Series | AD152: Fusion | AE152: 1700 | AF152: 1900 | AH152: Double Strength (3 mm) | AI152: Triple Strength (5 mm) | AJ152: Triple IG Single Strength | AK152: Triple IG Double Strength | AL152: Laminated | BE152: 73 | BF152: 60 | BG152: 123
A153: =IF(OR(ModelNo="0173",ModelNo="0973"),7,"") ->  | B153: 0173 | C153: Fixed Sash Glass Width | D153: =(Frame_Width/2)-4.125 -> -4.125 | F153: 151 | G153: S146 | H153: Arched Top Single Hung (1/2 Eyebrow) | I153: 0 | J153: 0 | M153: 16 | N153: 43 | O153: 52 | P153: 96 | Q153: 148 | R153: Standard | S153: Oriel (2/3 - 1/3) | T153: Cottage (1/3 - 2/3) | U153: Custom | V153: Half | Y153: Select Extrusion | Z153: Mezzo | AA153: Mezzo/N.F | AB153: New Construction | AC153: 0700 Series | AD153: Fusion | AE153: 1700 | AF153: 1900 | AH153: Double Strength (3 mm) | AI153: Triple Strength (5 mm) | AJ153: Triple IG Single Strength | AK153: Triple IG Double Strength | AL153: Laminated | BE153: 108 | BF153: 60 | BG153: 168
A154: =IF(OR(ModelNo="0173",ModelNo="0973"),8,"") ->  | B154: 0173 | C154: Fixed Sash Glass Height | D154: =Frame_Height-4.625 -> -4.625 | F154: 152 | G154: i201 | H154: Coastal Impact Double Hung | I154: 0 | J154: 0 | M154: 18 | N154: 26 | O154: 52 | P154: 84 | Q154: 132 | R154: Standard | S154: Oriel (2/3 - 1/3) | T154: Cottage (1/3 - 2/3) | U154: Custom | V154: Half | W154: Full | X154: Locking | AM154: HP Package | AN154: Impact Laminated | BE154: 84 | BF154: 84 | BG154: 158
A155: =IF(OR(ModelNo="0173",ModelNo="0973"),9,"") ->  | B155: 0173 | C155: Screen Width | D155: =(Frame_Width/4)-3.8125 -> -3.8125 | F155: 153 | G155: i204 | H155: Coastal Impact Picture Window | I155: 0 | J155: 0 | M155: 12 | N155: 12 | O155: 52 | P155: 84 | Q155: 136 | R155: Standard | AM155: HP Package | AN155: Impact Laminated | BE155: 108 | BF155: 60 | BG155: 168
A156: =IF(OR(ModelNo="0173",ModelNo="0973"),10,"") ->  | B156: 0173 | C156: Screen Height | D156: =Frame_Height-4 -> -4 | F156: 154 | G156: 3100 | H156: Coastal Impact Single Hung | I156: 0 | J156: 0 | M156: 22.5 | N156: 25.75 | O156: 54 | P156: 76 | Q156: 126 | R156: Standard | S156: Oriel (2/3 - 1/3) | T156: Cottage (1/3 - 2/3) | U156: Custom | V156: Half | AM156: HP Package | AN156: Impact Laminated | BE156: 84 | BF156: 84 | BG156: 158
A157: =IF(OR(ModelNo="0173",ModelNo="0973"),11,"") ->  | B157: 0173 | C157: Egress Opening Width (Standard Hinge) | D157: =(Frame_Width/4)-11 -> -11 | F157: 155 | G157: 3102 | H157: Coastal Impact Two Lite Single Slider | I157: 0 | J157: 0 | M157: 26.5 | N157: 22 | O157: 73 | P157: 63 | Q157: 136 | R157: Standard | V157: Half | AM157: HP Package | AN157: Impact Laminated | BE157: 48 | BF157: 84 | BG157: 122
A158: =IF(OR(ModelNo="0173",ModelNo="0973"),12,"") ->  | B158: 0173 | C158: Egress Opening Height (Standard Hinge) | D158: =Frame_Height-4.375 -> -4.375 | F158: 156 | G158: 3104 | H158: Coatal Impact Picture Window | I158: 0 | J158: 0 | M158: 12 | N158: 12 | O158: 52.5 | P158: 76 | Q158: 128 | R158: Standard | AM158: HP Package | AN158: Impact Laminated | BE158: 73 | BF158: 60 | BG158: 132
A159: =IF(OR(ModelNo="0173",ModelNo="0973"),13,"") ->  | B159: 0173 | C159: Egress Opening Area w/Standard Hinge (sq.ft.) | D159: =(D157*D158)/144 -> 0.3342013889 | F159: 157 | G159: 3109 | H159: Coastal Impact Three Lite Slider | I159: 0 | J159: 0 | M159: 44.5 | N159: 22 | O159: 110 | P159: 63 | Q159: 173 | R159: Standard (1/3-1/3-1/3) | V159: Half | AM159: HP Package | AN159: Impact Laminated | BE159: 108 | BF159: 60 | BG159: 168
A160: =IF(OR(ModelNo="0173",ModelNo="0973"),14,"") ->  | B160: 0173 | C160: Egress Opening Width (Egress Hinge) | D160: =IF(D147<22.375,"N/A",(Frame_Width/4)-6.5625) -> N/A | F160: 158 | G160: i970 | H160: Preservation Bay-Bow Picture Window | I160: 0 | J160: 0 | M160: 13 | N160: 13 | O160: 52 | P160: 78 | Q160: 130 | R160: Standard | AM160: HP Package | AN160: Impact Laminated | BE160: 84 | BF160: 84 | BG160: 158
A161: =IF(OR(ModelNo="0173",ModelNo="0973"),15,"") ->  | B161: 0173 | C161: Egress Opening Height (Egress Hinge) | D161: =IF(D147<22.375,"N/A",Frame_Height-4.375) -> N/A | F161: 159 | G161: i971 | H161: Preservation Bay-Bow Single Vent Casement | I161: 0 | J161: 0 | M161: 16 | N161: 19 | O161: 36 | P161: 78 | Q161: 114 | R161: Standard | W161: Full | AM161: HP Package | AN161: Impact Laminated | BB161: V209 | BC161: 39 | BD161: 15 | BE161: 108 | BF161: 60 | BG161: 168
A162: =IF(OR(ModelNo="0173",ModelNo="0973"),16,"") ->  | B162: 0173 | C162: Egress Opening Area w/Egress Hinge (sq.ft.) | D162: =IF(D147<22.375,"N/A",(D160*D161)/144) -> N/A | F162: 160 | G162: V100 | H162: New Const. Gold Series Single Hung | I162: 0.5 | J162: 0.5 | M162: 14 | N162: 25 | O162: 48 | P162: 84 | Q162: 122 | R162: Standard | S162: Custom | V162: Half | AG162: Single Strength (2.5 mm) | AH162: Double Strength (3 mm) | AI162: Triple Strength (5 mm) | AL162: Laminated | AO162: << Select Opening
A163: =IF(OR(ModelNo="0179",ModelNo="0979"),1,"") ->  | B163: 0179 | C163: Operating Sash Width | D163: =TRUNC(((Frame_Width/3)-1.291)*16+0.5)/16 -> -1.25 | F163: 161 | G163: V101 | H163: New Const. Gold Series Double Hung | I163: 0.5 | J163: 0.5 | M163: 19 | N163: 28 | O163: 48 | P163: 84 | Q163: 122 | R163: Standard | S163: Custom | V163: Half | W163: Full | AG163: Single Strength (2.5 mm) | AH163: Double Strength (3 mm) | AI163: Triple Strength (5 mm) | AL163: Laminated | AO163: << Select Opening
A164: =IF(OR(ModelNo="0179",ModelNo="0979"),2,"") ->  | B164: 0179 | C164: Operating Sash Height | D164: =Frame_Height-1.625 -> -1.625 | F164: 162 | G164: V102 | H164: New Const. Gold Series Single Slider | I164: 0.5 | J164: 0.5 | M164: 26 | N164: 16 | O164: 73 | P164: 60 | Q164: 123 | R164: Standard | V164: Half | AG164: Single Strength (2.5 mm) | AH164: Double Strength (3 mm) | AI164: Triple Strength (5 mm) | AL164: Laminated | AO164: << Select Opening
A165: =IF(OR(ModelNo="0179",ModelNo="0979"),3,"") ->  | B165: 0179 | C165: Fixed Sash Width | D165: =TRUNC(((Frame_Width/3)-1.291)*16+0.5)/16 -> -1.25 | F165: 163 | G165: V103 | H165: N.C Gold Series 3 Lite Slider (1/4-1/2-1/4) | I165: 0.5 | J165: 0.5 | M165: 48.5 | N165: 14 | O165: 108 | P165: 60 | Q165: 168 | R165: Standard | V165: Half | AG165: Single Strength (2.5 mm) | AH165: Double Strength (3 mm) | AI165: Triple Strength (5 mm) | AL165: Laminated | AO165: << Select Opening
A166: =IF(OR(ModelNo="0179",ModelNo="0979"),4,"") ->  | B166: 0179 | C166: Fixed Sash Height | D166: =Frame_Height-1.625 -> -1.625 | F166: 164 | G166: V104 | H166: New Const. Gold Series Picture Window | I166: 0.5 | J166: 0.5 | M166: 11.5 | N166: 11.5 | O166: 84 | P166: 84 | Q166: 158 | R166: Standard | AH166: Double Strength (3 mm) | AI166: Triple Strength (5 mm) | AL166: Laminated | AO166: << Select Opening
A167: =IF(OR(ModelNo="0179",ModelNo="0979"),5,"") ->  | B167: 0179 | C167: Operating Sash Glass Width | D167: =TRUNC(((Frame_Width/3)-4.291)*16+0.5)/16 -> -4.25 | F167: 165 | G167: V109 | H167: N.C Gold Series 3 Lite Slider (1/3-1/3-1/3) | I167: 0.5 | J167: 0.5 | M167: 34 | N167: 14 | O167: 108 | P167: 60 | Q167: 168 | R167: Standard | V167: Half | AG167: Single Strength (2.5 mm) | AH167: Double Strength (3 mm) | AI167: Triple Strength (5 mm) | AL167: Laminated | AO167: << Select Opening
A168: =IF(OR(ModelNo="0179",ModelNo="0979"),6,"") ->  | B168: 0179 | C168: Operating Sash Glass Height | D168: =Frame_Height-4.625 -> -4.625 | F168: 166 | G168: V114 | H168: New Const. Gold Series Picture Window | I168: 0.5 | J168: 0.5 | M168: 11.5 | N168: 11.5 | O168: 84 | P168: 84 | Q168: 158 | R168: Standard | AH168: Double Strength (3 mm) | AI168: Triple Strength (5 mm) | AL168: Laminated | AO168: << Select Opening
A169: =IF(OR(ModelNo="0179",ModelNo="0979"),7,"") ->  | B169: 0179 | C169: Fixed Sash Glass Width | D169: =TRUNC(((Frame_Width/3)-4.291)*16+0.5)/16 -> -4.25 | F169: 167 | G169: V200 | H169: New Const. Silver Series Single Hung | I169: 0.5 | J169: 0.5 | M169: 14 | N169: 25.5 | O169: 48 | P169: 84 | Q169: 122 | R169: Standard | S169: Custom | V169: Half | AG169: Single Strength (2.5 mm) | AH169: Double Strength (3 mm) | AI169: Triple Strength (5 mm) | AL169: Laminated | AO169: << Select Opening
A170: =IF(OR(ModelNo="0179",ModelNo="0979"),8,"") ->  | B170: 0179 | C170: Fixed Sash Glass Height | D170: =Frame_Height-4.625 -> -4.625 | F170: 168 | G170: V202 | H170: New Const. Silver Series Single Slider | I170: 0.5 | J170: 0.5 | M170: 23.5 | N170: 15 | O170: 73 | P170: 60 | Q170: 132 | R170: Standard | V170: Half | AG170: Single Strength (2.5 mm) | AH170: Double Strength (3 mm) | AI170: Triple Strength (5 mm) | AL170: Laminated | AO170: << Select Opening
A171: =IF(OR(ModelNo="0179",ModelNo="0979"),9,"") ->  | B171: 0179 | C171: Screen Width | D171: =TRUNC(((Frame_Width/3)-3.666)*32+0.5)/32 -> -3.625 | F171: 169 | G171: V203 | H171: N.C Silver Series 3 Lite Slider (1/4-1/2-1/4) | I171: 0.5 | J171: 0.5 | M171: 48 | N171: 15 | O171: 108 | P171: 60 | Q171: 168 | R171: Standard | V171: Half | AG171: Single Strength (2.5 mm) | AH171: Double Strength (3 mm) | AI171: Triple Strength (5 mm) | AL171: Laminated | AO171: << Select Opening
A172: =IF(OR(ModelNo="0179",ModelNo="0979"),10,"") ->  | B172: 0179 | C172: Screen Height | D172: =Frame_Height-4 -> -4 | F172: 170 | G172: V204 | H172: New Const. Silver Series Picture Window | I172: 0.5 | J172: 0.5 | M172: 11.5 | N172: 11.5 | O172: 84 | P172: 84 | Q172: 158 | R172: Standard | AH172: Double Strength (3 mm) | AI172: Triple Strength (5 mm) | AL172: Laminated | AO172: << Select Opening
A173: =IF(OR(ModelNo="0179",ModelNo="0979"),11,"") ->  | B173: 0179 | C173: Egress Opening Width (Standard Hinge) | D173: =TRUNC(((Frame_Width/3)-10.916)*16+0.5)/16 -> -10.875 | F173: 171 | G173: V209 | H173: N.C Silver Series 3 Lite Slider (1/3-1/3-1/3) | I173: 0.5 | J173: 0.5 | M173: 39 | N173: 15 | O173: 108 | P173: 60 | Q173: 168 | R173: Standard | V173: Half | AG173: Single Strength (2.5 mm) | AH173: Double Strength (3 mm) | AI173: Triple Strength (5 mm) | AL173: Laminated | AO173: << Select Opening
A174: =IF(OR(ModelNo="0179",ModelNo="0979"),12,"") ->  | B174: 0179 | C174: Egress Opening Height (Standard Hinge) | D174: =Frame_Height-4.375 -> -4.375 | F174: 172 | G174: 1700 | H174: New Const. Single Hung | I174: 0.5 | J174: 0.5 | M174: 14.25 | N174: 25 | O174: 52 | P174: =IF(Frame_Width>48,84,96) -> 96 | Q174: 136 | R174: Standard | S174: Custom | V174: Half | Y174: Standard | Z174: HP Package | AG174: Single Strength (2.5 mm) | AH174: Double Strength (3 mm) | AI174: Triple Strength (5 mm) | AL174: Laminated | AO174: << Select Opening
A175: =IF(OR(ModelNo="0179",ModelNo="0979"),13,"") ->  | B175: 0179 | C175: Egress Opening Area w/Standard Hinge (sq.ft.) | D175: =(D173*D174)/144 -> 0.3304036458 | F175: 173 | G175: 1702 | H175: New Const. Single Slider | I175: 0.5 | J175: 0.5 | M175: 23.5 | N175: 14 | O175: 72 | P175: 72 | Q175: 144 | R175: Standard | S175: Custom | V175: Half | Y175: Standard | Z175: HP Package | AG175: Single Strength (2.5 mm) | AH175: Double Strength (3 mm) | AI175: Triple Strength (5 mm) | AL175: Laminated | AO175: << Select Opening
A176: =IF(OR(ModelNo="0179",ModelNo="0979"),14,"") ->  | B176: 0179 | C176: Egress Opening Width (Egress Hinge) | D176: =IF(D163<22.375,"N/A",TRUNC(((Frame_Width/3)-6.4785)*16+0.5)/16) -> N/A | F176: 174 | G176: 1703 | H176: New Const. 3 Lite Slider (1/4-1/2-1/4) | I176: 0.5 | J176: 0.5 | M176: 48.5 | N176: 14 | O176: 108 | P176: =IF(Frame_Width>96,60,72) -> 72 | Q176: 168 | R176: Standard | V176: Half | Y176: Standard | Z176: HP Package | AG176: Single Strength (2.5 mm) | AH176: Double Strength (3 mm) | AI176: Triple Strength (5 mm) | AL176: Laminated | AO176: << Select Opening
A177: =IF(OR(ModelNo="0179",ModelNo="0979"),15,"") ->  | B177: 0179 | C177: Egress Opening Height (Egress Hinge) | D177: =IF(D163<22.375,"N/A",Frame_Height-4.375) -> N/A | F177: 175 | G177: 1704 | H177: New Const. Picture Window | I177: 0.5 | J177: 0.5 | M177: 11.5 | N177: 11.5 | O177: =IF(Frame_Height>54,84,96) -> 96 | P177: =IF(Frame_Width>54,84,96) -> 96 | Q177: 156 | R177: Standard | AH177: Double Strength (3 mm) | AI177: Triple Strength (5 mm) | AL177: Laminated | AO177: << Select Opening
A178: =IF(OR(ModelNo="0179",ModelNo="0979"),16,"") ->  | B178: 0179 | C178: Egress Opening Area w/Egress Hinge (sq.ft.) | D178: =IF(D163<22.375,"N/A",(D176*D177)/144) -> N/A | F178: 176 | G178: 1709 | H178: New Const. 3 Lite Slider (1/3-1/3-1/3) | I178: 0.5 | J178: 0.5 | M178: 37 | N178: 14 | O178: 108 | P178: =IF(Frame_Width>96,60,72) -> 72 | Q178: 168 | R178: Standard | V178: Half | Y178: Standard | Z178: HP Package | AG178: Single Strength (2.5 mm) | AH178: Double Strength (3 mm) | AI178: Triple Strength (5 mm) | AL178: Laminated | AO178: << Select Opening
A179: =IF(OR(ModelNo="S174",ModelNo="0974"),1,"") ->  | B179: S174 | C179: Operating Sash Width | D179: =(Frame_Width/4)-1.25 -> -1.25 | F179: 177 | G179: 1720 | H179: New Const. Twin Single Hung | I179: 0.5 | J179: 0.5 | M179: 29 | N179: 25 | O179: 96 | P179: 84 | Q179: 170 | R179: Standard | S179: Custom | V179: Half | Y179: Standard | Z179: HP Package | AG179: Single Strength (2.5 mm) | AH179: Double Strength (3 mm) | AI179: Triple Strength (5 mm) | AL179: Laminated | AO179: << Select Opening
A180: =IF(OR(ModelNo="S174",ModelNo="0974"),2,"") ->  | B180: S174 | C180: Operating Sash Height | D180: =Frame_Height-1.625 -> -1.625 | F180: 178 | G180: 1730 | H180: New Const. Triple Single Hung | I180: 0.5 | J180: 0.5 | M180: 44 | N180: 25 | O180: 108 | P180: 84 | Q180: 192 | R180: Standard | S180: Custom | V180: Half | Y180: Standard | Z180: HP Package | AG180: Single Strength (2.5 mm) | AH180: Double Strength (3 mm) | AI180: Triple Strength (5 mm) | AL180: Laminated | AO180: << Select Opening
A181: =IF(OR(ModelNo="S174",ModelNo="0974"),3,"") ->  | B181: S174 | C181: Fixed Sash Width | D181: =(Frame_Width/4)-1.25 -> -1.25 | F181: 179 | G181: 1900 | H181: New Const. Single Hung | I181: 0.5 | J181: 0.5 | M181: 14.25 | N181: 25 | O181: 52 | P181: =IF(Frame_Width>48,84,96) -> 96 | Q181: 136 | R181: Standard | S181: Custom | V181: Half | Y181: Standard | Z181: HP Package | AG181: Single Strength (2.5 mm) | AH181: Double Strength (3 mm) | AI181: Triple Strength (5 mm) | AL181: Laminated | AO181: << Select Opening
A182: =IF(OR(ModelNo="S174",ModelNo="0974"),4,"") ->  | B182: S174 | C182: Fixed Sash Height | D182: =Frame_Height-1.625 -> -1.625 | F182: 180 | G182: 1901 | H182: New Const. Double Hung | I182: 0.5 | J182: 0.5 | M182: 16 | N182: 25 | O182: 52 | P182: =IF(Frame_Width>48,76,84) -> 84 | Q182: 136 | R182: Standard | S182: Oriel (2/3 - 1/3) | T182: Cottage (1/3 - 2/3) | U182: Custom | V182: Half | W182: Full | Y182: Standard | Z182: HP Package | AG182: Single Strength (2.5 mm) | AH182: Double Strength (3 mm) | AI182: Triple Strength (5 mm) | AL182: Laminated | AO182: << Select Opening
A183: =IF(OR(ModelNo="S174",ModelNo="0974"),5,"") ->  | B183: S174 | C183: Operating Sash Glass Width | D183: =(Frame_Width/4)-4.25 -> -4.25 | F183: 181 | G183: 1902 | H183: New Const. Single Slider | I183: 0.5 | J183: 0.5 | M183: 23.5 | N183: 14 | O183: 84 | P183: =IF(Frame_Width>72,60,72) -> 72 | Q183: 132 | R183: Standard | V183: Half | Y183: Standard | Z183: HP Package | AG183: Single Strength (2.5 mm) | AH183: Double Strength (3 mm) | AI183: Triple Strength (5 mm) | AL183: Laminated | AO183: << Select Opening
A184: =IF(OR(ModelNo="S174",ModelNo="0974"),6,"") ->  | B184: S174 | C184: Operating Sash Glass Height | D184: =Frame_Height-4.625 -> -4.625 | F184: 182 | G184: 1903 | H184: New Const. 3 Lite Slider (1/4-1/2-1/4) | I184: 0.5 | J184: 0.5 | M184: 48.5 | N184: 14 | O184: 108 | P184: =IF(Frame_Width>96,60,72) -> 72 | Q184: 168 | R184: Standard | V184: Half | Y184: Standard | Z184: HP Package | AG184: Single Strength (2.5 mm) | AH184: Double Strength (3 mm) | AI184: Triple Strength (5 mm) | AL184: Laminated | AO184: << Select Opening
A185: =IF(OR(ModelNo="S174",ModelNo="0974"),7,"") ->  | B185: S174 | C185: Fixed Sash Glass Width | D185: =(Frame_Width/4)-4.25 -> -4.25 | F185: 183 | G185: 1904 | H185: New Const. Picture Window | I185: 0.5 | J185: 0.5 | M185: 11.5 | N185: 11.5 | O185: =IF(Frame_Height>54,84,96) -> 96 | P185: =IF(Frame_Width>54,84,96) -> 96 | Q185: 156 | R185: Standard | AH185: Double Strength (3 mm) | AI185: Triple Strength (5 mm) | AL185: Laminated | AO185: << Select Opening
A186: =IF(OR(ModelNo="S174",ModelNo="0974"),8,"") ->  | B186: S174 | C186: Fixed Sash Glass Height | D186: =Frame_Height-4.625 -> -4.625 | F186: 184 | G186: 1909 | H186: New Const. 3 Lite Slider (1/3-1/3-1/3) | I186: 0.5 | J186: 0.5 | M186: 37 | N186: 14 | O186: 108 | P186: =IF(Frame_Width>96,60,72) -> 72 | Q186: 168 | R186: Standard | V186: Half | Y186: Standard | Z186: HP Package | AG186: Single Strength (2.5 mm) | AH186: Double Strength (3 mm) | AI186: Triple Strength (5 mm) | AL186: Laminated | AO186: << Select Opening
A187: =IF(OR(ModelNo="S174",ModelNo="0974"),9,"") ->  | B187: S174 | C187: Screen Width | D187: =(Frame_Width/4)-3.625 -> -3.625 | F187: 185 | G187: 1914 | H187: New Const. Picture Window | I187: 0.5 | J187: 0.5 | M187: 11.5 | N187: 11.5 | O187: =IF(Frame_Height>54,84,96) -> 96 | P187: =IF(Frame_Width>54,84,96) -> 96 | Q187: 156 | R187: Standard | AH187: Double Strength (3 mm) | AI187: Triple Strength (5 mm) | AL187: Laminated | AO187: << Select Opening
A188: =IF(OR(ModelNo="S174",ModelNo="0974"),10,"") ->  | B188: S174 | C188: Screen Height | D188: =Frame_Height-4 -> -4 | F188: 186 | G188: 1920 | H188: New Const. Twin Single Hung | I188: 0.5 | J188: 0.5 | M188: 29 | N188: 25 | O188: 96 | P188: 84 | Q188: 170 | R188: Standard | S188: Custom | V188: Half | Y188: Standard | Z188: HP Package | AG188: Single Strength (2.5 mm) | AH188: Double Strength (3 mm) | AI188: Triple Strength (5 mm) | AL188: Laminated | AO188: << Select Opening
A189: =IF(OR(ModelNo="S174",ModelNo="0974"),11,"") ->  | B189: S174 | C189: Egress Opening Width (Standard Hinge) | D189: =(Frame_Width/4)-10.875 -> -10.875 | F189: 187 | G189: 1921 | H189: New Const. Twin Double Hung | I189: 0.5 | J189: 0.5 | M189: 36 | N189: 25 | O189: 96 | P189: 84 | Q189: 170 | R189: Standard | S189: Oriel (2/3 - 1/3) | T189: Cottage (1/3 - 2/3) | U189: Custom | V189: Half | W189: Full | Y189: Standard | Z189: HP Package | AG189: Single Strength (2.5 mm) | AH189: Double Strength (3 mm) | AI189: Triple Strength (5 mm) | AL189: Laminated | AO189: << Select Opening
A190: =IF(OR(ModelNo="S174",ModelNo="0974"),12,"") ->  | B190: S174 | C190: Egress Opening Height (Standard Hinge) | D190: =Frame_Height-4.375 -> -4.375 | F190: 188 | G190: 1930 | H190: New Const. Triple Single Hung | I190: 0.5 | J190: 0.5 | M190: 44 | N190: 25 | O190: 108 | P190: 84 | Q190: 192 | R190: Standard | S190: Custom | V190: Half | Y190: Standard | Z190: HP Package | AG190: Single Strength (2.5 mm) | AH190: Double Strength (3 mm) | AI190: Triple Strength (5 mm) | AL190: Laminated | AO190: << Select Opening
A191: =IF(OR(ModelNo="S174",ModelNo="0974"),13,"") ->  | B191: S174 | C191: Egress Opening Area w/Standard Hinge (sq.ft.) | D191: =(D189*D190)/144 -> 0.3304036458 | F191: 189 | G191: 1931 | H191: New Const. Triple Double Hung | I191: 0.5 | J191: 0.5 | M191: 54 | N191: 25 | O191: 108 | P191: 84 | Q191: 192 | R191: Standard | S191: Oriel (2/3 - 1/3) | T191: Cottage (1/3 - 2/3) | U191: Custom | V191: Half | W191: Full | Y191: Standard | Z191: HP Package | AG191: Single Strength (2.5 mm) | AH191: Double Strength (3 mm) | AI191: Triple Strength (5 mm) | AL191: Laminated | AO191: << Select Opening
A192: =IF(OR(ModelNo="S174",ModelNo="0974"),14,"") ->  | B192: S174 | C192: Egress Opening Width (Egress Hinge) | D192: =IF(D179<22.375,"N/A",(Frame_Width/4)-6.4375) -> N/A | F192: 1 | G192: =Model_Select -> Select Model | H192: =VLOOKUP(Model_Select,$G$3:$AO$191,2,FALSE) -> 0 | I192: =VLOOKUP(Model_Select,$G$3:$AO$191,3,FALSE) -> 0 | J192: =VLOOKUP(Model_Select,$G$3:$AO$191,4,FALSE) -> 0 | K192: =VLOOKUP(Model_Select,$G$3:$AO$191,5,FALSE) -> 0 | L192: =VLOOKUP(Model_Select,$G$3:$AO$191,6,FALSE) -> 0 | M192: =VLOOKUP(Model_Select,$G$3:$AO$191,7,FALSE) -> 0 | N192: =VLOOKUP(Model_Select,$G$3:$AO$191,8,FALSE) -> 0 | O192: =VLOOKUP(Model_Select,$G$3:$AO$191,9,FALSE) -> 0 | P192: =VLOOKUP(Model_Select,$G$3:$AO$191,10,FALSE) -> 0 | Q192: =VLOOKUP(Model_Select,$G$3:$AO$191,11,FALSE) -> 0 | R192: =VLOOKUP(Model_Select,$G$3:$AO$191,12,FALSE) -> 0 | S192: =VLOOKUP(Model_Select,$G$3:$AO$191,13,FALSE) -> 0 | T192: =VLOOKUP(Model_Select,$G$3:$AO$191,14,FALSE) -> 0 | U192: =VLOOKUP(Model_Select,$G$3:$AO$191,15,FALSE) -> 0 | V192: =VLOOKUP(Model_Select,$G$3:$AO$191,16,FALSE) -> 0 | W192: =VLOOKUP(Model_Select,$G$3:$AO$191,17,FALSE) -> 0 | X192: =VLOOKUP(Model_Select,$G$3:$AO$191,18,FALSE) -> 0 | Y192: =VLOOKUP(Model_Select,$G$3:$AO$191,19,FALSE) -> 0 | Z192: =VLOOKUP(Model_Select,$G$3:$AO$191,20,FALSE) -> 0 | AA192: =VLOOKUP(Model_Select,$G$3:$AO$191,21,FALSE) -> 0 | AB192: =VLOOKUP(Model_Select,$G$3:$AO$191,22,FALSE) -> 0 | AC192: =VLOOKUP(Model_Select,$G$3:$AO$191,23,FALSE) -> 0 | AD192: =VLOOKUP(Model_Select,$G$3:$AO$191,24,FALSE) -> 0 | AE192: =VLOOKUP(Model_Select,$G$3:$AO$191,25,FALSE) -> 0 | AF192: =VLOOKUP(Model_Select,$G$3:$AO$191,26,FALSE) -> 0 | AG192: =VLOOKUP(Model_Select,$G$3:$AO$191,27,FALSE) -> 0 | AH192: =VLOOKUP(Model_Select,$G$3:$AO$191,28,FALSE) -> 0 | AI192: =VLOOKUP(Model_Select,$G$3:$AO$191,29,FALSE) -> 0 | AJ192: =VLOOKUP(Model_Select,$G$3:$AO$191,30,FALSE) -> 0 | AK192: =VLOOKUP(Model_Select,$G$3:$AO$191,31,FALSE) -> 0 | AL192: =VLOOKUP(Model_Select,$G$3:$AO$191,32,FALSE) -> 0 | AM192: =VLOOKUP(Model_Select,$G$3:$AO$191,33,FALSE) -> 0 | AN192: =VLOOKUP(Model_Select,$G$3:$AO$191,34,FALSE) -> 0 | AO192: =VLOOKUP(Model_Select,$G$3:$AO$191,35,FALSE) -> 0
A193: =IF(OR(ModelNo="S174",ModelNo="0974"),15,"") ->  | B193: S174 | C193: Egress Opening Height (Egress Hinge) | D193: =IF(D179<22.375,"N/A",Frame_Height-4.375) -> N/A | G193: =IF(OR(Model_Select="S140",Model_Select="S144",Model_Select="S146"),1,0) -> 0 | L193: =IF(OR(ModelNo="6405",ModelNo="6406",ModelNo="6408",ModelNo="6409",ModelNo="6412",ModelNo="6422",ModelNo="1106",ModelNo="1109"),1,0) -> 0 | AG193: =IF(AG192>0,1,0) -> 0 | AH193: 0 | AI193: 0 | AJ193: 0 | AK193: 0 | AL193: 0 | AM193: 0 | AN193: 0
A194: =IF(OR(ModelNo="S174",ModelNo="0974"),16,"") ->  | B194: S174 | C194: Egress Opening Area w/Egress Hinge (sq.ft.) | D194: =IF(D179<22.375,"N/A",(D192*D193)/144) -> N/A | L194: =IF(HCONTROL=1,96,"") ->  | AG194: =AG193 -> 0 | AH194: =SUM(AG193:AH193) -> 0 | AI194: =SUM(AG193:AI193) -> 0 | AJ194: =SUM(AG193:AJ193) -> 0 | AK194: =SUM(AG193:AK193) -> 0 | AL194: =SUM(AG193:AL193) -> 0 | AM194: =SUM(AG193:AM193) -> 0 | AN194: =SUM(AG193:AN193) -> 0
A195: =IF(OR(ModelNo="S175",ModelNo="0975"),1,"") ->  | B195: S175 | C195: Operating Sash Width | D195: =TRUNC(((Frame_Width/5)-1.225)*16+0.5)/16 -> -1.1875 | AG195: =AG192 -> 0 | AH195: 0 | AI195: 0 | AJ195: 0 | AK195: 0 | AL195: 0 | AM195: 0 | AN195: 0
A196: =IF(OR(ModelNo="S175",ModelNo="0975"),2,"") ->  | B196: S175 | C196: Operating Sash Height | D196: =Frame_Height-1.625 -> -1.625 | AG196: =IF(ISERROR(HLOOKUP(1,AG194:AN195,2,FALSE)),"",HLOOKUP(1,AG194:AN195,2,FALSE)) ->  | AH196: =IF(ISERROR(HLOOKUP(2,AG194:AN195,2,FALSE)),"",HLOOKUP(2,AG194:AN195,2,FALSE)) ->  | AI196: =IF(ISERROR(HLOOKUP(3,AG194:AN195,2,FALSE)),"",HLOOKUP(3,AG194:AN195,2,FALSE)) ->  | AJ196: =IF(ISERROR(HLOOKUP(4,AG194:AN195,2,FALSE)),"",HLOOKUP(4,AG194:AN195,2,FALSE)) ->  | AK196: =IF(ISERROR(HLOOKUP(5,AG194:AN195,2,FALSE)),"",HLOOKUP(5,AG194:AN195,2,FALSE)) ->  | AL196: =IF(ISERROR(HLOOKUP(6,AG194:AN195,2,FALSE)),"",HLOOKUP(6,AG194:AN195,2,FALSE)) ->  | AM196: =IF(ISERROR(HLOOKUP(7,AG194:AN195,2,FALSE)),"",HLOOKUP(7,AG194:AN195,2,FALSE)) ->  | AN196: =IF(ISERROR(HLOOKUP(8,AG194:AN195,2,FALSE)),"",HLOOKUP(8,AG194:AN195,2,FALSE)) -> 
A197: =IF(OR(ModelNo="S175",ModelNo="0975"),3,"") ->  | B197: S175 | C197: Fixed Sash Width | D197: =TRUNC(((Frame_Width/5)-1.225)*16+0.5)/16 -> -1.1875 | AG197: Single Strength (2.5 mm) | AH197: S | AI197: 2.314
A198: =IF(OR(ModelNo="S175",ModelNo="0975"),4,"") ->  | B198: S175 | C198: Fixed Sash Height | D198: =Frame_Height-1.625 -> -1.625 | AG198: Double Strength (3 mm) | AH198: D | AI198: 3.2
A199: =IF(OR(ModelNo="S175",ModelNo="0975"),5,"") ->  | B199: S175 | C199: Operating Sash Glass Width | D199: =TRUNC(((Frame_Width/5)-4.225)*16+0.5)/16 -> -4.1875 | AG199: Triple Strength (5 mm) | AH199: T | AI199: 4.816
A200: =IF(OR(ModelNo="S175",ModelNo="0975"),6,"") ->  | B200: S175 | C200: Operating Sash Glass Height | D200: =Frame_Height-4.625 -> -4.625 | AG200: Triple IG Single Strength | AH200: STG | AI200: 3.471
... 1120 more rows
